{"text_format":"1","workbook":"xlsx","n_sheets":30,"sheets":["INTRODUCTION","Feuil1 à supprimmer","LISEZ-MOI","1_Infos générales","_Menu","_Menu routier","2_Routier","2_Routier_v2","_Menu ferroviaire","_Menu fluvial","_Menu maritime","_Menu aérien","2_Routier tkm","2_Routier carburant","3_Ferroviaire tkm","3_Ferroviaire carburant","3_Ferroviaire","4_Fluvial","4_Fluvial tkm","4_Fluvial carburant","5_Maritime tkm","5_Maritime carburant","5_Maritime","6_Aérien tkm","6_Aérien carburant","6_Aerien","0_SYNTHESE","Lexique","1_Infos_generales_OLD","Routier_v1"],"not_rendered":{"charts":0,"images":26,"macros":1,"external_links":0,"defined_names":393,"comments":11,"pivot_tables":0},"unopened":[],"bounds":{"document_bytes":16777216,"sheet_cells":100000,"rows_first":2000,"rows_last":500,"rows_between":2000,"halvings":0,"cell_chars":16384,"cell_head_chars":4096},"cells_cut":0,"cells_raw":0,"read":"whole","date_system":"1900"}

{"sheet":"INTRODUCTION","index":0,"n_rows":18,"n_cols":3,"rows_kept":18,"cut":false,"hidden":false,"merged":[[1,2,1,15],[16,2,16,17],[17,2,17,17],[13,2,13,17],[11,2,11,17],[12,2,12,17],[6,0,6,15],[2,2,2,15],[5,0,5,15],[14,2,14,17],[15,2,15,17],[7,0,7,17],[8,0,8,2]]}
[]
[null,null,"MODALITÉS D'UTILISATION DU  \nFICHIER DE DÉCLARATION DES ÉMISSIONS DE GAZ À EFFET DE SERRE GÉNÉRÉES PAR LES PRESTATIONS DE TRANSPORT MOBILISÉES DANS LE MARCHÉ"]
[null,null," Version 08.11.2024 - Direction des Achats de l’État (DAE) / Bureau Achats Responsables "]
[]
[]
["Le présent fichier permet de réaliser une évaluation simplifiée et automatisée des émissions de gaz à effet de serre générées par des opérations de transport mobilisés dans le cadre du marche (transport réalisé en propre et externalisé). Les résultats générés permettent de répondre aux dispositions de la norme ISO 14083:2023 \"Gaz à effet de serre — Quantification et déclaration des émissions de gaz à effet de serre résultant des opérations des chaînes de transport\" et du GLEC Framework en matière de déclaration."]
["Les facteurs d'émission utilisés pour les calculs du présent classeur sont issus de la Base Empreinte de l'ADEME, dont les données s'appuyent principalement sur la base Ecoinvent et sur le rapport du GLEC Framework. Les facteurs d'émission et données utilisés dans le tableau pourront faire l'objet de mises à jour. "]
["Les accès aux différentes pages de ce présent outil se font uniquement via les différentes boutons cliquables dans chaque page.  \nNous vous invitons à lire les informations ci-dessous détaillant les différentes étapes por renseigner les données, puis à cliquer sur le bouton \"Saisissez vos informations\". \nPour éviter toute perte de données, nous vous invitons à enregistrer le document régulièrement, des boutons \"Enregistrer\" sont disponibles dans les différentes pages de calculs. "]
[]
[]
[]
["Etapes ","Nom de la page","Contenu "]
[1,"Infos générales","En premier lieu, le titulaire est invité à renseigner ces données d’informations générales sur la structure du titulaire et le périmètre de couverture de la prestation "]
[2,"Menu principal","Le titulaire est invité à sélectionner le mode de transport utilisé dans le cadre de la prestation objet du marché (transport routier, ferroviaire, fluvial, maritime ou aérien)"]
[3,"Routier, Ferroviaire, fluvial, maritime, aérien ","En fonction du mode de transport sélectionné, le titulaire peut sélectionner une méthode de calcul : Distance parcourue OU Carburant consommé \nSi le transport de marchandises est externalisé, le titulaire est invité à récupérer les données auprès du prestataire, co-traitants, sous-traitants."]
[4,"Routier, Ferroviaire, fluvial, maritime, aérien ","En fonction de la méthode de calcul sélectionnée, le titulaire est invité à renseigner les données d'entrées suivantes :\nPour la méthode de calcul de la distance parcourue : le titulaire renseigne pour chaque étape de transport dans le cadre de la prestation objet du marché, le type de véhicule, le type de carburant, le nombre de véhicules, la distance parcourue (en km) et la masse totale transportée (en tonnes). \nPour la méthode de calcul du carburant consommé : le titulaire renseigne pour chaque étape de transport dans le cadre de la prestation objet du marché, le type de véhicule, le type de carburant, le nombre de véhicules, la quantité totale de carburant consommée (en litres ou kWh, kg)\nLa formule générique pour le calcul est la suivante : Émissions de GES [KgCO2eq] = donnée d'activité [unité] x Facteur d'émissions [KgCO2eq/unité]"]
[5,"Synthèse ","Le titulaire est invité à vérifier les données de synthèse. En cas d’erreur, il peut revenir aux étapes précédentes. "]
[6,"Lexique","Si nécessaire, le titulaire peut se référer au lexique qui détaille les types de véhicules, le lexique est accessible via la bouton dans chaque feuille de calcul. "]

{"sheet":"Feuil1 à supprimmer","index":1,"n_rows":10,"n_cols":8,"rows_kept":10,"cut":false,"hidden":true,"merged":[[1,7,1,15],[4,0,4,16],[5,0,5,16],[6,2,6,16],[7,2,7,16]]}
[]
[null,null,null,null,null,null,null,"FICHIER DE DÉCLARATION DES ÉMISSIONS DE GES GÉNÉRÉES PAR LES PRESTATIONS DE TRANSPORT MOBILISÉES DANS LE MARCHÉ"]
[]
[]
["Le présent fichier permet de réaliser une évaluation simplifiée et automatisée des émissions de gaz à effet de serre générées par des opérations de transport. Les résultats générés permettent de répondre aux dispositions de la norme ISO 14083:2023 \"Gaz à effet de serre — Quantification et déclaration des émissions de gaz à effet de serre résultant des opérations des chaînes de transport\" et du GLEC Framework en matière de déclaration."]
["Le présent classeur contient 9 onglets outre celui-ci.\n\nL'onglet '0_SYNTHESE' restitue une déclaration synthétique des émissions de gaz à effet de serre (GES) du titulaire sur la base des informations renseignées dans les autres onglets. Aucune action n'est attendue de la part du titulaire sur cet onglet qui se complète automatiquement.\n\nL'onglet '1_Infos_generales' regroupe les informations relatives au titulaire, au périmètre de couverture de la déclaration ainsi qu'aux informations relatives à sa vérification.\nLe titulaire est invité à renseigner cet onglet en premier, compte tenu des informations qu'il sera en mesure de renseigner dans les onglets suivants.\n\nLes onglets numérotés de 2 à 7 sont construits de manière analogue.\nUne première partie \"DONNÉES D'ENTRÉE\" contient un tableau dont les cellules que le titulaire est invité à renseigner sont identifiés en jaune. Le tableau distingue les prestations dites internalisées, c'est-à-dire réalisées par des moyens internes au titulaire (véhicules / sites logistiques appartenant au titulaire) ou externalisées. Une deuxième partie \"RÉSULTATS\" restitue automatiquement la quantification des émissions de gaz à effet de serre liée aux données renseignées.\n\nLe titulaire renseigne en séparant par mode de transport (routier, ferroviaire, fluvial, maritime, aérien) les prestations réalisées au cours de l'exécution du marché dans la période de référence indiquée en onglet '1_Infos_generales' - ex. recommandé : une année. Le titulaire ne renseigne que les modes de transport auxquels il recourt et laisse les autres onglets vides. À sa convenance, il peut choisir de renseigner ou non les données relatives aux sites logistiques (onglet '7_Sites_logistiques') intervenant dans la chaîne de transport pour les inclure à la quantification GES totale.\nAu sein d'un mode de transport défini (ex. routier dans l'onglet '2_Routier'), le titulaire peut, à sa convenance, regrouper sur une même ligne du tableau \"DONNÉES D'ENTRÉE\" les prestations de transport répondant à des caractéristiques communes (ex. une ligne regroupant toutes les prestations de transport externalisées par VUL électrique à température dirigée sur l'année). Il définit en colonne B de ladite ligne un identifiant de son propre choix (ex. nom de la prestation / numéro / périmètre géographique, etc.).\n\nLe titulaire est responsable des données qu'il renseigne dans les champs proposés. Il est invité à collecter les données d'entrée les plus précises possibles (données primaires = données mesurées) et à solliciler ses prestataires externes à cette fin lorsqu'elles concernent des prestations externalisées. À défaut, le titulaire pourra indiquer \"Non\" dans les champs \"Données primaires ?\" prévus dans chacun des onglets 2 à 7, ce qui ne bloque en rien la réalisation des calculs. La quantification GES reposera alors sur des données modélisées par défaut issues de la Base Empreinte de l'ADEME et/ou le GLEC Framework.\n\nEnfin, l'onglet 'Lexique' explicite davantage les intitulés sélectionnables des listes figurant en colonne C des tableaux \"DONNÉES D'ENTRÉE\"."]
["N°  de l'onglet ","Nom de l'onglet","Contenu "]
[1,"Informations générales","Cet onglet regroupe les informations relatives au titulaire, au périmètre de couverture de la déclaration ainsi qu'aux informations relatives à sa vérification.\nLe titulaire est invité à renseigner cet onglet en premier, compte tenu des informations qu'il sera en mesure de renseigner dans les onglets suivants."]
["2 à 7","Routier, Ferrovaire, fluvial, maritime, aerien "]
[8,"Synthèse "]

{"sheet":"LISEZ-MOI","index":2,"n_rows":14,"n_cols":2,"rows_kept":14,"cut":false,"hidden":true,"merged":[]}
[]
[null,"FICHIER DE DÉCLARATION DES ÉMISSIONS DE GAZ À EFFET DE SERRE GÉNÉRÉES PAR LES PRESTATIONS DE TRANSPORT MOBILISÉES DANS LE MARCHÉ"]
[]
[null,"Le présent fichier permet de réaliser une évaluation simplifiée et automatisée des émissions de gaz à effet de serre générées par des opérations de transport. Les résultats générés permettent de répondre aux dispositions de la norme ISO 14083:2023 \"Gaz à effet de serre — Quantification et déclaration des émissions de gaz à effet de serre résultant des opérations des chaînes de transport\" et du GLEC Framework en matière de déclaration."]
[]
[null,"Lien vers la norme ISO 14083"]
[null,"Lien vers le GLEC Framework"]
[]
[null,"Le présent classeur contient 9 onglets outre celui-ci.\n\nL'onglet '0_SYNTHESE' restitue une déclaration synthétique des émissions de gaz à effet de serre (GES) du titulaire sur la base des informations renseignées dans les autres onglets. Aucune action n'est attendue de la part du titulaire sur cet onglet qui se complète automatiquement.\n\nL'onglet '1_Infos_generales' regroupe les informations relatives au titulaire, au périmètre de couverture de la déclaration ainsi qu'aux informations relatives à sa vérification.\nLe titulaire est invité à renseigner cet onglet en premier, compte tenu des informations qu'il sera en mesure de renseigner dans les onglets suivants.\n\nLes onglets numérotés de 2 à 7 sont construits de manière analogue.\nUne première partie \"DONNÉES D'ENTRÉE\" contient un tableau dont les cellules que le titulaire est invité à renseigner sont identifiés en jaune. Le tableau distingue les prestations dites internalisées, c'est-à-dire réalisées par des moyens internes au titulaire (véhicules / sites logistiques appartenant au titulaire) ou externalisées. Une deuxième partie \"RÉSULTATS\" restitue automatiquement la quantification des émissions de gaz à effet de serre liée aux données renseignées.\n\nLe titulaire renseigne en séparant par mode de transport (routier, ferroviaire, fluvial, maritime, aérien) les prestations réalisées au cours de l'exécution du marché dans la période de référence indiquée en onglet '1_Infos_generales' - ex. recommandé : une année. Le titulaire ne renseigne que les modes de transport auxquels il recourt et laisse les autres onglets vides. À sa convenance, il peut choisir de renseigner ou non les données relatives aux sites logistiques (onglet '7_Sites_logistiques') intervenant dans la chaîne de transport pour les inclure à la quantification GES totale.\nAu sein d'un mode de transport défini (ex. routier dans l'onglet '2_Routier'), le titulaire peut, à sa convenance, regrouper sur une même ligne du tableau \"DONNÉES D'ENTRÉE\" les prestations de transport répondant à des caractéristiques communes (ex. une ligne regroupant toutes les prestations de transport externalisées par VUL électrique à température dirigée sur l'année). Il définit en colonne B de ladite ligne un identifiant de son propre choix (ex. nom de la prestation / numéro / périmètre géographique, etc.).\n\nLe titulaire est responsable des données qu'il renseigne dans les champs proposés. Il est invité à collecter les données d'entrée les plus précises possibles (données primaires = données mesurées) et à solliciler ses prestataires externes à cette fin lorsqu'elles concernent des prestations externalisées. À défaut, le titulaire pourra indiquer \"Non\" dans les champs \"Données primaires ?\" prévus dans chacun des onglets 2 à 7, ce qui ne bloque en rien la réalisation des calculs. La quantification GES reposera alors sur des données modélisées par défaut issues de la Base Empreinte de l'ADEME et/ou le GLEC Framework.\n\nEnfin, l'onglet 'Lexique' explicite davantage les intitulés sélectionnables des listes figurant en colonne C des tableaux \"DONNÉES D'ENTRÉE\"."]
[null,"Lien vers la Base Empreinte de l'ADEME"]
[]
[null,"La quantification des émissions de GES repose sur le principe de calcul ci-dessous :\n\nÉmissions GES (kgCO2e) = donnée d'activité (unité) × facteur d'émission (kgCO2e/unité)\n\nLa donnée d'activité peut concerner la quantité mesurée de carburant consommé (ex. gazole en litres - auquel cas le facteur d'émission sera exprimé en kgCO2e/l) ou une quantité d'activité de transport (ex. activité de transport routier en tonne kilométrique (tkm) - auquel cas le facteur d'émission modélisé sera exprimé en kgCO2e/tkm).\n\nLes facteurs d'émission utilisés pour les calculs du présent classeur sont en premier lieu issus de la Base Empreinte de l'ADEME, complétés dans certains cas par ceux de la norme ISO 14083:2023, de la base Ecoinvent et du GLEC Framework."]
[]
[null,"Lien vers Ecoinvent"]

{"sheet":"1_Infos générales","index":3,"n_rows":27,"n_cols":14,"rows_kept":27,"cut":false,"hidden":false,"merged":[[1,4,1,8],[27,2,27,9],[16,0,19,1],[1,1,1,2],[17,2,17,8],[18,2,18,8],[19,2,19,8],[26,2,26,9],[8,2,8,9],[10,2,10,9],[11,2,11,9],[12,2,12,9],[14,2,14,9],[20,0,20,9]]}
[]
[null,null,null,null,"DÉCLARATION DES ÉMISSIONS DE GES GÉNÉRÉES PAR LES PRESTATIONS DE TRANSPORT MOBILISÉES DANS LE MARCHÉ"]
[]
[]
[null,"INFORMATIONS GÉNÉRALES"]
[]
[null,"Le titulaire est invité à renseigner les cellules vertes claires"]
[]
[null,"Raison sociale du titulaire"]
[]
[null,"Siège social du titulaire","(Adresse)"]
[null,null,"(complément d'adresse) "]
[null,null,"(code postal, ville et pays)"]
[]
[null,"Période de référence","Année"]
[]
["Couverture de la déclaration*",null,null,null,null,null,null,null,null,"Sélectionner"]
[null,null,"Chaîne d'approvisionnement (Logistique amont) ",null,null,null,null,null,null,null,null,null,null,"Oui"]
[null,null,"Activités de transport intégrées dans les prestations de services logistiques mobilisées par le marché (Logistique intermédiaire)",null,null,null,null,null,null,null,null,null,null,"Non"]
[null,null,"Activités de livraison par les transporteurs finaux (Logistique aval)"]
["*Activités logisitiques couvertes dans le cadre de la prestation objet du présent marché "]
["Est-ce que les données saisies dans les tableaux de calculs sont vérifiées par un tiers indépendant ?"]
[]
[null,null,"Sélectionner"]
[]
[]
[null,null,"Si oui, préciser la raison sociale du tiers indépendant et le référentiel méthodologique appliqué pour la vérification"]

{"sheet":"_Menu","index":4,"n_rows":7,"n_cols":6,"rows_kept":7,"cut":false,"hidden":false,"merged":[[1,5,1,13],[6,2,6,16]]}
[]
[null,null,null,null,null,"MENU PRINCIPAL"]
[]
[]
[]
[]
[null,null,"Le titulaire est invité à sélectionner le mode de transport utilisé dans le cadre de la prestation objet du marché (transport routier, ferroviaire, fluvial, maritime ou aérien). \nDans le cas où plusieurs modes de transport sont utilisés, le titulaire pourra les renseigner dans les étapes suivantes "]

{"sheet":"_Menu routier","index":5,"n_rows":6,"n_cols":6,"rows_kept":6,"cut":false,"hidden":false,"merged":[[1,5,1,13],[5,4,5,14]]}
[]
[null,null,null,null,null,"MENU ROUTIER \nCHOIX DE CALCUL"]
[]
[null,"TRANSPORT ROUTIER "]
[]
[null,null,null,null,"En fonction du mode de transport sélectionné, le titulaire séléctionne une méthode de calcul uniquement : \nDistance parcourue OU Carburant consommé "]

{"sheet":"2_Routier","index":6,"n_rows":84,"n_cols":46,"rows_kept":84,"cut":false,"hidden":true,"merged":[[1,1,1,15],[83,1,83,4],[15,5,15,9],[15,10,15,13],[16,5,16,7],[16,10,16,11],[53,5,53,10],[53,11,53,12],[53,13,54,15],[54,5,54,6],[54,8,54,12]]}
[]
[null,"DÉTERMINATION DES ÉMISSIONS DE GAZ À EFFET DE SERRE GÉNÉRÉES PAR LES PRESTATIONS DE TRANSPORT ROUTIER MOBILISÉES DANS LE MARCHÉ"]
[]
[null,"Raison sociale du titulaire",{"$f":"'1_Infos générales'!$C$9:$J$9","v":0}]
[]
[null,"Période de référence",{"$f":"'1_Infos générales'!$C$15","v":"Année"}]
[]
[null,"DONNÉES D'ENTRÉE"]
[]
[null,"Le titulaire est invité à renseigner les cellules jaunes ci-dessous",null,null,null,null,null,null,"Les données primaires sont les données mesurées ou obtenues par calcul à la suite de mesure"]
[null,"Les cellules bleues sont automatiquement complétées et ne peuvent être manuellement modifiées",null,null,null,null,null,null,"En cellule J17, le titulaire indique s'il dispose de données primaires de suivi des consommations de la flotte détenue pour les prestations de transport internalisées"]
[null,null,null,null,null,null,null,null,"→ Si oui, le titulaire renseigne les consommations en colonne I ; si non, il laisse la colonne I vide et les calculs seront réalisés selon des modélisations par défaut"]
[null,"Le titulaire peut regrouper à sa convenance les prestations de transport répondant à des caractéristiques communes (ex. externalisé, par type de véhicule et carburant commun)",null,null,null,null,null,null,"En cellule N17, le titulaire indique s'il dispose de données primaires de suivi des consommations des flottes mobilisées pour les prestations externalisées"]
[null,"Le nombre de lignes disponibles dans le tableau ci-dessous est limité sans possibilité d'ajouter de ligne supplémentaire ;",null,null,null,null,null,null,"→ Si oui, le titulaire renseigne les consommations en colonne M ; si non, il laisse la colonne M vide et les calculs seront réalisés selon des modélisations par défaut"]
[null,"le titulaire est donc invité à réduire aux maximum le nombre de lignes utilisées"]
[null,null,null,null,null,"Prestations de transport internalisées (réalisées avec des véhicules appartenant au titulaire)",null,null,null,null,"Prestations de transport externalisées"]
[null,"La colonne B sert à donner un intitulé (nom, numéro, etc. au choix du titulaire) à la ligne de données renseignée",null,null,null,"Informations sur l'activité de la flotte interne pour les prestations de transport visées",null,null,"Données primaires?","Non","Informations sur l'activité externalisée pour les prestations de transport visées",null,"Données primaires?","Non"]
[null,"Prestation de transport (agrégation possible à la convenance du titulaire - ex. une ligne regroupant tous les transports effectués en VUL électriques à température dirigée sur l'année)","Type de véhicule","Type de carburant","Transport sous température dirigée?","Nombre de véhicules","Distance totale cumulée\n(km)","Masse totale de marchandises transportées\n(t)","Quantité totale d'énergie consommée","Unité","Distance totale cumulée\n(km)","Masse totale de marchandises transportées\n(t)","Quantité totale d'énergie consommée","Unité",null,null,null,null,null,null,null,"Type de véhicule","Type de carburant","Unité","Facteur d'émission (WTT)\n(kgCO2e/unité)","Facteur d'émission (TTW)\n(kgCO2e/unité)","Facteur d'émission (WTW)\n(kgCO2e/unité)","Intensité des émissions issues de la fabrication\n(kgCO2e/tkm)","Intensité des émissions WTT de GES\n(kgCO2e/tkm)","Intensité des émissions TTW de GES\n(kgCO2e/tkm)","Intensité des émissions de GES (WTW + fabrication)\n(kgCO2e/tkm)",null,null,"Véhicule_utilitaire_léger_VUL_PTAC≤3,5t","Camion_rigide_PL_PTAC≤7,5t","Camion_rigide_PL_PTAC≤12t","Camion_rigide_PL_PTAC≤20t","Camion_rigide_PL_PTAC≤26t","Camion_rigide_PL_PTAC≤32t","Ensemble_articulé_PL_PTRA≤34t","Ensemble_articulé_PL_PTRA≤40t","Ensemble_articulé_PL_PTRA≤44t","Ensemble_articulé_PL_PTRA≤60t","Ensemble_articulé_PL_PTRA≤72t","Vélo","Vélo_électrique"]
[null,null,"Vélo","Aucun","Non",null,50,1,null,{"$f":"IF(ISBLANK(D19),\"\",VLOOKUP($D19,$AG$32:$AH$40,2,FALSE))","v":"-"},null,null,null,{"$f":"J19","v":"-"},null,null,null,null,null,null,{"$f":"V19&W19","v":"Véhicule_utilitaire_léger_VUL_PTAC≤3,5tGazole"},"Véhicule_utilitaire_léger_VUL_PTAC≤3,5t","Gazole","l",0.60899999999999999,2.4900000000000002,{"$f":"Y19+Z19","v":3.0990000000000002},0.153,0.13200000000000001,0.54100000000000004,{"$f":"AB19+AC19+AD19","v":0.82600000000000007},null,"Véhicule_utilitaire_léger_VUL_PTAC≤3,5t","Gazole","Gazole","Gazole","Gazole","Gazole","Gazole","Gazole","Gazole","Gazole","Gazole","Gazole","Aucun","Électricité"]
[null,null,"Ensemble_articulé_PL_PTRA≤40t","Gaz_naturel_comprimé_GNC",null,null,null,null,null,{"$f":"IF(ISBLANK(D20),\"\",VLOOKUP($D20,$AG$32:$AH$40,2,FALSE))","v":"kg"},null,null,null,{"$f":"J20","v":"kg"},null,null,null,null,null,null,{"$f":"V20&W20","v":"Véhicule_utilitaire_léger_VUL_PTAC≤3,5tEssence"},"Véhicule_utilitaire_léger_VUL_PTAC≤3,5t","Essence","l",0.49399999999999999,2.2000000000000002,{"$f":"Y20+Z20","v":2.694},0.153,0.16,0.85,{"$f":"AB20+AC20+AD20","v":1.163},null,"Camion_rigide_PL_PTAC≤7,5t","Essence","Gaz_naturel_comprimé_GNC","Gaz_naturel_comprimé_GNC","Gaz_naturel_comprimé_GNC","Gaz_naturel_comprimé_GNC",null,null,"Gaz_naturel_comprimé_GNC"]
[null,null,null,null,null,null,null,null,null,"",null,null,null,"",null,null,null,null,null,null,"Véhicule_utilitaire_léger_VUL_PTAC≤3,5tGaz_naturel_comprimé_GNC","Véhicule_utilitaire_léger_VUL_PTAC≤3,5t","Gaz_naturel_comprimé_GNC","kg",0.55000000000000004,2.41,2.96,0.153,0.08,0.54,0.77300000000000002,null,"Camion_rigide_PL_PTAC≤12t","Gaz_naturel_comprimé_GNC","Hybride_électricité_gazole",null,"Gaz_naturel_liquéfié_GNL","Gaz_naturel_liquéfié_GNL",null,null,"Gaz_naturel_liquéfié_GNL"]
[null,null,null,null,null,null,null,null,null,"",null,null,null,"",null,null,null,null,null,null,"Véhicule_utilitaire_léger_VUL_PTAC≤3,5tGaz_de_pétrole_liquéfié_GPL","Véhicule_utilitaire_léger_VUL_PTAC≤3,5t","Gaz_de_pétrole_liquéfié_GPL","l",0.26200000000000001,1.6,1.8620000000000001,0.153,7.0000000000000007E-2,0.59,0.81299999999999994,null,"Camion_rigide_PL_PTAC≤20t","Gaz_de_pétrole_liquéfié_GPL","Électricité"]
[null,null,null,null,null,null,null,null,null,"",null,null,null,"",null,null,null,null,null,null,"Véhicule_utilitaire_léger_VUL_PTAC≤3,5tÉlectricité","Véhicule_utilitaire_léger_VUL_PTAC≤3,5t","Électricité","kWh",5.1299999999999998E-2,0,5.1299999999999998E-2,0.153,{"$f":"1.1*Y23","v":5.6430000000000001E-2},0,0.20943000000000001,null,"Camion_rigide_PL_PTAC≤26t","Électricité"]
[null,null,null,null,null,null,null,null,null,"",null,null,null,"",null,null,null,null,null,null,"Véhicule_utilitaire_léger_VUL_PTAC≤3,5tHydrogène","Véhicule_utilitaire_léger_VUL_PTAC≤3,5t","Hydrogène","kg",13.7,0,13.7,8.8300000000000003E-2,0.30299999999999999,0,0.39129999999999998,null,"Camion_rigide_PL_PTAC≤32t","Hydrogène"]
[null,null,null,null,null,null,null,null,null,"",null,null,null,"",null,null,null,null,null,null,"Camion_rigide_PL_PTAC≤7,5tGazole","Camion_rigide_PL_PTAC≤7,5t","Gazole","l",0.60899999999999999,2.4900000000000002,3.0990000000000002,1.1299999999999999E-2,7.1900000000000006E-2,0.29399999999999998,0.37719999999999998,null,"Ensemble_articulé_PL_PTRA≤34t"]
[null,null,null,null,null,null,null,null,null,"",null,null,null,"",null,null,null,null,null,null,"Camion_rigide_PL_PTAC≤7,5tGaz_naturel_comprimé_GNC","Camion_rigide_PL_PTAC≤7,5t","Gaz_naturel_comprimé_GNC","kg",0.55000000000000004,2.41,2.96,1.1299999999999999E-2,4.4999999999999998E-2,0.31,0.36630000000000001,null,"Ensemble_articulé_PL_PTRA≤40t"]
[null,null,null,null,null,null,null,null,null,"",null,null,null,"",null,null,null,null,null,null,"Camion_rigide_PL_PTAC≤7,5tHybride_électricité_gazole","Camion_rigide_PL_PTAC≤7,5t","Hybride_électricité_gazole","l",0.54800000000000004,2.2400000000000002,2.7880000000000003,1.1299999999999999E-2,4.7500000000000001E-2,0.24,0.29880000000000001,null,"Ensemble_articulé_PL_PTRA≤44t"]
[null,null,null,null,null,null,null,null,null,"",null,null,null,"",null,null,null,null,null,null,"Camion_rigide_PL_PTAC≤7,5tÉlectricité","Camion_rigide_PL_PTAC≤7,5t","Électricité","kWh",5.1299999999999998E-2,0,5.1299999999999998E-2,1.1299999999999999E-2,4.6699999999999998E-2,0,5.7999999999999996E-2,null,"Ensemble_articulé_PL_PTRA≤60t"]
[null,null,null,null,null,null,null,null,null,"",null,null,null,"",null,null,null,null,null,null,"Camion_rigide_PL_PTAC≤12tGazole","Camion_rigide_PL_PTAC≤12t","Gazole","l",0.60899999999999999,2.4900000000000002,3.0990000000000002,9.7000000000000003E-3,4.5499999999999999E-2,0.186,0.2412,null,"Ensemble_articulé_PL_PTRA≤72t"]
[null,null,null,null,null,null,null,null,null,"",null,null,null,"",null,null,null,null,null,null,"Camion_rigide_PL_PTAC≤12tGaz_naturel_comprimé_GNC","Camion_rigide_PL_PTAC≤12t","Gaz_naturel_comprimé_GNC","kg",0.55000000000000004,2.41,2.96,9.7000000000000003E-3,2.8000000000000001E-2,0.19,0.22770000000000001,null,"Vélo"]
[null,null,null,null,null,null,null,null,null,"",null,null,null,"",null,null,null,null,null,null,"Camion_rigide_PL_PTAC≤20tGazole","Camion_rigide_PL_PTAC≤20t","Gazole","l",0.60899999999999999,2.4900000000000002,3.0990000000000002,1.0500000000000001E-2,2.93E-2,0.12,0.1598,null,"Vélo_électrique"]
[null,null,null,null,null,null,null,null,null,"",null,null,null,"",null,null,null,null,null,null,"Camion_rigide_PL_PTAC≤20tGaz_naturel_comprimé_GNC","Camion_rigide_PL_PTAC≤20t","Gaz_naturel_comprimé_GNC","kg",0.55000000000000004,2.41,2.96,1.0500000000000001E-2,1.4999999999999999E-2,0.13,0.1555,null,"Électricité","kWh"]
[null,null,null,null,null,null,null,null,null,"",null,null,null,"",null,null,null,null,null,null,"Camion_rigide_PL_PTAC≤20tGaz_naturel_liquéfié_GNL","Camion_rigide_PL_PTAC≤20t","Gaz_naturel_liquéfié_GNL","kg",0.69699999999999995,2.58,3.2770000000000001,1.0500000000000001E-2,4.5999999999999999E-2,0.13,0.1865,null,"Hybride_électricité_gazole","l"]
[null,null,null,null,null,null,null,null,null,"",null,null,null,"",null,null,null,null,null,null,"Camion_rigide_PL_PTAC≤26tGazole","Camion_rigide_PL_PTAC≤26t","Gazole","l",0.60899999999999999,2.4900000000000002,3.0990000000000002,1.1299999999999999E-2,2.4199999999999999E-2,9.9099999999999994E-2,0.1346,null,"Gazole","l"]
[null,null,null,null,null,null,null,null,null,"",null,null,null,"",null,null,null,null,null,null,"Camion_rigide_PL_PTAC≤26tGaz_naturel_comprimé_GNC","Camion_rigide_PL_PTAC≤26t","Gaz_naturel_comprimé_GNC","kg",0.55000000000000004,2.41,2.96,1.1299999999999999E-2,1.4999999999999999E-2,0.12,0.14629999999999999,null,"Essence","l"]
[null,null,null,null,null,null,null,null,null,"",null,null,null,"",null,null,null,null,null,null,"Camion_rigide_PL_PTAC≤26tGaz_naturel_liquéfié_GNL","Camion_rigide_PL_PTAC≤26t","Gaz_naturel_liquéfié_GNL","kg",0.69699999999999995,2.58,3.2770000000000001,1.1299999999999999E-2,3.5999999999999997E-2,0.14000000000000001,0.18730000000000002,null,"Gaz_de_pétrole_liquéfié_GPL","l"]
[null,null,null,null,null,null,null,null,null,"",null,null,null,"",null,null,null,null,null,null,"Camion_rigide_PL_PTAC≤32tGazole","Camion_rigide_PL_PTAC≤32t","Gazole","l",0.60899999999999999,2.4900000000000002,3.0990000000000002,8.0000000000000002E-3,1.9099999999999999E-2,7.8100000000000003E-2,0.1052,null,"Gaz_naturel_comprimé_GNC","kg"]
[null,null,null,null,null,null,null,null,null,"",null,null,null,"",null,null,null,null,null,null,"Ensemble_articulé_PL_PTRA≤34tGazole","Ensemble_articulé_PL_PTRA≤34t","Gazole","l",0.60899999999999999,2.4900000000000002,3.0990000000000002,3.7000000000000002E-3,1.7600000000000001E-2,6.4000000000000001E-2,8.5300000000000001E-2,null,"Gaz_naturel_liquéfié_GNL","kg"]
[null,null,null,null,null,null,null,null,null,"",null,null,null,"",null,null,null,null,null,null,"Ensemble_articulé_PL_PTRA≤40tGazole","Ensemble_articulé_PL_PTRA≤40t","Gazole","l",0.60899999999999999,2.4900000000000002,3.0990000000000002,3.8E-3,1.54E-2,6.3100000000000003E-2,8.2300000000000012E-2,null,"Hydrogène","kg"]
[null,null,null,null,null,null,null,null,null,"",null,null,null,"",null,null,null,null,null,null,"Ensemble_articulé_PL_PTRA≤40tGaz_naturel_comprimé_GNC","Ensemble_articulé_PL_PTRA≤40t","Gaz_naturel_comprimé_GNC","kg",0.55000000000000004,2.41,2.96,3.8E-3,0.01,6.6000000000000003E-2,7.980000000000001E-2,null,"Aucun","-"]
[null,null,null,null,null,null,null,null,null,"",null,null,null,"",null,null,null,null,null,null,"Ensemble_articulé_PL_PTRA≤40tGaz_naturel_liquéfié_GNL","Ensemble_articulé_PL_PTRA≤40t","Gaz_naturel_liquéfié_GNL","kg",0.69699999999999995,2.58,3.2770000000000001,3.8E-3,2.3E-2,6.5000000000000002E-2,9.1800000000000007E-2]
[null,null,null,null,null,null,null,null,null,"",null,null,null,"",null,null,null,null,null,null,"Ensemble_articulé_PL_PTRA≤44tGazole","Ensemble_articulé_PL_PTRA≤44t","Gazole","l",0.60899999999999999,2.4900000000000002,3.0990000000000002,3.8E-3,1.32E-2,5.4100000000000002E-2,7.1099999999999997E-2,null,"Oui"]
[null,null,null,null,null,null,null,null,null,"",null,null,null,"",null,null,null,null,null,null,"Ensemble_articulé_PL_PTRA≤60tGazole","Ensemble_articulé_PL_PTRA≤60t","Gazole","l",0.60899999999999999,2.4900000000000002,3.0990000000000002,3.8999999999999998E-3,1.2500000000000001E-2,5.11E-2,6.7500000000000004E-2,null,"Non"]
[null,null,null,null,null,null,null,null,null,"",null,null,null,null,null,null,null,null,null,null,"Ensemble_articulé_PL_PTRA≤72tGazole","Ensemble_articulé_PL_PTRA≤72t","Gazole","l",0.60899999999999999,2.4900000000000002,{"$f":"Y44+Z44","v":3.0990000000000002},4.0000000000000001E-3,1.2500000000000001E-2,5.11E-2,{"$f":"AB44+AC44+AD44","v":6.7599999999999993E-2}]
[null,null,null,null,null,null,null,null,null,null,null,null,null,null,null,null,null,null,null,null,"VéloAucun","Vélo","Aucun",null,0,0,0,0.02,0,0,{"$f":"AB45+AC45+AD45","v":0.02}]
[null,"RÉSULTATS",null,null,null,null,null,null,null,null,null,null,null,null,null,null,null,null,null,null,"Vélo_électriqueÉlectricité","Vélo_électrique","Électricité","kWh",5.1299999999999998E-2,0,5.1299999999999998E-2,0.02,4.8199999999999996E-3,0,2.4820000000000002E-2]
[]
[null,"Scope 1 : émissions directes de GES",null,null,null,null,null,null,null,"TTW (tank-to-wheel) = émissions \"du réservoir à la roue\" (combustion)"]
[null,"Scope 2 : émissions indirectes de GES issues de l'électricité consommée",null,null,null,null,null,null,null,"WTT (well-to-tank) = émissions \"du puits au réservoir\" (production de l'énergie en amont)"]
[null,"Scope 3 : autres émissions indirectes de GES - incluent les émissions amont de production des carburants et des véhicules ainsi que toutes les émissions du transport externalisé",null,null,null,null,null,null,null,"WTW (well-to-wheel) = émissions \"du puits à la roue\" (cycle de vie complet de l'énergie)"]
[]
[null,"Pour le transport sous température dirigée, les émissions totales de GES sont majorées de 15 % sous l'effet des fuites de fluides frigorigènes"]
[]
[null,null,null,null,null,"Prestations de transport internalisées",null,null,null,null,null,"Prestations de transport externalisées",null,"BILAN GLOBAL"]
[null,null,null,null,null,"Scope 1",null,"Scope 2","Scope 3"]
[null,"Prestation de transport","Type de véhicule","Type de carburant","Transport sous température dirigée?","Activité totale de transport internalisée\n(tkm)","Émissions directes (TTW) de GES\n(kgCO2e)","Émissions indirectes (WTT) de GES issues de l'électricité consommée\n(kgCO2e)","Rappel activité totale de transport internalisée\n(tkm)","Émissions indirectes de GES issues de la fabrication des véhicules\n(kgCO2e)","Émissions indirectes (WTT) de GES issues du carburant consommé\n(kgCO2e)","Activité totale de transport externalisée\n(tkm)","Émissions de GES (WTW + fabrication) \n(kgCO2e)","Activité totale de transport \n(tkm)","Émissions de GES\n(kgCO2e)","Intensité des émissions de GES\n(kgCO2e/tkm)"]
[null,{"$f":"B19","v":0},"Vélo","Aucun","Non",{"$f":"G19*H19","v":50},{"$f":"IF(OR($C57=0,$D57=0),0,IF($J$17=\"Oui\",$I19*VLOOKUP($C57&$D57,$U$19:$AE$46,6,FALSE),$F57*VLOOKUP($C57&$D57,$U$19:$AE$46,10,FALSE)))","v":0},{"$f":"IF($D57<>\"Électricité\",0,IF($J$17=\"Oui\",$I19*VLOOKUP($C57&$D57,$U$19:$AE$46,5,FALSE),$F57*VLOOKUP($C57&$D57,$U$19:$AE$46,9,FALSE)))","v":0},{"$f":"F57","v":50},{"$f":"IF(OR($C57=0,$D57=0),0,$F57*VLOOKUP($C57&$D57,$U$19:$AE$46,8,FALSE))","v":1},{"$f":"IF(OR($C57=0,$D57=0),0,IF($D57=\"Électricité\",0,IF($J$17=\"Oui\",$I19*VLOOKUP($C57&$D57,$U$19:$AE$46,5,FALSE),$F57*VLOOKUP($C57&$D57,$U$19:$AE$46,9,FALSE))))","v":0},{"$f":"K19*L19","v":0},{"$f":"IF(OR($C57=0,$D57=0),0,IF($N$17=\"Oui\",$M19*VLOOKUP($C57&$D57,$U$19:$AE$46,7,FALSE)+$L57*VLOOKUP(C57&D57,$U$19:$AE$46,8,FALSE),$L57*VLOOKUP($C57&$D57,$U$19:$AE$46,11,FALSE)))","v":0},{"$f":"I57+L57","v":50},{"$f":"IF(E57=\"Non\",G57+H57+J57+K57+M57,1.15*(G57+H57+J57+K57+M57))","v":1},{"$f":"O57/N57","v":0.02}]
[null,0,"Ensemble_articulé_PL_PTRA≤40t","Gaz_naturel_comprimé_GNC",0,0,0,0,{"$f":"F58","v":0},0,0,0,{"$f":"IF(O42OU(L60=0,$D58=0),0,IF($N$17=\"Oui\",$M20*VLOOKUP($C58&$D58,$U$19:$AE$46,7,FALSE)+$L58*VLOOKUP(C58&D58,$U$19:$AE$46,8,FALSE),$L58*VLOOKUP($C58&$D58,$U$19:$AE$46,11,FALSE)))","v":{"$error":"#NAME?"}},{"$f":"I58+L58","v":0},{"$f":"IF(E58=\"Non\",G58+H58+J58+K58+M58,1.15*(G58+H58+J58+K58+M58))","v":{"$error":"#NAME?"}},{"$f":"O58/N58","v":{"$error":"#NAME?"}}]
[null,0,0,0,0,0,0,0,0,0,0,0,0,0,0,{"$error":"#DIV/0!"}]
[null,0,0,0,0,0,0,0,0,0,0,0,0,0,0,{"$error":"#DIV/0!"}]
[null,0,0,0,0,0,0,0,0,0,0,0,0,0,0,{"$error":"#DIV/0!"}]
[null,0,0,0,0,0,0,0,0,0,0,0,0,0,0,{"$error":"#DIV/0!"}]
[null,0,0,0,0,0,0,0,0,0,0,0,0,0,0,{"$error":"#DIV/0!"}]
[null,0,0,0,0,0,0,0,0,0,0,0,0,0,0,{"$error":"#DIV/0!"}]
[null,0,0,0,0,0,0,0,0,0,0,0,0,0,0,{"$error":"#DIV/0!"}]
[null,0,0,0,0,0,0,0,0,0,0,0,0,0,0,{"$error":"#DIV/0!"}]
[null,0,0,0,0,0,0,0,0,0,0,0,0,0,0,{"$error":"#DIV/0!"}]
[null,0,0,0,0,0,0,0,0,0,0,0,0,0,0,{"$error":"#DIV/0!"}]
[null,0,0,0,0,0,0,0,0,0,0,0,0,0,0,{"$error":"#DIV/0!"}]
[null,0,0,0,0,0,0,0,0,0,0,0,0,0,0,{"$error":"#DIV/0!"}]
[null,0,0,0,0,0,0,0,0,0,0,0,0,0,0,{"$error":"#DIV/0!"}]
[null,0,0,0,0,0,0,0,0,0,0,0,0,0,0,{"$error":"#DIV/0!"}]
[null,0,0,0,0,0,0,0,0,0,0,0,0,0,0,{"$error":"#DIV/0!"}]
[null,0,0,0,0,0,0,0,0,0,0,0,0,0,0,{"$error":"#DIV/0!"}]
[null,0,0,0,0,0,0,0,0,0,0,0,0,0,0,{"$error":"#DIV/0!"}]
[null,0,0,0,0,0,0,0,0,0,0,0,0,0,0,{"$error":"#DIV/0!"}]
[null,0,0,0,0,0,0,0,0,0,0,0,0,0,0,{"$error":"#DIV/0!"}]
[null,0,0,0,0,0,0,0,0,0,0,0,0,0,0,{"$error":"#DIV/0!"}]
[null,0,0,0,0,0,0,0,0,0,0,0,0,0,0,{"$error":"#DIV/0!"}]
[null,0,0,0,0,0,0,0,0,0,0,0,0,0,0,{"$error":"#DIV/0!"}]
[null,0,0,0,0,0,0,0,0,0,0,0,0,0,0,{"$error":"#DIV/0!"}]
[null,0,0,0,0,0,0,0,{"$f":"F82","v":0},0,0,0,0,0,0,{"$error":"#DIV/0!"}]
[]
[null,"TOTAL",null,null,null,{"$f":"SUM(F57:F82)","v":50},0,0,50,1,0,0,{"$error":"#NAME?"},50,{"$f":"SUM(O57:O82)","v":{"$error":"#NAME?"}},{"$f":"O84/N84","v":{"$error":"#NAME?"}}]

{"sheet":"2_Routier_v2","index":7,"n_rows":85,"n_cols":46,"rows_kept":85,"cut":false,"hidden":true,"merged":[[84,1,84,4],[4,2,4,8],[6,2,6,8],[0,3,0,8],[16,5,16,9],[16,10,16,13],[17,5,17,7],[17,10,17,11],[54,5,54,10],[54,11,54,12],[54,13,55,15],[55,5,55,6],[55,8,55,12]]}
[null,null,null,"DÉTERMINATION DES ÉMISSIONS DE GAZ À EFFET DE SERRE GÉNÉRÉES PAR LES PRESTATIONS DE TRANSPORT ROUTIER MOBILISÉES DANS LE MARCHÉ"]
[]
[]
[]
[null,"Raison sociale du titulaire",{"$f":"'1_Infos générales'!$C$9:$J$9","v":0}]
[]
[null,"Période de référence",{"$f":"'1_Infos générales'!$C$15","v":"Année"}]
[]
[null,"DONNÉES D'ENTRÉE"]
[]
[null,"Le titulaire est invité à renseigner les cellules jaunes ci-dessous",null,null,null,null,null,null,"Les données primaires sont les données mesurées ou obtenues par calcul à la suite de mesure"]
[null,"Les cellules bleues sont automatiquement complétées et ne peuvent être manuellement modifiées",null,null,null,null,null,null,"En cellule J17, le titulaire indique s'il dispose de données primaires de suivi des consommations de la flotte détenue pour les prestations de transport internalisées"]
[null,null,null,null,null,null,null,null,"→ Si oui, le titulaire renseigne les consommations en colonne I ; si non, il laisse la colonne I vide et les calculs seront réalisés selon des modélisations par défaut"]
[null,"Le titulaire peut regrouper à sa convenance les prestations de transport répondant à des caractéristiques communes (ex. externalisé, par type de véhicule et carburant commun)",null,null,null,null,null,null,"En cellule N17, le titulaire indique s'il dispose de données primaires de suivi des consommations des flottes mobilisées pour les prestations externalisées"]
[null,"Le nombre de lignes disponibles dans le tableau ci-dessous est limité sans possibilité d'ajouter de ligne supplémentaire ;",null,null,null,null,null,null,"→ Si oui, le titulaire renseigne les consommations en colonne M ; si non, il laisse la colonne M vide et les calculs seront réalisés selon des modélisations par défaut"]
[null,"le titulaire est donc invité à réduire aux maximum le nombre de lignes utilisées"]
[null,null,null,null,null,"Prestations de transport internalisées (réalisées avec des véhicules appartenant au titulaire)",null,null,null,null,"Prestations de transport externalisées"]
[null,"La colonne B sert à donner un intitulé (nom, numéro, etc. au choix du titulaire) à la ligne de données renseignée",null,null,null,"Informations sur l'activité de la flotte interne pour les prestations de transport visées",null,null,"Données primaires?","Oui","Informations sur l'activité externalisée pour les prestations de transport visées",null,"Données primaires?","Oui"]
[null,"Prestation de transport (agrégation possible à la convenance du titulaire - ex. une ligne regroupant tous les transports effectués en VUL électriques à température dirigée sur l'année)","Type de véhicule","Type de carburant","Transport sous température dirigée?","Nombre de véhicules","Distance totale cumulée\n(km)","Masse totale de marchandises transportées\n(t)","Quantité totale d'énergie consommée","Unité","Distance totale cumulée\n(km)","Masse totale de marchandises transportées\n(t)","Quantité totale d'énergie consommée","Unité",null,null,null,null,null,null,null,"Type de véhicule","Type de carburant","Unité","Facteur d'émission (WTT)\n(kgCO2e/unité)","Facteur d'émission (TTW)\n(kgCO2e/unité)","Facteur d'émission (WTW)\n(kgCO2e/unité)","Intensité des émissions issues de la fabrication\n(kgCO2e/tkm)","Intensité des émissions WTT de GES\n(kgCO2e/tkm)","Intensité des émissions TTW de GES\n(kgCO2e/tkm)","Intensité des émissions de GES (WTW + fabrication)\n(kgCO2e/tkm)",null,null,"Véhicule_utilitaire_léger_VUL_PTAC≤3,5t","Camion_rigide_PL_PTAC≤7,5t","Camion_rigide_PL_PTAC≤12t","Camion_rigide_PL_PTAC≤20t","Camion_rigide_PL_PTAC≤26t","Camion_rigide_PL_PTAC≤32t","Ensemble_articulé_PL_PTRA≤34t","Ensemble_articulé_PL_PTRA≤40t","Ensemble_articulé_PL_PTRA≤44t","Ensemble_articulé_PL_PTRA≤60t","Ensemble_articulé_PL_PTRA≤72t","Vélo","Vélo_électrique"]
[null,null,"Camion_rigide_PL_PTAC≤7,5t","Gazole","Non",null,null,10,10,{"$f":"IF(ISBLANK(D20),\"\",VLOOKUP($D20,$AG$33:$AH$41,2,FALSE))","v":"l"},null,null,null,{"$f":"J20","v":"l"},null,null,null,null,null,null,{"$f":"V20&W20","v":"Véhicule_utilitaire_léger_VUL_PTAC≤3,5tGazole"},"Véhicule_utilitaire_léger_VUL_PTAC≤3,5t","Gazole","l",0.60899999999999999,2.4900000000000002,{"$f":"Y20+Z20","v":3.0990000000000002},0.153,0.13200000000000001,0.54100000000000004,{"$f":"AB20+AC20+AD20","v":0.82600000000000007},null,"Véhicule_utilitaire_léger_VUL_PTAC≤3,5t","Gazole","Gazole","Gazole","Gazole","Gazole","Gazole","Gazole","Gazole","Gazole","Gazole","Gazole","Aucun","Électricité"]
[null,null,"Véhicule_utilitaire_léger_VUL_PTAC≤3,5t","Électricité",null,null,null,10,1000,{"$f":"IF(ISBLANK(D21),\"\",VLOOKUP($D21,$AG$33:$AH$41,2,FALSE))","v":"kWh"},null,null,null,{"$f":"J21","v":"kWh"},null,null,null,null,null,null,{"$f":"V21&W21","v":"Véhicule_utilitaire_léger_VUL_PTAC≤3,5tEssence"},"Véhicule_utilitaire_léger_VUL_PTAC≤3,5t","Essence","l",0.49399999999999999,2.2000000000000002,{"$f":"Y21+Z21","v":2.694},0.153,0.16,0.85,{"$f":"AB21+AC21+AD21","v":1.163},null,"Camion_rigide_PL_PTAC≤7,5t","Essence","Gaz_naturel_comprimé_GNC","Gaz_naturel_comprimé_GNC","Gaz_naturel_comprimé_GNC","Gaz_naturel_comprimé_GNC",null,null,"Gaz_naturel_comprimé_GNC"]
[null,null,null,null,null,null,null,null,null,"",null,null,null,"",null,null,null,null,null,null,"Véhicule_utilitaire_léger_VUL_PTAC≤3,5tGaz_naturel_comprimé_GNC","Véhicule_utilitaire_léger_VUL_PTAC≤3,5t","Gaz_naturel_comprimé_GNC","kg",0.55000000000000004,2.41,2.96,0.153,0.08,0.54,0.77300000000000002,null,"Camion_rigide_PL_PTAC≤12t","Gaz_naturel_comprimé_GNC","Hybride_électricité_gazole",null,"Gaz_naturel_liquéfié_GNL","Gaz_naturel_liquéfié_GNL",null,null,"Gaz_naturel_liquéfié_GNL"]
[null,null,null,null,null,null,null,null,null,"",null,null,null,"",null,null,null,null,null,null,"Véhicule_utilitaire_léger_VUL_PTAC≤3,5tGaz_de_pétrole_liquéfié_GPL","Véhicule_utilitaire_léger_VUL_PTAC≤3,5t","Gaz_de_pétrole_liquéfié_GPL","l",0.26200000000000001,1.6,1.8620000000000001,0.153,7.0000000000000007E-2,0.59,0.81299999999999994,null,"Camion_rigide_PL_PTAC≤20t","Gaz_de_pétrole_liquéfié_GPL","Électricité"]
[null,null,null,null,null,null,null,null,null,"",null,null,null,"",null,null,null,null,null,null,"Véhicule_utilitaire_léger_VUL_PTAC≤3,5tÉlectricité","Véhicule_utilitaire_léger_VUL_PTAC≤3,5t","Électricité","kWh",5.1299999999999998E-2,0,5.1299999999999998E-2,0.153,{"$f":"1.1*Y24","v":5.6430000000000001E-2},0,0.20943000000000001,null,"Camion_rigide_PL_PTAC≤26t","Électricité"]
[null,null,null,null,null,null,null,null,null,"",null,null,null,"",null,null,null,null,null,null,"Véhicule_utilitaire_léger_VUL_PTAC≤3,5tHydrogène","Véhicule_utilitaire_léger_VUL_PTAC≤3,5t","Hydrogène","kg",13.7,0,13.7,8.8300000000000003E-2,0.30299999999999999,0,0.39129999999999998,null,"Camion_rigide_PL_PTAC≤32t","Hydrogène"]
[null,null,null,null,null,null,null,null,null,"",null,null,null,"",null,null,null,null,null,null,"Camion_rigide_PL_PTAC≤7,5tGazole","Camion_rigide_PL_PTAC≤7,5t","Gazole","l",0.60899999999999999,2.4900000000000002,3.0990000000000002,1.1299999999999999E-2,7.1900000000000006E-2,0.29399999999999998,0.37719999999999998,null,"Ensemble_articulé_PL_PTRA≤34t"]
[null,null,null,null,null,null,null,null,null,"",null,null,null,"",null,null,null,null,null,null,"Camion_rigide_PL_PTAC≤7,5tGaz_naturel_comprimé_GNC","Camion_rigide_PL_PTAC≤7,5t","Gaz_naturel_comprimé_GNC","kg",0.55000000000000004,2.41,2.96,1.1299999999999999E-2,4.4999999999999998E-2,0.31,0.36630000000000001,null,"Ensemble_articulé_PL_PTRA≤40t"]
[null,null,null,null,null,null,null,null,null,"",null,null,null,"",null,null,null,null,null,null,"Camion_rigide_PL_PTAC≤7,5tHybride_électricité_gazole","Camion_rigide_PL_PTAC≤7,5t","Hybride_électricité_gazole","l",0.54800000000000004,2.2400000000000002,2.7880000000000003,1.1299999999999999E-2,4.7500000000000001E-2,0.24,0.29880000000000001,null,"Ensemble_articulé_PL_PTRA≤44t"]
[null,null,null,null,null,null,null,null,null,"",null,null,null,"",null,null,null,null,null,null,"Camion_rigide_PL_PTAC≤7,5tÉlectricité","Camion_rigide_PL_PTAC≤7,5t","Électricité","kWh",5.1299999999999998E-2,0,5.1299999999999998E-2,1.1299999999999999E-2,4.6699999999999998E-2,0,5.7999999999999996E-2,null,"Ensemble_articulé_PL_PTRA≤60t"]
[null,null,null,null,null,null,null,null,null,"",null,null,null,"",null,null,null,null,null,null,"Camion_rigide_PL_PTAC≤12tGazole","Camion_rigide_PL_PTAC≤12t","Gazole","l",0.60899999999999999,2.4900000000000002,3.0990000000000002,9.7000000000000003E-3,4.5499999999999999E-2,0.186,0.2412,null,"Ensemble_articulé_PL_PTRA≤72t"]
[null,null,null,null,null,null,null,null,null,"",null,null,null,"",null,null,null,null,null,null,"Camion_rigide_PL_PTAC≤12tGaz_naturel_comprimé_GNC","Camion_rigide_PL_PTAC≤12t","Gaz_naturel_comprimé_GNC","kg",0.55000000000000004,2.41,2.96,9.7000000000000003E-3,2.8000000000000001E-2,0.19,0.22770000000000001,null,"Vélo"]
[null,null,null,null,null,null,null,null,null,"",null,null,null,"",null,null,null,null,null,null,"Camion_rigide_PL_PTAC≤20tGazole","Camion_rigide_PL_PTAC≤20t","Gazole","l",0.60899999999999999,2.4900000000000002,3.0990000000000002,1.0500000000000001E-2,2.93E-2,0.12,0.1598,null,"Vélo_électrique"]
[null,null,null,null,null,null,null,null,null,"",null,null,null,"",null,null,null,null,null,null,"Camion_rigide_PL_PTAC≤20tGaz_naturel_comprimé_GNC","Camion_rigide_PL_PTAC≤20t","Gaz_naturel_comprimé_GNC","kg",0.55000000000000004,2.41,2.96,1.0500000000000001E-2,1.4999999999999999E-2,0.13,0.1555,null,"Électricité","kWh"]
[null,null,null,null,null,null,null,null,null,"",null,null,null,"",null,null,null,null,null,null,"Camion_rigide_PL_PTAC≤20tGaz_naturel_liquéfié_GNL","Camion_rigide_PL_PTAC≤20t","Gaz_naturel_liquéfié_GNL","kg",0.69699999999999995,2.58,3.2770000000000001,1.0500000000000001E-2,4.5999999999999999E-2,0.13,0.1865,null,"Hybride_électricité_gazole","l"]
[null,null,null,null,null,null,null,null,null,"",null,null,null,"",null,null,null,null,null,null,"Camion_rigide_PL_PTAC≤26tGazole","Camion_rigide_PL_PTAC≤26t","Gazole","l",0.60899999999999999,2.4900000000000002,3.0990000000000002,1.1299999999999999E-2,2.4199999999999999E-2,9.9099999999999994E-2,0.1346,null,"Gazole","l"]
[null,null,null,null,null,null,null,null,null,"",null,null,null,"",null,null,null,null,null,null,"Camion_rigide_PL_PTAC≤26tGaz_naturel_comprimé_GNC","Camion_rigide_PL_PTAC≤26t","Gaz_naturel_comprimé_GNC","kg",0.55000000000000004,2.41,2.96,1.1299999999999999E-2,1.4999999999999999E-2,0.12,0.14629999999999999,null,"Essence","l"]
[null,null,null,null,null,null,null,null,null,"",null,null,null,"",null,null,null,null,null,null,"Camion_rigide_PL_PTAC≤26tGaz_naturel_liquéfié_GNL","Camion_rigide_PL_PTAC≤26t","Gaz_naturel_liquéfié_GNL","kg",0.69699999999999995,2.58,3.2770000000000001,1.1299999999999999E-2,3.5999999999999997E-2,0.14000000000000001,0.18730000000000002,null,"Gaz_de_pétrole_liquéfié_GPL","l"]
[null,null,null,null,null,null,null,null,null,"",null,null,null,"",null,null,null,null,null,null,"Camion_rigide_PL_PTAC≤32tGazole","Camion_rigide_PL_PTAC≤32t","Gazole","l",0.60899999999999999,2.4900000000000002,3.0990000000000002,8.0000000000000002E-3,1.9099999999999999E-2,7.8100000000000003E-2,0.1052,null,"Gaz_naturel_comprimé_GNC","kg"]
[null,null,null,null,null,null,null,null,null,"",null,null,null,"",null,null,null,null,null,null,"Ensemble_articulé_PL_PTRA≤34tGazole","Ensemble_articulé_PL_PTRA≤34t","Gazole","l",0.60899999999999999,2.4900000000000002,3.0990000000000002,3.7000000000000002E-3,1.7600000000000001E-2,6.4000000000000001E-2,8.5300000000000001E-2,null,"Gaz_naturel_liquéfié_GNL","kg"]
[null,null,null,null,null,null,null,null,null,"",null,null,null,"",null,null,null,null,null,null,"Ensemble_articulé_PL_PTRA≤40tGazole","Ensemble_articulé_PL_PTRA≤40t","Gazole","l",0.60899999999999999,2.4900000000000002,3.0990000000000002,3.8E-3,1.54E-2,6.3100000000000003E-2,8.2300000000000012E-2,null,"Hydrogène","kg"]
[null,null,null,null,null,null,null,null,null,"",null,null,null,"",null,null,null,null,null,null,"Ensemble_articulé_PL_PTRA≤40tGaz_naturel_comprimé_GNC","Ensemble_articulé_PL_PTRA≤40t","Gaz_naturel_comprimé_GNC","kg",0.55000000000000004,2.41,2.96,3.8E-3,0.01,6.6000000000000003E-2,7.980000000000001E-2,null,"Aucun","-"]
[null,null,null,null,null,null,null,null,null,"",null,null,null,"",null,null,null,null,null,null,"Ensemble_articulé_PL_PTRA≤40tGaz_naturel_liquéfié_GNL","Ensemble_articulé_PL_PTRA≤40t","Gaz_naturel_liquéfié_GNL","kg",0.69699999999999995,2.58,3.2770000000000001,3.8E-3,2.3E-2,6.5000000000000002E-2,9.1800000000000007E-2]
[null,null,null,null,null,null,null,null,null,"",null,null,null,"",null,null,null,null,null,null,"Ensemble_articulé_PL_PTRA≤44tGazole","Ensemble_articulé_PL_PTRA≤44t","Gazole","l",0.60899999999999999,2.4900000000000002,3.0990000000000002,3.8E-3,1.32E-2,5.4100000000000002E-2,7.1099999999999997E-2,null,"Oui"]
[null,null,null,null,null,null,null,null,null,"",null,null,null,"",null,null,null,null,null,null,"Ensemble_articulé_PL_PTRA≤60tGazole","Ensemble_articulé_PL_PTRA≤60t","Gazole","l",0.60899999999999999,2.4900000000000002,3.0990000000000002,3.8999999999999998E-3,1.2500000000000001E-2,5.11E-2,6.7500000000000004E-2,null,"Non"]
[null,null,null,null,null,null,null,null,null,"",null,null,null,null,null,null,null,null,null,null,"Ensemble_articulé_PL_PTRA≤72tGazole","Ensemble_articulé_PL_PTRA≤72t","Gazole","l",0.60899999999999999,2.4900000000000002,3.0990000000000002,4.0000000000000001E-3,1.2500000000000001E-2,5.11E-2,6.7599999999999993E-2]
[null,null,null,null,null,null,null,null,null,null,null,null,null,null,null,null,null,null,null,null,"VéloAucun","Vélo","Aucun",null,0,0,0,0.02,0,0,{"$f":"AB46+AC46+AD46","v":0.02}]
[null,"RÉSULTATS",null,null,null,null,null,null,null,null,null,null,null,null,null,null,null,null,null,null,"Vélo_électriqueÉlectricité","Vélo_électrique","Électricité","kWh",5.1299999999999998E-2,0,5.1299999999999998E-2,0.02,4.8199999999999996E-3,0,2.4820000000000002E-2]
[]
[null,"Scope 1 : émissions directes de GES",null,null,null,null,null,null,null,"TTW (tank-to-wheel) = émissions \"du réservoir à la roue\" (combustion)"]
[null,"Scope 2 : émissions indirectes de GES issues de l'électricité consommée",null,null,null,null,null,null,null,"WTT (well-to-tank) = émissions \"du puits au réservoir\" (production de l'énergie en amont)"]
[null,"Scope 3 : autres émissions indirectes de GES - incluent les émissions amont de production des carburants et des véhicules ainsi que toutes les émissions du transport externalisé",null,null,null,null,null,null,null,"WTW (well-to-wheel) = émissions \"du puits à la roue\" (cycle de vie complet de l'énergie)"]
[]
[null,"Pour le transport sous température dirigée, les émissions totales de GES sont majorées de 15 % sous l'effet des fuites de fluides frigorigènes"]
[]
[null,null,null,null,null,"Prestations de transport internalisées",null,null,null,null,null,"Prestations de transport externalisées",null,"BILAN GLOBAL"]
[null,null,null,null,null,"Scope 1",null,"Scope 2","Scope 3"]
[null,"Prestation de transport","Type de véhicule","Type de carburant","Transport sous température dirigée?","Activité totale de transport internalisée\n(tkm)","Émissions directes (TTW) de GES\n(kgCO2e)","Émissions indirectes (WTT) de GES issues de l'électricité consommée\n(kgCO2e)","Rappel activité totale de transport internalisée\n(tkm)","Émissions indirectes de GES issues de la fabrication des véhicules\n(kgCO2e)","Émissions indirectes (WTT) de GES issues du carburant consommé\n(kgCO2e)","Activité totale de transport externalisée\n(tkm)","Émissions de GES (WTW + fabrication) \n(kgCO2e)","Activité totale de transport \n(tkm)","Émissions de GES\n(kgCO2e)","Intensité des émissions de GES\n(kgCO2e/tkm)"]
[null,{"$f":"B20","v":0},"Camion_rigide_PL_PTAC≤7,5t","Gazole","Non",{"$f":"G20*H20","v":0},{"$f":"IF(OR($C58=0,$D58=0),0,IF($J$18=\"Oui\",$I20*VLOOKUP($C58&$D58,$U$20:$AE$47,6,FALSE),$F58*VLOOKUP($C58&$D58,$U$20:$AE$47,10,FALSE)))","v":24.900000000000002},{"$f":"IF($D58<>\"Électricité\",0,IF($J$18=\"Oui\",$I20*VLOOKUP($C58&$D58,$U$20:$AE$47,5,FALSE),$F58*VLOOKUP($C58&$D58,$U$20:$AE$47,9,FALSE)))","v":0},{"$f":"F58","v":0},{"$f":"IF(OR($C58=0,$D58=0),0,$F58*VLOOKUP($C58&$D58,$U$20:$AE$47,8,FALSE))","v":0},{"$f":"IF(OR($C58=0,$D58=0),0,IF($D58=\"Électricité\",0,IF($J$18=\"Oui\",$I20*VLOOKUP($C58&$D58,$U$20:$AE$47,5,FALSE),$F58*VLOOKUP($C58&$D58,$U$20:$AE$47,9,FALSE))))","v":6.09},{"$f":"K20*L20","v":0},{"$f":"IF(OR($C58=0,$D58=0),0,IF($N$18=\"Oui\",$M20*VLOOKUP($C58&$D58,$U$20:$AE$47,7,FALSE)+$L58*VLOOKUP(C58&D58,$U$20:$AE$47,8,FALSE),$L58*VLOOKUP($C58&$D58,$U$20:$AE$47,11,FALSE)))","v":0},{"$f":"I58+L58","v":0},{"$f":"IF(E58=\"Non\",G58+H58+J58+K58+M58,1.15*(G58+H58+J58+K58+M58))","v":30.990000000000002},{"$f":"O58/N58","v":{"$error":"#DIV/0!"}}]
[null,0,"Véhicule_utilitaire_léger_VUL_PTAC≤3,5t","Électricité",0,0,0,51.3,{"$f":"F59","v":0},0,0,0,0,{"$f":"I59+L59","v":0},{"$f":"IF(E59=\"Non\",G59+H59+J59+K59+M59,1.15*(G59+H59+J59+K59+M59))","v":58.99499999999999},{"$f":"O59/N59","v":{"$error":"#DIV/0!"}}]
[null,0,0,0,0,0,0,0,0,0,0,0,0,0,0,{"$error":"#DIV/0!"}]
[null,0,0,0,0,0,0,0,0,0,0,0,0,0,0,{"$error":"#DIV/0!"}]
[null,0,0,0,0,0,0,0,0,0,0,0,0,0,0,{"$error":"#DIV/0!"}]
[null,0,0,0,0,0,0,0,0,0,0,0,0,0,0,{"$error":"#DIV/0!"}]
[null,0,0,0,0,0,0,0,0,0,0,0,0,0,0,{"$error":"#DIV/0!"}]
[null,0,0,0,0,0,0,0,0,0,0,0,0,0,0,{"$error":"#DIV/0!"}]
[null,0,0,0,0,0,0,0,0,0,0,0,0,0,0,{"$error":"#DIV/0!"}]
[null,0,0,0,0,0,0,0,0,0,0,0,0,0,0,{"$error":"#DIV/0!"}]
[null,0,0,0,0,0,0,0,0,0,0,0,0,0,0,{"$error":"#DIV/0!"}]
[null,0,0,0,0,0,0,0,0,0,0,0,0,0,0,{"$error":"#DIV/0!"}]
[null,0,0,0,0,0,0,0,0,0,0,0,0,0,0,{"$error":"#DIV/0!"}]
[null,0,0,0,0,0,0,0,0,0,0,0,0,0,0,{"$error":"#DIV/0!"}]
[null,0,0,0,0,0,0,0,0,0,0,0,0,0,0,{"$error":"#DIV/0!"}]
[null,0,0,0,0,0,0,0,0,0,0,0,0,0,0,{"$error":"#DIV/0!"}]
[null,{"$f":"B36","v":0},0,0,0,0,0,0,0,0,0,0,0,0,0,{"$error":"#DIV/0!"}]
[null,0,0,0,0,0,0,0,0,0,0,0,0,0,0,{"$error":"#DIV/0!"}]
[null,0,0,0,0,0,0,0,0,0,0,0,0,0,0,{"$error":"#DIV/0!"}]
[null,0,0,0,0,0,0,0,0,0,0,0,0,0,0,{"$error":"#DIV/0!"}]
[null,0,0,0,0,0,0,0,0,0,0,0,0,0,0,{"$error":"#DIV/0!"}]
[null,0,0,0,0,0,0,0,0,0,0,0,0,0,0,{"$error":"#DIV/0!"}]
[null,0,0,0,0,0,0,0,0,0,0,0,0,0,0,{"$error":"#DIV/0!"}]
[null,0,0,0,0,0,0,0,0,0,0,0,0,0,0,{"$error":"#DIV/0!"}]
[null,0,0,0,0,0,0,0,0,0,0,0,0,0,0,{"$error":"#DIV/0!"}]
[null,0,0,0,0,0,0,0,0,0,0,0,0,0,0,{"$error":"#DIV/0!"}]
[]
[null,"TOTAL",null,null,null,{"$f":"SUM(F58:F83)","v":0},24.900000000000002,51.3,0,0,6.09,0,0,0,{"$f":"SUM(O58:O83)","v":89.984999999999985},{"$f":"O85/N85","v":{"$error":"#DIV/0!"}}]

{"sheet":"_Menu ferroviaire","index":8,"n_rows":6,"n_cols":6,"rows_kept":6,"cut":false,"hidden":false,"merged":[[1,5,1,13],[5,4,5,14]]}
[]
[null,null,null,null,null,"MENU FERROVIAIRE \nCHOIX DE CALCUL"]
[]
[null,"TRANSPORT FERROVIAIRE "]
[]
[null,null,null,null,"En fonction du mode de transport sélectionné, le titulaire séléctionne une méthode de calcul uniquement : \nDistance parcourue OU Carburant consommé "]

{"sheet":"_Menu fluvial","index":9,"n_rows":6,"n_cols":6,"rows_kept":6,"cut":false,"hidden":false,"merged":[[1,5,1,13],[5,4,5,14]]}
[]
[null,null,null,null,null,"MENU FLUVIAL \nCHOIX DE CALCUL"]
[]
[null,"TRANSPORT FLUVIAL "]
[]
[null,null,null,null,"En fonction du mode de transport sélectionné, le titulaire séléctionne une méthode de calcul uniquement : \nDistance parcourue OU Carburant consommé "]

{"sheet":"_Menu maritime","index":10,"n_rows":6,"n_cols":6,"rows_kept":6,"cut":false,"hidden":false,"merged":[[1,5,1,13],[5,4,5,14]]}
[]
[null,null,null,null,null,"MENU MARITIME \nCHOIX DE CALCUL"]
[]
[null,"TRANSPORT MARITIME "]
[]
[null,null,null,null,"En fonction du mode de transport sélectionné, le titulaire séléctionne une méthode de calcul uniquement : \nDistance parcourue OU Carburant consommé "]

{"sheet":"_Menu aérien","index":11,"n_rows":6,"n_cols":6,"rows_kept":6,"cut":false,"hidden":false,"merged":[[1,5,1,13],[5,4,5,14]]}
[]
[null,null,null,null,null,"MENU AÉRIEN\nCHOIX DE CALCUL"]
[]
[null,"TRANSPORT AÉRIEN "]
[]
[null,null,null,null,"En fonction du mode de transport sélectionné, le titulaire séléctionne une méthode de calcul uniquement : \nDistance parcourue OU Carburant consommé "]

{"sheet":"2_Routier tkm","index":12,"n_rows":43,"n_cols":46,"rows_kept":43,"cut":false,"hidden":false,"merged":[[10,6,10,11],[0,2,0,11]]}
[null,null,"DÉTERMINATION DES ÉMISSIONS DE GAZ À EFFET DE SERRE GÉNÉRÉES PAR LES PRESTATIONS DE TRANSPORT ROUTIER MOBILISÉES DANS LE MARCHÉ"]
[]
[]
[]
[null,"Raison sociale du titulaire ",{"$f":"'1_Infos générales'!$C$9:$J$9","v":0}]
[]
[null,"Période de référence ",{"$f":"'1_Infos générales'!$C$15","v":"Année"}]
[]
[]
[]
[null,"DONNÉES A REMPLIR"]
[]
[]
[null,null,null,null,null,null,null,null,null,null,null,null,null,null,null,null,null,null,null,null,null,"Type de véhicule","Type de carburant","Unité","Facteur d'émission (WTT)\n(kgCO2e/unité)","Facteur d'émission (TTW)\n(kgCO2e/unité)","Facteur d'émission (WTW)\n(kgCO2e/unité)","Intensité des émissions issues de la fabrication\n(kgCO2e/tkm)","Intensité des émissions WTT de GES\n(kgCO2e/tkm)","Intensité des émissions TTW de GES\n(kgCO2e/tkm)","Intensité des émissions de GES (WTW + fabrication)\n(kgCO2e/tkm)"]
[null,null,null,null,null,null,null,null,null,null,"TOTAL (kgCO2e)",null,null,null,null,null,null,null,null,null,null,null,null,null,null,null,{"$f":"Y15+Z15","v":0},null,null,null,{"$f":"AB15+AC15+AD15","v":0}]
[null,null,null,null,null,null,null,null,null,null,{"$f":"SUM(K19:K27)","v":0},null,null,null,null,null,null,null,null,null,{"$f":"V16&W16","v":"Véhicule_utilitaire_léger_VUL_PTAC≤3,5tGazole"},"Véhicule_utilitaire_léger_VUL_PTAC≤3,5t","Gazole","l",0.60899999999999999,2.4900000000000002,{"$f":"Y16+Z16","v":3.0990000000000002},0.153,0.13200000000000001,0.54100000000000004,{"$f":"AB16+AC16+AD16","v":0.82600000000000007},null,null,"Véhicule_utilitaire_léger_VUL_PTAC≤3,5t","Camion_rigide_PL_PTAC≤7,5t","Camion_rigide_PL_PTAC≤12t","Camion_rigide_PL_PTAC≤20t","Camion_rigide_PL_PTAC≤26t","Camion_rigide_PL_PTAC≤32t","Ensemble_articulé_PL_PTRA≤34t","Ensemble_articulé_PL_PTRA≤40t","Ensemble_articulé_PL_PTRA≤44t","Ensemble_articulé_PL_PTRA≤60t","Ensemble_articulé_PL_PTRA≤72t","Vélo","Vélo_électrique"]
[null,null,null,null,null,null,null,null,null,null,null,null,null,null,null,null,null,null,null,null,{"$f":"V17&W17","v":"Véhicule_utilitaire_léger_VUL_PTAC≤3,5tEssence"},"Véhicule_utilitaire_léger_VUL_PTAC≤3,5t","Essence","l",0.49399999999999999,2.2000000000000002,{"$f":"Y17+Z17","v":2.694},0.153,0.16,0.85,{"$f":"AB17+AC17+AD17","v":1.163},null,"Véhicule_utilitaire_léger_VUL_PTAC≤3,5t","Gazole","Gazole","Gazole","Gazole","Gazole","Gazole","Gazole","Gazole","Gazole","Gazole","Gazole","Aucun","Électricité"]
[null,null,"Ville et Pays de départ [optionnel]","Ville et Pays d'arrivée\n[optionnel]","Type de véhicule","Type de carburant","Facteur d'émission de GES * (kgCO2e/tkm)","Distance parcourue lors de ce trajet (en km) ","Masse de marchandises transportées lors de ce trajet (en tonnes)","Nombre de répétitions de ce trajet (avec la même masse transportée)\n[optionnel]","Calcul ** des émissions de GES pour ce transport (en kgCO2e)","Quels moyens de preuves pourriez-vous donner (carte grise,…) ?",null,null,null,null,null,null,null,null,"Véhicule_utilitaire_léger_VUL_PTAC≤3,5tGaz_naturel_comprimé_GNC","Véhicule_utilitaire_léger_VUL_PTAC≤3,5t","Gaz_naturel_comprimé_GNC","kg",0.55000000000000004,2.41,2.96,0.153,0.08,0.54,0.77300000000000002,null,"Camion_rigide_PL_PTAC≤7,5t","Essence","Gaz_naturel_comprimé_GNC","Gaz_naturel_comprimé_GNC","Gaz_naturel_comprimé_GNC","Gaz_naturel_comprimé_GNC",null,null,"Gaz_naturel_comprimé_GNC"]
[null,null,null,null,null,null,{"$f":"_xlfn.XLOOKUP(Tableau_prestations[[#This Row],[Type de véhicule]]&Tableau_prestations[[#This Row],[Type de carburant]], $V$15:$V$43&$W$15:$W$43, $AE$15:$AE$43, 0,  0, )","v":0},null,null,null,{"$f":"IF(ISBLANK(J19),G19*H19*I19,G19*H19*I19*J19)","v":0},null,null,null,null,null,null,null,null,null,"Véhicule_utilitaire_léger_VUL_PTAC≤3,5tGaz_de_pétrole_liquéfié_GPL","Véhicule_utilitaire_léger_VUL_PTAC≤3,5t","Gaz_de_pétrole_liquéfié_GPL","l",0.26200000000000001,1.6,1.8620000000000001,0.153,7.0000000000000007E-2,0.59,0.81299999999999994,null,"Camion_rigide_PL_PTAC≤12t","Gaz_naturel_comprimé_GNC","Hybride_électricité_gazole",null,"Gaz_naturel_liquéfié_GNL","Gaz_naturel_liquéfié_GNL",null,null,"Gaz_naturel_liquéfié_GNL"]
[null,null,null,null,null,null,{"$f":"_xlfn.XLOOKUP(Tableau_prestations[[#This Row],[Type de véhicule]]&Tableau_prestations[[#This Row],[Type de carburant]], $V$15:$V$43&$W$15:$W$43, $AE$15:$AE$43, 0,  0, )","v":0},null,null,null,0,null,null,null,null,null,null,null,null,null,"Véhicule_utilitaire_léger_VUL_PTAC≤3,5tÉlectricité","Véhicule_utilitaire_léger_VUL_PTAC≤3,5t","Électricité","kWh",5.1299999999999998E-2,0,5.1299999999999998E-2,0.153,{"$f":"1.1*Y20","v":5.6430000000000001E-2},0,0.20943000000000001,null,"Camion_rigide_PL_PTAC≤20t","Gaz_de_pétrole_liquéfié_GPL","Électricité"]
[null,null,null,null,null,null,{"$f":"_xlfn.XLOOKUP(Tableau_prestations[[#This Row],[Type de véhicule]]&Tableau_prestations[[#This Row],[Type de carburant]], $V$15:$V$43&$W$15:$W$43, $AE$15:$AE$43, 0,  0, )","v":0},null,null,null,0,null,null,null,null,null,null,null,null,null,"Véhicule_utilitaire_léger_VUL_PTAC≤3,5tHydrogène","Véhicule_utilitaire_léger_VUL_PTAC≤3,5t","Hydrogène","kg",13.7,0,13.7,8.8300000000000003E-2,0.30299999999999999,0,0.39129999999999998,null,"Camion_rigide_PL_PTAC≤26t","Électricité"]
[null,null,null,null,null,null,{"$f":"_xlfn.XLOOKUP(Tableau_prestations[[#This Row],[Type de véhicule]]&Tableau_prestations[[#This Row],[Type de carburant]], $V$15:$V$43&$W$15:$W$43, $AE$15:$AE$43, 0,  0, )","v":0},null,null,null,0,null,null,null,null,null,null,null,null,null,"Camion_rigide_PL_PTAC≤7,5tGazole","Camion_rigide_PL_PTAC≤7,5t","Gazole","l",0.60899999999999999,2.4900000000000002,3.0990000000000002,1.1299999999999999E-2,7.1900000000000006E-2,0.29399999999999998,0.37719999999999998,null,"Camion_rigide_PL_PTAC≤32t","Hydrogène"]
[null,null,null,null,null,null,{"$f":"_xlfn.XLOOKUP(Tableau_prestations[[#This Row],[Type de véhicule]]&Tableau_prestations[[#This Row],[Type de carburant]], $V$15:$V$43&$W$15:$W$43, $AE$15:$AE$43, 0,  0, )","v":0},null,null,null,0,null,null,null,null,null,null,null,null,null,"Camion_rigide_PL_PTAC≤7,5tGaz_naturel_comprimé_GNC","Camion_rigide_PL_PTAC≤7,5t","Gaz_naturel_comprimé_GNC","kg",0.55000000000000004,2.41,2.96,1.1299999999999999E-2,4.4999999999999998E-2,0.31,0.36630000000000001,null,"Ensemble_articulé_PL_PTRA≤34t"]
[null,null,null,null,null,null,{"$f":"_xlfn.XLOOKUP(Tableau_prestations[[#This Row],[Type de véhicule]]&Tableau_prestations[[#This Row],[Type de carburant]], $V$15:$V$43&$W$15:$W$43, $AE$15:$AE$43, 0,  0, )","v":0},null,null,null,0,null,null,null,null,null,null,null,null,null,"Camion_rigide_PL_PTAC≤7,5tHybride_électricité_gazole","Camion_rigide_PL_PTAC≤7,5t","Hybride_électricité_gazole","l",0.54800000000000004,2.2400000000000002,2.7880000000000003,1.1299999999999999E-2,4.7500000000000001E-2,0.24,0.29880000000000001,null,"Ensemble_articulé_PL_PTRA≤40t"]
[null,null,null,null,null,null,{"$f":"_xlfn.XLOOKUP(Tableau_prestations[[#This Row],[Type de véhicule]]&Tableau_prestations[[#This Row],[Type de carburant]], $V$15:$V$43&$W$15:$W$43, $AE$15:$AE$43, 0,  0, )","v":0},null,null,null,0,null,null,null,null,null,null,null,null,null,"Camion_rigide_PL_PTAC≤7,5tÉlectricité","Camion_rigide_PL_PTAC≤7,5t","Électricité","kWh",5.1299999999999998E-2,0,5.1299999999999998E-2,1.1299999999999999E-2,4.6699999999999998E-2,0,5.7999999999999996E-2,null,"Ensemble_articulé_PL_PTRA≤44t"]
[null,null,null,null,null,null,{"$f":"_xlfn.XLOOKUP(Tableau_prestations[[#This Row],[Type de véhicule]]&Tableau_prestations[[#This Row],[Type de carburant]], $V$15:$V$43&$W$15:$W$43, $AE$15:$AE$43, 0,  0, )","v":0},null,null,null,{"$f":"IF(ISBLANK(J26),G26*H26*I26,G26*H26*I26*J26)","v":0},null,null,null,null,null,null,null,null,null,"Camion_rigide_PL_PTAC≤12tGazole","Camion_rigide_PL_PTAC≤12t","Gazole","l",0.60899999999999999,2.4900000000000002,3.0990000000000002,9.7000000000000003E-3,4.5499999999999999E-2,0.186,0.2412,null,"Ensemble_articulé_PL_PTRA≤60t"]
[null,null,null,null,null,null,{"$f":"_xlfn.XLOOKUP(Tableau_prestations[[#This Row],[Type de véhicule]]&Tableau_prestations[[#This Row],[Type de carburant]], $V$15:$V$43&$W$15:$W$43, $AE$15:$AE$43, 0,  0, )","v":0},null,null,null,{"$f":"IF(ISBLANK(J27),G27*H27*I27,G27*H27*I27*J27)","v":0},null," ",null,null,null,null,null,null,null,"Camion_rigide_PL_PTAC≤12tGaz_naturel_comprimé_GNC","Camion_rigide_PL_PTAC≤12t","Gaz_naturel_comprimé_GNC","kg",0.55000000000000004,2.41,2.96,9.7000000000000003E-3,2.8000000000000001E-2,0.19,0.22770000000000001,null,"Ensemble_articulé_PL_PTRA≤72t"]
[null,null,null,null,null,null,null,null,null,null,null,null,null," ",null,null,null,null,null,null,"Camion_rigide_PL_PTAC≤20tGazole","Camion_rigide_PL_PTAC≤20t","Gazole","l",0.60899999999999999,2.4900000000000002,3.0990000000000002,1.0500000000000001E-2,2.93E-2,0.12,0.1598,null,"Vélo"]
[null,null,null,null,null,null,null,"                                                                                                                                                                                                                                                                                                                                                                                                                                                                                                                                                                                                                                                                                                                                                                                                                                                                                                  ",null,null,null,null,null,null,null,null,null,null,null,null,"Camion_rigide_PL_PTAC≤20tGaz_naturel_comprimé_GNC","Camion_rigide_PL_PTAC≤20t","Gaz_naturel_comprimé_GNC","kg",0.55000000000000004,2.41,2.96,1.0500000000000001E-2,1.4999999999999999E-2,0.13,0.1555,null,"Vélo_électrique"]
[null,null,null,null,null,null,null,null,null,null,null,null,null,null,null,null,null,null,null,null,"Camion_rigide_PL_PTAC≤20tGaz_naturel_liquéfié_GNL","Camion_rigide_PL_PTAC≤20t","Gaz_naturel_liquéfié_GNL","kg",0.69699999999999995,2.58,3.2770000000000001,1.0500000000000001E-2,4.5999999999999999E-2,0.13,0.1865,null,"Électricité","kWh"]
[null,null,null,null,null,null,null,null,null,null,null,null,null,null,null,null,null,null,null,null,"Camion_rigide_PL_PTAC≤26tGazole","Camion_rigide_PL_PTAC≤26t","Gazole","l",0.60899999999999999,2.4900000000000002,3.0990000000000002,1.1299999999999999E-2,2.4199999999999999E-2,9.9099999999999994E-2,0.1346,null,"Hybride_électricité_gazole","l"]
[null,null,null,null,null,null,null,null,null,null,null,null,null,null,null,null,null,null,null,null,"Camion_rigide_PL_PTAC≤26tGaz_naturel_comprimé_GNC","Camion_rigide_PL_PTAC≤26t","Gaz_naturel_comprimé_GNC","kg",0.55000000000000004,2.41,2.96,1.1299999999999999E-2,1.4999999999999999E-2,0.12,0.14629999999999999,null,"Gazole","l"]
[null,null,null,null,null,null,null,null,null,null,null,null,null,null,null,null,null,null,null,null,"Camion_rigide_PL_PTAC≤26tGaz_naturel_liquéfié_GNL","Camion_rigide_PL_PTAC≤26t","Gaz_naturel_liquéfié_GNL","kg",0.69699999999999995,2.58,3.2770000000000001,1.1299999999999999E-2,3.5999999999999997E-2,0.14000000000000001,0.18730000000000002,null,"Essence","l"]
[null,null,null,null,null,null,null,null,null,null,null,null,null,null,null,null,null,null,null,null,"Camion_rigide_PL_PTAC≤32tGazole","Camion_rigide_PL_PTAC≤32t","Gazole","l",0.60899999999999999,2.4900000000000002,3.0990000000000002,8.0000000000000002E-3,1.9099999999999999E-2,7.8100000000000003E-2,0.1052,null,"Gaz_de_pétrole_liquéfié_GPL","l"]
[null,null,null,null,null,null,null,null,null,null,null,null,null,null,null,null,null,null,null,null,"Ensemble_articulé_PL_PTRA≤34tGazole","Ensemble_articulé_PL_PTRA≤34t","Gazole","l",0.60899999999999999,2.4900000000000002,3.0990000000000002,3.7000000000000002E-3,1.7600000000000001E-2,6.4000000000000001E-2,8.5300000000000001E-2,null,"Gaz_naturel_comprimé_GNC","kg"]
[null,null,null,null,null,null,null,null,null,null,null,null,null,null,null,null,null,null,null,null,"Ensemble_articulé_PL_PTRA≤40tGazole","Ensemble_articulé_PL_PTRA≤40t","Gazole","l",0.60899999999999999,2.4900000000000002,3.0990000000000002,3.8E-3,1.54E-2,6.3100000000000003E-2,8.2300000000000012E-2,null,"Gaz_naturel_liquéfié_GNL","kg"]
[null,null,null,null,null,null,null,null,null,null,null,null,null,null,null,null,null,null,null,null,"Ensemble_articulé_PL_PTRA≤40tGaz_naturel_comprimé_GNC","Ensemble_articulé_PL_PTRA≤40t","Gaz_naturel_comprimé_GNC","kg",0.55000000000000004,2.41,2.96,3.8E-3,0.01,6.6000000000000003E-2,7.980000000000001E-2,null,"Hydrogène","kg"]
[null,null,null,null,null,null,null,null,null,null,null,null,null,null,null,null,null,null,null,null,"Ensemble_articulé_PL_PTRA≤40tGaz_naturel_liquéfié_GNL","Ensemble_articulé_PL_PTRA≤40t","Gaz_naturel_liquéfié_GNL","kg",0.69699999999999995,2.58,3.2770000000000001,3.8E-3,2.3E-2,6.5000000000000002E-2,9.1800000000000007E-2,null,"Aucun","-"]
[null,null,null,null,null,null,null,null,null,null,null,null,null,null,null,null,null,null,null,null,"Ensemble_articulé_PL_PTRA≤44tGazole","Ensemble_articulé_PL_PTRA≤44t","Gazole","l",0.60899999999999999,2.4900000000000002,3.0990000000000002,3.8E-3,1.32E-2,5.4100000000000002E-2,7.1099999999999997E-2]
[null,null,null,null,null,null,null,null,null,null,null,null,null,null,null,null,null,null,null,null,"Ensemble_articulé_PL_PTRA≤60tGazole","Ensemble_articulé_PL_PTRA≤60t","Gazole","l",0.60899999999999999,2.4900000000000002,3.0990000000000002,3.8999999999999998E-3,1.2500000000000001E-2,5.11E-2,6.7500000000000004E-2,null,"Oui"]
[null,null,null,null,null,null,null,null,null,null,null,null,null,null,null,null,null,null,null,null,"Ensemble_articulé_PL_PTRA≤72tGazole","Ensemble_articulé_PL_PTRA≤72t","Gazole","l",0.60899999999999999,2.4900000000000002,3.0990000000000002,4.0000000000000001E-3,1.2500000000000001E-2,5.11E-2,6.7599999999999993E-2,null,"Non"]
[null,null,null,null,null,null,null,null,null,null,null,null,null,null,null,null,null,null,null,null,"VéloAucun","Vélo","Aucun",null,0,0,0,0.02,0,0,{"$f":"AB42+AC42+AD42","v":0.02}]
[null,null,null,null,null,null,null,null,null,null,null,null,null,null,null,null,null,null,null,null,"Vélo_électriqueÉlectricité","Vélo_électrique","Électricité","kWh",5.1299999999999998E-2,0,5.1299999999999998E-2,0.02,4.8199999999999996E-3,0,2.4820000000000002E-2]

{"sheet":"2_Routier carburant","index":13,"n_rows":116,"n_cols":45,"rows_kept":116,"cut":false,"hidden":false,"merged":[[0,3,0,10],[8,6,8,10]]}
[null,null,null,"DÉTERMINATION DES ÉMISSIONS DE GAZ À EFFET DE SERRE GÉNÉRÉES PAR LES PRESTATIONS DE TRANSPORT ROUTIER MOBILISÉES DANS LE MARCHÉ"]
[]
[]
[]
[null,"Raison sociale du titulaire",{"$f":"'1_Infos générales'!$C$9:$J$9","v":0}]
[]
[null,"Période de référence",{"$f":"'1_Infos générales'!$C$15","v":"Année"}]
[]
[null,"DONNÉES A REMPLIR"]
[]
[]
[]
[]
[]
[null,null,null,null,null,null,null,null,null,"TOTAL (kgCO2e)"]
[null,null,null,null,null,null,null,null,null,{"$f":" SUM(J19:J25)","v":0}]
[]
[null,null,"Ville et Pays de départ\n[optionnel]","Ville et Pays d'arrivée\n[optionnel]","Type de véhicule","Type de carburant","Facteur d'émission de GES * (kgCO2e/unité)"," Quantité de carburant consommé lors de ce trajet (en L ou kg ou kWh) ","Nombre de répétitions de ce trajet (avec la même consommation de carburant)\n[optionnel]","Calcul ** des émissions de GES pour ce transport (en kgCO2e)","Quels moyens de preuves pourriez-vous donner (carte grise,…) ?"]
[null,null,null,null,null,null,{"$f":"_xlfn.XLOOKUP(Tableau_prestations_rc[[#This Row],[Type de véhicule]]&Tableau_prestations_rc[[#This Row],[Type de carburant]], U20:U48&V20:V48, Z20:Z48, 0,  0, )","v":0},null,null,{"$f":"IF(ISBLANK(I19),G19*H19,G19*H19*I19)","v":0}]
[null,null,null,null,null,null,{"$f":"_xlfn.XLOOKUP(Tableau_prestations_rc[[#This Row],[Type de véhicule]]&Tableau_prestations_rc[[#This Row],[Type de carburant]], U21:U49&V21:V49, Z21:Z49, 0,  0, )","v":0},null,null,{"$f":"IF(ISBLANK(I20),G20*H20,G20*H20*I20)","v":0},null,null,null,null,null,null,null,null,null,null,"Type de véhicule","Type de carburant","Unité","Facteur d'émission (WTT)\n(kgCO2e/unité)","Facteur d'émission (TTW)\n(kgCO2e/unité)","Facteur d'émission (WTW)\n(kgCO2e/unité)","Intensité des émissions issues de la fabrication\n(kgCO2e/tkm)","Intensité des émissions WTT de GES\n(kgCO2e/tkm)","Intensité des émissions TTW de GES\n(kgCO2e/tkm)","Intensité des émissions de GES (WTW + fabrication)\n(kgCO2e/tkm)",null,null,"Véhicule_utilitaire_léger_VUL_PTAC≤3,5t","Camion_rigide_PL_PTAC≤7,5t","Camion_rigide_PL_PTAC≤12t","Camion_rigide_PL_PTAC≤20t","Camion_rigide_PL_PTAC≤26t","Camion_rigide_PL_PTAC≤32t","Ensemble_articulé_PL_PTRA≤34t","Ensemble_articulé_PL_PTRA≤40t","Ensemble_articulé_PL_PTRA≤44t","Ensemble_articulé_PL_PTRA≤60t","Ensemble_articulé_PL_PTRA≤72t","Vélo","Vélo_électrique"]
[null,null,null,null,null,null,{"$f":"_xlfn.XLOOKUP(Tableau_prestations_rc[[#This Row],[Type de véhicule]]&Tableau_prestations_rc[[#This Row],[Type de carburant]], U22:U50&V22:V50, Z22:Z50, 0,  0, )","v":0},null,null,0,null,null,null,null,null,null,null,null,null,{"$f":"U21&V21","v":"Véhicule_utilitaire_léger_VUL_PTAC≤3,5tGazole"},"Véhicule_utilitaire_léger_VUL_PTAC≤3,5t","Gazole","l",0.60899999999999999,2.4900000000000002,{"$f":"X21+Y21","v":3.0990000000000002},0.153,0.13200000000000001,0.54100000000000004,{"$f":"AA21+AB21+AC21","v":0.82600000000000007},null,"Véhicule_utilitaire_léger_VUL_PTAC≤3,5t","Gazole","Gazole","Gazole","Gazole","Gazole","Gazole","Gazole","Gazole","Gazole","Gazole","Gazole","Aucun","Électricité"]
[null,null,null,null,null,null,{"$f":"_xlfn.XLOOKUP(Tableau_prestations_rc[[#This Row],[Type de véhicule]]&Tableau_prestations_rc[[#This Row],[Type de carburant]], U23:U51&V23:V51, Z23:Z51, 0,  0, )","v":0},null,null,0,null,null,null,null,null,null,null,null,null,{"$f":"U22&V22","v":"Véhicule_utilitaire_léger_VUL_PTAC≤3,5tEssence"},"Véhicule_utilitaire_léger_VUL_PTAC≤3,5t","Essence","l",0.49399999999999999,2.2000000000000002,{"$f":"X22+Y22","v":2.694},0.153,0.16,0.85,{"$f":"AA22+AB22+AC22","v":1.163},null,"Camion_rigide_PL_PTAC≤7,5t","Essence","Gaz_naturel_comprimé_GNC","Gaz_naturel_comprimé_GNC","Gaz_naturel_comprimé_GNC","Gaz_naturel_comprimé_GNC",null,null,"Gaz_naturel_comprimé_GNC"]
[null,null,null,null,null,null,{"$f":"_xlfn.XLOOKUP(Tableau_prestations_rc[[#This Row],[Type de véhicule]]&Tableau_prestations_rc[[#This Row],[Type de carburant]], U24:U52&V24:V52, Z24:Z52, 0,  0, )","v":0},null,null,{"$f":"IF(ISBLANK(I23),G23*H23,G23*H23*I23)","v":0},null,null,null,null,null,null,null,null,null,"Véhicule_utilitaire_léger_VUL_PTAC≤3,5tGaz_naturel_comprimé_GNC","Véhicule_utilitaire_léger_VUL_PTAC≤3,5t","Gaz_naturel_comprimé_GNC","kg",0.55000000000000004,2.41,2.96,0.153,0.08,0.54,0.77300000000000002,null,"Camion_rigide_PL_PTAC≤12t","Gaz_naturel_comprimé_GNC","Hybride_électricité_gazole",null,"Gaz_naturel_liquéfié_GNL","Gaz_naturel_liquéfié_GNL",null,null,"Gaz_naturel_liquéfié_GNL"]
[null,null,null,null,null,null,{"$f":"_xlfn.XLOOKUP(Tableau_prestations_rc[[#This Row],[Type de véhicule]]&Tableau_prestations_rc[[#This Row],[Type de carburant]], U25:U53&V25:V53, Z25:Z53, 0,  0, )","v":0},null,null,{"$f":"IF(ISBLANK(I24),G24*H24,G24*H24*I24)","v":0},null,null,null,null,null,null,null,null,null,"Véhicule_utilitaire_léger_VUL_PTAC≤3,5tGaz_de_pétrole_liquéfié_GPL","Véhicule_utilitaire_léger_VUL_PTAC≤3,5t","Gaz_de_pétrole_liquéfié_GPL","l",0.26200000000000001,1.6,1.8620000000000001,0.153,7.0000000000000007E-2,0.59,0.81299999999999994,null,"Camion_rigide_PL_PTAC≤20t","Gaz_de_pétrole_liquéfié_GPL","Électricité"]
[null,null,null,null,null,null,{"$f":"_xlfn.XLOOKUP(Tableau_prestations_rc[[#This Row],[Type de véhicule]]&Tableau_prestations_rc[[#This Row],[Type de carburant]], U26:U54&V26:V54, Z26:Z54, 0,  0, )","v":0},null,null,{"$f":"IF(ISBLANK(I25),G25*H25,G25*H25*I25)","v":0},null,null,null,null,null,null,null,null,null,"Véhicule_utilitaire_léger_VUL_PTAC≤3,5tÉlectricité","Véhicule_utilitaire_léger_VUL_PTAC≤3,5t","Électricité","kWh",5.1299999999999998E-2,0,5.1299999999999998E-2,0.153,{"$f":"1.1*X25","v":5.6430000000000001E-2},0,0.20943000000000001,null,"Camion_rigide_PL_PTAC≤26t","Électricité"]
[null,null,null,null,null,null,null,null,null,null,null,null,null,null,null,null,null,null,null,"Véhicule_utilitaire_léger_VUL_PTAC≤3,5tHydrogène","Véhicule_utilitaire_léger_VUL_PTAC≤3,5t","Hydrogène","kg",13.7,0,13.7,8.8300000000000003E-2,0.30299999999999999,0,0.39129999999999998,null,"Camion_rigide_PL_PTAC≤32t","Hydrogène"]
[null,null,null,null,null,null,null,null,null,null,null,null,null,null,null,null,null,null,null,"Camion_rigide_PL_PTAC≤7,5tGazole","Camion_rigide_PL_PTAC≤7,5t","Gazole","l",0.60899999999999999,2.4900000000000002,3.0990000000000002,1.1299999999999999E-2,7.1900000000000006E-2,0.29399999999999998,0.37719999999999998,null,"Ensemble_articulé_PL_PTRA≤34t"]
[null,null,null,null,null,null,null," ",null," ",null,null,null,null,null,null,null,null,null,"Camion_rigide_PL_PTAC≤7,5tGaz_naturel_comprimé_GNC","Camion_rigide_PL_PTAC≤7,5t","Gaz_naturel_comprimé_GNC","kg",0.55000000000000004,2.41,2.96,1.1299999999999999E-2,4.4999999999999998E-2,0.31,0.36630000000000001,null,"Ensemble_articulé_PL_PTRA≤40t"]
[null,null,null,null,null,null,null,null,null,null,null,null,null,null,null,null,null,null,null,"Camion_rigide_PL_PTAC≤7,5tHybride_électricité_gazole","Camion_rigide_PL_PTAC≤7,5t","Hybride_électricité_gazole","l",0.54800000000000004,2.2400000000000002,2.7880000000000003,1.1299999999999999E-2,4.7500000000000001E-2,0.24,0.29880000000000001,null,"Ensemble_articulé_PL_PTRA≤44t"]
[null,null,null,null,null,null,null,null,null,null,null,null,null,null,null,null,null,null,null,"Camion_rigide_PL_PTAC≤7,5tÉlectricité","Camion_rigide_PL_PTAC≤7,5t","Électricité","kWh",5.1299999999999998E-2,0,5.1299999999999998E-2,1.1299999999999999E-2,4.6699999999999998E-2,0,5.7999999999999996E-2,null,"Ensemble_articulé_PL_PTRA≤60t"]
[null,null,null,null,null,null,null,null,null,null,null,null,null,null,null,null,null,null,null,"Camion_rigide_PL_PTAC≤12tGazole","Camion_rigide_PL_PTAC≤12t","Gazole","l",0.60899999999999999,2.4900000000000002,3.0990000000000002,9.7000000000000003E-3,4.5499999999999999E-2,0.186,0.2412,null,"Ensemble_articulé_PL_PTRA≤72t"]
[null,null,null,null,null,null,null,null,null,null,null,null,null,null,null,null,null,null,null,"Camion_rigide_PL_PTAC≤12tGaz_naturel_comprimé_GNC","Camion_rigide_PL_PTAC≤12t","Gaz_naturel_comprimé_GNC","kg",0.55000000000000004,2.41,2.96,9.7000000000000003E-3,2.8000000000000001E-2,0.19,0.22770000000000001,null,"Vélo"]
[null,null,null,null,null,null,null,null,null,null,null,null,null,null,null,null,null,null,null,"Camion_rigide_PL_PTAC≤20tGazole","Camion_rigide_PL_PTAC≤20t","Gazole","l",0.60899999999999999,2.4900000000000002,3.0990000000000002,1.0500000000000001E-2,2.93E-2,0.12,0.1598,null,"Vélo_électrique"]
[null,null,null,null,null,null,null,null,null,null,null,null,null,null,null,null,null,null,null,"Camion_rigide_PL_PTAC≤20tGaz_naturel_comprimé_GNC","Camion_rigide_PL_PTAC≤20t","Gaz_naturel_comprimé_GNC","kg",0.55000000000000004,2.41,2.96,1.0500000000000001E-2,1.4999999999999999E-2,0.13,0.1555,null,"Électricité","kWh"]
[null,null,null,null,null,null,null,null,null,null,null,null,null,null,null,null,null,null,null,"Camion_rigide_PL_PTAC≤20tGaz_naturel_liquéfié_GNL","Camion_rigide_PL_PTAC≤20t","Gaz_naturel_liquéfié_GNL","kg",0.69699999999999995,2.58,3.2770000000000001,1.0500000000000001E-2,4.5999999999999999E-2,0.13,0.1865,null,"Hybride_électricité_gazole","l"]
[null,null,null,null,null,null,null,null,null,null,null,null,null,null,null,null,null,null,null,"Camion_rigide_PL_PTAC≤26tGazole","Camion_rigide_PL_PTAC≤26t","Gazole","l",0.60899999999999999,2.4900000000000002,3.0990000000000002,1.1299999999999999E-2,2.4199999999999999E-2,9.9099999999999994E-2,0.1346,null,"Gazole","l"]
[null,null,null,null,null,null,null,null,null,null,null,null,null,null,null,null,null,null,null,"Camion_rigide_PL_PTAC≤26tGaz_naturel_comprimé_GNC","Camion_rigide_PL_PTAC≤26t","Gaz_naturel_comprimé_GNC","kg",0.55000000000000004,2.41,2.96,1.1299999999999999E-2,1.4999999999999999E-2,0.12,0.14629999999999999,null,"Essence","l"]
[null,null,null,null,null,null,null,null,null,null,null,null,null,null,null,null,null,null,null,"Camion_rigide_PL_PTAC≤26tGaz_naturel_liquéfié_GNL","Camion_rigide_PL_PTAC≤26t","Gaz_naturel_liquéfié_GNL","kg",0.69699999999999995,2.58,3.2770000000000001,1.1299999999999999E-2,3.5999999999999997E-2,0.14000000000000001,0.18730000000000002,null,"Gaz_de_pétrole_liquéfié_GPL","l"]
[null,null,null,null,null,null,null,null,null,null,null,null,null,null,null,null,null,null,null,"Camion_rigide_PL_PTAC≤32tGazole","Camion_rigide_PL_PTAC≤32t","Gazole","l",0.60899999999999999,2.4900000000000002,3.0990000000000002,8.0000000000000002E-3,1.9099999999999999E-2,7.8100000000000003E-2,0.1052,null,"Gaz_naturel_comprimé_GNC","kg"]
[null,null,null,null,null,null,null,null,null,null,null,null,null,null,null,null,null,null,null,"Ensemble_articulé_PL_PTRA≤34tGazole","Ensemble_articulé_PL_PTRA≤34t","Gazole","l",0.60899999999999999,2.4900000000000002,3.0990000000000002,3.7000000000000002E-3,1.7600000000000001E-2,6.4000000000000001E-2,8.5300000000000001E-2,null,"Gaz_naturel_liquéfié_GNL","kg"]
[null,null,null,null,null,null,null,null,null,null,null,null,null,null,null,null,null,null,null,"Ensemble_articulé_PL_PTRA≤40tGazole","Ensemble_articulé_PL_PTRA≤40t","Gazole","l",0.60899999999999999,2.4900000000000002,3.0990000000000002,3.8E-3,1.54E-2,6.3100000000000003E-2,8.2300000000000012E-2,null,"Hydrogène","kg"]
[null,null,null,null,null,null,null,null,null,null,null,null,null,null,null,null,null,null,null,"Ensemble_articulé_PL_PTRA≤40tGaz_naturel_comprimé_GNC","Ensemble_articulé_PL_PTRA≤40t","Gaz_naturel_comprimé_GNC","kg",0.55000000000000004,2.41,2.96,3.8E-3,0.01,6.6000000000000003E-2,7.980000000000001E-2,null,"Aucun","-"]
[null,null,null,null,null,null,null,null,null,null,null,null,null,null,null,null,null,null,null,"Ensemble_articulé_PL_PTRA≤40tGaz_naturel_liquéfié_GNL","Ensemble_articulé_PL_PTRA≤40t","Gaz_naturel_liquéfié_GNL","kg",0.69699999999999995,2.58,3.2770000000000001,3.8E-3,2.3E-2,6.5000000000000002E-2,9.1800000000000007E-2]
[null,null,null,null,null,null,null,null,null,null,null,null,null,null,null,null,null,null,null,"Ensemble_articulé_PL_PTRA≤44tGazole","Ensemble_articulé_PL_PTRA≤44t","Gazole","l",0.60899999999999999,2.4900000000000002,3.0990000000000002,3.8E-3,1.32E-2,5.4100000000000002E-2,7.1099999999999997E-2,null,"Oui"]
[null,null,null,null,null,null,null,null,null,null,null,null,null,null,null,null,null,null,null,"Ensemble_articulé_PL_PTRA≤60tGazole","Ensemble_articulé_PL_PTRA≤60t","Gazole","l",0.60899999999999999,2.4900000000000002,3.0990000000000002,3.8999999999999998E-3,1.2500000000000001E-2,5.11E-2,6.7500000000000004E-2,null,"Non"]
[null,null,null,null,null,null,null,null,null,null,null,null,null,null,null,null,null,null,null,"Ensemble_articulé_PL_PTRA≤72tGazole","Ensemble_articulé_PL_PTRA≤72t","Gazole","l",0.60899999999999999,2.4900000000000002,3.0990000000000002,4.0000000000000001E-3,1.2500000000000001E-2,5.11E-2,6.7599999999999993E-2]
[null,null,null,null,null,null,null,null,null,null,null,null,null,null,null,null,null,null,null,"VéloAucun","Vélo","Aucun",null,0,0,0,0.02,0,0,{"$f":"AA47+AB47+AC47","v":0.02}]
[null,null,null,null,null,null,null,null,null,null,null,null,null,null,null,null,null,null,null,"Vélo_électriqueÉlectricité","Vélo_électrique","Électricité","kWh",5.1299999999999998E-2,0,5.1299999999999998E-2,0.02,4.8199999999999996E-3,0,2.4820000000000002E-2]
[]
[]
[]
[]
[]
[]
[]
[]
[]
[]
[]
[]
[]
[]
[]
[]
[]
[]
[]
[]
[]
[]
[]
[]
[]
[]
[]
[]
[]
[]
[]
[]
[]
[]
[]
[]
[]
[null,null,null,null,null,null,null,null,null,null,null,null,null,"BILAN GLOBAL"]
[]
[null,null,null,null,null,null,null,null,null,null,null,null,null,"Activité totale de transport \n(tkm)","Émissions de GES\n(kgCO2e)","Intensité des émissions de GES\n(kgCO2e/tkm)"]
[null,null,null,null,null,null,null,null,null,null,null,null,null,{"$f":"#REF!+L89","v":{"$error":"#REF!"}}]
[null,null,null,null,null,null,null,null,null,null,null,null,null,{"$f":"#REF!+L90","v":{"$error":"#REF!"}}]
[null,null,null,null,null,null,null,null,null,null,null,null,null,{"$f":"#REF!+L91","v":{"$error":"#REF!"}}]
[null,null,null,null,null,null,null,null,null,null,null,null,null,{"$f":"#REF!+L92","v":{"$error":"#REF!"}}]
[null,null,null,null,null,null,null,null,null,null,null,null,null,{"$f":"#REF!+L93","v":{"$error":"#REF!"}}]
[null,null,null,null,null,null,null,null,null,null,null,null,null,{"$f":"#REF!+L94","v":{"$error":"#REF!"}}]
[null,null,null,null,null,null,null,null,null,null,null,null,null,{"$f":"#REF!+L95","v":{"$error":"#REF!"}}]
[null,null,null,null,null,null,null,null,null,null,null,null,null,{"$f":"#REF!+L96","v":{"$error":"#REF!"}}]
[null,null,null,null,null,null,null,null,null,null,null,null,null,{"$f":"#REF!+L97","v":{"$error":"#REF!"}}]
[null,null,null,null,null,null,null,null,null,null,null,null,null,{"$f":"#REF!+L98","v":{"$error":"#REF!"}}]
[null,null,null,null,null,null,null,null,null,null,null,null,null,{"$f":"#REF!+L99","v":{"$error":"#REF!"}}]
[null,null,null,null,null,null,null,null,null,null,null,null,null,{"$f":"#REF!+L100","v":{"$error":"#REF!"}}]
[null,null,null,null,null,null,null,null,null,null,null,null,null,{"$f":"#REF!+L101","v":{"$error":"#REF!"}}]
[null,null,null,null,null,null,null,null,null,null,null,null,null,{"$f":"#REF!+L102","v":{"$error":"#REF!"}}]
[null,null,null,null,null,null,null,null,null,null,null,null,null,{"$f":"#REF!+L103","v":{"$error":"#REF!"}}]
[null,null,null,null,null,null,null,null,null,null,null,null,null,{"$f":"#REF!+L104","v":{"$error":"#REF!"}}]
[null,null,null,null,null,null,null,null,null,null,null,null,null,{"$f":"#REF!+L105","v":{"$error":"#REF!"}}]
[null,null,null,null,null,null,null,null,null,null,null,null,null,{"$f":"#REF!+L106","v":{"$error":"#REF!"}}]
[null,null,null,null,null,null,null,null,null,null,null,null,null,{"$f":"#REF!+L107","v":{"$error":"#REF!"}}]
[null,null,null,null,null,null,null,null,null,null,null,null,null,{"$f":"#REF!+L108","v":{"$error":"#REF!"}}]
[null,null,null,null,null,null,null,null,null,null,null,null,null,{"$f":"#REF!+L109","v":{"$error":"#REF!"}}]
[null,null,null,null,null,null,null,null,null,null,null,null,null,{"$f":"#REF!+L110","v":{"$error":"#REF!"}}]
[null,null,null,null,null,null,null,null,null,null,null,null,null,{"$f":"#REF!+L111","v":{"$error":"#REF!"}}]
[null,null,null,null,null,null,null,null,null,null,null,null,null,{"$f":"#REF!+L112","v":{"$error":"#REF!"}}]
[null,null,null,null,null,null,null,null,null,null,null,null,null,{"$f":"#REF!+L113","v":{"$error":"#REF!"}}]
[null,null,null,null,null,null,null,null,null,null,null,null,null,{"$f":"#REF!+L114","v":{"$error":"#REF!"}}]
[]
[null,null,null,null,null,null,null,null,null,null,null,null,null,{"$f":"SUM(N89:N114)","v":{"$error":"#REF!"}}]

{"sheet":"3_Ferroviaire tkm","index":14,"n_rows":74,"n_cols":45,"rows_kept":74,"cut":false,"hidden":false,"merged":[[0,3,0,11],[10,6,10,11]]}
[null,null,null,"DÉTERMINATION DES ÉMISSIONS DE GAZ À EFFET DE SERRE GÉNÉRÉES PAR LES PRESTATIONS DE TRANSPORT FERROVIAIRE MOBILISÉES DANS LE MARCHÉ"]
[]
[]
[]
[null,"Raison sociale du titulaire",{"$f":"'1_Infos générales'!$C$9:$J$9","v":0}]
[]
[null,"Période de référence",{"$f":"'1_Infos générales'!$C$15","v":"Année"}]
[]
[]
[]
[null,"DONNÉES A REMPLIR"]
[]
[]
[]
[null,null,null,null,null,null,null,null," ",null,"TOTAL (kgCO2e)"]
[null,null,null,null,null,null,null,null,null,null,{"$f":" SUM(K19:K25)","v":0}]
[]
[null,null,"Ville et Pays de départ\n[optionnel]","Ville et Pays d'arrivée\n[optionnel]","Caractéristique du chargement","Type d'énergie","Facteur d'émission de GES * (kgCO2e/tkm)","Distance parcourue lors de ce trajet (en km) ","Masse de marchandises transportées lors de ce trajet (en tonnes)","Nombre de répétitions de ce trajet (avec la même masse transportée)\n[optionnel]","Calcul ** des émissions de GES pour ce transport (en kgCO2e)","Quels moyens de preuves pourriez-vous donner ?"]
[null,null,null,null,null,null,{"$f":"_xlfn.XLOOKUP(Tableau_prestations_ftkm[[#This Row],[Caractéristique du chargement]]&Tableau_prestations_ftkm[[#This Row],[Type d''énergie]], $V$28:$V$51&$W$28:$W$51, $AE$28:$AE$51, 0,  0, )","v":0},null,null,null,{"$f":"IF(ISBLANK(J19),G19*H19*I19,G19*H19*I19*J19)","v":0}]
[null,null,null,null,null,null,{"$f":"_xlfn.XLOOKUP(Tableau_prestations_ftkm[[#This Row],[Caractéristique du chargement]]&Tableau_prestations_ftkm[[#This Row],[Type d''énergie]], $V$28:$V$51&$W$28:$W$51, $AE$28:$AE$51, 0,  0, )","v":0},null,null,null,0]
[null,null,null,null,null,null,{"$f":"_xlfn.XLOOKUP(Tableau_prestations_ftkm[[#This Row],[Caractéristique du chargement]]&Tableau_prestations_ftkm[[#This Row],[Type d''énergie]], $V$28:$V$51&$W$28:$W$51, $AE$28:$AE$51, 0,  0, )","v":0},null,null,null,0]
[null,null,null,null,null,null,{"$f":"_xlfn.XLOOKUP(Tableau_prestations_ftkm[[#This Row],[Caractéristique du chargement]]&Tableau_prestations_ftkm[[#This Row],[Type d''énergie]], $V$28:$V$51&$W$28:$W$51, $AE$28:$AE$51, 0,  0, )","v":0},null,null,null,0]
[null,null,null,null,null,null,{"$f":"_xlfn.XLOOKUP(Tableau_prestations_ftkm[[#This Row],[Caractéristique du chargement]]&Tableau_prestations_ftkm[[#This Row],[Type d''énergie]], $V$28:$V$51&$W$28:$W$51, $AE$28:$AE$51, 0,  0, )","v":0},null,null,null,0]
[null,null,null,null,null,null,{"$f":"_xlfn.XLOOKUP(Tableau_prestations_ftkm[[#This Row],[Caractéristique du chargement]]&Tableau_prestations_ftkm[[#This Row],[Type d''énergie]], $V$28:$V$51&$W$28:$W$51, $AE$28:$AE$51, 0,  0, )","v":0},null,null,null,{"$f":"IF(ISBLANK(J24),G24*H24*I24,G24*H24*I24*J24)","v":0}]
[null,null,null,null,null,null,{"$f":"_xlfn.XLOOKUP(Tableau_prestations_ftkm[[#This Row],[Caractéristique du chargement]]&Tableau_prestations_ftkm[[#This Row],[Type d''énergie]], $V$28:$V$51&$W$28:$W$51, $AE$28:$AE$51, 0,  0, )","v":0},null,null,null,{"$f":"IF(ISBLANK(J25),G25*H25*I25,G25*H25*I25*J25)","v":0}]
[]
[null,null,null,null,null,null,null,null,null,null,null,null,null," ",null,null,null,null,null,null,null,"Caractéristiques du chargement","Type d'énergie","Unité","Facteur d'émission (WTT)\n(kgCO2e/unité)","Facteur d'émission (TTW)\n(kgCO2e/unité)","Facteur d'émission (WTW)\n(kgCO2e/unité)","Intensité des émissions issues de la fabrication\n(kgCO2e/tkm)","Intensité des émissions WTT de GES\n(kgCO2e/tkm)","Intensité des émissions TTW de GES\n(kgCO2e/tkm)","Intensité des émissions de GES (WTW + fabrication)\n(kgCO2e/tkm)"]
[null,null,null,null,null,null,null,null,null,null,null,null,null,null,null,null,null,null,null,null,null,"Mixte_Basse_densité","Gazole","l",0.58899999999999997,2.57,{"$f":"Y28+Z28","v":3.1589999999999998},3.8999999999999998E-3,7.45E-3,2.86E-2,{"$f":"AB28+AC28+AD28","v":3.9949999999999999E-2},null,null,"Mixte_Basse_densité","Mixte_Moyenne_densité","Mixte_Densité_élevée","Conteneur","Automobiles","Produits_chimiques","Charbon_Acier","Matériels_Matériaux_Construction","Produits_manufacturés","Céréales","Ensemble_articulé_camion_remorque","Remorque_seule"]
[null,null,null,null,null,null,null,null,null,null,null,null,null,null,null,null,null,null,null,null,null,"Mixte_Basse_densité","Électricité","kWh",0.252,0,{"$f":"Y29+Z29","v":0.252},3.8999999999999998E-3,6.1799999999999995E-4,9.8400000000000007E-4,{"$f":"AB29+AC29+AD29","v":5.5019999999999999E-3},null,"Mixte_Basse_densité","Gazole","Gazole","Gazole","Gazole","Gazole","Gazole","Gazole","Gazole","Gazole","Gazole","Gazole","Gazole"]
[null,null,null,null,null,null,null,null,null,null,null,null,null,null,null,null,null,null,null,null,null,"Mixte_Moyenne_densité","Gazole","l",0.58899999999999997,2.57,3.1589999999999998,3.0000000000000001E-3,5.7800000000000004E-3,2.2200000000000001E-2,3.0980000000000001E-2,null,"Mixte_Moyenne_densité","Électricité","Électricité","Électricité","Électricité","Électricité","Électricité","Électricité","Électricité","Électricité","Électricité","Électricité","Électricité"]
[null,null,null,null,null,null,null,null,null,null,null,null,null,null,null,null,null,null,null,null,null,"Mixte_Moyenne_densité","Électricité","kWh",0.252,0,0.252,3.0000000000000001E-3,4.8000000000000001E-4,7.6300000000000001E-4,4.2430000000000002E-3,null,"Mixte_Densité_élevée"]
[null,null,null,null,null,null,null,null,null,null,null,null,null,null,null,null,null,null,null,null,null,"Mixte_Densité_élevée","Gazole","l",0.58899999999999997,2.57,3.1589999999999998,2.5999999999999999E-3,5.0000000000000001E-3,1.9199999999999998E-2,2.6799999999999997E-2,null,"Conteneur"]
[null,null,null,null,null,null,null,null,null,null,null,null,null,null,null,null,null,null,null,null,null,"Mixte_Densité_élevée","Électricité","kWh",0.252,0,0.252,2.5999999999999999E-3,4.1399999999999998E-4,6.5899999999999997E-4,3.6729999999999996E-3,null,"Automobiles"]
[null,null,null,null,null,null,null,null,null,null,null,null,null,null,null,null,null,null,null,null,null,"Conteneur","Gazole","l",0.58899999999999997,2.57,3.1589999999999998,3.0000000000000001E-3,5.1000000000000004E-3,0.02,2.81E-2,null,"Produits_chimiques"]
[null,null,null,null,null,null,null,null,null,null,null,null,null,null,null,null,null,null,null,null,null,"Conteneur","Électricité","kWh",0.252,0,0.252,3.0000000000000001E-3,9.1000000000000004E-3,0,1.21E-2,null,"Charbon_Acier"]
[null,null,null,null,null,null,null,null,null,null,null,null,null,null,null,null,null,null,null,null,null,"Automobiles","Gazole","l",0.58899999999999997,2.57,3.1589999999999998,3.0000000000000001E-3,1.2E-2,4.8000000000000001E-2,6.3E-2,null,"Matériels_Matériaux_Construction"]
[null,null,null,null,null,null,null,null,null,null,null,null,null,null,null,null,null,null,null,null,null,"Automobiles","Électricité","kWh",0.252,0,0.252,3.0000000000000001E-3,2.1999999999999999E-2,0,2.4999999999999998E-2,null,"Produits_manufacturés"]
[null,null,null,null,null,null,null,null,null,null,null,null,null,null,null,null,null,null,null,null,null,"Produits_chimiques","Gazole","l",0.58899999999999997,2.57,3.1589999999999998,3.0000000000000001E-3,4.7999999999999996E-3,1.9E-2,2.6799999999999997E-2,null,"Céréales"]
[null,null,null,null,null,null,null,null,null,null,null,null,null,null,null,null,null,null,null,null,null,"Produits_chimiques","Électricité","kWh",0.252,0,0.252,3.0000000000000001E-3,8.6E-3,0,1.1599999999999999E-2,null,"Ensemble_articulé_camion_remorque"]
[null,null,null,null,null,null,null,null,null,null,null,null,null,null,null,null,null,null,null,null,null,"Charbon_Acier","Gazole","l",0.58899999999999997,2.57,3.1589999999999998,3.0000000000000001E-3,3.7000000000000002E-3,1.4999999999999999E-2,2.1700000000000001E-2,null,"Remorque_seule"]
[null,null,null,null,null,null,null,null,null,null,null,null,null,null,null,null,null,null,null,null,null,"Charbon_Acier","Électricité","kWh",0.252,0,0.252,3.0000000000000001E-3,6.7000000000000002E-3,0,9.7000000000000003E-3]
[null,null,null,null,null,null,null,null,null,null,null,null,null,null,null,null,null,null,null,null,null,"Matériels_Matériaux_Construction","Gazole","l",0.58899999999999997,2.57,3.1589999999999998,3.0000000000000001E-3,4.5999999999999999E-3,1.9E-2,2.6599999999999999E-2,null,"Électricité","kWh"]
[null,null,null,null,null,null,null,null,null,null,null,null,null,null,null,null,null,null,null,null,null,"Matériels_Matériaux_Construction","Électricité","kWh",0.252,0,0.252,3.0000000000000001E-3,8.3000000000000001E-3,0,1.1300000000000001E-2,null,"Gazole","l"]
[null,null,null,null,null,null,null,null,null,null,null,null,null,null,null,null,null,null,null,null,null,"Produits_manufacturés","Gazole","l",0.58899999999999997,2.57,3.1589999999999998,3.0000000000000001E-3,3.8999999999999998E-3,0.02,2.69E-2]
[null,null,null,null,null,null,null,null,null,null,null,null,null,null,null,null,null,null,null,null,null,"Produits_manufacturés","Électricité","kWh",0.252,0,0.252,3.0000000000000001E-3,8.8000000000000005E-3,0,1.1800000000000001E-2]
[null,null,null,null,null,null,null,null,null,null,null,null,null,null,null,null,null,null,null,null,null,"Céréales","Gazole","l",0.58899999999999997,2.57,3.1589999999999998,3.0000000000000001E-3,3.7000000000000002E-3,1.4999999999999999E-2,2.1700000000000001E-2]
[null,null,null,null,null,null,null,null,null,null,null,null,null,null,null,null,null,null,null,null," ","Céréales","Électricité","kWh",0.252,0,0.252,3.0000000000000001E-3,6.6E-3,0,9.6000000000000009E-3]
[null,null,null,null,null,null,null,null,null,null,null,null,null,null,null,null,null,null,null,null,null,"Ensemble_articulé_camion_remorque","Gazole","l",0.58899999999999997,2.57,3.1589999999999998,3.0000000000000001E-3,2.7E-2,0.11,0.14000000000000001]
[null,null,null,null,null,null,null,null,null,null,null,null,null,null,null,null,null,null,null,null,null,"Ensemble_articulé_camion_remorque","Électricité","kWh",0.252,0,0.252,3.0000000000000001E-3,4.8000000000000001E-2,0,5.1000000000000004E-2]
[null,null,null,null,null,null,null,null,null,null,null,null,null,null,null,null,null,null,null,null,null,"Remorque_seule","Gazole","l",0.58899999999999997,2.57,3.1589999999999998,3.0000000000000001E-3,1.7999999999999999E-2,7.0000000000000007E-2,9.0999999999999998E-2]
[null,null,null,null,null,null,null,null,null,null,null,null,null,null,null,null,null,null,null,null,null,"Remorque_seule","Électricité","kWh",0.252,0,0.252,3.0000000000000001E-3,3.3000000000000002E-2,0,3.6000000000000004E-2]
[]
[]
[]
[]
[]
[]
[]
[]
[]
[]
[]
[]
[]
[]
[]
[]
[]
[]
[]
[]
[]
[null,null,null,null,null,null,null,null,null,null,null,null,null,null,null,null,null,null,null,null,null,null,null,null,null,null,null,null,null,null,null,null,"Oui"]
[null,null,null,null,null,null,null,null,null,null,null,null,null,null,null,null,null,null,null,null,null,null,null,null,null,null,null,null,null,null,null,null,"Non"]

{"sheet":"3_Ferroviaire carburant","index":15,"n_rows":75,"n_cols":44,"rows_kept":75,"cut":false,"hidden":false,"merged":[[0,3,0,10],[10,6,10,10]]}
[null,null,null,"DÉTERMINATION DES ÉMISSIONS DE GAZ À EFFET DE SERRE GÉNÉRÉES PAR LES PRESTATIONS DE TRANSPORT FERROVIAIRE MOBILISÉES DANS LE MARCHÉ"]
[]
[]
[]
[null,"Raison sociale du titulaire",{"$f":"'1_Infos générales'!$C$9:$J$9","v":0}]
[]
[null,"Période de référence",{"$f":"'1_Infos générales'!$C$15","v":"Année"}]
[]
[]
[]
[null,"DONNÉES A REMPLIR"]
[]
[]
[]
[null,null,null,null,null,null,null,null,null,"TOTAL (kgCO2e)"]
[null,null,null,null,null,null,null,null,null,{"$f":" SUM(J19:J25)","v":0}]
[]
[null,null,"Ville et Pays de départ\n[optionnel]","Ville et Pays d'arrivée\n[optionnel]","Caractéristique du chargement","Type d'énergie","Facteur d'émission de GES * (kgCO2e/tkm)"," Quantité de carburant consommé lors de ce trajet (en L ou kWh) ","Nombre de répétitions de ce trajet (avec la même consommation de carburant)\n[optionnel]","Calcul ** des émissions de GES pour ce transport (en kgCO2e)","Quels moyens de preuves pourriez-vous donner ?"]
[null,null,null,null,null,null,{"$f":"_xlfn.XLOOKUP(Tableau_prestations_fc[[#This Row],[Caractéristique du chargement]]&Tableau_prestations_fc[[#This Row],[Type d''énergie]], $U$29:$U$52&$V$29:$V$52, $Z$29:$Z$52, 0,  0, )","v":0},null,null,{"$f":"IF(ISBLANK(I19),G19*H19,G19*H19*I19)","v":0}]
[null,null,null,null,null,null,{"$f":"_xlfn.XLOOKUP(Tableau_prestations_fc[[#This Row],[Caractéristique du chargement]]&Tableau_prestations_fc[[#This Row],[Type d''énergie]], $U$29:$U$52&$V$29:$V$52, $Z$29:$Z$52, 0,  0, )","v":0},null,null,{"$f":"IF(ISBLANK(I20),G20*H20,G20*H20*I20)","v":0}]
[null,null,null,null,null,null,{"$f":"_xlfn.XLOOKUP(Tableau_prestations_fc[[#This Row],[Caractéristique du chargement]]&Tableau_prestations_fc[[#This Row],[Type d''énergie]], $U$29:$U$52&$V$29:$V$52, $Z$29:$Z$52, 0,  0, )","v":0},null,null,0]
[null,null,null,null,null,null,{"$f":"_xlfn.XLOOKUP(Tableau_prestations_fc[[#This Row],[Caractéristique du chargement]]&Tableau_prestations_fc[[#This Row],[Type d''énergie]], $U$29:$U$52&$V$29:$V$52, $Z$29:$Z$52, 0,  0, )","v":0},null,null,0]
[null,null,null,null,null,null,{"$f":"_xlfn.XLOOKUP(Tableau_prestations_fc[[#This Row],[Caractéristique du chargement]]&Tableau_prestations_fc[[#This Row],[Type d''énergie]], $U$29:$U$52&$V$29:$V$52, $Z$29:$Z$52, 0,  0, )","v":0},null,null,0]
[null," ",null,null,null,null,{"$f":"_xlfn.XLOOKUP(Tableau_prestations_fc[[#This Row],[Caractéristique du chargement]]&Tableau_prestations_fc[[#This Row],[Type d''énergie]], $U$29:$U$52&$V$29:$V$52, $Z$29:$Z$52, 0,  0, )","v":0},null,null,0]
[null,null,null,null,null,null,{"$f":"_xlfn.XLOOKUP(Tableau_prestations_fc[[#This Row],[Caractéristique du chargement]]&Tableau_prestations_fc[[#This Row],[Type d''énergie]], $U$29:$U$52&$V$29:$V$52, $Z$29:$Z$52, 0,  0, )","v":0},null,null,0]
[]
[]
[null,null,null,null,null,null,null,null,null,null,null,null," ",null,null,null,null,null,null,null,"Caractéristiques du chargement","Type d'énergie","Unité","Facteur d'émission (WTT)\n(kgCO2e/unité)","Facteur d'émission (TTW)\n(kgCO2e/unité)","Facteur d'émission (WTW)\n(kgCO2e/unité)","Intensité des émissions issues de la fabrication\n(kgCO2e/tkm)","Intensité des émissions WTT de GES\n(kgCO2e/tkm)","Intensité des émissions TTW de GES\n(kgCO2e/tkm)","Intensité des émissions de GES (WTW + fabrication)\n(kgCO2e/tkm)"]
[null,null,null,null,null,null,null,null,null,null,null,null,null,null,null,null,null,null,null,null,"Mixte_Basse_densité","Gazole","l",0.58899999999999997,2.57,{"$f":"X29+Y29","v":3.1589999999999998},3.8999999999999998E-3,7.45E-3,2.86E-2,{"$f":"AA29+AB29+AC29","v":3.9949999999999999E-2},null,null,"Mixte_Basse_densité","Mixte_Moyenne_densité","Mixte_Densité_élevée","Conteneur","Automobiles","Produits_chimiques","Charbon_Acier","Matériels_Matériaux_Construction","Produits_manufacturés","Céréales","Ensemble_articulé_camion_remorque","Remorque_seule"]
[null,null,null,null,null,null,null,null,null,null,null,null,null,null,null,null,null,null,null,null,"Mixte_Basse_densité","Électricité","kWh",0.252,0,{"$f":"X30+Y30","v":0.252},3.8999999999999998E-3,6.1799999999999995E-4,9.8400000000000007E-4,{"$f":"AA30+AB30+AC30","v":5.5019999999999999E-3},null,"Mixte_Basse_densité","Gazole","Gazole","Gazole","Gazole","Gazole","Gazole","Gazole","Gazole","Gazole","Gazole","Gazole","Gazole"]
[null,null,null,null,null,null,null,null,null,null,null,null,null,null,null,null,null,null,null,null,"Mixte_Moyenne_densité","Gazole","l",0.58899999999999997,2.57,3.1589999999999998,3.0000000000000001E-3,5.7800000000000004E-3,2.2200000000000001E-2,3.0980000000000001E-2,null,"Mixte_Moyenne_densité","Électricité","Électricité","Électricité","Électricité","Électricité","Électricité","Électricité","Électricité","Électricité","Électricité","Électricité","Électricité"]
[null,null,null,null,null,null,null,null,null,null,null,null,null,null,null,null,null,null,null,null,"Mixte_Moyenne_densité","Électricité","kWh",0.252,0,0.252,3.0000000000000001E-3,4.8000000000000001E-4,7.6300000000000001E-4,4.2430000000000002E-3,null,"Mixte_Densité_élevée"]
[null,null,null,null,null,null,null,null,null,null,null,null,null,null,null,null,null,null,null,null,"Mixte_Densité_élevée","Gazole","l",0.58899999999999997,2.57,3.1589999999999998,2.5999999999999999E-3,5.0000000000000001E-3,1.9199999999999998E-2,2.6799999999999997E-2,null,"Conteneur"]
[null,null,null,null,null,null,null,null,null,null,null,null,null,null,null,null,null,null,null,null,"Mixte_Densité_élevée","Électricité","kWh",0.252,0,0.252,2.5999999999999999E-3,4.1399999999999998E-4,6.5899999999999997E-4,3.6729999999999996E-3,null,"Automobiles"]
[null,null,null,null,null,null,null,null,null,null,null,null,null,null,null,null,null,null,null,null,"Conteneur","Gazole","l",0.58899999999999997,2.57,3.1589999999999998,3.0000000000000001E-3,5.1000000000000004E-3,0.02,2.81E-2,null,"Produits_chimiques"]
[null,null,null,null,null,null,null,null,null,null,null,null,null,null,null,null,null,null,null,null,"Conteneur","Électricité","kWh",0.252,0,0.252,3.0000000000000001E-3,9.1000000000000004E-3,0,1.21E-2,null,"Charbon_Acier"]
[null,null,null,null,null,null,null,null,null,null,null,null,null,null,null,null,null,null,null,null,"Automobiles","Gazole","l",0.58899999999999997,2.57,3.1589999999999998,3.0000000000000001E-3,1.2E-2,4.8000000000000001E-2,6.3E-2,null,"Matériels_Matériaux_Construction"]
[null,null,null,null,null,null,null,null,null,null,null,null,null,null,null,null,null,null,null,null,"Automobiles","Électricité","kWh",0.252,0,0.252,3.0000000000000001E-3,2.1999999999999999E-2,0,2.4999999999999998E-2,null,"Produits_manufacturés"]
[null,null,null,null,null,null,null,null,null,null,null,null,null,null,null,null,null,null,null,null,"Produits_chimiques","Gazole","l",0.58899999999999997,2.57,3.1589999999999998,3.0000000000000001E-3,4.7999999999999996E-3,1.9E-2,2.6799999999999997E-2,null,"Céréales"]
[null,null,null,null,null,null,null,null,null,null,null,null,null,null,null,null,null,null,null,null,"Produits_chimiques","Électricité","kWh",0.252,0,0.252,3.0000000000000001E-3,8.6E-3,0,1.1599999999999999E-2,null,"Ensemble_articulé_camion_remorque"]
[null,null,null,null,null,null,null,null,null,null,null,null,null,null,null,null,null,null,null,null,"Charbon_Acier","Gazole","l",0.58899999999999997,2.57,3.1589999999999998,3.0000000000000001E-3,3.7000000000000002E-3,1.4999999999999999E-2,2.1700000000000001E-2,null,"Remorque_seule"]
[null,null,null,null,null,null,null,null,null,null,null,null,null,null,null,null,null,null,null,null,"Charbon_Acier","Électricité","kWh",0.252,0,0.252,3.0000000000000001E-3,6.7000000000000002E-3,0,9.7000000000000003E-3]
[null,null,null,null,null,null,null,null,null,null,null,null,null,null,null,null,null,null,null,null,"Matériels_Matériaux_Construction","Gazole","l",0.58899999999999997,2.57,3.1589999999999998,3.0000000000000001E-3,4.5999999999999999E-3,1.9E-2,2.6599999999999999E-2,null,"Électricité","kWh"]
[null,null,null,null,null,null,null,null,null,null,null,null,null,null,null,null,null,null,null,null,"Matériels_Matériaux_Construction","Électricité","kWh",0.252,0,0.252,3.0000000000000001E-3,8.3000000000000001E-3,0,1.1300000000000001E-2,null,"Gazole","l"]
[null,null,null,null,null,null,null,null,null,null,null,null,null,null,null,null,null,null,null,null,"Produits_manufacturés","Gazole","l",0.58899999999999997,2.57,3.1589999999999998,3.0000000000000001E-3,3.8999999999999998E-3,0.02,2.69E-2]
[null,null,null,null,null,null,null,null,null,null,null,null,null,null,null,null,null,null,null,null,"Produits_manufacturés","Électricité","kWh",0.252,0,0.252,3.0000000000000001E-3,8.8000000000000005E-3,0,1.1800000000000001E-2]
[null,null,null,null,null,null,null,null,null,null,null,null,null,null,null,null,null,null,null,null,"Céréales","Gazole","l",0.58899999999999997,2.57,3.1589999999999998,3.0000000000000001E-3,3.7000000000000002E-3,1.4999999999999999E-2,2.1700000000000001E-2]
[null,null,null,null,null,null,null,null,null,null,null,null,null,null,null,null,null,null,null," ","Céréales","Électricité","kWh",0.252,0,0.252,3.0000000000000001E-3,6.6E-3,0,9.6000000000000009E-3]
[null,null,null,null,null,null,null,null,null,null,null,null,null,null,null,null,null,null,null,null,"Ensemble_articulé_camion_remorque","Gazole","l",0.58899999999999997,2.57,3.1589999999999998,3.0000000000000001E-3,2.7E-2,0.11,0.14000000000000001]
[null,null,null,null,null,null,null,null,null,null,null,null,null,null,null,null,null,null,null,null,"Ensemble_articulé_camion_remorque","Électricité","kWh",0.252,0,0.252,3.0000000000000001E-3,4.8000000000000001E-2,0,5.1000000000000004E-2]
[null,null,null,null,null,null,null,null,null,null,null,null,null,null,null,null,null,null,null,null,"Remorque_seule","Gazole","l",0.58899999999999997,2.57,3.1589999999999998,3.0000000000000001E-3,1.7999999999999999E-2,7.0000000000000007E-2,9.0999999999999998E-2]
[null,null,null,null,null,null,null,null,null,null,null,null,null,null,null,null,null,null,null,null,"Remorque_seule","Électricité","kWh",0.252,0,0.252,3.0000000000000001E-3,3.3000000000000002E-2,0,3.6000000000000004E-2]
[]
[]
[]
[]
[]
[]
[]
[]
[]
[]
[]
[]
[]
[]
[]
[]
[]
[]
[]
[]
[]
[null,null,null,null,null,null,null,null,null,null,null,null,null,null,null,null,null,null,null,null,null,null,null,null,null,null,null,null,null,null,null,"Oui"]
[null,null,null,null,null,null,null,null,null,null,null,null,null,null,null,null,null,null,null,null,null,null,null,null,null,null,null,null,null,null,null,"Non"]

{"sheet":"3_Ferroviaire","index":16,"n_rows":84,"n_cols":45,"rows_kept":84,"cut":false,"hidden":true,"merged":[[83,1,83,4],[1,1,1,15],[15,5,15,9],[15,10,15,13],[16,5,16,7],[16,10,16,11],[53,5,53,10],[53,11,53,12],[53,13,54,15],[54,5,54,6],[54,8,54,12]]}
[]
[null,"DÉTERMINATION DES ÉMISSIONS DE GAZ À EFFET DE SERRE GÉNÉRÉES PAR LES PRESTATIONS DE TRANSPORT FERROVIAIRE MOBILISÉES DANS LE MARCHÉ"]
[]
[null,"Raison sociale du titulaire",{"$f":"'1_Infos générales'!$C$9:$J$9","v":0}]
[]
[null,"Période de référence",{"$f":"'1_Infos générales'!$C$15","v":"Année"}]
[]
[null,"DONNÉES D'ENTRÉE"]
[]
[null,"Le titulaire est invité à renseigner les cellules jaunes ci-dessous",null,null,null,null,null,null,"Les données primaires sont les données mesurées ou obtenues par calcul à la suite de mesure"]
[null,"Les cellules bleues sont automatiquement complétées et ne peuvent être manuellement modifiées",null,null,null,null,null,null,"En cellule J17, le titulaire indique s'il dispose de données primaires de suivi des consommations de la flotte détenue pour les prestations de transport internalisées"]
[null,null,null,null,null,null,null,null,"→ Si oui, le titulaire renseigne les consommations en colonne I ; si non, il laisse la colonne I vide et les calculs seront réalisés selon des modélisations par défaut"]
[null,"Le titulaire peut regrouper à sa convenance les prestations de transport répondant à des caractéristiques communes (ex. externalisé, par type de chargement et d'énergie commun)",null,null,null,null,null,null,"En cellule N17, le titulaire indique s'il dispose de données primaires de suivi des consommations des flottes mobilisées pour les prestations externalisées"]
[null,"Le nombre de lignes disponibles dans le tableau ci-dessous est limité sans possibilité d'ajouter de ligne supplémentaire ;",null,null,null,null,null,null,"→ Si oui, le titulaire renseigne les consommations en colonne M ; si non, il laisse la colonne M vide et les calculs seront réalisés selon des modélisations par défaut"]
[null,"le titulaire est donc invité à réduire aux maximum le nombre de lignes utilisées"]
[null,null,null,null,null,"Prestations de transport internalisées (réalisées avec des véhicules appartenant au titulaire)",null,null,null,null,"Prestations de transport externalisées"]
[null,"La colonne B sert à donner un intitulé (nom, numéro, etc. au choix du titulaire) à la ligne de données renseignée",null,null,null,"Informations sur l'activité de la flotte interne pour les prestations de transport visées",null,null,"Données primaires?","Oui","Informations sur l'activité externalisée pour les prestations de transport visées",null,"Données primaires?","Oui"]
[null,"Prestation de transport (agrégation possible à la convenance du titulaire - ex. une ligne regroupant tous les transports de céréales réalisés en train au gazole sur l'année)","Caractéristiques du chargement","Type d'énergie","Transport sous température dirigée?","(Réservé)","Distance totale cumulée\n(km)","Masse totale de marchandises transportées\n(t)","Quantité totale d'énergie consommée","Unité","Distance totale cumulée\n(km)","Masse totale de marchandises transportées\n(t)","Quantité totale d'énergie consommée","Unité",null,null,null,null,null,null,null,"Caractéristiques du chargement","Type d'énergie","Unité","Facteur d'émission (WTT)\n(kgCO2e/unité)","Facteur d'émission (TTW)\n(kgCO2e/unité)","Facteur d'émission (WTW)\n(kgCO2e/unité)","Intensité des émissions issues de la fabrication\n(kgCO2e/tkm)","Intensité des émissions WTT de GES\n(kgCO2e/tkm)","Intensité des émissions TTW de GES\n(kgCO2e/tkm)","Intensité des émissions de GES (WTW + fabrication)\n(kgCO2e/tkm)",null,null,"Mixte_Basse_densité","Mixte_Moyenne_densité","Mixte_Densité_élevée","Conteneur","Automobiles","Produits_chimiques","Charbon_Acier","Matériels_Matériaux_Construction","Produits_manufacturés","Céréales","Ensemble_articulé_camion_remorque","Remorque_seule"]
[null,null,null,null,null,null,null,null,null,{"$f":"IF(ISBLANK(D19),\"\",VLOOKUP($D19,$AG$32:$AH$33,2,FALSE))","v":""},null,null,null,{"$f":"J19","v":""},null,null,null,null,null,null,{"$f":"V19&W19","v":"Mixte_Basse_densitéGazole"},"Mixte_Basse_densité","Gazole","l",0.58899999999999997,2.57,{"$f":"Y19+Z19","v":3.1589999999999998},3.8999999999999998E-3,7.45E-3,2.86E-2,{"$f":"AB19+AC19+AD19","v":3.9949999999999999E-2},null,"Mixte_Basse_densité","Gazole","Gazole","Gazole","Gazole","Gazole","Gazole","Gazole","Gazole","Gazole","Gazole","Gazole","Gazole"]
[null,null,null,null,null,null,null,null,null,{"$f":"IF(ISBLANK(D20),\"\",VLOOKUP($D20,$AG$32:$AH$33,2,FALSE))","v":""},null,null,null,{"$f":"J20","v":""},null,null,null,null,null,null,{"$f":"V20&W20","v":"Mixte_Basse_densitéÉlectricité"},"Mixte_Basse_densité","Électricité","kWh",0.252,0,{"$f":"Y20+Z20","v":0.252},3.8999999999999998E-3,6.1799999999999995E-4,9.8400000000000007E-4,{"$f":"AB20+AC20+AD20","v":5.5019999999999999E-3},null,"Mixte_Moyenne_densité","Électricité","Électricité","Électricité","Électricité","Électricité","Électricité","Électricité","Électricité","Électricité","Électricité","Électricité","Électricité"]
[null,null,null,null,null,null,null,null,null,"",null,null,null,"",null,null,null,null,null,null,{"$f":"V21&W21","v":"Mixte_Moyenne_densitéGazole"},"Mixte_Moyenne_densité","Gazole","l",0.58899999999999997,2.57,{"$f":"Y21+Z21","v":3.1589999999999998},3.0000000000000001E-3,5.7800000000000004E-3,2.2200000000000001E-2,3.0980000000000001E-2,null,"Mixte_Densité_élevée"]
[null,null,null,null,null,null,null,null,null,"",null,null,null,"",null,null,null,null,null,null,"Mixte_Moyenne_densitéÉlectricité","Mixte_Moyenne_densité","Électricité","kWh",0.252,0,0.252,3.0000000000000001E-3,4.8000000000000001E-4,7.6300000000000001E-4,4.2430000000000002E-3,null,"Conteneur"]
[null,null,null,null,null,null,null,null,null,"",null,null,null,"",null,null,null,null,null,null,"Mixte_Densité_élevéeGazole","Mixte_Densité_élevée","Gazole","l",0.58899999999999997,2.57,3.1589999999999998,2.5999999999999999E-3,5.0000000000000001E-3,1.9199999999999998E-2,2.6799999999999997E-2,null,"Automobiles"]
[null,null,null,null,null,null,null,null,null,"",null,null,null,"",null,null,null,null,null,null,"Mixte_Densité_élevéeÉlectricité","Mixte_Densité_élevée","Électricité","kWh",0.252,0,0.252,2.5999999999999999E-3,4.1399999999999998E-4,6.5899999999999997E-4,3.6729999999999996E-3,null,"Produits_chimiques"]
[null,null,null,null,null,null,null,null,null,"",null,null,null,"",null,null,null,null,null,null,"ConteneurGazole","Conteneur","Gazole","l",0.58899999999999997,2.57,3.1589999999999998,3.0000000000000001E-3,5.1000000000000004E-3,0.02,{"$f":"AB25+AC25+AD25","v":2.81E-2},null,"Charbon_Acier"]
[null,null,null,null,null,null,null,null,null,"",null,null,null,"",null,null,null,null,null,null,"ConteneurÉlectricité","Conteneur","Électricité","kWh",0.252,0,0.252,3.0000000000000001E-3,9.1000000000000004E-3,0,1.21E-2,null,"Matériels_Matériaux_Construction"]
[null,null,null,null,null,null,null,null,null,"",null,null,null,"",null,null,null,null,null,null,"AutomobilesGazole","Automobiles","Gazole","l",0.58899999999999997,2.57,3.1589999999999998,3.0000000000000001E-3,1.2E-2,4.8000000000000001E-2,6.3E-2,null,"Produits_manufacturés"]
[null,null,null,null,null,null,null,null,null,"",null,null,null,"",null,null,null,null,null,null,"AutomobilesÉlectricité","Automobiles","Électricité","kWh",0.252,0,0.252,3.0000000000000001E-3,2.1999999999999999E-2,0,2.4999999999999998E-2,null,"Céréales"]
[null,null,null,null,null,null,null,null,null,"",null,null,null,"",null,null,null,null,null,null,"Produits_chimiquesGazole","Produits_chimiques","Gazole","l",0.58899999999999997,2.57,3.1589999999999998,3.0000000000000001E-3,4.7999999999999996E-3,1.9E-2,2.6799999999999997E-2,null,"Ensemble_articulé_camion_remorque"]
[null,null,null,null,null,null,null,null,null,"",null,null,null,"",null,null,null,null,null,null,"Produits_chimiquesÉlectricité","Produits_chimiques","Électricité","kWh",0.252,0,0.252,3.0000000000000001E-3,8.6E-3,0,1.1599999999999999E-2,null,"Remorque_seule"]
[null,null,null,null,null,null,null,null,null,"",null,null,null,"",null,null,null,null,null,null,"Charbon_AcierGazole","Charbon_Acier","Gazole","l",0.58899999999999997,2.57,3.1589999999999998,3.0000000000000001E-3,3.7000000000000002E-3,1.4999999999999999E-2,2.1700000000000001E-2]
[null,null,null,null,null,null,null,null,null,"",null,null,null,"",null,null,null,null,null,null,"Charbon_AcierÉlectricité","Charbon_Acier","Électricité","kWh",0.252,0,0.252,3.0000000000000001E-3,6.7000000000000002E-3,0,9.7000000000000003E-3,null,"Électricité","kWh"]
[null,null,null,null,null,null,null,null,null,"",null,null,null,"",null,null,null,null,null,null,"Matériels_Matériaux_ConstructionGazole","Matériels_Matériaux_Construction","Gazole","l",0.58899999999999997,2.57,3.1589999999999998,3.0000000000000001E-3,4.5999999999999999E-3,1.9E-2,2.6599999999999999E-2,null,"Gazole","l"]
[null,null,null,null,null,null,null,null,null,"",null,null,null,"",null,null,null,null,null,null,"Matériels_Matériaux_ConstructionÉlectricité","Matériels_Matériaux_Construction","Électricité","kWh",0.252,0,0.252,3.0000000000000001E-3,8.3000000000000001E-3,0,1.1300000000000001E-2]
[null,null,null,null,null,null,null,null,null,"",null,null,null,"",null,null,null,null,null,null,"Produits_manufacturésGazole","Produits_manufacturés","Gazole","l",0.58899999999999997,2.57,3.1589999999999998,3.0000000000000001E-3,3.8999999999999998E-3,0.02,2.69E-2]
[null,null,null,null,null,null,null,null,null,"",null,null,null,"",null,null,null,null,null,null,"Produits_manufacturésÉlectricité","Produits_manufacturés","Électricité","kWh",0.252,0,0.252,3.0000000000000001E-3,8.8000000000000005E-3,0,1.1800000000000001E-2]
[null,null,null,null,null,null,null,null,null,"",null,null,null,"",null,null,null,null,null,null,"CéréalesGazole","Céréales","Gazole","l",0.58899999999999997,2.57,3.1589999999999998,3.0000000000000001E-3,3.7000000000000002E-3,1.4999999999999999E-2,2.1700000000000001E-2]
[null,null,null,null,null,null,null,null,null,"",null,null,null,"",null,null,null,null,null,null,"CéréalesÉlectricité","Céréales","Électricité","kWh",0.252,0,0.252,3.0000000000000001E-3,6.6E-3,0,9.6000000000000009E-3]
[null,null,null,null,null,null,null,null,null,"",null,null,null,"",null,null,null,null,null,null,"Ensemble_articulé_camion_remorqueGazole","Ensemble_articulé_camion_remorque","Gazole","l",0.58899999999999997,2.57,3.1589999999999998,3.0000000000000001E-3,2.7E-2,0.11,{"$f":"AB39+AC39+AD39","v":0.14000000000000001}]
[null,null,null,null,null,null,null,null,null,"",null,null,null,"",null,null,null,null,null,null,"Ensemble_articulé_camion_remorqueÉlectricité","Ensemble_articulé_camion_remorque","Électricité","kWh",0.252,0,0.252,3.0000000000000001E-3,4.8000000000000001E-2,0,5.1000000000000004E-2]
[null,null,null,null,null,null,null,null,null,"",null,null,null,"",null,null,null,null,null,null,"Remorque_seuleGazole","Remorque_seule","Gazole","l",0.58899999999999997,2.57,3.1589999999999998,3.0000000000000001E-3,1.7999999999999999E-2,7.0000000000000007E-2,9.0999999999999998E-2]
[null,null,null,null,null,null,null,null,null,"",null,null,null,"",null,null,null,null,null,null,"Remorque_seuleÉlectricité","Remorque_seule","Électricité","kWh",0.252,0,0.252,3.0000000000000001E-3,3.3000000000000002E-2,0,3.6000000000000004E-2,null,"Oui"]
[null,null,null,null,null,null,null,null,null,"",null,null,null,"",null,null,null,null,null,null,"",null,null,null,null,null,null,null,null,null,null,null,"Non"]
[null,null,null,null,null,null,null,null,null,"",null,null,null,"",null,null,null,null,null,null,""]
[]
[null,"RÉSULTATS"]
[]
[null,"Scope 1 : émissions directes de GES",null,null,null,null,null,null,null,"TTW (tank-to-wheel) = émissions \"du réservoir à la roue\" (combustion)"]
[null,"Scope 2 : émissions indirectes de GES issues de l'électricité consommée",null,null,null,null,null,null,null,"WTT (well-to-tank) = émissions \"du puits au réservoir\" (production de l'énergie en amont)"]
[null,"Scope 3 : autres émissions indirectes de GES - incluent les émissions amont de production des carburants et des véhicules ainsi que toutes les émissions du transport externalisé",null,null,null,null,null,null,null,"WTW (well-to-wheel) = émissions \"du puits à la roue\" (cycle de vie complet de l'énergie)"]
[]
[null,"Pour le transport sous température dirigée, les émissions totales de GES sont majorées de 15 % sous l'effet des fuites de fluides frigorigènes"]
[]
[null,null,null,null,null,"Prestations de transport internalisées",null,null,null,null,null,"Prestations de transport externalisées",null,"BILAN GLOBAL"]
[null,null,null,null,null,"Scope 1",null,"Scope 2","Scope 3"]
[null,"Prestation de transport","Caractéristiques du chargement","Type d'énergie","Transport sous température dirigée?","Activité totale de transport internalisée\n(tkm)","Émissions directes (TTW) de GES\n(kgCO2e)","Émissions indirectes (WTT) de GES issues de l'électricité consommée\n(kgCO2e)","Rappel activité totale de transport internalisée\n(tkm)","Émissions indirectes de GES issues de la fabrication des véhicules\n(kgCO2e)","Émissions indirectes (WTT) de GES issues du carburant consommé\n(kgCO2e)","Activité totale de transport externalisée\n(tkm)","Émissions de GES (WTW + fabrication) \n(kgCO2e)","Activité totale de transport \n(tkm)","Émissions de GES\n(kgCO2e)","Intensité des émissions de GES\n(kgCO2e/tkm)"]
[null,{"$f":"B19","v":0},{"$f":"C19","v":0},{"$f":"D19","v":0},{"$f":"E19","v":0},{"$f":"G19*H19","v":0},{"$f":"IF(OR($C57=0,$D57=0),0,IF($J$17=\"Oui\",$I19*VLOOKUP($C57&$D57,$U$19:$AE$44,6,FALSE),$F57*VLOOKUP($C57&$D57,$U$19:$AE$44,10,FALSE)))","v":0},{"$f":"IF($D57<>\"Électricité\",0,IF($J$17=\"Oui\",$I19*VLOOKUP($C57&$D57,$U$19:$AE$44,5,FALSE),$F57*VLOOKUP($C57&$D57,$U$19:$AE$44,9,FALSE)))","v":0},{"$f":"F57","v":0},{"$f":"IF(OR($C57=0,$D57=0),0,$F57*VLOOKUP($C57&$D57,$U$19:$AE$44,8,FALSE))","v":0},{"$f":"IF(OR($C57=0,$D57=0),0,IF($D57=\"Électricité\",0,IF($J$17=\"Oui\",$I19*VLOOKUP($C57&$D57,$U$19:$AE$44,5,FALSE),$F57*VLOOKUP($C57&$D57,$U$19:$AE$44,9,FALSE))))","v":0},{"$f":"K19*L19","v":0},{"$f":"IF(OR($C57=0,$D57=0),0,IF($N$17=\"Oui\",$M19*VLOOKUP($C57&$D57,$U$19:$AE$44,7,FALSE)+$L57*VLOOKUP(C57&D57,$U$19:$AE$44,8,FALSE),$L57*VLOOKUP($C57&$D57,$U$19:$AE$44,11,FALSE)))","v":0},{"$f":"I57+L57","v":0},{"$f":"IF(E57=\"Non\",G57+H57+J57+K57+M57,1.15*(G57+H57+J57+K57+M57))","v":0},{"$f":"O57/N57","v":{"$error":"#DIV/0!"}}]
[null,{"$f":"B20","v":0},{"$f":"C20","v":0},0,0,0,{"$f":"IF(OR($C58=0,$D58=0),0,IF($J$17=\"Oui\",$I20*VLOOKUP($C58&$D58,$U$19:$AE$44,6,FALSE),$F58*VLOOKUP($C58&$D58,$U$19:$AE$44,10,FALSE)))","v":0},0,{"$f":"F58","v":0},{"$f":"IF(OR($C58=0,$D58=0),0,$F58*VLOOKUP($C58&$D58,$U$19:$AE$44,8,FALSE))","v":0},{"$f":"IF(OR($C58=0,$D58=0),0,IF($D58=\"Électricité\",0,IF($J$17=\"Oui\",$I20*VLOOKUP($C58&$D58,$U$19:$AE$44,5,FALSE),$F58*VLOOKUP($C58&$D58,$U$19:$AE$44,9,FALSE))))","v":0},0,{"$f":"IF(OR($C58=0,$D58=0),0,IF($N$17=\"Oui\",$M20*VLOOKUP($C58&$D58,$U$19:$AE$44,7,FALSE)+$L58*VLOOKUP(C58&D58,$U$19:$AE$44,8,FALSE),$L58*VLOOKUP($C58&$D58,$U$19:$AE$44,11,FALSE)))","v":0},{"$f":"I58+L58","v":0},{"$f":"IF(E58=\"Non\",G58+H58+J58+K58+M58,1.15*(G58+H58+J58+K58+M58))","v":0},{"$f":"O58/N58","v":{"$error":"#DIV/0!"}}]
[null,0,0,0,0,0,0,0,0,0,0,0,0,0,0,{"$error":"#DIV/0!"}]
[null,0,0,0,0,0,0,0,0,0,0,0,0,0,0,{"$error":"#DIV/0!"}]
[null,0,0,0,0,0,0,0,0,0,0,0,0,0,0,{"$error":"#DIV/0!"}]
[null,0,0,0,0,0,0,0,0,0,0,0,0,0,0,{"$error":"#DIV/0!"}]
[null,0,0,0,0,0,0,0,0,0,0,0,0,0,0,{"$error":"#DIV/0!"}]
[null,0,0,0,0,0,0,0,0,0,0,0,0,0,0,{"$error":"#DIV/0!"}]
[null,0,0,0,0,0,0,0,0,0,0,0,0,0,0,{"$error":"#DIV/0!"}]
[null,0,0,0,0,0,0,0,0,0,0,0,0,0,0,{"$error":"#DIV/0!"}]
[null,0,0,0,0,0,0,0,0,0,0,0,0,0,0,{"$error":"#DIV/0!"}]
[null,0,0,0,0,0,0,0,0,0,0,0,0,0,0,{"$error":"#DIV/0!"}]
[null,0,0,0,0,0,0,0,0,0,0,0,0,0,0,{"$error":"#DIV/0!"}]
[null,0,0,0,0,0,0,0,0,0,0,0,0,0,0,{"$error":"#DIV/0!"}]
[null,0,0,0,0,0,0,0,0,0,0,0,0,0,0,{"$error":"#DIV/0!"}]
[null,0,0,0,0,0,0,0,0,0,0,0,0,0,0,{"$error":"#DIV/0!"}]
[null,0,0,0,0,0,0,0,0,0,0,0,0,0,0,{"$error":"#DIV/0!"}]
[null,0,0,0,0,0,0,0,0,0,0,0,0,0,0,{"$error":"#DIV/0!"}]
[null,{"$f":"B37","v":0},0,0,0,0,0,0,0,0,0,0,0,0,0,{"$error":"#DIV/0!"}]
[null,0,0,0,0,0,0,0,0,0,0,0,0,0,0,{"$error":"#DIV/0!"}]
[null,0,0,0,0,0,0,0,0,0,0,0,0,0,0,{"$error":"#DIV/0!"}]
[null,0,0,0,0,0,0,0,0,0,0,0,0,0,0,{"$error":"#DIV/0!"}]
[null,0,0,0,0,0,0,0,0,0,0,0,0,0,0,{"$error":"#DIV/0!"}]
[null,0,0,0,0,0,0,0,0,0,0,0,0,0,0,{"$error":"#DIV/0!"}]
[null,0,0,0,0,0,0,0,0,0,0,0,0,0,0,{"$error":"#DIV/0!"}]
[null,0,0,0,0,0,0,0,0,0,0,0,0,0,0,{"$error":"#DIV/0!"}]
[]
[null,"TOTAL",null,null,null,{"$f":"SUM(F57:F82)","v":0},0,0,0,0,0,0,0,0,0,{"$f":"O84/N84","v":{"$error":"#DIV/0!"}}]

{"sheet":"4_Fluvial","index":17,"n_rows":84,"n_cols":41,"rows_kept":84,"cut":false,"hidden":true,"merged":[[83,1,83,4],[1,1,1,15],[15,5,15,9],[15,10,15,13],[16,5,16,7],[16,10,16,11],[53,5,53,10],[53,11,53,12],[53,13,54,15],[54,5,54,6],[54,8,54,12]]}
[]
[null,"DÉTERMINATION DES ÉMISSIONS DE GAZ À EFFET DE SERRE GÉNÉRÉES PAR LES PRESTATIONS DE TRANSPORT FLUVIAL MOBILISÉES DANS LE MARCHÉ"]
[]
[null,"Raison sociale du titulaire",{"$f":"'1_Infos générales'!$C$9:$J$9","v":0}]
[]
[null,"Période de référence",{"$f":"'1_Infos générales'!$C$15","v":"Année"}]
[]
[null,"DONNÉES D'ENTRÉE"]
[]
[null,"Le titulaire est invité à renseigner les cellules jaunes ci-dessous",null,null,null,null,null,null,"Les données primaires sont les données mesurées ou obtenues par calcul à la suite de mesure"]
[null,"Les cellules bleues sont automatiquement complétées et ne peuvent être manuellement modifiées",null,null,null,null,null,null,"En cellule J17, le titulaire indique s'il dispose de données primaires de suivi des consommations de la flotte détenue pour les prestations de transport internalisées"]
[null,null,null,null,null,null,null,null,"→ Si oui, le titulaire renseigne les consommations en colonne I ; si non, il laisse la colonne I vide et les calculs seront réalisés selon des modélisations par défaut"]
[null,"Le titulaire peut regrouper à sa convenance les prestations de transport répondant à des caractéristiques communes (ex. externalisé, par type de bateau et carburant commun)",null,null,null,null,null,null,"En cellule N17, le titulaire indique s'il dispose de données primaires de suivi des consommations des flottes mobilisées pour les prestations externalisées"]
[null,"Le nombre de lignes disponibles dans le tableau ci-dessous est limité sans possibilité d'ajouter de ligne supplémentaire ;",null,null,null,null,null,null,"→ Si oui, le titulaire renseigne les consommations en colonne M ; si non, il laisse la colonne M vide et les calculs seront réalisés selon des modélisations par défaut"]
[null,"le titulaire est donc invité à réduire aux maximum le nombre de lignes utilisées"]
[null,null,null,null,null,"Prestations de transport internalisées (réalisées avec des véhicules appartenant au titulaire)",null,null,null,null,"Prestations de transport externalisées"]
[null,"La colonne B sert à donner un intitulé (nom, numéro, etc. au choix du titulaire) à la ligne de données renseignée",null,null,null,"Informations sur l'activité de la flotte interne pour les prestations de transport visées",null,null,"Données primaires?","Oui","Informations sur l'activité externalisée pour les prestations de transport visées",null,"Données primaires?","Oui"]
[null,"Prestation de transport (agrégation possible à la convenance du titulaire - ex. une ligne regroupant tous les transports en barge automotrice électrique sur la Seine au cours de l'année)","Type de bateau","Type d'énergie","Transport sous température dirigée?","(Réservé)","Distance totale cumulée\n(km)","Masse totale de marchandises transportées\n(t)","Quantité totale d'énergie consommée","Unité","Distance totale cumulée\n(km)","Masse totale de marchandises transportées\n(t)","Quantité totale d'énergie consommée","Unité",null,null,null,null,null,null,null,"Type de véhicule","Type de carburant","Unité","Facteur d'émission (WTT)\n(kgCO2e/unité)","Facteur d'émission (TTW)\n(kgCO2e/unité)","Facteur d'émission (WTW)\n(kgCO2e/unité)","Intensité des émissions issues de la fabrication\n(kgCO2e/tkm)","Intensité des émissions WTT de GES\n(kgCO2e/tkm)","Intensité des émissions TTW de GES\n(kgCO2e/tkm)","Intensité des émissions de GES (WTW + fabrication)\n(kgCO2e/tkm)",null,null,"Bateau_motorisé_capacité≤399tpl","Bateau_motorisé_capacité≤649tpl","Bateau_motorisé_capacité≤999tpl","Bateau_motorisé_capacité≤1499tpl","Bateau_motorisé_capacité≤2999tpl","Bateau_motorisé_capacité_sup_3000tpl","Pousseur_avec_barge_P≤879kW","Pousseur_avec_barge_Pmin_880kW"]
[null,null,null,null,null,null,null,null,null,{"$f":"IF(ISBLANK(D19),\"\",VLOOKUP($D19,$AG$32:$AH$39,2,FALSE))","v":""},null,null,null,{"$f":"J19","v":""},null,null,null,null,null,null,{"$f":"V19&W19","v":"Bateau_motorisé_capacité≤399tplGazole"},"Bateau_motorisé_capacité≤399tpl","Gazole","l",0.58899999999999997,2.57,{"$f":"Y19+Z19","v":3.1589999999999998},null,6.8100000000000001E-3,2.6200000000000001E-2,{"$f":"AB19+AC19+AD19","v":3.3009999999999998E-2},null,"Bateau_motorisé_capacité≤399tpl","Gazole","Gazole","Gazole","Gazole","Gazole","Gazole","Gazole","Gazole"]
[null,null,null,null,null,null,null,null,null,{"$f":"IF(ISBLANK(D20),\"\",VLOOKUP($D20,$AG$32:$AH$39,2,FALSE))","v":""},null,null,null,{"$f":"J20","v":""},null,null,null,null,null,null,{"$f":"V20&W20","v":"Bateau_motorisé_capacité≤399tplÉlectricité"},"Bateau_motorisé_capacité≤399tpl","Électricité","kWh",5.1299999999999998E-2,0,{"$f":"Y20+Z20","v":5.1299999999999998E-2},null,1.38E-2,0,{"$f":"AB20+AC20+AD20","v":1.38E-2},null,"Bateau_motorisé_capacité≤649tpl","Électricité","Électricité","Électricité","Électricité"]
[null,null,null,null,null,null,null,null,null,"",null,null,null,"",null,null,null,null,null,null,"Bateau_motorisé_capacité≤649tplGazole","Bateau_motorisé_capacité≤649tpl","Gazole","l",0.58899999999999997,2.57,3.1589999999999998,null,7.4099999999999999E-3,2.8500000000000001E-2,3.5909999999999997E-2,null,"Bateau_motorisé_capacité≤999tpl"]
[null,null,null,null,null,null,null,null,null,"",null,null,null,"",null,null,null,null,null,null,"Bateau_motorisé_capacité≤649tplÉlectricité","Bateau_motorisé_capacité≤649tpl","Électricité","kWh",5.1299999999999998E-2,0,5.1299999999999998E-2,null,8.5599999999999999E-3,0,8.5599999999999999E-3,null,"Bateau_motorisé_capacité≤1499tpl"]
[null,null,null,null,null,null,null,null,null,"",null,null,null,"",null,null,null,null,null,null,"Bateau_motorisé_capacité≤999tplGazole","Bateau_motorisé_capacité≤999tpl","Gazole","l",0.58899999999999997,2.57,3.1589999999999998,null,5.3400000000000001E-3,2.0500000000000001E-2,2.5840000000000002E-2,null,"Bateau_motorisé_capacité≤2999tpl"]
[null,null,null,null,null,null,null,null,null,"",null,null,null,"",null,null,null,null,null,null,"Bateau_motorisé_capacité≤999tplÉlectricité","Bateau_motorisé_capacité≤999tpl","Électricité","kWh",5.1299999999999998E-2,0,5.1299999999999998E-2,null,5.7299999999999999E-3,0,5.7299999999999999E-3,null,"Bateau_motorisé_capacité_sup_3000tpl"]
[null,null,null,null,null,null,null,null,null,"",null,null,null,"",null,null,null,null,null,null,"Bateau_motorisé_capacité≤1499tplGazole","Bateau_motorisé_capacité≤1499tpl","Gazole","l",0.58899999999999997,2.57,3.1589999999999998,null,6.1500000000000001E-3,2.3599999999999999E-2,2.9749999999999999E-2,null,"Pousseur_avec_barge_P≤879kW"]
[null,null,null,null,null,null,null,null,null,"",null,null,null,"",null,null,null,null,null,null,"Bateau_motorisé_capacité≤1499tplÉlectricité","Bateau_motorisé_capacité≤1499tpl","Électricité","kWh",5.1299999999999998E-2,0,5.1299999999999998E-2,null,3.6700000000000001E-3,0,3.6700000000000001E-3,null,"Pousseur_avec_barge_Pmin_880kW"]
[null,null,null,null,null,null,null,null,null,"",null,null,null,"",null,null,null,null,null,null,"Bateau_motorisé_capacité≤2999tplGazole","Bateau_motorisé_capacité≤2999tpl","Gazole","l",0.58899999999999997,2.57,3.1589999999999998,null,4.0099999999999997E-3,1.54E-2,1.941E-2]
[null,null,null,null,null,null,null,null,null,"",null,null,null,"",null,null,null,null,null,null,"Bateau_motorisé_capacité_sup_3000tplGazole","Bateau_motorisé_capacité_sup_3000tpl","Gazole","l",0.58899999999999997,2.57,3.1589999999999998,null,2.8800000000000002E-3,1.0999999999999999E-2,1.388E-2]
[null,null,null,null,null,null,null,null,null,"",null,null,null,"",null,null,null,null,null,null,"Pousseur_avec_barge_P≤879kWGazole","Pousseur_avec_barge_P≤879kW","Gazole","l",0.58899999999999997,2.57,3.1589999999999998,null,1.1000000000000001E-3,3.15E-2,3.2599999999999997E-2]
[null,null,null,null,null,null,null,null,null,"",null,null,null,"",null,null,null,null,null,null,"Pousseur_avec_barge_Pmin_880kWGazole","Pousseur_avec_barge_Pmin_880kW","Gazole","l",0.58899999999999997,2.57,3.1589999999999998,null,2.9999999999999997E-4,8.8000000000000005E-3,9.1000000000000004E-3]
[null,null,null,null,null,null,null,null,null,"",null,null,null,"",null,null,null,null,null,null,""]
[null,null,null,null,null,null,null,null,null,"",null,null,null,"",null,null,null,null,null,null,"",null,null,null,null,null,null,null,null,null,null,null,"Électricité","kWh"]
[null,null,null,null,null,null,null,null,null,"",null,null,null,"",null,null,null,null,null,null,"",null,null,null,null,null,null,null,null,null,null,null,"Hybride_électricité_gazole","l"]
[null,null,null,null,null,null,null,null,null,"",null,null,null,"",null,null,null,null,null,null,"",null,null,null,null,null,null,null,null,null,null,null,"Gazole","l"]
[null,null,null,null,null,null,null,null,null,"",null,null,null,"",null,null,null,null,null,null,"",null,null,null,null,null,null,null,null,null,null,null,"Essence","l"]
[null,null,null,null,null,null,null,null,null,"",null,null,null,"",null,null,null,null,null,null,"",null,null,null,null,null,null,null,null,null,null,null,"Gaz_de_pétrole_liquéfié_GPL","l"]
[null,null,null,null,null,null,null,null,null,"",null,null,null,"",null,null,null,null,null,null,"",null,null,null,null,null,null,null,null,null,null,null,"Gaz_naturel_comprimé_GNC","kg"]
[null,null,null,null,null,null,null,null,null,"",null,null,null,"",null,null,null,null,null,null,"",null,null,null,null,null,null,null,null,null,null,null,"Gaz_naturel_liquéfié_GNL","kg"]
[null,null,null,null,null,null,null,null,null,"",null,null,null,"",null,null,null,null,null,null,"",null,null,null,null,null,null,null,null,null,null,null,"Hydrogène","kg"]
[null,null,null,null,null,null,null,null,null,"",null,null,null,"",null,null,null,null,null,null,""]
[null,null,null,null,null,null,null,null,null,"",null,null,null,"",null,null,null,null,null,null,""]
[null,null,null,null,null,null,null,null,null,"",null,null,null,"",null,null,null,null,null,null,"",null,null,null,null,null,null,null,null,null,null,null,"Oui"]
[null,null,null,null,null,null,null,null,null,"",null,null,null,"",null,null,null,null,null,null,"",null,null,null,null,null,null,null,null,null,null,null,"Non"]
[null,null,null,null,null,null,null,null,null,"",null,null,null,"",null,null,null,null,null,null,""]
[]
[null,"RÉSULTATS"]
[]
[null,"Scope 1 : émissions directes de GES",null,null,null,null,null,null,null,"TTW (tank-to-wheel) = émissions \"du réservoir à la roue\" (combustion)"]
[null,"Scope 2 : émissions indirectes de GES issues de l'électricité consommée",null,null,null,null,null,null,null,"WTT (well-to-tank) = émissions \"du puits au réservoir\" (production de l'énergie en amont)"]
[null,"Scope 3 : autres émissions indirectes de GES - incluent les émissions amont de production des carburants et des véhicules ainsi que toutes les émissions du transport externalisé",null,null,null,null,null,null,null,"WTW (well-to-wheel) = émissions \"du puits à la roue\" (cycle de vie complet de l'énergie)"]
[]
[null,"Pour le transport sous température dirigée, les émissions totales de GES sont majorées de 15 % sous l'effet des fuites de fluides frigorigènes"]
[]
[null,null,null,null,null,"Prestations de transport internalisées",null,null,null,null,null,"Prestations de transport externalisées",null,"BILAN GLOBAL"]
[null,null,null,null,null,"Scope 1",null,"Scope 2","Scope 3"]
[null,"Prestation de transport","Type de bateau","Type d'énergie","Transport sous température dirigée?","Activité totale de transport internalisée\n(tkm)","Émissions directes (TTW) de GES\n(kgCO2e)","Émissions indirectes (WTT) de GES issues de l'électricité consommée\n(kgCO2e)","Rappel activité totale de transport internalisée\n(tkm)","Émissions indirectes de GES issues de la fabrication des véhicules\n(kgCO2e)","Émissions indirectes (WTT) de GES issues du carburant consommé\n(kgCO2e)","Activité totale de transport externalisée\n(tkm)","Émissions de GES (WTW + fabrication) \n(kgCO2e)","Activité totale de transport \n(tkm)","Émissions de GES\n(kgCO2e)","Intensité des émissions de GES\n(kgCO2e/tkm)"]
[null,{"$f":"B19","v":0},{"$f":"C19","v":0},{"$f":"D19","v":0},{"$f":"E19","v":0},{"$f":"G19*H19","v":0},{"$f":"IF(OR($C57=0,$D57=0),0,IF($J$17=\"Oui\",$I19*VLOOKUP($C57&$D57,$U$19:$AE$44,6,FALSE),$F57*VLOOKUP($C57&$D57,$U$19:$AE$44,10,FALSE)))","v":0},{"$f":"IF($D57<>\"Électricité\",0,IF($J$17=\"Oui\",$I19*VLOOKUP($C57&$D57,$U$19:$AE$44,5,FALSE),$F57*VLOOKUP($C57&$D57,$U$19:$AE$44,9,FALSE)))","v":0},{"$f":"F57","v":0},{"$f":"IF(OR($C57=0,$D57=0),0,$F57*VLOOKUP($C57&$D57,$U$19:$AE$44,8,FALSE))","v":0},{"$f":"IF(OR($C57=0,$D57=0),0,IF($D57=\"Électricité\",0,IF($J$17=\"Oui\",$I19*VLOOKUP($C57&$D57,$U$19:$AE$44,5,FALSE),$F57*VLOOKUP($C57&$D57,$U$19:$AE$44,9,FALSE))))","v":0},{"$f":"K19*L19","v":0},{"$f":"IF(OR($C57=0,$D57=0),0,IF($N$17=\"Oui\",$M19*VLOOKUP($C57&$D57,$U$19:$AE$44,7,FALSE)+$L57*VLOOKUP(C57&D57,$U$19:$AE$44,8,FALSE),$L57*VLOOKUP($C57&$D57,$U$19:$AE$44,11,FALSE)))","v":0},{"$f":"I57+L57","v":0},{"$f":"IF(E57=\"Non\",G57+H57+J57+K57+M57,1.15*(G57+H57+J57+K57+M57))","v":0},{"$f":"O57/N57","v":{"$error":"#DIV/0!"}}]
[null,{"$f":"B20","v":0},{"$f":"C20","v":0},0,0,0,{"$f":"IF(OR($C58=0,$D58=0),0,IF($J$17=\"Oui\",$I20*VLOOKUP($C58&$D58,$U$19:$AE$44,6,FALSE),$F58*VLOOKUP($C58&$D58,$U$19:$AE$44,10,FALSE)))","v":0},0,{"$f":"F58","v":0},{"$f":"IF(OR($C58=0,$D58=0),0,$F58*VLOOKUP($C58&$D58,$U$19:$AE$44,8,FALSE))","v":0},{"$f":"IF(OR($C58=0,$D58=0),0,IF($D58=\"Électricité\",0,IF($J$17=\"Oui\",$I20*VLOOKUP($C58&$D58,$U$19:$AE$44,5,FALSE),$F58*VLOOKUP($C58&$D58,$U$19:$AE$44,9,FALSE))))","v":0},0,{"$f":"IF(OR($C58=0,$D58=0),0,IF($N$17=\"Oui\",$M20*VLOOKUP($C58&$D58,$U$19:$AE$44,7,FALSE)+$L58*VLOOKUP(C58&D58,$U$19:$AE$44,8,FALSE),$L58*VLOOKUP($C58&$D58,$U$19:$AE$44,11,FALSE)))","v":0},{"$f":"I58+L58","v":0},{"$f":"IF(E58=\"Non\",G58+H58+J58+K58+M58,1.15*(G58+H58+J58+K58+M58))","v":0},{"$f":"O58/N58","v":{"$error":"#DIV/0!"}}]
[null,0,0,0,0,0,0,0,0,0,0,0,0,0,0,{"$error":"#DIV/0!"}]
[null,0,0,0,0,0,0,0,0,0,0,0,0,0,0,{"$error":"#DIV/0!"}]
[null,0,0,0,0,0,0,0,0,0,0,0,0,0,0,{"$error":"#DIV/0!"}]
[null,0,0,0,0,0,0,0,0,0,0,0,0,0,0,{"$error":"#DIV/0!"}]
[null,0,0,0,0,0,0,0,0,0,0,0,0,0,0,{"$error":"#DIV/0!"}]
[null,0,0,0,0,0,0,0,0,0,0,0,0,0,0,{"$error":"#DIV/0!"}]
[null,0,0,0,0,0,0,0,0,0,0,0,0,0,0,{"$error":"#DIV/0!"}]
[null,0,0,0,0,0,0,0,0,0,0,0,0,0,0,{"$error":"#DIV/0!"}]
[null,0,0,0,0,0,0,0,0,0,0,0,0,0,0,{"$error":"#DIV/0!"}]
[null,0,0,0,0,0,0,0,0,0,0,0,0,0,0,{"$error":"#DIV/0!"}]
[null,0,0,0,0,0,0,0,0,0,0,0,0,0,0,{"$error":"#DIV/0!"}]
[null,0,0,0,0,0,0,0,0,0,0,0,0,0,0,{"$error":"#DIV/0!"}]
[null,0,0,0,0,0,0,0,0,0,0,0,0,0,0,{"$error":"#DIV/0!"}]
[null,0,0,0,0,0,0,0,0,0,0,0,0,0,0,{"$error":"#DIV/0!"}]
[null,0,0,0,0,0,0,0,0,0,0,0,0,0,0,{"$error":"#DIV/0!"}]
[null,{"$f":"B36","v":0},0,0,0,0,0,0,0,0,0,0,0,0,0,{"$error":"#DIV/0!"}]
[null,0,0,0,0,0,0,0,0,0,0,0,0,0,0,{"$error":"#DIV/0!"}]
[null,0,0,0,0,0,0,0,0,0,0,0,0,0,0,{"$error":"#DIV/0!"}]
[null,0,0,0,0,0,0,0,0,0,0,0,0,0,0,{"$error":"#DIV/0!"}]
[null,0,0,0,0,0,0,0,0,0,0,0,0,0,0,{"$error":"#DIV/0!"}]
[null,0,0,0,0,0,0,0,0,0,0,0,0,0,0,{"$error":"#DIV/0!"}]
[null,0,0,0,0,0,0,0,0,0,0,0,0,0,0,{"$error":"#DIV/0!"}]
[null,0,0,0,0,0,0,0,0,0,0,0,0,0,0,{"$error":"#DIV/0!"}]
[null,0,0,0,0,0,0,0,0,0,0,0,0,0,0,{"$error":"#DIV/0!"}]
[]
[null,"TOTAL",null,null,null,{"$f":"SUM(F57:F82)","v":0},0,0,0,0,0,0,0,0,0,{"$f":"O84/N84","v":{"$error":"#DIV/0!"}}]

{"sheet":"4_Fluvial tkm","index":18,"n_rows":44,"n_cols":41,"rows_kept":44,"cut":false,"hidden":false,"merged":[[0,3,0,11],[7,4,7,11]]}
[null,null,null,"DÉTERMINATION DES ÉMISSIONS DE GAZ À EFFET DE SERRE GÉNÉRÉES PAR LES PRESTATIONS DE TRANSPORT FLUVIAL MOBILISÉES DANS LE MARCHÉ"]
[]
[]
[null,"Raison sociale du titulaire",{"$f":"'1_Infos générales'!$C$9:$J$9","v":0}]
[]
[null,"Période de référence",{"$f":"'1_Infos générales'!$C$15","v":"Année"}]
[]
[null,"DONNÉES A REMPLIR"]
[]
[]
[]
[]
[]
[]
[null,null,null,null,null,null,null,null,null,null,"TOTAL (kgCO2e)"]
[null,null,null,null,null,null,null,null,null,null,{"$f":" SUM(K19:K25)","v":0}]
[]
[null,null,"Ville et Pays de départ\n[optionnel]","Ville et Pays d'arrivée\n[optionnel]","Type de véhicule","Type de carburant","Facteur d'émission de GES * (kgCO2e/tkm)","Distance parcourue lors de ce trajet (en km) ","Masse de marchandises transportées lors de ce trajet (en tonnes)","Nombre de répétitions de ce trajet (avec la même masse transportée)\n[optionnel]","Calcul ** des émissions de GES pour ce transport (en kgCO2e)","Quels moyens de preuves pourriez-vous donner ?",null,null,null,null,null,null,null,null,null,"Type de véhicule","Type de carburant","Unité","Facteur d'émission (WTT)\n(kgCO2e/unité)","Facteur d'émission (TTW)\n(kgCO2e/unité)","Facteur d'émission (WTW)\n(kgCO2e/unité)","Intensité des émissions issues de la fabrication\n(kgCO2e/tkm)","Intensité des émissions WTT de GES\n(kgCO2e/tkm)","Intensité des émissions TTW de GES\n(kgCO2e/tkm)","Intensité des émissions de GES (WTW + fabrication)\n(kgCO2e/tkm)"]
[null,null,null,null,null,null,{"$f":"_xlfn.XLOOKUP(Tableau_prestations_fltkm[[#This Row],[Type de véhicule]]&Tableau_prestations_fltkm[[#This Row],[Type de carburant]], $V$19:$V$30&$W$19:$W$30, $AE$19:$AE$30, 0,  0, )","v":0},null,null,null,{"$f":"IF(ISBLANK(J19),G19*H19*I19,G19*H19*I19*J19)","v":0},null,null,null,null,null,null,null,null,null,null,"Bateau_motorisé_capacité≤399tpl","Gazole","l",0.58899999999999997,2.57,{"$f":"Y19+Z19","v":3.1589999999999998},null,6.8100000000000001E-3,2.6200000000000001E-2,{"$f":"AB19+AC19+AD19","v":3.3009999999999998E-2},null,null,"Bateau_motorisé_capacité≤399tpl","Bateau_motorisé_capacité≤649tpl","Bateau_motorisé_capacité≤999tpl","Bateau_motorisé_capacité≤1499tpl","Bateau_motorisé_capacité≤2999tpl","Bateau_motorisé_capacité_sup_3000tpl","Pousseur_avec_barge_P≤879kW","Pousseur_avec_barge_Pmin_880kW"]
[null,null,null,null,null,null,{"$f":"_xlfn.XLOOKUP(Tableau_prestations_fltkm[[#This Row],[Type de véhicule]]&Tableau_prestations_fltkm[[#This Row],[Type de carburant]], $V$19:$V$30&$W$19:$W$30, $AE$19:$AE$30, 0,  0, )","v":0},null,null,null,0,null,null,null,null,null,null,null,null,null,null,"Bateau_motorisé_capacité≤399tpl","Électricité","kWh",5.1299999999999998E-2,0,5.1299999999999998E-2,null,1.38E-2,0,1.38E-2,null,"Bateau_motorisé_capacité≤399tpl","Gazole","Gazole","Gazole","Gazole","Gazole","Gazole","Gazole","Gazole"]
[null,null,null,null,null,null,{"$f":"_xlfn.XLOOKUP(Tableau_prestations_fltkm[[#This Row],[Type de véhicule]]&Tableau_prestations_fltkm[[#This Row],[Type de carburant]], $V$19:$V$30&$W$19:$W$30, $AE$19:$AE$30, 0,  0, )","v":0},null,null,null,0,null,null,null,null,null,null,null,null,null,null,"Bateau_motorisé_capacité≤649tpl","Gazole","l",0.58899999999999997,2.57,3.1589999999999998,null,7.4099999999999999E-3,2.8500000000000001E-2,3.5909999999999997E-2,null,"Bateau_motorisé_capacité≤649tpl","Électricité","Électricité","Électricité","Électricité"]
[null,null,null,null,null,null,{"$f":"_xlfn.XLOOKUP(Tableau_prestations_fltkm[[#This Row],[Type de véhicule]]&Tableau_prestations_fltkm[[#This Row],[Type de carburant]], $V$19:$V$30&$W$19:$W$30, $AE$19:$AE$30, 0,  0, )","v":0},null,null,null,0,null,null,null,null,null,null,null,null,null,null,"Bateau_motorisé_capacité≤649tpl","Électricité","kWh",5.1299999999999998E-2,0,5.1299999999999998E-2,null,8.5599999999999999E-3,0,8.5599999999999999E-3,null,"Bateau_motorisé_capacité≤999tpl"]
[null,null,null,null,null,null,{"$f":"_xlfn.XLOOKUP(Tableau_prestations_fltkm[[#This Row],[Type de véhicule]]&Tableau_prestations_fltkm[[#This Row],[Type de carburant]], $V$19:$V$30&$W$19:$W$30, $AE$19:$AE$30, 0,  0, )","v":0},null,null,null,0,null,null,null,null,null,null,null,null,null,null,"Bateau_motorisé_capacité≤999tpl","Gazole","l",0.58899999999999997,2.57,3.1589999999999998,null,5.3400000000000001E-3,2.0500000000000001E-2,2.5840000000000002E-2,null,"Bateau_motorisé_capacité≤1499tpl"]
[null,null,null,null,null,null,{"$f":"_xlfn.XLOOKUP(Tableau_prestations_fltkm[[#This Row],[Type de véhicule]]&Tableau_prestations_fltkm[[#This Row],[Type de carburant]], $V$19:$V$30&$W$19:$W$30, $AE$19:$AE$30, 0,  0, )","v":0},null,null,null,0,null,null,null,null,null,null,null,null,null,null,"Bateau_motorisé_capacité≤999tpl","Électricité","kWh",5.1299999999999998E-2,0,5.1299999999999998E-2,null,5.7299999999999999E-3,0,5.7299999999999999E-3,null,"Bateau_motorisé_capacité≤2999tpl"]
[null,null,null,null,null,null,{"$f":"_xlfn.XLOOKUP(Tableau_prestations_fltkm[[#This Row],[Type de véhicule]]&Tableau_prestations_fltkm[[#This Row],[Type de carburant]], $V$19:$V$30&$W$19:$W$30, $AE$19:$AE$30, 0,  0, )","v":0},null,null,null,{"$f":"IF(ISBLANK(J25),G25*H25*I25,G25*H25*I25*J25)","v":0},null,null,null,null,null,null,null,null,null,null,"Bateau_motorisé_capacité≤1499tpl","Gazole","l",0.58899999999999997,2.57,3.1589999999999998,null,6.1500000000000001E-3,2.3599999999999999E-2,2.9749999999999999E-2,null,"Bateau_motorisé_capacité_sup_3000tpl"]
[null,null,null,null,null,null,null,null,null,null,null,null,null,null,null,null,null,null,null,null,null,"Bateau_motorisé_capacité≤1499tpl","Électricité","kWh",5.1299999999999998E-2,0,5.1299999999999998E-2,null,3.6700000000000001E-3,0,3.6700000000000001E-3,null,"Pousseur_avec_barge_P≤879kW"]
[null,null,null,null,null,null,null,null,null,null,null,null,null,null,null,null,null,null,null,null,null,"Bateau_motorisé_capacité≤2999tpl","Gazole","l",0.58899999999999997,2.57,3.1589999999999998,null,4.0099999999999997E-3,1.54E-2,1.941E-2,null,"Pousseur_avec_barge_Pmin_880kW"]
[null,null,null,null,null,null,null,null,null,null,null,null,null,null,null,null,null,null,null,null,null,"Bateau_motorisé_capacité_sup_3000tpl","Gazole","l",0.58899999999999997,2.57,3.1589999999999998,null,2.8800000000000002E-3,1.0999999999999999E-2,1.388E-2]
[null,null,null,null,null,null,null,null,null,null,null,null,null,null,null,null,null,null,null,null,null,"Pousseur_avec_barge_P≤879kW","Gazole","l",0.58899999999999997,2.57,3.1589999999999998,null,1.1000000000000001E-3,3.15E-2,3.2599999999999997E-2]
[null,null,null,null,null,null,null,null,null,null,null,null,null,null,null,null,null,null,null,null,null,"Pousseur_avec_barge_Pmin_880kW","Gazole","l",0.58899999999999997,2.57,3.1589999999999998,null,2.9999999999999997E-4,8.8000000000000005E-3,9.1000000000000004E-3]
[]
[]
[null,null,null,null,null,null,null,null,null,null,null,null,null,null,null,null,null,null,null,null,null,null,null,null,null,null,null,null,null,null,null,null,"Électricité","kWh"]
[null,null,null,null,null,null,null,null,null,null,null,null,null,null,null,null,null,null,null,null,null,null,null,null,null,null,null,null,null,null,null,null,"Hybride_électricité_gazole","l"]
[null,null,null,null,null,null,null,null,null,null,null,null,null,null,null,null,null,null,null,null,null,null,null,null,null,null,null,null,null,null,null,null,"Gazole","l"]
[null,null,null,null,null,null,null,null,null,null,null,null,null,null,null,null,null,null,null,null,null,null,null,null,null,null,null,null,null,null,null,null,"Essence","l"]
[null,null,null,null,null,null,null,null,null,null,null,null,null,null,null,null,null,null,null,null,null,null,null,null,null,null,null,null,null,null,null,null,"Gaz_de_pétrole_liquéfié_GPL","l"]
[null,null,null,null,null,null,null,null,null,null,null,null,null,null,null,null,null,null,null,null,null,null,null,null,null,null,null,null,null,null,null,null,"Gaz_naturel_comprimé_GNC","kg"]
[null,null,null,null,null,null,null,null,null,null,null,null,null,null,null,null,null,null,null,null,null,null,null,null,null,null,null,null,null,null,null,null,"Gaz_naturel_liquéfié_GNL","kg"]
[null,null,null,null,null,null,null,null,null,null,null,null,null,null,null,null,null,null,null,null,null,null,null,null,null,null,null,null,null,null,null,null,"Hydrogène","kg"]
[]
[]
[null,null,null,null,null,null,null,null,null,null,null,null,null,null,null,null,null,null,null,null,null,null,null,null,null,null,null,null,null,null,null,null,"Oui"]
[null,null,null,null,null,null,null,null,null,null,null,null,null,null,null,null,null,null,null,null,null,null,null,null,null,null,null,null,null,null,null,null,"Non"]

{"sheet":"4_Fluvial carburant","index":19,"n_rows":43,"n_cols":41,"rows_kept":43,"cut":false,"hidden":false,"merged":[[0,3,0,10],[8,6,8,10]]}
[null,null,null,"DÉTERMINATION DES ÉMISSIONS DE GAZ À EFFET DE SERRE GÉNÉRÉES PAR LES PRESTATIONS DE TRANSPORT FLUVIAL MOBILISÉES DANS LE MARCHÉ"]
[]
[]
[]
[null,"Raison sociale du titulaire",{"$f":"'1_Infos générales'!$C$9:$J$9","v":0}]
[]
[null,"Période de référence",{"$f":"'1_Infos générales'!$C$15","v":"Année"}]
[]
[null,"DONNÉES A REMPLIR"]
[]
[]
[]
[]
[]
[null,null,null,null,null,null,null,null,null,"TOTAL (kgCO2e)"]
[null,null,null,null,null,null,null,null,null,{"$f":" SUM(J19:J26)","v":0}]
[]
[null,null,"Ville et Pays de départ\n[optionnel]","Ville et Pays d'arrivée\n[optionnel]","Type de bateau","Type de carburant","Facteur d'émission de GES * (kgCO2e/unité)"," Quantité de carburant consommé lors de ce trajet (en L ou kWh)","Nombre de répétitions de ce trajet (avec la même consommation de carburant)\n[optionnel]","Calcul ** des émissions de GES pour ce transport (en kgCO2e)","Quels moyens de preuves pourriez-vous donner ?",null,null,null,null,null,null,null,null,null,null,"Type de véhicule","Type de carburant","Unité","Facteur d'émission (WTT)\n(kgCO2e/unité)","Facteur d'émission (TTW)\n(kgCO2e/unité)","Facteur d'émission (WTW)\n(kgCO2e/unité)","Intensité des émissions issues de la fabrication\n(kgCO2e/tkm)","Intensité des émissions WTT de GES\n(kgCO2e/tkm)","Intensité des émissions TTW de GES\n(kgCO2e/tkm)","Intensité des émissions de GES (WTW + fabrication)\n(kgCO2e/tkm)",null,null,"Bateau_motorisé_capacité≤399tpl","Bateau_motorisé_capacité≤649tpl","Bateau_motorisé_capacité≤999tpl","Bateau_motorisé_capacité≤1499tpl","Bateau_motorisé_capacité≤2999tpl","Bateau_motorisé_capacité_sup_3000tpl","Pousseur_avec_barge_P≤879kW","Pousseur_avec_barge_Pmin_880kW"]
[null,null,null,null,null,null,{"$f":"_xlfn.SINGLE(_xlfn.XLOOKUP(Tableau_prestations_flc[[#This Row],[Type de bateau]]&Tableau_prestations_flc[[#This Row],[Type de carburant]], V19:V30&W19:W30, AA19:AA30, 0,  0, ))","v":0},null,null,{"$f":"IF(ISBLANK(I19),G19*H19,G19*H19*I19)","v":0},null,null,null,null,null,null,null,null,null,null,null,"Bateau_motorisé_capacité≤399tpl","Gazole","l",0.58899999999999997,2.57,{"$f":"Y19+Z19","v":3.1589999999999998},null,6.8100000000000001E-3,2.6200000000000001E-2,{"$f":"AB19+AC19+AD19","v":3.3009999999999998E-2},null,"Bateau_motorisé_capacité≤399tpl","Gazole","Gazole","Gazole","Gazole","Gazole","Gazole","Gazole","Gazole"]
[null,null,null,null,null,null,{"$f":"_xlfn.SINGLE(_xlfn.XLOOKUP(Tableau_prestations_flc[[#This Row],[Type de bateau]]&Tableau_prestations_flc[[#This Row],[Type de carburant]], V20:V31&W20:W31, AA20:AA31, 0,  0, ))","v":0},null,null,{"$f":"IF(ISBLANK(I20),G20*H20,G20*H20*I20)","v":0},null,null,null,null,null,null,null,null,null,null,null,"Bateau_motorisé_capacité≤399tpl","Électricité","kWh",5.1299999999999998E-2,0,{"$f":"Y20+Z20","v":5.1299999999999998E-2},null,1.38E-2,0,{"$f":"AB20+AC20+AD20","v":1.38E-2},null,"Bateau_motorisé_capacité≤649tpl","Électricité","Électricité","Électricité","Électricité"]
[null,null,null,null,null,null,{"$f":"_xlfn.SINGLE(_xlfn.XLOOKUP(Tableau_prestations_flc[[#This Row],[Type de bateau]]&Tableau_prestations_flc[[#This Row],[Type de carburant]], V21:V32&W21:W32, AA21:AA32, 0,  0, ))","v":0},null,null,0,null,null,null,null,null,null,null,null,null,null,null,"Bateau_motorisé_capacité≤649tpl","Gazole","l",0.58899999999999997,2.57,3.1589999999999998,null,7.4099999999999999E-3,2.8500000000000001E-2,3.5909999999999997E-2,null,"Bateau_motorisé_capacité≤999tpl"]
[null,null,null,null,null,null,{"$f":"_xlfn.SINGLE(_xlfn.XLOOKUP(Tableau_prestations_flc[[#This Row],[Type de bateau]]&Tableau_prestations_flc[[#This Row],[Type de carburant]], V22:V33&W22:W33, AA22:AA33, 0,  0, ))","v":0},null,null,0,null,null,null,null,null,null,null,null,null,null,null,"Bateau_motorisé_capacité≤649tpl","Électricité","kWh",5.1299999999999998E-2,0,5.1299999999999998E-2,null,8.5599999999999999E-3,0,8.5599999999999999E-3,null,"Bateau_motorisé_capacité≤1499tpl"]
[null,null,null,null,null,null,{"$f":"_xlfn.SINGLE(_xlfn.XLOOKUP(Tableau_prestations_flc[[#This Row],[Type de bateau]]&Tableau_prestations_flc[[#This Row],[Type de carburant]], V23:V34&W23:W34, AA23:AA34, 0,  0, ))","v":0},null,null,0,null,null,null,null,null,null,null,null,null,null,null,"Bateau_motorisé_capacité≤999tpl","Gazole","l",0.58899999999999997,2.57,3.1589999999999998,null,5.3400000000000001E-3,2.0500000000000001E-2,2.5840000000000002E-2,null,"Bateau_motorisé_capacité≤2999tpl"]
[null,null,null,null,null,null,{"$f":"_xlfn.SINGLE(_xlfn.XLOOKUP(Tableau_prestations_flc[[#This Row],[Type de bateau]]&Tableau_prestations_flc[[#This Row],[Type de carburant]], V24:V35&W24:W35, AA24:AA35, 0,  0, ))","v":0},null,null,0,null,null,null,null,null,null,null,null,null,null,null,"Bateau_motorisé_capacité≤999tpl","Électricité","kWh",5.1299999999999998E-2,0,5.1299999999999998E-2,null,5.7299999999999999E-3,0,5.7299999999999999E-3,null,"Bateau_motorisé_capacité_sup_3000tpl"]
[null,null,null,null,null,null,{"$f":"_xlfn.SINGLE(_xlfn.XLOOKUP(Tableau_prestations_flc[[#This Row],[Type de bateau]]&Tableau_prestations_flc[[#This Row],[Type de carburant]], V32:V43&W32:W43, AA32:AA43, 0,  0, ))","v":0},null,null,0,null,null,null,null,null,null,null,null,null,null,null,"Bateau_motorisé_capacité≤1499tpl","Gazole","l",0.58899999999999997,2.57,3.1589999999999998,null,6.1500000000000001E-3,2.3599999999999999E-2,2.9749999999999999E-2,null,"Pousseur_avec_barge_P≤879kW"]
[null,null,null,null,null,null,{"$f":"_xlfn.SINGLE(_xlfn.XLOOKUP(Tableau_prestations_flc[[#This Row],[Type de bateau]]&Tableau_prestations_flc[[#This Row],[Type de carburant]], V26:V37&W26:W37, AA26:AA37, 0,  0, ))","v":0},null,null,{"$f":"IF(ISBLANK(I26),G26*H26,G26*H26*I26)","v":0},null,null,null,null,null,null,null,null,null,null,null,"Bateau_motorisé_capacité≤1499tpl","Électricité","kWh",5.1299999999999998E-2,0,5.1299999999999998E-2,null,3.6700000000000001E-3,0,3.6700000000000001E-3,null,"Pousseur_avec_barge_Pmin_880kW"]
[null,null,null,null,null,null,null,null,null,null,null,null,null,null,null,null,null,null,null,null,null,"Bateau_motorisé_capacité≤2999tpl","Gazole","l",0.58899999999999997,2.57,3.1589999999999998,null,4.0099999999999997E-3,1.54E-2,1.941E-2]
[null,null,null,null,null,null,null,null,null,null,null,null,null,null,null,null,null,null,null,null,null,"Bateau_motorisé_capacité_sup_3000tpl","Gazole","l",0.58899999999999997,2.57,3.1589999999999998,null,2.8800000000000002E-3,1.0999999999999999E-2,1.388E-2]
[null,null,null,null,null,null,null,null,null,null,null,null,null,null,null,null,null,null,null,null,null,"Pousseur_avec_barge_P≤879kW","Gazole","l",0.58899999999999997,2.57,3.1589999999999998,null,1.1000000000000001E-3,3.15E-2,3.2599999999999997E-2]
[null,null,null,null,null,null,null,null,null,null,null,null,null,null,null,null,null,null,null,null,null,"Pousseur_avec_barge_Pmin_880kW","Gazole","l",0.58899999999999997,2.57,3.1589999999999998,null,2.9999999999999997E-4,8.8000000000000005E-3,9.1000000000000004E-3]
[]
[null,null,null,null,null,null,null,null,null,null,null,null,null,null,null,null,null,null,null,null,null,null,null,null,null,null,null,null,null,null,null,null,"Électricité","kWh"]
[null,null,null,null,null,null,null,null,null,null,null,null,null,null,null,null,null,null,null,null,null,null,null,null,null,null,null,null,null,null,null,null,"Hybride_électricité_gazole","l"]
[null,null,null,null,null,null,null,null,null,null,null,null,null,null,null,null,null,null,null,null,null,null,null,null,null,null,null,null,null,null,null,null,"Gazole","l"]
[null,null,null,null,null,null,null,null,null,null,null,null,null,null,null,null,null,null,null,null,null,null,null,null,null,null,null,null,null,null,null,null,"Essence","l"]
[null,null,null,null,null,null,null,null,null,null,null,null,null,null,null,null,null,null,null,null,null,null,null,null,null,null,null,null,null,null,null,null,"Gaz_de_pétrole_liquéfié_GPL","l"]
[null,null,null,null,null,null,null,null,null,null,null,null,null,null,null,null,null,null,null,null,null,null,null,null,null,null,null,null,null,null,null,null,"Gaz_naturel_comprimé_GNC","kg"]
[null,null,null,null,null,null,null,null,null,null,null,null,null,null,null,null,null,null,null,null,null,null,null,null,null,null,null,null,null,null,null,null,"Gaz_naturel_liquéfié_GNL","kg"]
[null,null,null,null,null,null,null,null,null,null,null,null,null,null,null,null,null,null,null,null,null,null,null,null,null,null,null,null,null,null,null,null,"Hydrogène","kg"]
[]
[]
[null,null,null,null,null,null,null,null,null,null,null,null,null,null,null,null,null,null,null,null,null,null,null,null,null,null,null,null,null,null,null,null,"Oui"]
[null,null,null,null,null,null,null,null,null,null,null,null,null,null,null,null,null,null,null,null,null,null,null,null,null,null,null,null,null,null,null,null,"Non"]

{"sheet":"5_Maritime tkm","index":20,"n_rows":119,"n_cols":52,"rows_kept":119,"cut":false,"hidden":false,"merged":[[0,3,0,11],[7,6,7,11]]}
[null,null,null,"DÉTERMINATION DES ÉMISSIONS DE GAZ À EFFET DE SERRE GÉNÉRÉES PAR LES PRESTATIONS DE TRANSPORT MARITIME MOBILISÉES DANS LE MARCHÉ"]
[]
[]
[null,"Raison sociale du titulaire",{"$f":"'1_Infos générales'!$C$9:$J$9","v":0}]
[]
[null,"Période de référence",{"$f":"'1_Infos générales'!$C$15","v":"Année"},null,null,null,null,null,null,null,null,null,null,null,null,null,null,null,null,null,null,null,"Type de véhicule","Type de carburant","Unité","Facteur d'émission (WTT)\n(kgCO2e/unité)","Facteur d'émission (TTW)\n(kgCO2e/unité)","Facteur d'émission (WTW)\n(kgCO2e/unité)","Intensité des émissions issues de la fabrication\n(kgCO2e/tkm)","Intensité des émissions WTT de GES\n(kgCO2e/tkm)","Intensité des émissions TTW de GES\n(kgCO2e/tkm)","Intensité des émissions de GES (WTW + fabrication)\n(kgCO2e/tkm)",null,null,"Pétrolier_capacité≤5000tpl","Pétrolier_capacité≤60000tpl","Pétrolier_capacité≤200000tpl","Pétrolier_capacité_sup_200000tpl","Cargo_divers_capacité≤10000tpl","Cargo_divers_capacité≤20000tpl","Vraquier_capacité≤10000tpl","Vraquier_capacité≤100000tpl","Vraquier_capacité_sup_100000tpl","Roulier_mixte_RoPax","Roulier_RoRo_Moyen","Roulier_RoRo_Camions_Remorques","Roulier_RoRo_Remorques_seules","Porte_conteneur_Panama_commercial","Porte_conteneur_Transatlantique","Porte_conteneur_Trans-Suez","Porte_conteneur_Transpacifique","Porte_conteneur_autres_liaisons"]
[null,null,null,null,null,null,null,null,null,null,null,null,null,null,null,null,null,null,null,null,null,null,"Pétrolier_capacité≤5000tpl","Fioul_lourd_HFO","kg",0.503,3.14,{"$f":"Z7+AA7","v":3.6430000000000002},null,4.5999999999999999E-3,5.6000000000000001E-2,{"$f":"AC7+AD7+AE7","v":6.0600000000000001E-2},null,"Pétrolier_capacité≤5000tpl","Fioul_lourd_HFO","Fioul_lourd_HFO","Fioul_lourd_HFO","Fioul_lourd_HFO","Fioul_lourd_HFO","Fioul_lourd_HFO","Fioul_lourd_HFO","Fioul_lourd_HFO","Fioul_lourd_HFO","Fioul_lourd_HFO","Fioul_lourd_HFO","Fioul_lourd_HFO","Fioul_lourd_HFO","Fioul_lourd_HFO","Fioul_lourd_HFO","Fioul_lourd_HFO","Fioul_lourd_HFO","Fioul_lourd_HFO"]
[null,"DONNÉES A REMPLIR",null,null,null,null,null,null,null,null,null,null,null,null,null,null,null,null,null,null,null,null,"Pétrolier_capacité≤5000tpl","Gazole_MGO","kg",0.67600000000000005,3.17,{"$f":"Z8+AA8","v":3.8460000000000001},null,4.5999999999999999E-3,5.6000000000000001E-2,{"$f":"AC8+AD8+AE8","v":6.0600000000000001E-2},null,"Pétrolier_capacité≤60000tpl","Gazole_MGO","Gazole_MGO","Gazole_MGO","Gazole_MGO","Gazole_MGO","Gazole_MGO","Gazole_MGO","Gazole_MGO","Gazole_MGO","Gazole_MGO","Gazole_MGO","Gazole_MGO","Gazole_MGO","Gazole_MGO","Gazole_MGO","Gazole_MGO","Gazole_MGO","Gazole_MGO"]
[null,null,null,null,null,null,null,null,null,null,null,null,null,null,null,null,null,null,null,null,null,null,"Pétrolier_capacité≤60000tpl","Fioul_lourd_HFO","kg",0.503,3.14,3.6430000000000002,null,1.7099999999999999E-3,1.9E-2,2.0709999999999999E-2,null,"Pétrolier_capacité≤200000tpl",null,null,null,"Gaz_naturel_liquéfié_GNL",null,null,null,null,"Gaz_naturel_liquéfié_GNL",null,null,null,null,"Gaz_naturel_liquéfié_GNL","Gaz_naturel_liquéfié_GNL","Gaz_naturel_liquéfié_GNL","Gaz_naturel_liquéfié_GNL","Gaz_naturel_liquéfié_GNL"]
[null,null,null,null,null,null,null,null,null,null,null,null,null,null,null,null,null,null,null,null,null,null,"Pétrolier_capacité≤60000tpl","Gazole_MGO","kg",0.67600000000000005,3.17,3.8460000000000001,null,1.7099999999999999E-3,1.9E-2,2.0709999999999999E-2,null,"Pétrolier_capacité_sup_200000tpl"]
[null,null,null,null,null,null,null,null,null,null,null,null,null,null,null,null,null,null,null,null,null,null,"Pétrolier_capacité≤200000tpl","Fioul_lourd_HFO","kg",0.503,3.14,3.6430000000000002,null,{"$f":"1.1*Z11","v":0.55330000000000001},0,0.55330000000000001,null,"Cargo_divers_capacité≤10000tpl"]
[null,null,null,null,null,null,null,null,null,null,null,null,null,null,null,null,null,null,null,null,null,null,null,null,null,null,null,{"$f":"Z12+AA12","v":0},null,null,null,{"$f":"AC12+AD12+AE12","v":0},null,"Cargo_divers_capacité≤20000tpl"]
[null,null,null,null,null,null,null,null,null,null,null,null,null,null,null,null,null,null,null,null,null,null,null,null,null,null,null,{"$f":"Z13+AA13","v":0},null,null,null,{"$f":"AC13+AD13+AE13","v":0},null,"Vraquier_capacité≤10000tpl"]
[null,null,null,null,null,null,null,null,null,null,null,null,null,null,null,null,null,null,null,null,null,null,null,null,null,null,null,null,null,null,null,null,null,"Vraquier_capacité≤100000tpl"]
[null,null,null,null,null,null,null,null,null,null,"TOTAL (kgCO2e)",null,null,null,null,null,null,null,null,null,null,null,null,null,null,null,null,null,null,null,null,null,null,"Vraquier_capacité_sup_100000tpl"]
[null,null,null,null,null,null,null,null,null,null,{"$f":" SUM(K19:K26)","v":0},null,null,null,null,null,null,null,null,null,null,null,"Pétrolier_capacité≤200000tpl","Gazole_MGO","kg",0.67600000000000005,3.17,3.8460000000000001,null,0.30299999999999999,0,0.30299999999999999,null,"Roulier_mixte_RoPax"]
[null,null,null,null,null,null,null,null,null,null,null,null,null,null,null,null,null,null,null,null,null,null,"Pétrolier_capacité_sup_200000tpl","Fioul_lourd_HFO","kg",0.503,3.14,3.6430000000000002,null,7.45E-4,8.09E-3,8.8349999999999991E-3,null,"Roulier_RoRo_Moyen"]
[null,null,"Ville et Pays de départ\n[optionnel]","Ville et Pays d'arrivée\n[optionnel]","Type de véhicule","Type de carburant","Facteur d'émission de GES * (kgCO2e/tkm)","Distance parcourue lors de ce trajet (en km) ","Masse de marchandises transportées lors de ce trajet (en tonnes)","Nombre de répétitions de ce trajet (avec la même masse transportée)\n[optionnel]","Calcul ** des émissions de GES pour ce transport (en kgCO2e)","Quels moyens de preuves pourriez-vous donner ?",null,null,null,null,null,null,null,null,null,null,"Pétrolier_capacité_sup_200000tpl","Gazole_MGO","kg",0.67600000000000005,3.17,3.8460000000000001,null,7.45E-4,8.09E-3,8.8349999999999991E-3,null,"Roulier_RoRo_Camions_Remorques"]
[null,null,null,null,null,null,{"$f":"_xlfn.XLOOKUP(Tableau_prestations_mtkm[[#This Row],[Type de véhicule]]&Tableau_prestations_mtkm[[#This Row],[Type de carburant]], $W$7:$W$53&$X$7:$X$53, $AF$7:$AF$53, 0,  0, )","v":0},null,null,null,{"$f":"IF(ISBLANK(J19),G19*H19*I19,G19*H19*I19*J19)","v":0},null,null,null,null,null,null,null,null,null,null,null,"Pétrolier_capacité_sup_200000tpl","Gaz_naturel_liquéfié_GNL","kg",0.69699999999999995,2.58,3.2770000000000001,null,6.9999999999999999E-4,1.9E-3,2.5999999999999999E-3,null,"Roulier_RoRo_Remorques_seules"]
[null,null,null,null,null,null,{"$f":"_xlfn.XLOOKUP(Tableau_prestations_mtkm[[#This Row],[Type de véhicule]]&Tableau_prestations_mtkm[[#This Row],[Type de carburant]], $W$7:$W$53&$X$7:$X$53, $AF$7:$AF$53, 0,  0, )","v":0},null,null,null,0,null,null,null,null,null,null,null,null,null,null,null,"Cargo_divers_capacité≤10000tpl","Fioul_lourd_HFO","kg",0.503,3.14,3.6430000000000002,null,1.6900000000000001E-3,1.7399999999999999E-2,1.9089999999999999E-2,null,"Porte_conteneur_Panama_commercial"]
[null,null,null,null,null,null,{"$f":"_xlfn.XLOOKUP(Tableau_prestations_mtkm[[#This Row],[Type de véhicule]]&Tableau_prestations_mtkm[[#This Row],[Type de carburant]], $W$7:$W$53&$X$7:$X$53, $AF$7:$AF$53, 0,  0, )","v":0},null,null,null,0,null,null,null,null,null,null,null,null,null,null,null,"Cargo_divers_capacité≤10000tpl","Gazole_MGO","kg",0.67600000000000005,3.17,3.8460000000000001,null,1.6900000000000001E-3,1.7399999999999999E-2,1.9089999999999999E-2,null,"Porte_conteneur_Transatlantique"]
[null,null,null,null,null,null,{"$f":"_xlfn.XLOOKUP(Tableau_prestations_mtkm[[#This Row],[Type de véhicule]]&Tableau_prestations_mtkm[[#This Row],[Type de carburant]], $W$7:$W$53&$X$7:$X$53, $AF$7:$AF$53, 0,  0, )","v":0},null,null,null,0,null,null,null,null,null,null,null,null,null,null,null,"Cargo_divers_capacité≤20000tpl","Fioul_lourd_HFO","kg",0.503,3.14,3.6430000000000002,null,1.2099999999999999E-3,1.2E-2,1.321E-2,null,"Porte_conteneur_Trans-Suez"]
[null,null,null,null,null,null,{"$f":"_xlfn.XLOOKUP(Tableau_prestations_mtkm[[#This Row],[Type de véhicule]]&Tableau_prestations_mtkm[[#This Row],[Type de carburant]], $W$7:$W$53&$X$7:$X$53, $AF$7:$AF$53, 0,  0, )","v":0},null,null,null,0,null,null,null,null,null,null,null,null,null,null,null,"Cargo_divers_capacité≤20000tpl","Gazole_MGO","kg",0.67600000000000005,3.17,3.8460000000000001,null,1.2099999999999999E-3,1.2E-2,1.321E-2,null,"Porte_conteneur_Transpacifique"]
[null,null,null,null,null,null,{"$f":"_xlfn.XLOOKUP(Tableau_prestations_mtkm[[#This Row],[Type de véhicule]]&Tableau_prestations_mtkm[[#This Row],[Type de carburant]], $W$7:$W$53&$X$7:$X$53, $AF$7:$AF$53, 0,  0, )","v":0},null,null,null,0,null,null,null,null,null,null,null,null,null,null,null,"Vraquier_capacité≤10000tpl","Fioul_lourd_HFO","kg",0.503,3.14,3.6430000000000002,null,2.5400000000000002E-3,0.03,3.2539999999999999E-2,null,"Porte_conteneur_autres_liaisons"]
[null,null,null,null,null,null,{"$f":"_xlfn.XLOOKUP(Tableau_prestations_mtkm[[#This Row],[Type de véhicule]]&Tableau_prestations_mtkm[[#This Row],[Type de carburant]], $W$7:$W$53&$X$7:$X$53, $AF$7:$AF$53, 0,  0, )","v":0},null,null,null,{"$f":"IF(ISBLANK(J25),G25*H25*I25,G25*H25*I25*J25)","v":0},{"$f":" I25 * J24J19 * G25 * H25","v":{"$error":"#NAME?"}},null,null,null,null,null,null,null,null,null,null,"Vraquier_capacité≤10000tpl","Gazole_MGO","kg",0.67600000000000005,3.17,3.8460000000000001,null,2.5400000000000002E-3,0.03,3.2539999999999999E-2]
[null,null,null,null,null,null,{"$f":"_xlfn.XLOOKUP(Tableau_prestations_mtkm[[#This Row],[Type de véhicule]]&Tableau_prestations_mtkm[[#This Row],[Type de carburant]], $W$7:$W$53&$X$7:$X$53, $AF$7:$AF$53, 0,  0, )","v":0},null,null,null,{"$f":"IF(ISBLANK(J26),G26*H26*I26,G26*H26*I26*J26)","v":0},{"$f":" I26 * J24J19 * G26 * H26","v":{"$error":"#NAME?"}},null,null,null,null,null,null,null,null,null,null,"Vraquier_capacité≤100000tpl","Fioul_lourd_HFO","kg",0.503,3.14,3.6430000000000002,null,5.0799999999999999E-4,6.8999999999999999E-3,7.4079999999999997E-3]
[null,null,null,null,null,null,null,null,null,null,null,null,null,null,null,null,null,null,null,null,null,null,"Vraquier_capacité≤100000tpl","Gazole_MGO","kg",0.67600000000000005,3.17,3.8460000000000001,null,5.0799999999999999E-4,6.8999999999999999E-3,7.4079999999999997E-3]
[null,null,null,null,null,null,null,null,null,null,null,null,null,null,null,null,null,null,null,null,null,null,"Vraquier_capacité_sup_100000tpl","Fioul_lourd_HFO","kg",0.503,3.14,3.6430000000000002,null,2.03E-4,2.7000000000000001E-3,2.9030000000000002E-3]
[null,null,null,null,null,null,null,null,null,null,null,null,null,null,null,null,null,null,null,null,null,null,"Vraquier_capacité_sup_100000tpl","Gazole_MGO","kg",0.67600000000000005,3.17,3.8460000000000001,null,2.03E-4,2.7000000000000001E-3,2.9030000000000002E-3]
[null,null,null,null,null,null,null,null,null,null,null,null,null,null,null,null,null,null,null,null,null,null,"Vraquier_capacité_sup_100000tpl","Gaz_naturel_liquéfié_GNL","kg",0.69699999999999995,2.58,3.2770000000000001,null,6.9999999999999999E-4,2E-3,2.7000000000000001E-3]
[null,null,null,null,null,null,null,null,null,null,null,null,null,null,null,null,null,null,null,null,null,null,"Roulier_mixte_RoPax","Fioul_lourd_HFO","kg",0.503,3.14,3.6430000000000002,null,1.8800000000000001E-2,0.19,0.20880000000000001]
[null,null,null,null,null,null,null,null,null,null,null,null,null,null,null,null,null,null,null,null,null,null,"Roulier_mixte_RoPax","Gazole_MGO","kg",0.67600000000000005,3.17,3.8460000000000001,null,1.8800000000000001E-2,0.19,0.20880000000000001]
[null,null,null,null,null,null,null,null,null,null,null,null,null,null,null,null,null,null,null,null,null,null,"Roulier_RoRo_Moyen","Fioul_lourd_HFO","kg",0.503,3.14,3.6430000000000002,null,3.8500000000000001E-3,4.1799999999999997E-2,4.5649999999999996E-2]
[null,null,null,null,null,null,null,null,null,null,null,null,null,null,null,null,null,null,null,null,null,null,"Roulier_RoRo_Moyen","Gazole_MGO","kg",0.67600000000000005,3.17,3.8460000000000001,null,3.8500000000000001E-3,4.1799999999999997E-2,4.5649999999999996E-2]
[null,null,null,null,null,null,null,null,null,null,null,null,null,null,null,null,null,null,null,null,null,null,"Roulier_RoRo_Camions_Remorques","Fioul_lourd_HFO","kg",0.503,3.14,3.6430000000000002,null,8.6300000000000005E-3,9.2700000000000005E-2,0.10133]
[null,null,null,null,null,null,null,null,null,null,null,null,null,null,null,null,null,null,null,null,null,null,"Roulier_RoRo_Camions_Remorques","Gazole_MGO","kg",0.67600000000000005,3.17,3.8460000000000001,null,8.6300000000000005E-3,9.2700000000000005E-2,0.10133]
[null,null,null,null,null,null,null,null,null,null,null,null,null,null,null,null,null,null,null,null,null,null,"Roulier_RoRo_Remorques_seules","Fioul_lourd_HFO","kg",0.503,3.14,3.6430000000000002,null,5.8999999999999999E-3,6.2799999999999995E-2,6.8699999999999997E-2]
[null,null,null,null,null,null,null,null,null,null,null,null,null,null,null,null,null,null,null,null,null,null,"Roulier_RoRo_Remorques_seules","Gazole_MGO","kg",0.67600000000000005,3.17,3.8460000000000001,null,5.8999999999999999E-3,6.2799999999999995E-2,6.8699999999999997E-2]
[null,null,null,null,null,null,null,null,null,null,null,null,null,null,null,null,null,null,null,null,null,null,"Porte_conteneur_Panama_commercial","Fioul_lourd_HFO","kg",0.503,3.14,3.6430000000000002,null,6.9999999999999999E-4,8.2000000000000007E-3,8.8999999999999999E-3]
[null,null,null,null,null,null,null,null,null,null,null,null,null,null,null,null,null,null,null,null,null,null,"Porte_conteneur_Panama_commercial","Gazole_MGO","kg",0.67600000000000005,3.17,3.8460000000000001,null,6.9999999999999999E-4,8.2000000000000007E-3,8.8999999999999999E-3]
[null,null,null,null,null,null,null,null,null,null,null,null,null,null,null,null,null,null,null,null,null,null,"Porte_conteneur_Panama_commercial","Gaz_naturel_liquéfié_GNL","kg",0.69699999999999995,2.58,3.2770000000000001,null,6.9999999999999999E-4,8.2000000000000007E-3,8.8999999999999999E-3,null,"Fioul_lourd_HFO","kg"]
[null,null,null,null,null,null,null,null,null,null,null,null,null,null,null,null,null,null,null,null,null,null,"Porte_conteneur_Transatlantique","Fioul_lourd_HFO","kg",0.503,3.14,3.6430000000000002,null,8.4999999999999995E-4,9.7999999999999997E-3,1.065E-2,null,"Gazole_MGO","kg"]
[null,null,null,null,null,null,null,null,null,null,null,null,null,null,null,null,null,null,null,null,null,null,"Porte_conteneur_Transatlantique","Gazole_MGO","kg",0.67600000000000005,3.17,3.8460000000000001,null,8.4999999999999995E-4,9.7999999999999997E-3,1.065E-2,null,"Gaz_naturel_liquéfié_GNL","kg"]
[null,null,null,null,null,null,null,null,null,null,null,null,null,null,null,null,null,null,null,null,null,null,"Porte_conteneur_Transatlantique","Gaz_naturel_liquéfié_GNL","kg",0.69699999999999995,2.58,3.2770000000000001,null,8.4999999999999995E-4,9.7999999999999997E-3,1.065E-2]
[null,null,null,null,null,null,null,null,null,null,null,null,null,null,null,null,null,null,null,null,null,null,"Porte_conteneur_Trans-Suez","Fioul_lourd_HFO","kg",0.503,3.14,3.6430000000000002,null,5.8E-4,6.7999999999999996E-3,7.3799999999999994E-3]
[null,null,null,null,null,null,null,null,null,null,null,null,null,null,null,null,null,null,null,null,null,null,"Porte_conteneur_Trans-Suez","Gazole_MGO","kg",0.67600000000000005,3.17,3.8460000000000001,null,5.8E-4,6.7999999999999996E-3,7.3799999999999994E-3]
[null,null,null,null,null,null,null,null,null,null,null,null,null,null,null,null,null,null,null,null,null,null,"Porte_conteneur_Trans-Suez","Gaz_naturel_liquéfié_GNL","kg",0.69699999999999995,2.58,3.2770000000000001,null,5.8E-4,6.7999999999999996E-3,7.3799999999999994E-3]
[null,null,null,null,null,null,null,null,null,null,null,null,null,null,null,null,null,null,null,null,null,null,"Porte_conteneur_Transpacifique","Fioul_lourd_HFO","kg",0.503,3.14,3.6430000000000002,null,5.8E-4,6.7000000000000002E-3,7.28E-3]
[null,null,null,null,null,null,null,null,null,null,null,null,null,null,null,null,null,null,null,null,null,null,"Porte_conteneur_Transpacifique","Gazole_MGO","kg",0.67600000000000005,3.17,3.8460000000000001,null,5.8E-4,6.7000000000000002E-3,7.28E-3]
[null,null,null,null,null,null,null,null,null,null,null,null,null,null,null,null,null,null,null,null,null,null,"Porte_conteneur_Transpacifique","Gaz_naturel_liquéfié_GNL","kg",0.69699999999999995,2.58,3.2770000000000001,null,5.8E-4,6.7000000000000002E-3,7.28E-3]
[null,null,null,null,null,null,null,null,null,null,null,null,null,null,null,null,null,null,null,null,null,null,"Porte_conteneur_autres_liaisons","Fioul_lourd_HFO","kg",0.503,3.14,3.6430000000000002,null,7.6000000000000004E-4,8.8000000000000005E-3,9.5600000000000008E-3]
[null,null,null,null,null,null,null,null,null,null,null,null,null,null,null,null,null,null,null,null,null,null,"Porte_conteneur_autres_liaisons","Gazole_MGO","kg",0.67600000000000005,3.17,3.8460000000000001,null,7.6000000000000004E-4,8.8000000000000005E-3,9.5600000000000008E-3,null,"Oui"]
[null,null,null,null,null,null,null,null,null,null,null,null,null,null,null,null,null,null,null,null,null,null,"Porte_conteneur_autres_liaisons","Gaz_naturel_liquéfié_GNL","kg",0.60899999999999999,2.4900000000000002,3.0990000000000002,null,7.6000000000000004E-4,8.8000000000000005E-3,9.5600000000000008E-3,null,"Non"]
[]
[]
[]
[]
[]
[]
[]
[]
[]
[]
[]
[]
[]
[]
[]
[]
[]
[]
[]
[]
[]
[]
[null,null,null,null,null,null,null,null,null,null,null,null,null,null,null,null,null,null,null,null,null,null,"Type de véhicule","Type de carburant","Unité","Facteur d'émission (WTT)\n(kgCO2e/unité)","Facteur d'émission (TTW)\n(kgCO2e/unité)","Facteur d'émission (WTW)\n(kgCO2e/unité)","Intensité des émissions issues de la fabrication\n(kgCO2e/tkm)","Intensité des émissions WTT de GES\n(kgCO2e/tkm)","Intensité des émissions TTW de GES\n(kgCO2e/tkm)","Intensité des émissions de GES (WTW + fabrication)\n(kgCO2e/tkm)",null,null,"Pétrolier_capacité≤5000tpl","Pétrolier_capacité≤60000tpl","Pétrolier_capacité≤200000tpl","Pétrolier_capacité_sup_200000tpl","Cargo_divers_capacité≤10000tpl","Cargo_divers_capacité≤20000tpl","Vraquier_capacité≤10000tpl","Vraquier_capacité≤100000tpl","Vraquier_capacité_sup_100000tpl","Roulier_mixte_RoPax","Roulier_RoRo_Moyen","Roulier_RoRo_Camions_Remorques","Roulier_RoRo_Remorques_seules","Porte_conteneur_Panama_commercial","Porte_conteneur_Transatlantique","Porte_conteneur_Trans-Suez","Porte_conteneur_Transpacifique","Porte_conteneur_autres_liaisons"]
[null,null,null,null,null,null,null,null,null,null,null,null,null,null,null,null,null,null,null,null,null,{"$f":"W77&X77","v":"Pétrolier_capacité≤5000tplFioul_lourd_HFO"},"Pétrolier_capacité≤5000tpl","Fioul_lourd_HFO","kg",0.503,3.14,{"$f":"Z77+AA77","v":3.6430000000000002},null,4.5999999999999999E-3,5.6000000000000001E-2,{"$f":"AC77+AD77+AE77","v":6.0600000000000001E-2},null,"Pétrolier_capacité≤5000tpl","Fioul_lourd_HFO","Fioul_lourd_HFO","Fioul_lourd_HFO","Fioul_lourd_HFO","Fioul_lourd_HFO","Fioul_lourd_HFO","Fioul_lourd_HFO","Fioul_lourd_HFO","Fioul_lourd_HFO","Fioul_lourd_HFO","Fioul_lourd_HFO","Fioul_lourd_HFO","Fioul_lourd_HFO","Fioul_lourd_HFO","Fioul_lourd_HFO","Fioul_lourd_HFO","Fioul_lourd_HFO","Fioul_lourd_HFO"]
[null,null,null,null,null,null,null,null,null,null,null,null,null,null,null,null,null,null,null,null,null,{"$f":"W78&X78","v":"Pétrolier_capacité≤5000tplGazole_MGO"},"Pétrolier_capacité≤5000tpl","Gazole_MGO","kg",0.67600000000000005,3.17,{"$f":"Z78+AA78","v":3.8460000000000001},null,4.5999999999999999E-3,5.6000000000000001E-2,{"$f":"AC78+AD78+AE78","v":6.0600000000000001E-2},null,"Pétrolier_capacité≤60000tpl","Gazole_MGO","Gazole_MGO","Gazole_MGO","Gazole_MGO","Gazole_MGO","Gazole_MGO","Gazole_MGO","Gazole_MGO","Gazole_MGO","Gazole_MGO","Gazole_MGO","Gazole_MGO","Gazole_MGO","Gazole_MGO","Gazole_MGO","Gazole_MGO","Gazole_MGO","Gazole_MGO"]
[null,null,null,null,null,null,null,null,null,null,null,null,null,null,null,null,null,null,null,null,null,"Pétrolier_capacité≤60000tplFioul_lourd_HFO","Pétrolier_capacité≤60000tpl","Fioul_lourd_HFO","kg",0.503,3.14,3.6430000000000002,null,1.7099999999999999E-3,1.9E-2,2.0709999999999999E-2,null,"Pétrolier_capacité≤200000tpl",null,null,null,"Gaz_naturel_liquéfié_GNL",null,null,null,null,"Gaz_naturel_liquéfié_GNL",null,null,null,null,"Gaz_naturel_liquéfié_GNL","Gaz_naturel_liquéfié_GNL","Gaz_naturel_liquéfié_GNL","Gaz_naturel_liquéfié_GNL","Gaz_naturel_liquéfié_GNL"]
[null,null,null,null,null,null,null,null,null,null,null,null,null,null,null,null,null,null,null,null,null,"Pétrolier_capacité≤60000tplGazole_MGO","Pétrolier_capacité≤60000tpl","Gazole_MGO","kg",0.67600000000000005,3.17,3.8460000000000001,null,1.7099999999999999E-3,1.9E-2,2.0709999999999999E-2,null,"Pétrolier_capacité_sup_200000tpl"]
[null,null,null,null,null,null,null,null,null,null,null,null,null,null,null,null,null,null,null,null,null,"Pétrolier_capacité≤200000tplFioul_lourd_HFO","Pétrolier_capacité≤200000tpl","Fioul_lourd_HFO","kg",0.503,3.14,3.6430000000000002,null,{"$f":"1.1*Z81","v":0.55330000000000001},0,0.55330000000000001,null,"Cargo_divers_capacité≤10000tpl"]
[null,null,null,null,null,null,null,null,null,null,null,null,null,null,null,null,null,null,null,null,null,"Pétrolier_capacité≤200000tplGazole_MGO","Pétrolier_capacité≤200000tpl","Gazole_MGO","kg",0.67600000000000005,3.17,3.8460000000000001,null,0.30299999999999999,0,0.30299999999999999,null,"Cargo_divers_capacité≤20000tpl"]
[null,null,null,null,null,null,null,null,null,null,null,null,null,null,null,null,null,null,null,null,null,"Pétrolier_capacité_sup_200000tplFioul_lourd_HFO","Pétrolier_capacité_sup_200000tpl","Fioul_lourd_HFO","kg",0.503,3.14,3.6430000000000002,null,7.45E-4,8.09E-3,8.8349999999999991E-3,null,"Vraquier_capacité≤10000tpl"]
[null,null,null,null,null,null,null,null,null,null,null,null,null,null,null,null,null,null,null,null,null,"Pétrolier_capacité_sup_200000tplGazole_MGO","Pétrolier_capacité_sup_200000tpl","Gazole_MGO","kg",0.67600000000000005,3.17,3.8460000000000001,null,7.45E-4,8.09E-3,8.8349999999999991E-3,null,"Vraquier_capacité≤100000tpl"]
[null,null,null,null,null,null,null,null,null,null,null,null,null,null,null,null,null,null,null,null,null,"Pétrolier_capacité_sup_200000tplGaz_naturel_liquéfié_GNL","Pétrolier_capacité_sup_200000tpl","Gaz_naturel_liquéfié_GNL","kg",0.69699999999999995,2.58,3.2770000000000001,null,6.9999999999999999E-4,1.9E-3,2.5999999999999999E-3,null,"Vraquier_capacité_sup_100000tpl"]
[null,null,null,null,null,null,null,null,null,null,null,null,null,null,null,null,null,null,null,null,null,"Cargo_divers_capacité≤10000tplFioul_lourd_HFO","Cargo_divers_capacité≤10000tpl","Fioul_lourd_HFO","kg",0.503,3.14,3.6430000000000002,null,1.6900000000000001E-3,1.7399999999999999E-2,1.9089999999999999E-2,null,"Roulier_mixte_RoPax"]
[null,null,null,null,null,null,null,null,null,null,null,null,null,null,null,null,null,null,null,null,null,"Cargo_divers_capacité≤10000tplGazole_MGO","Cargo_divers_capacité≤10000tpl","Gazole_MGO","kg",0.67600000000000005,3.17,3.8460000000000001,null,1.6900000000000001E-3,1.7399999999999999E-2,1.9089999999999999E-2,null,"Roulier_RoRo_Moyen"]
[null,null,null,null,null,null,null,null,null,null,null,null,null,null,null,null,null,null,null,null,null,"Cargo_divers_capacité≤20000tplFioul_lourd_HFO","Cargo_divers_capacité≤20000tpl","Fioul_lourd_HFO","kg",0.503,3.14,3.6430000000000002,null,1.2099999999999999E-3,1.2E-2,1.321E-2,null,"Roulier_RoRo_Camions_Remorques"]
[null,null,null,null,null,null,null,null,null,null,null,null,null,null,null,null,null,null,null,null,null,"Cargo_divers_capacité≤20000tplGazole_MGO","Cargo_divers_capacité≤20000tpl","Gazole_MGO","kg",0.67600000000000005,3.17,3.8460000000000001,null,1.2099999999999999E-3,1.2E-2,1.321E-2,null,"Roulier_RoRo_Remorques_seules"]
[null,null,null,null,null,null,null,null,null,null,null,null,null,null,null,null,null,null,null,null,null,"Vraquier_capacité≤10000tplFioul_lourd_HFO","Vraquier_capacité≤10000tpl","Fioul_lourd_HFO","kg",0.503,3.14,3.6430000000000002,null,2.5400000000000002E-3,0.03,3.2539999999999999E-2,null,"Porte_conteneur_Panama_commercial"]
[null,null,null,null,null,null,null,null,null,null,null,null,null,null,null,null,null,null,null,null,null,"Vraquier_capacité≤10000tplGazole_MGO","Vraquier_capacité≤10000tpl","Gazole_MGO","kg",0.67600000000000005,3.17,3.8460000000000001,null,2.5400000000000002E-3,0.03,3.2539999999999999E-2,null,"Porte_conteneur_Transatlantique"]
[null,null,null,null,null,null,null,null,null,null,null,null,null,null,null,null,null,null,null,null,null,"Vraquier_capacité≤100000tplFioul_lourd_HFO","Vraquier_capacité≤100000tpl","Fioul_lourd_HFO","kg",0.503,3.14,3.6430000000000002,null,5.0799999999999999E-4,6.8999999999999999E-3,7.4079999999999997E-3,null,"Porte_conteneur_Trans-Suez"]
[null,null,null,null,null,null,null,null,null,null,null,null,null,null,null,null,null,null,null,null,null,"Vraquier_capacité≤100000tplGazole_MGO","Vraquier_capacité≤100000tpl","Gazole_MGO","kg",0.67600000000000005,3.17,3.8460000000000001,null,5.0799999999999999E-4,6.8999999999999999E-3,7.4079999999999997E-3,null,"Porte_conteneur_Transpacifique"]
[null,null,null,null,null,null,null,null,null,null,null,null,null,null,null,null,null,null,null,null,null,"Vraquier_capacité_sup_100000tplFioul_lourd_HFO","Vraquier_capacité_sup_100000tpl","Fioul_lourd_HFO","kg",0.503,3.14,3.6430000000000002,null,2.03E-4,2.7000000000000001E-3,2.9030000000000002E-3,null,"Porte_conteneur_autres_liaisons"]
[null,null,null,null,null,null,null,null,null,null,null,null,null,null,null,null,null,null,null,null,null,"Vraquier_capacité_sup_100000tplGazole_MGO","Vraquier_capacité_sup_100000tpl","Gazole_MGO","kg",0.67600000000000005,3.17,3.8460000000000001,null,2.03E-4,2.7000000000000001E-3,2.9030000000000002E-3]
[null,null,null,null,null,null,null,null,null,null,null,null,null,null,null,null,null,null,null,null,null,"Vraquier_capacité_sup_100000tplGaz_naturel_liquéfié_GNL","Vraquier_capacité_sup_100000tpl","Gaz_naturel_liquéfié_GNL","kg",0.69699999999999995,2.58,3.2770000000000001,null,6.9999999999999999E-4,2E-3,2.7000000000000001E-3]
[null,null,null,null,null,null,null,null,null,null,null,null,null,null,null,null,null,null,null,null,null,"Roulier_mixte_RoPaxFioul_lourd_HFO","Roulier_mixte_RoPax","Fioul_lourd_HFO","kg",0.503,3.14,3.6430000000000002,null,1.8800000000000001E-2,0.19,0.20880000000000001]
[null,null,null,null,null,null,null,null,null,null,null,null,null,null,null,null,null,null,null,null,null,"Roulier_mixte_RoPaxGazole_MGO","Roulier_mixte_RoPax","Gazole_MGO","kg",0.67600000000000005,3.17,3.8460000000000001,null,1.8800000000000001E-2,0.19,0.20880000000000001]
[null,null,null,null,null,null,null,null,null,null,null,null,null,null,null,null,null,null,null,null,null,"Roulier_RoRo_MoyenFioul_lourd_HFO","Roulier_RoRo_Moyen","Fioul_lourd_HFO","kg",0.503,3.14,3.6430000000000002,null,3.8500000000000001E-3,4.1799999999999997E-2,4.5649999999999996E-2]
[null,null,null,null,null,null,null,null,null,null,null,null,null,null,null,null,null,null,null,null,null,"Roulier_RoRo_MoyenGazole_MGO","Roulier_RoRo_Moyen","Gazole_MGO","kg",0.67600000000000005,3.17,3.8460000000000001,null,3.8500000000000001E-3,4.1799999999999997E-2,4.5649999999999996E-2]
[null,null,null,null,null,null,null,null,null,null,null,null,null,null,null,null,null,null,null,null,null,"Roulier_RoRo_Camions_RemorquesFioul_lourd_HFO","Roulier_RoRo_Camions_Remorques","Fioul_lourd_HFO","kg",0.503,3.14,3.6430000000000002,null,8.6300000000000005E-3,9.2700000000000005E-2,0.10133]
[null,null,null,null,null,null,null,null,null,null,null,null,null,null,null,null,null,null,null,null,null,"Roulier_RoRo_Camions_RemorquesGazole_MGO","Roulier_RoRo_Camions_Remorques","Gazole_MGO","kg",0.67600000000000005,3.17,3.8460000000000001,null,8.6300000000000005E-3,9.2700000000000005E-2,0.10133]
[null,null,null,null,null,null,null,null,null,null,null,null,null,null,null,null,null,null,null,null,null,"Roulier_RoRo_Remorques_seulesFioul_lourd_HFO","Roulier_RoRo_Remorques_seules","Fioul_lourd_HFO","kg",0.503,3.14,3.6430000000000002,null,5.8999999999999999E-3,6.2799999999999995E-2,6.8699999999999997E-2]
[null,null,null,null,null,null,null,null,null,null,null,null,null,null,null,null,null,null,null,null,null,"Roulier_RoRo_Remorques_seulesGazole_MGO","Roulier_RoRo_Remorques_seules","Gazole_MGO","kg",0.67600000000000005,3.17,3.8460000000000001,null,5.8999999999999999E-3,6.2799999999999995E-2,6.8699999999999997E-2]
[null,null,null,null,null,null,null,null,null,null,null,null,null,null,null,null,null,null,null,null,null,"Porte_conteneur_Panama_commercialFioul_lourd_HFO","Porte_conteneur_Panama_commercial","Fioul_lourd_HFO","kg",0.503,3.14,3.6430000000000002,null,6.9999999999999999E-4,8.2000000000000007E-3,8.8999999999999999E-3]
[null,null,null,null,null,null,null,null,null,null,null,null,null,null,null,null,null,null,null,null,null,"Porte_conteneur_Panama_commercialGazole_MGO","Porte_conteneur_Panama_commercial","Gazole_MGO","kg",0.67600000000000005,3.17,3.8460000000000001,null,6.9999999999999999E-4,8.2000000000000007E-3,8.8999999999999999E-3]
[null,null,null,null,null,null,null,null,null,null,null,null,null,null,null,null,null,null,null,null,null,"Porte_conteneur_Panama_commercialGaz_naturel_liquéfié_GNL","Porte_conteneur_Panama_commercial","Gaz_naturel_liquéfié_GNL","kg",0.69699999999999995,2.58,3.2770000000000001,null,6.9999999999999999E-4,8.2000000000000007E-3,8.8999999999999999E-3,null,"Fioul_lourd_HFO","kg"]
[null,null,null,null,null,null,null,null,null,null,null,null,null,null,null,null,null,null,null,null,null,"Porte_conteneur_TransatlantiqueFioul_lourd_HFO","Porte_conteneur_Transatlantique","Fioul_lourd_HFO","kg",0.503,3.14,3.6430000000000002,null,8.4999999999999995E-4,9.7999999999999997E-3,1.065E-2,null,"Gazole_MGO","kg"]
[null,null,null,null,null,null,null,null,null,null,null,null,null,null,null,null,null,null,null,null,null,"Porte_conteneur_TransatlantiqueGazole_MGO","Porte_conteneur_Transatlantique","Gazole_MGO","kg",0.67600000000000005,3.17,3.8460000000000001,null,8.4999999999999995E-4,9.7999999999999997E-3,1.065E-2,null,"Gaz_naturel_liquéfié_GNL","kg"]
[null,null,null,null,null,null,null,null,null,null,null,null,null,null,null,null,null,null,null,null,null,"Porte_conteneur_TransatlantiqueGaz_naturel_liquéfié_GNL","Porte_conteneur_Transatlantique","Gaz_naturel_liquéfié_GNL","kg",0.69699999999999995,2.58,3.2770000000000001,null,8.4999999999999995E-4,9.7999999999999997E-3,1.065E-2]
[null,null,null,null,null,null,null,null,null,null,null,null,null,null,null,null,null,null,null,null,null,"Porte_conteneur_Trans-SuezFioul_lourd_HFO","Porte_conteneur_Trans-Suez","Fioul_lourd_HFO","kg",0.503,3.14,3.6430000000000002,null,5.8E-4,6.7999999999999996E-3,7.3799999999999994E-3]
[null,null,null,null,null,null,null,null,null,null,null,null,null,null,null,null,null,null,null,null,null,"Porte_conteneur_Trans-SuezGazole_MGO","Porte_conteneur_Trans-Suez","Gazole_MGO","kg",0.67600000000000005,3.17,3.8460000000000001,null,5.8E-4,6.7999999999999996E-3,7.3799999999999994E-3]
[null,null,null,null,null,null,null,null,null,null,null,null,null,null,null,null,null,null,null,null,null,"Porte_conteneur_Trans-SuezGaz_naturel_liquéfié_GNL","Porte_conteneur_Trans-Suez","Gaz_naturel_liquéfié_GNL","kg",0.69699999999999995,2.58,3.2770000000000001,null,5.8E-4,6.7999999999999996E-3,7.3799999999999994E-3]
[null,null,null,null,null,null,null,null,null,null,null,null,null,null,null,null,null,null,null,null,null,"Porte_conteneur_TranspacifiqueFioul_lourd_HFO","Porte_conteneur_Transpacifique","Fioul_lourd_HFO","kg",0.503,3.14,3.6430000000000002,null,5.8E-4,6.7000000000000002E-3,7.28E-3]
[null,null,null,null,null,null,null,null,null,null,null,null,null,null,null,null,null,null,null,null,null,"Porte_conteneur_TranspacifiqueGazole_MGO","Porte_conteneur_Transpacifique","Gazole_MGO","kg",0.67600000000000005,3.17,3.8460000000000001,null,5.8E-4,6.7000000000000002E-3,7.28E-3]
[null,null,null,null,null,null,null,null,null,null,null,null,null,null,null,null,null,null,null,null,null,"Porte_conteneur_TranspacifiqueGaz_naturel_liquéfié_GNL","Porte_conteneur_Transpacifique","Gaz_naturel_liquéfié_GNL","kg",0.69699999999999995,2.58,3.2770000000000001,null,5.8E-4,6.7000000000000002E-3,7.28E-3]
[null,null,null,null,null,null,null,null,null,null,null,null,null,null,null,null,null,null,null,null,null,"Porte_conteneur_autres_liaisonsFioul_lourd_HFO","Porte_conteneur_autres_liaisons","Fioul_lourd_HFO","kg",0.503,3.14,3.6430000000000002,null,7.6000000000000004E-4,8.8000000000000005E-3,9.5600000000000008E-3]
[null,null,null,null,null,null,null,null,null,null,null,null,null,null,null,null,null,null,null,null,null,"Porte_conteneur_autres_liaisonsGazole_MGO","Porte_conteneur_autres_liaisons","Gazole_MGO","kg",0.67600000000000005,3.17,3.8460000000000001,null,7.6000000000000004E-4,8.8000000000000005E-3,9.5600000000000008E-3,null,"Oui"]
[null,null,null,null,null,null,null,null,null,null,null,null,null,null,null,null,null,null,null,null,null,"Porte_conteneur_autres_liaisonsGaz_naturel_liquéfié_GNL","Porte_conteneur_autres_liaisons","Gaz_naturel_liquéfié_GNL","kg",0.60899999999999999,2.4900000000000002,3.0990000000000002,null,7.6000000000000004E-4,8.8000000000000005E-3,9.5600000000000008E-3,null,"Non"]

{"sheet":"5_Maritime carburant","index":21,"n_rows":53,"n_cols":51,"rows_kept":53,"cut":false,"hidden":false,"merged":[[0,3,0,10],[7,6,7,10]]}
[null,null,null,"DÉTERMINATION DES ÉMISSIONS DE GAZ À EFFET DE SERRE GÉNÉRÉES PAR LES PRESTATIONS DE TRANSPORT MARITIME MOBILISÉES DANS LE MARCHÉ"]
[]
[]
[null,"Raison sociale du titulaire",{"$f":"'1_Infos générales'!$C$9:$J$9","v":0}]
[]
[null,"Période de référence",{"$f":"'1_Infos générales'!$C$15","v":"Année"},null,null,null,null,null,null,null,null,null,null,null,null,null,null,null,null,null,null,"Type de véhicule","Type de carburant","Unité","Facteur d'émission (WTT)\n(kgCO2e/unité)","Facteur d'émission (TTW)\n(kgCO2e/unité)","Facteur d'émission (WTW)\n(kgCO2e/unité)","Intensité des émissions issues de la fabrication\n(kgCO2e/tkm)","Intensité des émissions WTT de GES\n(kgCO2e/tkm)","Intensité des émissions TTW de GES\n(kgCO2e/tkm)","Intensité des émissions de GES (WTW + fabrication)\n(kgCO2e/tkm)",null,null,"Pétrolier_capacité≤5000tpl","Pétrolier_capacité≤60000tpl","Pétrolier_capacité≤200000tpl","Pétrolier_capacité_sup_200000tpl","Cargo_divers_capacité≤10000tpl","Cargo_divers_capacité≤20000tpl","Vraquier_capacité≤10000tpl","Vraquier_capacité≤100000tpl","Vraquier_capacité_sup_100000tpl","Roulier_mixte_RoPax","Roulier_RoRo_Moyen","Roulier_RoRo_Camions_Remorques","Roulier_RoRo_Remorques_seules","Porte_conteneur_Panama_commercial","Porte_conteneur_Transatlantique","Porte_conteneur_Trans-Suez","Porte_conteneur_Transpacifique","Porte_conteneur_autres_liaisons"]
[null,null,null,null,null,null,null,null,null,null,null,null,null,null,null,null,null,null,null,null,null,"Pétrolier_capacité≤5000tpl","Fioul_lourd_HFO","kg",0.503,3.14,{"$f":"Y7+Z7","v":3.6430000000000002},null,4.5999999999999999E-3,5.6000000000000001E-2,{"$f":"AB7+AC7+AD7","v":6.0600000000000001E-2},null,"Pétrolier_capacité≤5000tpl","Fioul_lourd_HFO","Fioul_lourd_HFO","Fioul_lourd_HFO","Fioul_lourd_HFO","Fioul_lourd_HFO","Fioul_lourd_HFO","Fioul_lourd_HFO","Fioul_lourd_HFO","Fioul_lourd_HFO","Fioul_lourd_HFO","Fioul_lourd_HFO","Fioul_lourd_HFO","Fioul_lourd_HFO","Fioul_lourd_HFO","Fioul_lourd_HFO","Fioul_lourd_HFO","Fioul_lourd_HFO","Fioul_lourd_HFO"]
[null,"DONNÉES A REMPLIR",null,null,null,null,null,null,null,null,null,null,null,null,null,null,null,null,null,null,null,"Pétrolier_capacité≤5000tpl","Gazole_MGO","kg",0.67600000000000005,3.17,{"$f":"Y8+Z8","v":3.8460000000000001},null,4.5999999999999999E-3,5.6000000000000001E-2,{"$f":"AB8+AC8+AD8","v":6.0600000000000001E-2},null,"Pétrolier_capacité≤60000tpl","Gazole_MGO","Gazole_MGO","Gazole_MGO","Gazole_MGO","Gazole_MGO","Gazole_MGO","Gazole_MGO","Gazole_MGO","Gazole_MGO","Gazole_MGO","Gazole_MGO","Gazole_MGO","Gazole_MGO","Gazole_MGO","Gazole_MGO","Gazole_MGO","Gazole_MGO","Gazole_MGO"]
[null,null,null,null,null,null,null,null,null,null,null,null,null,null,null,null,null,null,null,null,null,"Pétrolier_capacité≤60000tpl","Fioul_lourd_HFO","kg",0.503,3.14,3.6430000000000002,null,1.7099999999999999E-3,1.9E-2,2.0709999999999999E-2,null,"Pétrolier_capacité≤200000tpl",null,null,null,"Gaz_naturel_liquéfié_GNL",null,null,null,null,"Gaz_naturel_liquéfié_GNL",null,null,null,null,"Gaz_naturel_liquéfié_GNL","Gaz_naturel_liquéfié_GNL","Gaz_naturel_liquéfié_GNL","Gaz_naturel_liquéfié_GNL","Gaz_naturel_liquéfié_GNL"]
[null,null,null,null,null,null,null,null,null,null,null,null,null,null,null,null,null,null,null,null,null,"Pétrolier_capacité≤60000tpl","Gazole_MGO","kg",0.67600000000000005,3.17,3.8460000000000001,null,1.7099999999999999E-3,1.9E-2,2.0709999999999999E-2,null,"Pétrolier_capacité_sup_200000tpl"]
[null,null,null,null,null,null,null,null,null,null,null,null,null,null,null,null,null,null,null,null,null,"Pétrolier_capacité≤200000tpl","Fioul_lourd_HFO","kg",0.503,3.14,3.6430000000000002,null,{"$f":"1.1*Y11","v":0.55330000000000001},0,0.55330000000000001,null,"Cargo_divers_capacité≤10000tpl"]
[null,null,null,null,null,null,null,null,null,null,null,null,null,null,null,null,null,null,null,null,null,null,null,null,null,null,{"$f":"Y12+Z12","v":0},null,null,null,{"$f":"AB12+AC12+AD12","v":0},null,"Cargo_divers_capacité≤20000tpl"]
[null,null,null,null,null,null,null,null,null,null,null,null,null,null,null,null,null,null,null,null,null,null,null,null,null,null,{"$f":"Y13+Z13","v":0},null,null,null,{"$f":"AB13+AC13+AD13","v":0},null,"Vraquier_capacité≤10000tpl"]
[null,null,null,null,null,null,null,null,null,null,null,null,null,null,null,null,null,null,null,null,null,null,null,null,null,null,null,null,null,null,null,null,"Vraquier_capacité≤100000tpl"]
[null,null,null,null,null,null,null,null,null,"TOTAL (kgCO2e)",null,null,null,null,null,null,null,null,null,null,null,null,null,null,null,null,null,null,null,null,null,null,"Vraquier_capacité_sup_100000tpl"]
[null,null,null,null,null,null,null,null,null,{"$f":" SUM(J19:J25)","v":0},null,null,null,null,null,null,null,null,null,null,null,"Pétrolier_capacité≤200000tpl","Gazole_MGO","kg",0.67600000000000005,3.17,3.8460000000000001,null,0.30299999999999999,0,0.30299999999999999,null,"Roulier_mixte_RoPax"]
[null,null,null,null,null,null,null,null,null,null,null,null,null,null,null,null,null,null,null,null,null,"Pétrolier_capacité_sup_200000tpl","Fioul_lourd_HFO","kg",0.503,3.14,3.6430000000000002,null,7.45E-4,8.09E-3,8.8349999999999991E-3,null,"Roulier_RoRo_Moyen"]
[null,null,"Ville et Pays de départ\n[optionnel]","Ville et Pays d'arrivée\n[optionnel]","Type de véhicule","Type de carburant","Facteur d'émission de GES * (kgCO2e/tkm)","Quantité de carburant consommé lors de ce trajet (en kg)","Nombre de répétitions de ce trajet (avec la même consommation de carburant)\n[optionnel]","Calcul ** des émissions de GES pour ce transport (en kgCO2e)","Quels moyens de preuves pourriez-vous donner ?",null,null,null,null,null,null,null,null,null,null,"Pétrolier_capacité_sup_200000tpl","Gazole_MGO","kg",0.67600000000000005,3.17,3.8460000000000001,null,7.45E-4,8.09E-3,8.8349999999999991E-3,null,"Roulier_RoRo_Camions_Remorques"]
[null,null,null,null,null,null,{"$f":"_xlfn.XLOOKUP(Tableau_prestations_mc[[#This Row],[Type de véhicule]]&Tableau_prestations_mc[[#This Row],[Type de carburant]], $V$7:$V$53&$W$7:$W$53, $AA$7:$AA$53, 0,  0, )","v":0},null,null,{"$f":"IF(ISBLANK(I19),G19*H19,G19*H19*I19)","v":0},null,null,null,null,null,null,null,null,null,null,null,"Pétrolier_capacité_sup_200000tpl","Gaz_naturel_liquéfié_GNL","kg",0.69699999999999995,2.58,3.2770000000000001,null,6.9999999999999999E-4,1.9E-3,2.5999999999999999E-3,null,"Roulier_RoRo_Remorques_seules"]
[null,null,null,null,null,null,{"$f":"_xlfn.XLOOKUP(Tableau_prestations_mc[[#This Row],[Type de véhicule]]&Tableau_prestations_mc[[#This Row],[Type de carburant]], $V$7:$V$53&$W$7:$W$53, $AA$7:$AA$53, 0,  0, )","v":0},null,null,{"$f":"IF(ISBLANK(I20),G20*H20,G20*H20*I20)","v":0},null,null,null,null,null,null,null,null,null,null,null,"Cargo_divers_capacité≤10000tpl","Fioul_lourd_HFO","kg",0.503,3.14,3.6430000000000002,null,1.6900000000000001E-3,1.7399999999999999E-2,1.9089999999999999E-2,null,"Porte_conteneur_Panama_commercial"]
[null,null,null,null,null,null,{"$f":"_xlfn.XLOOKUP(Tableau_prestations_mc[[#This Row],[Type de véhicule]]&Tableau_prestations_mc[[#This Row],[Type de carburant]], $V$7:$V$53&$W$7:$W$53, $AA$7:$AA$53, 0,  0, )","v":0},null,null,0,null,null,null,null,null,null,null,null,null,null,null,"Cargo_divers_capacité≤10000tpl","Gazole_MGO","kg",0.67600000000000005,3.17,3.8460000000000001,null,1.6900000000000001E-3,1.7399999999999999E-2,1.9089999999999999E-2,null,"Porte_conteneur_Transatlantique"]
[null,null,null,null,null,null,{"$f":"_xlfn.XLOOKUP(Tableau_prestations_mc[[#This Row],[Type de véhicule]]&Tableau_prestations_mc[[#This Row],[Type de carburant]], $V$7:$V$53&$W$7:$W$53, $AA$7:$AA$53, 0,  0, )","v":0},null,null,0,null,null,null,null,null,null,null,null,null,null,null,"Cargo_divers_capacité≤20000tpl","Fioul_lourd_HFO","kg",0.503,3.14,3.6430000000000002,null,1.2099999999999999E-3,1.2E-2,1.321E-2,null,"Porte_conteneur_Trans-Suez"]
[null,null,null,null,null,null,{"$f":"_xlfn.XLOOKUP(Tableau_prestations_mc[[#This Row],[Type de véhicule]]&Tableau_prestations_mc[[#This Row],[Type de carburant]], $V$7:$V$53&$W$7:$W$53, $AA$7:$AA$53, 0,  0, )","v":0},null,null,0,null,null,null,null,null,null,null,null,null,null,null,"Cargo_divers_capacité≤20000tpl","Gazole_MGO","kg",0.67600000000000005,3.17,3.8460000000000001,null,1.2099999999999999E-3,1.2E-2,1.321E-2,null,"Porte_conteneur_Transpacifique"]
[null,null,null,null,null,null,{"$f":"_xlfn.XLOOKUP(Tableau_prestations_mc[[#This Row],[Type de véhicule]]&Tableau_prestations_mc[[#This Row],[Type de carburant]], $V$7:$V$53&$W$7:$W$53, $AA$7:$AA$53, 0,  0, )","v":0},null,null,{"$f":"IF(ISBLANK(I24),G24*H24,G24*H24*I24)","v":0},{"$f":"#REF! * J24J19 * G24 * H24","v":{"$error":"#REF!"}},null,null,null,null,null,null,null,null,null,null,"Vraquier_capacité≤10000tpl","Fioul_lourd_HFO","kg",0.503,3.14,3.6430000000000002,null,2.5400000000000002E-3,0.03,3.2539999999999999E-2,null,"Porte_conteneur_autres_liaisons"]
[null,null,null,null,null,null,{"$f":"_xlfn.XLOOKUP(Tableau_prestations_mc[[#This Row],[Type de véhicule]]&Tableau_prestations_mc[[#This Row],[Type de carburant]], $V$7:$V$53&$W$7:$W$53, $AA$7:$AA$53, 0,  0, )","v":0},null,null,{"$f":"IF(ISBLANK(I25),G25*H25,G25*H25*I25)","v":0},{"$f":"#REF! * J24J19 * G25 * H25","v":{"$error":"#REF!"}},null,null,null,null,null,null,null,null,null,null,"Vraquier_capacité≤10000tpl","Gazole_MGO","kg",0.67600000000000005,3.17,3.8460000000000001,null,2.5400000000000002E-3,0.03,3.2539999999999999E-2]
[null,null,null,null,null,null,null,null,null,null,null,null,null,null,null,null,null,null,null,null,null,"Vraquier_capacité≤100000tpl","Fioul_lourd_HFO","kg",0.503,3.14,3.6430000000000002,null,5.0799999999999999E-4,6.8999999999999999E-3,7.4079999999999997E-3]
[null,null,null,null,null,null,null,null,null,null,null,null,null,null,null,null,null,null,null,null,null,"Vraquier_capacité≤100000tpl","Gazole_MGO","kg",0.67600000000000005,3.17,3.8460000000000001,null,5.0799999999999999E-4,6.8999999999999999E-3,7.4079999999999997E-3]
[null,null,null,null,null,null,null,null,null,null,null,null,null,null,null,null,null,null,null,null,null,"Vraquier_capacité_sup_100000tpl","Fioul_lourd_HFO","kg",0.503,3.14,3.6430000000000002,null,2.03E-4,2.7000000000000001E-3,2.9030000000000002E-3]
[null,null,null,null,null,null,null,null,null,null,null,null,null,null,null,null,null,null,null,null,null,"Vraquier_capacité_sup_100000tpl","Gazole_MGO","kg",0.67600000000000005,3.17,3.8460000000000001,null,2.03E-4,2.7000000000000001E-3,2.9030000000000002E-3]
[null,null,null,null,null,null,null,null,null,null,null,null,null,null,null,null,null,null,null,null,null,"Vraquier_capacité_sup_100000tpl","Gaz_naturel_liquéfié_GNL","kg",0.69699999999999995,2.58,3.2770000000000001,null,6.9999999999999999E-4,2E-3,2.7000000000000001E-3]
[null,null,null,null,null,null,null,null,null,null,null,null,null,null,null,null,null,null,null,null,null,"Roulier_mixte_RoPax","Fioul_lourd_HFO","kg",0.503,3.14,3.6430000000000002,null,1.8800000000000001E-2,0.19,0.20880000000000001]
[null,null,null,null,null,null,null,null,null,null,null,null,null,null,null,null,null,null,null,null,null,"Roulier_mixte_RoPax","Gazole_MGO","kg",0.67600000000000005,3.17,3.8460000000000001,null,1.8800000000000001E-2,0.19,0.20880000000000001]
[null,null,null,null,null,null,null,null,null,null,null,null,null,null,null,null,null,null,null,null,null,"Roulier_RoRo_Moyen","Fioul_lourd_HFO","kg",0.503,3.14,3.6430000000000002,null,3.8500000000000001E-3,4.1799999999999997E-2,4.5649999999999996E-2]
[null,null,null,null,null,null,null,null,null,null,null,null,null,null,null,null,null,null,null,null,null,"Roulier_RoRo_Moyen","Gazole_MGO","kg",0.67600000000000005,3.17,3.8460000000000001,null,3.8500000000000001E-3,4.1799999999999997E-2,4.5649999999999996E-2]
[null,null,null,null,null,null,null,null,null,null,null,null,null,null,null,null,null,null,null,null,null,"Roulier_RoRo_Camions_Remorques","Fioul_lourd_HFO","kg",0.503,3.14,3.6430000000000002,null,8.6300000000000005E-3,9.2700000000000005E-2,0.10133]
[null,null,null,null,null,null,null,null,null,null,null,null,null,null,null,null,null,null,null,null,null,"Roulier_RoRo_Camions_Remorques","Gazole_MGO","kg",0.67600000000000005,3.17,3.8460000000000001,null,8.6300000000000005E-3,9.2700000000000005E-2,0.10133]
[null,null,null,null,null,null,null,null,null,null,null,null,null,null,null,null,null,null,null,null,null,"Roulier_RoRo_Remorques_seules","Fioul_lourd_HFO","kg",0.503,3.14,3.6430000000000002,null,5.8999999999999999E-3,6.2799999999999995E-2,6.8699999999999997E-2]
[null,null,null,null,null,null,null,null,null,null,null,null,null,null,null,null,null,null,null,null,null,"Roulier_RoRo_Remorques_seules","Gazole_MGO","kg",0.67600000000000005,3.17,3.8460000000000001,null,5.8999999999999999E-3,6.2799999999999995E-2,6.8699999999999997E-2]
[null,null,null,null,null,null,null,null,null,null,null,null,null,null,null,null,null,null,null,null,null,"Porte_conteneur_Panama_commercial","Fioul_lourd_HFO","kg",0.503,3.14,3.6430000000000002,null,6.9999999999999999E-4,8.2000000000000007E-3,8.8999999999999999E-3]
[null,null,null,null,null,null,null,null,null,null,null,null,null,null,null,null,null,null,null,null,null,"Porte_conteneur_Panama_commercial","Gazole_MGO","kg",0.67600000000000005,3.17,3.8460000000000001,null,6.9999999999999999E-4,8.2000000000000007E-3,8.8999999999999999E-3]
[null,null,null,null,null,null,null,null,null,null,null,null,null,null,null,null,null,null,null,null,null,"Porte_conteneur_Panama_commercial","Gaz_naturel_liquéfié_GNL","kg",0.69699999999999995,2.58,3.2770000000000001,null,6.9999999999999999E-4,8.2000000000000007E-3,8.8999999999999999E-3,null,"Fioul_lourd_HFO","kg"]
[null,null,null,null,null,null,null,null,null,null,null,null,null,null,null,null,null,null,null,null,null,"Porte_conteneur_Transatlantique","Fioul_lourd_HFO","kg",0.503,3.14,3.6430000000000002,null,8.4999999999999995E-4,9.7999999999999997E-3,1.065E-2,null,"Gazole_MGO","kg"]
[null,null,null,null,null,null,null,null,null,null,null,null,null,null,null,null,null,null,null,null,null,"Porte_conteneur_Transatlantique","Gazole_MGO","kg",0.67600000000000005,3.17,3.8460000000000001,null,8.4999999999999995E-4,9.7999999999999997E-3,1.065E-2,null,"Gaz_naturel_liquéfié_GNL","kg"]
[null,null,null,null,null,null,null,null,null,null,null,null,null,null,null,null,null,null,null,null,null,"Porte_conteneur_Transatlantique","Gaz_naturel_liquéfié_GNL","kg",0.69699999999999995,2.58,3.2770000000000001,null,8.4999999999999995E-4,9.7999999999999997E-3,1.065E-2]
[null,null,null,null,null,null,null,null,null,null,null,null,null,null,null,null,null,null,null,null,null,"Porte_conteneur_Trans-Suez","Fioul_lourd_HFO","kg",0.503,3.14,3.6430000000000002,null,5.8E-4,6.7999999999999996E-3,7.3799999999999994E-3]
[null,null,null,null,null,null,null,null,null,null,null,null,null,null,null,null,null,null,null,null,null,"Porte_conteneur_Trans-Suez","Gazole_MGO","kg",0.67600000000000005,3.17,3.8460000000000001,null,5.8E-4,6.7999999999999996E-3,7.3799999999999994E-3]
[null,null,null,null,null,null,null,null,null,null,null,null,null,null,null,null,null,null,null,null,null,"Porte_conteneur_Trans-Suez","Gaz_naturel_liquéfié_GNL","kg",0.69699999999999995,2.58,3.2770000000000001,null,5.8E-4,6.7999999999999996E-3,7.3799999999999994E-3]
[null,null,null,null,null,null,null,null,null,null,null,null,null,null,null,null,null,null,null,null,null,"Porte_conteneur_Transpacifique","Fioul_lourd_HFO","kg",0.503,3.14,3.6430000000000002,null,5.8E-4,6.7000000000000002E-3,7.28E-3]
[null,null,null,null,null,null,null,null,null,null,null,null,null,null,null,null,null,null,null,null,null,"Porte_conteneur_Transpacifique","Gazole_MGO","kg",0.67600000000000005,3.17,3.8460000000000001,null,5.8E-4,6.7000000000000002E-3,7.28E-3]
[null,null,null,null,null,null,null,null,null,null,null,null,null,null,null,null,null,null,null,null,null,"Porte_conteneur_Transpacifique","Gaz_naturel_liquéfié_GNL","kg",0.69699999999999995,2.58,3.2770000000000001,null,5.8E-4,6.7000000000000002E-3,7.28E-3]
[null,null,null,null,null,null,null,null,null,null,null,null,null,null,null,null,null,null,null,null,null,"Porte_conteneur_autres_liaisons","Fioul_lourd_HFO","kg",0.503,3.14,3.6430000000000002,null,7.6000000000000004E-4,8.8000000000000005E-3,9.5600000000000008E-3]
[null,null,null,null,null,null,null,null,null,null,null,null,null,null,null,null,null,null,null,null,null,"Porte_conteneur_autres_liaisons","Gazole_MGO","kg",0.67600000000000005,3.17,3.8460000000000001,null,7.6000000000000004E-4,8.8000000000000005E-3,9.5600000000000008E-3,null,"Oui"]
[null,null,null,null,null,null,null,null,null,null,null,null,null,null,null,null,null,null,null,null,null,"Porte_conteneur_autres_liaisons","Gaz_naturel_liquéfié_GNL","kg",0.60899999999999999,2.4900000000000002,3.0990000000000002,null,7.6000000000000004E-4,8.8000000000000005E-3,9.5600000000000008E-3,null,"Non"]

{"sheet":"5_Maritime","index":22,"n_rows":84,"n_cols":51,"rows_kept":84,"cut":false,"hidden":true,"merged":[[83,1,83,4],[1,1,1,15],[15,5,15,9],[15,10,15,13],[16,5,16,7],[16,10,16,11],[53,5,53,10],[53,11,53,12],[53,13,54,15],[54,5,54,6],[54,8,54,12]]}
[]
[null,"DÉTERMINATION DES ÉMISSIONS DE GAZ À EFFET DE SERRE GÉNÉRÉES PAR LES PRESTATIONS DE TRANSPORT MARITIME MOBILISÉES DANS LE MARCHÉ"]
[]
[null,"Raison sociale du titulaire",{"$f":"'1_Infos générales'!$C$9:$J$9","v":0}]
[]
[null,"Période de référence",{"$f":"'1_Infos générales'!$C$15","v":"Année"}]
[]
[null,"DONNÉES D'ENTRÉE"]
[]
[null,"Le titulaire est invité à renseigner les cellules jaunes ci-dessous",null,null,null,null,null,null,"Les données primaires sont les données mesurées ou obtenues par calcul à la suite de mesure"]
[null,"Les cellules bleues sont automatiquement complétées et ne peuvent être manuellement modifiées",null,null,null,null,null,null,"En cellule J17, le titulaire indique s'il dispose de données primaires de suivi des consommations de la flotte détenue pour les prestations de transport internalisées"]
[null,null,null,null,null,null,null,null,"→ Si oui, le titulaire renseigne les consommations en colonne I ; si non, il laisse la colonne I vide et les calculs seront réalisés selon des modélisations par défaut"]
[null,"Le titulaire peut regrouper à sa convenance les prestations de transport répondant à des caractéristiques communes (ex. externalisé, par type de navire et carburant commun)",null,null,null,null,null,null,"En cellule N17, le titulaire indique s'il dispose de données primaires de suivi des consommations des flottes mobilisées pour les prestations externalisées"]
[null,"Le nombre de lignes disponibles dans le tableau ci-dessous est limité sans possibilité d'ajouter de ligne supplémentaire ;",null,null,null,null,null,null,"→ Si oui, le titulaire renseigne les consommations en colonne M ; si non, il laisse la colonne M vide et les calculs seront réalisés selon des modélisations par défaut"]
[null,"le titulaire est donc invité à réduire aux maximum le nombre de lignes utilisées"]
[null,null,null,null,null,"Prestations de transport internalisées (réalisées avec des véhicules appartenant au titulaire)",null,null,null,null,"Prestations de transport externalisées"]
[null,"La colonne B sert à donner un intitulé (nom, numéro, etc. au choix du titulaire) à la ligne de données renseignée",null,null,null,"Informations sur l'activité de la flotte interne pour les prestations de transport visées",null,null,"Données primaires?","Oui","Informations sur l'activité externalisée pour les prestations de transport visées",null,"Données primaires?","Oui"]
[null,"Prestation de transport (agrégation possible à la convenance du titulaire - ex. une ligne regroupant tous les transports en porte-conteneur trans-Suez sur l'année, au gazole, à température dirigée)","Type de navire","Type de carburant","Transport sous température dirigée?","(Réservé)","Distance totale cumulée\n(km)","Masse totale de marchandises transportées\n(t)","Quantité totale d'énergie consommée","Unité","Distance totale cumulée\n(km)","Masse totale de marchandises transportées\n(t)","Quantité totale d'énergie consommée","Unité",null,null,null,null,null,null,null,"Type de véhicule","Type de carburant","Unité","Facteur d'émission (WTT)\n(kgCO2e/unité)","Facteur d'émission (TTW)\n(kgCO2e/unité)","Facteur d'émission (WTW)\n(kgCO2e/unité)","Intensité des émissions issues de la fabrication\n(kgCO2e/tkm)","Intensité des émissions WTT de GES\n(kgCO2e/tkm)","Intensité des émissions TTW de GES\n(kgCO2e/tkm)","Intensité des émissions de GES (WTW + fabrication)\n(kgCO2e/tkm)",null,null,"Pétrolier_capacité≤5000tpl","Pétrolier_capacité≤60000tpl","Pétrolier_capacité≤200000tpl","Pétrolier_capacité_sup_200000tpl","Cargo_divers_capacité≤10000tpl","Cargo_divers_capacité≤20000tpl","Vraquier_capacité≤10000tpl","Vraquier_capacité≤100000tpl","Vraquier_capacité_sup_100000tpl","Roulier_mixte_RoPax","Roulier_RoRo_Moyen","Roulier_RoRo_Camions_Remorques","Roulier_RoRo_Remorques_seules","Porte_conteneur_Panama_commercial","Porte_conteneur_Transatlantique","Porte_conteneur_Trans-Suez","Porte_conteneur_Transpacifique","Porte_conteneur_autres_liaisons"]
[null,null,null,null,null,null,null,null,null,{"$f":"IF(ISBLANK(D19),\"\",VLOOKUP($D19,$AG$49:$AH$51,2,FALSE))","v":""},null,null,null,{"$f":"J19","v":""},null,null,null,null,null,null,{"$f":"V19&W19","v":"Pétrolier_capacité≤5000tplFioul_lourd_HFO"},"Pétrolier_capacité≤5000tpl","Fioul_lourd_HFO","kg",0.503,3.14,{"$f":"Y19+Z19","v":3.6430000000000002},null,4.5999999999999999E-3,5.6000000000000001E-2,{"$f":"AB19+AC19+AD19","v":6.0600000000000001E-2},null,"Pétrolier_capacité≤5000tpl","Fioul_lourd_HFO","Fioul_lourd_HFO","Fioul_lourd_HFO","Fioul_lourd_HFO","Fioul_lourd_HFO","Fioul_lourd_HFO","Fioul_lourd_HFO","Fioul_lourd_HFO","Fioul_lourd_HFO","Fioul_lourd_HFO","Fioul_lourd_HFO","Fioul_lourd_HFO","Fioul_lourd_HFO","Fioul_lourd_HFO","Fioul_lourd_HFO","Fioul_lourd_HFO","Fioul_lourd_HFO","Fioul_lourd_HFO"]
[null,null,null,null,null,null,null,null,null,{"$f":"IF(ISBLANK(D20),\"\",VLOOKUP($D20,$AG$49:$AH$51,2,FALSE))","v":""},null,null,null,{"$f":"J20","v":""},null,null,null,null,null,null,{"$f":"V20&W20","v":"Pétrolier_capacité≤5000tplGazole_MGO"},"Pétrolier_capacité≤5000tpl","Gazole_MGO","kg",0.67600000000000005,3.17,{"$f":"Y20+Z20","v":3.8460000000000001},null,4.5999999999999999E-3,5.6000000000000001E-2,{"$f":"AB20+AC20+AD20","v":6.0600000000000001E-2},null,"Pétrolier_capacité≤60000tpl","Gazole_MGO","Gazole_MGO","Gazole_MGO","Gazole_MGO","Gazole_MGO","Gazole_MGO","Gazole_MGO","Gazole_MGO","Gazole_MGO","Gazole_MGO","Gazole_MGO","Gazole_MGO","Gazole_MGO","Gazole_MGO","Gazole_MGO","Gazole_MGO","Gazole_MGO","Gazole_MGO"]
[null,null,null,null,null,null,null,null,null,"",null,null,null,"",null,null,null,null,null,null,"Pétrolier_capacité≤60000tplFioul_lourd_HFO","Pétrolier_capacité≤60000tpl","Fioul_lourd_HFO","kg",0.503,3.14,3.6430000000000002,null,1.7099999999999999E-3,1.9E-2,2.0709999999999999E-2,null,"Pétrolier_capacité≤200000tpl",null,null,null,"Gaz_naturel_liquéfié_GNL",null,null,null,null,"Gaz_naturel_liquéfié_GNL",null,null,null,null,"Gaz_naturel_liquéfié_GNL","Gaz_naturel_liquéfié_GNL","Gaz_naturel_liquéfié_GNL","Gaz_naturel_liquéfié_GNL","Gaz_naturel_liquéfié_GNL"]
[null,null,null,null,null,null,null,null,null,"",null,null,null,"",null,null,null,null,null,null,"Pétrolier_capacité≤60000tplGazole_MGO","Pétrolier_capacité≤60000tpl","Gazole_MGO","kg",0.67600000000000005,3.17,3.8460000000000001,null,1.7099999999999999E-3,1.9E-2,{"$f":"AB22+AC22+AD22","v":2.0709999999999999E-2},null,"Pétrolier_capacité_sup_200000tpl"]
[null,null,null,null,null,null,null,null,null,"",null,null,null,"",null,null,null,null,null,null,"Pétrolier_capacité≤200000tplFioul_lourd_HFO","Pétrolier_capacité≤200000tpl","Fioul_lourd_HFO","kg",0.503,3.14,3.6430000000000002,null,{"$f":"1.1*Y23","v":0.55330000000000001},0,0.55330000000000001,null,"Cargo_divers_capacité≤10000tpl"]
[null,null,null,null,null,null,null,null,null,"",null,null,null,"",null,null,null,null,null,null,"Pétrolier_capacité≤200000tplGazole_MGO","Pétrolier_capacité≤200000tpl","Gazole_MGO","kg",0.67600000000000005,3.17,3.8460000000000001,null,0.30299999999999999,0,0.30299999999999999,null,"Cargo_divers_capacité≤20000tpl"]
[null,null,null,null,null,null,null,null,null,"",null,null,null,"",null,null,null,null,null,null,"Pétrolier_capacité_sup_200000tplFioul_lourd_HFO","Pétrolier_capacité_sup_200000tpl","Fioul_lourd_HFO","kg",0.503,3.14,3.6430000000000002,null,7.45E-4,8.09E-3,8.8349999999999991E-3,null,"Vraquier_capacité≤10000tpl"]
[null,null,null,null,null,null,null,null,null,"",null,null,null,"",null,null,null,null,null,null,"Pétrolier_capacité_sup_200000tplGazole_MGO","Pétrolier_capacité_sup_200000tpl","Gazole_MGO","kg",0.67600000000000005,3.17,3.8460000000000001,null,7.45E-4,8.09E-3,8.8349999999999991E-3,null,"Vraquier_capacité≤100000tpl"]
[null,null,null,null,null,null,null,null,null,"",null,null,null,"",null,null,null,null,null,null,"Pétrolier_capacité_sup_200000tplGaz_naturel_liquéfié_GNL","Pétrolier_capacité_sup_200000tpl","Gaz_naturel_liquéfié_GNL","kg",0.69699999999999995,2.58,3.2770000000000001,null,6.9999999999999999E-4,1.9E-3,2.5999999999999999E-3,null,"Vraquier_capacité_sup_100000tpl"]
[null,null,null,null,null,null,null,null,null,"",null,null,null,"",null,null,null,null,null,null,"Cargo_divers_capacité≤10000tplFioul_lourd_HFO","Cargo_divers_capacité≤10000tpl","Fioul_lourd_HFO","kg",0.503,3.14,3.6430000000000002,null,1.6900000000000001E-3,1.7399999999999999E-2,1.9089999999999999E-2,null,"Roulier_mixte_RoPax"]
[null,null,null,null,null,null,null,null,null,"",null,null,null,"",null,null,null,null,null,null,"Cargo_divers_capacité≤10000tplGazole_MGO","Cargo_divers_capacité≤10000tpl","Gazole_MGO","kg",0.67600000000000005,3.17,3.8460000000000001,null,1.6900000000000001E-3,1.7399999999999999E-2,1.9089999999999999E-2,null,"Roulier_RoRo_Moyen"]
[null,null,null,null,null,null,null,null,null,"",null,null,null,"",null,null,null,null,null,null,"Cargo_divers_capacité≤20000tplFioul_lourd_HFO","Cargo_divers_capacité≤20000tpl","Fioul_lourd_HFO","kg",0.503,3.14,3.6430000000000002,null,1.2099999999999999E-3,1.2E-2,{"$f":"AB30+AC30+AD30","v":1.321E-2},null,"Roulier_RoRo_Camions_Remorques"]
[null,null,null,null,null,null,null,null,null,"",null,null,null,"",null,null,null,null,null,null,"Cargo_divers_capacité≤20000tplGazole_MGO","Cargo_divers_capacité≤20000tpl","Gazole_MGO","kg",0.67600000000000005,3.17,3.8460000000000001,null,1.2099999999999999E-3,1.2E-2,1.321E-2,null,"Roulier_RoRo_Remorques_seules"]
[null,null,null,null,null,null,null,null,null,"",null,null,null,"",null,null,null,null,null,null,"Vraquier_capacité≤10000tplFioul_lourd_HFO","Vraquier_capacité≤10000tpl","Fioul_lourd_HFO","kg",0.503,3.14,3.6430000000000002,null,2.5400000000000002E-3,0.03,3.2539999999999999E-2,null,"Porte_conteneur_Panama_commercial"]
[null,null,null,null,null,null,null,null,null,"",null,null,null,{"$f":"J33","v":""},null,null,null,null,null,null,"Vraquier_capacité≤10000tplGazole_MGO","Vraquier_capacité≤10000tpl","Gazole_MGO","kg",0.67600000000000005,3.17,3.8460000000000001,null,2.5400000000000002E-3,0.03,{"$f":"AB33+AC33+AD33","v":3.2539999999999999E-2},null,"Porte_conteneur_Transatlantique"]
[null,null,null,null,null,null,null,null,null,"",null,null,null,"",null,null,null,null,null,null,"Vraquier_capacité≤100000tplFioul_lourd_HFO","Vraquier_capacité≤100000tpl","Fioul_lourd_HFO","kg",0.503,3.14,3.6430000000000002,null,5.0799999999999999E-4,6.8999999999999999E-3,7.4079999999999997E-3,null,"Porte_conteneur_Trans-Suez"]
[null,null,null,null,null,null,null,null,null,"",null,null,null,"",null,null,null,null,null,null,"Vraquier_capacité≤100000tplGazole_MGO","Vraquier_capacité≤100000tpl","Gazole_MGO","kg",0.67600000000000005,3.17,3.8460000000000001,null,5.0799999999999999E-4,6.8999999999999999E-3,{"$f":"AB35+AC35+AD35","v":7.4079999999999997E-3},null,"Porte_conteneur_Transpacifique"]
[null,null,null,null,null,null,null,null,null,"",null,null,null,"",null,null,null,null,null,null,"Vraquier_capacité_sup_100000tplFioul_lourd_HFO","Vraquier_capacité_sup_100000tpl","Fioul_lourd_HFO","kg",0.503,3.14,3.6430000000000002,null,2.03E-4,2.7000000000000001E-3,2.9030000000000002E-3,null,"Porte_conteneur_autres_liaisons"]
[null,null,null,null,null,null,null,null,null,"",null,null,null,"",null,null,null,null,null,null,"Vraquier_capacité_sup_100000tplGazole_MGO","Vraquier_capacité_sup_100000tpl","Gazole_MGO","kg",0.67600000000000005,3.17,3.8460000000000001,null,2.03E-4,2.7000000000000001E-3,{"$f":"AB37+AC37+AD37","v":2.9030000000000002E-3}]
[null,null,null,null,null,null,null,null,null,"",null,null,null,"",null,null,null,null,null,null,"Vraquier_capacité_sup_100000tplGaz_naturel_liquéfié_GNL","Vraquier_capacité_sup_100000tpl","Gaz_naturel_liquéfié_GNL","kg",0.69699999999999995,2.58,3.2770000000000001,null,6.9999999999999999E-4,2E-3,2.7000000000000001E-3]
[null,null,null,null,null,null,null,null,null,"",null,null,null,"",null,null,null,null,null,null,"Roulier_mixte_RoPaxFioul_lourd_HFO","Roulier_mixte_RoPax","Fioul_lourd_HFO","kg",0.503,3.14,3.6430000000000002,null,1.8800000000000001E-2,0.19,0.20880000000000001]
[null,null,null,null,null,null,null,null,null,"",null,null,null,"",null,null,null,null,null,null,"Roulier_mixte_RoPaxGazole_MGO","Roulier_mixte_RoPax","Gazole_MGO","kg",0.67600000000000005,3.17,3.8460000000000001,null,1.8800000000000001E-2,0.19,{"$f":"AB40+AC40+AD40","v":0.20880000000000001}]
[null,null,null,null,null,null,null,null,null,"",null,null,null,"",null,null,null,null,null,null,"Roulier_RoRo_MoyenFioul_lourd_HFO","Roulier_RoRo_Moyen","Fioul_lourd_HFO","kg",0.503,3.14,3.6430000000000002,null,3.8500000000000001E-3,4.1799999999999997E-2,4.5649999999999996E-2]
[null,null,null,null,null,null,null,null,null,"",null,null,null,"",null,null,null,null,null,null,"Roulier_RoRo_MoyenGazole_MGO","Roulier_RoRo_Moyen","Gazole_MGO","kg",0.67600000000000005,3.17,3.8460000000000001,null,3.8500000000000001E-3,4.1799999999999997E-2,{"$f":"AB42+AC42+AD42","v":4.5649999999999996E-2}]
[null,null,null,null,null,null,null,null,null,"",null,null,null,"",null,null,null,null,null,null,"Roulier_RoRo_Camions_RemorquesFioul_lourd_HFO","Roulier_RoRo_Camions_Remorques","Fioul_lourd_HFO","kg",0.503,3.14,3.6430000000000002,null,8.6300000000000005E-3,9.2700000000000005E-2,0.10133]
[null,null,null,null,null,null,null,null,null,"",null,null,null,"",null,null,null,null,null,null,"Roulier_RoRo_Camions_RemorquesGazole_MGO","Roulier_RoRo_Camions_Remorques","Gazole_MGO","kg",0.67600000000000005,3.17,3.8460000000000001,null,8.6300000000000005E-3,9.2700000000000005E-2,{"$f":"AB44+AC44+AD44","v":0.10133}]
[null,null,null,null,null,null,null,null,null,null,null,null,null,null,null,null,null,null,null,null,"Roulier_RoRo_Remorques_seulesFioul_lourd_HFO","Roulier_RoRo_Remorques_seules","Fioul_lourd_HFO","kg",0.503,3.14,3.6430000000000002,null,5.8999999999999999E-3,6.2799999999999995E-2,6.8699999999999997E-2]
[null,"RÉSULTATS",null,null,null,null,null,null,null,null,null,null,null,null,null,null,null,null,null,null,"Roulier_RoRo_Remorques_seulesGazole_MGO","Roulier_RoRo_Remorques_seules","Gazole_MGO","kg",0.67600000000000005,3.17,3.8460000000000001,null,5.8999999999999999E-3,6.2799999999999995E-2,{"$f":"AB46+AC46+AD46","v":6.8699999999999997E-2}]
[null,null,null,null,null,null,null,null,null,null,null,null,null,null,null,null,null,null,null,null,"Porte_conteneur_Panama_commercialFioul_lourd_HFO","Porte_conteneur_Panama_commercial","Fioul_lourd_HFO","kg",0.503,3.14,3.6430000000000002,null,6.9999999999999999E-4,8.2000000000000007E-3,8.8999999999999999E-3]
[null,"Scope 1 : émissions directes de GES",null,null,null,null,null,null,null,"TTW (tank-to-wheel) = émissions \"du réservoir à la roue\" (combustion)",null,null,null,null,null,null,null,null,null,null,"Porte_conteneur_Panama_commercialGazole_MGO","Porte_conteneur_Panama_commercial","Gazole_MGO","kg",0.67600000000000005,3.17,3.8460000000000001,null,6.9999999999999999E-4,8.2000000000000007E-3,{"$f":"AB48+AC48+AD48","v":8.8999999999999999E-3}]
[null,"Scope 2 : émissions indirectes de GES issues de l'électricité consommée",null,null,null,null,null,null,null,"WTT (well-to-tank) = émissions \"du puits au réservoir\" (production de l'énergie en amont)",null,null,null,null,null,null,null,null,null,null,"Porte_conteneur_Panama_commercialGaz_naturel_liquéfié_GNL","Porte_conteneur_Panama_commercial","Gaz_naturel_liquéfié_GNL","kg",0.69699999999999995,2.58,3.2770000000000001,null,6.9999999999999999E-4,8.2000000000000007E-3,{"$f":"AB49+AC49+AD49","v":8.8999999999999999E-3},null,"Fioul_lourd_HFO","kg"]
[null,"Scope 3 : autres émissions indirectes de GES - incluent les émissions amont de production des carburants et des véhicules ainsi que toutes les émissions du transport externalisé",null,null,null,null,null,null,null,"WTW (well-to-wheel) = émissions \"du puits à la roue\" (cycle de vie complet de l'énergie)",null,null,null,null,null,null,null,null,null,null,"Porte_conteneur_TransatlantiqueFioul_lourd_HFO","Porte_conteneur_Transatlantique","Fioul_lourd_HFO","kg",0.503,3.14,3.6430000000000002,null,8.4999999999999995E-4,9.7999999999999997E-3,1.065E-2,null,"Gazole_MGO","kg"]
[null,null,null,null,null,null,null,null,null,null,null,null,null,null,null,null,null,null,null,null,"Porte_conteneur_TransatlantiqueGazole_MGO","Porte_conteneur_Transatlantique","Gazole_MGO","kg",0.67600000000000005,3.17,3.8460000000000001,null,8.4999999999999995E-4,9.7999999999999997E-3,{"$f":"AB51+AC51+AD51","v":1.065E-2},null,"Gaz_naturel_liquéfié_GNL","kg"]
[null,"Pour le transport sous température dirigée, les émissions totales de GES sont majorées de 70 % sous l'effet des fuites de fluides frigorigènes",null,null,null,null,null,null,null,null,null,null,null,null,null,null,null,null,null,null,"Porte_conteneur_TransatlantiqueGaz_naturel_liquéfié_GNL","Porte_conteneur_Transatlantique","Gaz_naturel_liquéfié_GNL","kg",0.69699999999999995,2.58,3.2770000000000001,null,8.4999999999999995E-4,9.7999999999999997E-3,{"$f":"AB52+AC52+AD52","v":1.065E-2}]
[null,null,null,null,null,null,null,null,null,null,null,null,null,null,null,null,null,null,null,null,"Porte_conteneur_Trans-SuezFioul_lourd_HFO","Porte_conteneur_Trans-Suez","Fioul_lourd_HFO","kg",0.503,3.14,3.6430000000000002,null,5.8E-4,6.7999999999999996E-3,7.3799999999999994E-3]
[null,null,null,null,null,"Prestations de transport internalisées",null,null,null,null,null,"Prestations de transport externalisées",null,"BILAN GLOBAL",null,null,null,null,null,null,"Porte_conteneur_Trans-SuezGazole_MGO","Porte_conteneur_Trans-Suez","Gazole_MGO","kg",0.67600000000000005,3.17,3.8460000000000001,null,5.8E-4,6.7999999999999996E-3,{"$f":"AB54+AC54+AD54","v":7.3799999999999994E-3}]
[null,null,null,null,null,"Scope 1",null,"Scope 2","Scope 3",null,null,null,null,null,null,null,null,null,null,null,"Porte_conteneur_Trans-SuezGaz_naturel_liquéfié_GNL","Porte_conteneur_Trans-Suez","Gaz_naturel_liquéfié_GNL","kg",0.69699999999999995,2.58,3.2770000000000001,null,5.8E-4,6.7999999999999996E-3,7.3799999999999994E-3]
[null,"Prestation de transport","Type de navire","Type de carburant","Transport sous température dirigée?","Activité totale de transport internalisée\n(tkm)","Émissions directes (TTW) de GES\n(kgCO2e)","Émissions indirectes (WTT) de GES issues de l'électricité consommée\n(kgCO2e)","Rappel activité totale de transport internalisée\n(tkm)","Émissions indirectes de GES issues de la fabrication des véhicules\n(kgCO2e)","Émissions indirectes (WTT) de GES issues du carburant consommé\n(kgCO2e)","Activité totale de transport externalisée\n(tkm)","Émissions de GES (WTW + fabrication) \n(kgCO2e)","Activité totale de transport \n(tkm)","Émissions de GES\n(kgCO2e)","Intensité des émissions de GES\n(kgCO2e/tkm)",null,null,null,null,"Porte_conteneur_TranspacifiqueFioul_lourd_HFO","Porte_conteneur_Transpacifique","Fioul_lourd_HFO","kg",0.503,3.14,3.6430000000000002,null,5.8E-4,6.7000000000000002E-3,7.28E-3]
[null,{"$f":"B19","v":0},0,0,0,{"$f":"G19*H19","v":0},{"$f":"IF(OR($C57=0,$D57=0),0,IF($J$17=\"Oui\",$I19*VLOOKUP($C57&$D57,$U$19:$AE$61,6,FALSE),$F57*VLOOKUP($C57&$D57,$U$19:$AE$61,10,FALSE)))","v":0},{"$f":"IF($D57<>\"Électricité\",0,IF($J$17=\"Oui\",$I19*VLOOKUP($C57&$D57,$U$19:$AE$61,5,FALSE),$F57*VLOOKUP($C57&$D57,$U$19:$AE$61,9,FALSE)))","v":0},{"$f":"F57","v":0},{"$f":"IF(OR($C57=0,$D57=0),0,$F57*VLOOKUP($C57&$D57,$U$19:$AE$61,8,FALSE))","v":0},{"$f":"IF(OR($C57=0,$D57=0),0,IF($D57=\"Électricité\",0,IF($J$17=\"Oui\",$I19*VLOOKUP($C57&$D57,$U$19:$AE$61,5,FALSE),$F57*VLOOKUP($C57&$D57,$U$19:$AE$61,9,FALSE))))","v":0},{"$f":"K19*L19","v":0},{"$f":"IF(OR($C57=0,$D57=0),0,IF($N$17=\"Oui\",$M19*VLOOKUP($C57&$D57,$U$19:$AE$61,7,FALSE)+$L57*VLOOKUP(C57&D57,$U$19:$AE$61,8,FALSE),$L57*VLOOKUP($C57&$D57,$U$19:$AE$61,11,FALSE)))","v":0},{"$f":"I57+L57","v":0},{"$f":"IF(E57=\"Non\",G57+H57+J57+K57+M57,1.7*(G57+H57+J57+K57+M57))","v":0},{"$f":"O57/N57","v":{"$error":"#DIV/0!"}},null,null,null,null,"Porte_conteneur_TranspacifiqueGazole_MGO","Porte_conteneur_Transpacifique","Gazole_MGO","kg",0.67600000000000005,3.17,3.8460000000000001,null,5.8E-4,6.7000000000000002E-3,{"$f":"AB57+AC57+AD57","v":7.28E-3}]
[null,0,0,0,0,0,{"$f":"IF(OR($C58=0,$D58=0),0,IF($J$17=\"Oui\",$I20*VLOOKUP($C58&$D58,$U$19:$AE$61,6,FALSE),$F58*VLOOKUP($C58&$D58,$U$19:$AE$61,10,FALSE)))","v":0},0,{"$f":"F58","v":0},{"$f":"IF(OR($C58=0,$D58=0),0,$F58*VLOOKUP($C58&$D58,$U$19:$AE$61,8,FALSE))","v":0},{"$f":"IF(OR($C58=0,$D58=0),0,IF($D58=\"Électricité\",0,IF($J$17=\"Oui\",$I20*VLOOKUP($C58&$D58,$U$19:$AE$61,5,FALSE),$F58*VLOOKUP($C58&$D58,$U$19:$AE$61,9,FALSE))))","v":0},0,{"$f":"IF(OR($C58=0,$D58=0),0,IF($N$17=\"Oui\",$M20*VLOOKUP($C58&$D58,$U$19:$AE$61,7,FALSE)+$L58*VLOOKUP(C58&D58,$U$19:$AE$61,8,FALSE),$L58*VLOOKUP($C58&$D58,$U$19:$AE$61,11,FALSE)))","v":0},{"$f":"I58+L58","v":0},{"$f":"IF(E58=\"Non\",G58+H58+J58+K58+M58,1.7*(G58+H58+J58+K58+M58))","v":0},{"$f":"O58/N58","v":{"$error":"#DIV/0!"}},null,null,null,null,"Porte_conteneur_TranspacifiqueGaz_naturel_liquéfié_GNL","Porte_conteneur_Transpacifique","Gaz_naturel_liquéfié_GNL","kg",0.69699999999999995,2.58,3.2770000000000001,null,5.8E-4,6.7000000000000002E-3,7.28E-3]
[null,0,0,0,0,0,0,0,0,0,0,0,0,0,0,{"$error":"#DIV/0!"},null,null,null,null,"Porte_conteneur_autres_liaisonsFioul_lourd_HFO","Porte_conteneur_autres_liaisons","Fioul_lourd_HFO","kg",0.503,3.14,3.6430000000000002,null,7.6000000000000004E-4,8.8000000000000005E-3,9.5600000000000008E-3]
[null,0,0,0,0,0,0,0,0,0,0,0,0,0,0,{"$error":"#DIV/0!"},null,null,null,null,"Porte_conteneur_autres_liaisonsGazole_MGO","Porte_conteneur_autres_liaisons","Gazole_MGO","kg",0.67600000000000005,3.17,3.8460000000000001,null,7.6000000000000004E-4,8.8000000000000005E-3,{"$f":"AB60+AC60+AD60","v":9.5600000000000008E-3},null,"Oui"]
[null,0,0,0,0,0,0,0,0,0,0,0,0,0,0,{"$error":"#DIV/0!"},null,null,null,null,"Porte_conteneur_autres_liaisonsGaz_naturel_liquéfié_GNL","Porte_conteneur_autres_liaisons","Gaz_naturel_liquéfié_GNL","kg",0.60899999999999999,2.4900000000000002,3.0990000000000002,null,7.6000000000000004E-4,8.8000000000000005E-3,9.5600000000000008E-3,null,"Non"]
[null,0,0,0,0,0,0,0,0,0,0,0,0,0,0,{"$error":"#DIV/0!"}]
[null,0,0,0,0,0,0,0,0,0,0,0,0,0,0,{"$error":"#DIV/0!"}]
[null,0,0,0,0,0,0,0,0,0,0,0,0,0,0,{"$error":"#DIV/0!"}]
[null,0,0,0,0,0,0,0,0,0,0,0,0,0,0,{"$error":"#DIV/0!"}]
[null,0,0,0,0,0,0,0,0,0,0,0,0,0,0,{"$error":"#DIV/0!"}]
[null,0,0,0,0,0,0,0,0,0,0,0,0,0,0,{"$error":"#DIV/0!"}]
[null,0,0,0,0,0,0,0,0,0,0,0,0,0,0,{"$error":"#DIV/0!"}]
[null,0,0,0,0,0,0,0,0,0,0,0,0,0,0,{"$error":"#DIV/0!"}]
[null,0,0,0,0,0,0,0,0,0,0,0,0,0,0,{"$error":"#DIV/0!"}]
[null,0,0,0,0,0,0,0,{"$f":"F71","v":0},0,0,0,0,{"$f":"I71+L71","v":0},0,{"$f":"O71/N71","v":{"$error":"#DIV/0!"}}]
[null,0,0,0,0,0,0,0,0,0,0,0,0,0,0,{"$error":"#DIV/0!"}]
[null,0,0,0,0,0,0,0,0,0,0,0,0,0,0,{"$error":"#DIV/0!"}]
[null,0,0,0,0,0,0,0,0,0,0,0,0,0,0,{"$error":"#DIV/0!"}]
[null,0,0,0,0,0,0,0,0,0,0,0,0,0,0,{"$error":"#DIV/0!"}]
[null,0,0,0,0,0,0,0,0,0,0,0,0,0,0,{"$error":"#DIV/0!"}]
[null,0,0,0,0,0,0,0,0,0,0,0,0,0,0,{"$error":"#DIV/0!"}]
[null,0,0,0,0,0,0,0,0,0,0,0,0,0,0,{"$error":"#DIV/0!"}]
[null,0,0,0,0,0,0,0,0,0,0,0,0,0,0,{"$error":"#DIV/0!"}]
[null,0,0,0,0,0,0,0,0,0,0,0,0,0,0,{"$error":"#DIV/0!"}]
[null,0,0,0,0,0,0,0,0,0,0,0,0,0,0,{"$error":"#DIV/0!"}]
[null,{"$f":"B44","v":0},0,0,0,0,0,0,0,0,0,0,0,0,0,{"$error":"#DIV/0!"}]
[]
[null,"TOTAL",null,null,null,{"$f":"SUM(F57:F82)","v":0},0,0,0,0,0,0,0,0,0,{"$f":"O84/N84","v":{"$error":"#DIV/0!"}}]

{"sheet":"6_Aérien tkm","index":23,"n_rows":70,"n_cols":47,"rows_kept":70,"cut":false,"hidden":false,"merged":[[0,3,0,11],[10,6,10,11]]}
[null,null,null,"DÉTERMINATION DES ÉMISSIONS DE GAZ À EFFET DE SERRE GÉNÉRÉES PAR LES PRESTATIONS DE TRANSPORT AERIEN MOBILISÉES DANS LE MARCHÉ"]
[]
[]
[]
[null,"Raison sociale du titulaire",{"$f":"'1_Infos générales'!$C$9:$J$9","v":0}]
[]
[null,"Période de référence",{"$f":"'1_Infos générales'!$C$15","v":"Année"}]
[]
[]
[]
[null,"DONNÉES A REMPLIR"]
[]
[]
[]
[null,null,null,null,null,null,null,null,null,null,"TOTAL (kgCO2e)"]
[null,null,null,null,null,null,null,null,null,null,{"$f":" SUM(K19:K27)","v":0}]
[]
[null,null,"Ville et Pays de départ\n[optionnel]","Ville et Pays d'arrivée\n[optionnel]","Type d'appareil","Type de carburant","Facteur d'émission de GES * (kgCO2e/tkm)","Distance parcourue lors de ce trajet (en km) ","Masse de marchandises transportées lors de ce trajet (en tonnes)","Nombre de répétitions de ce trajet (avec la même masse transportée)\n[optionnel]","Calcul ** des émissions de GES pour ce transport (en kgCO2e)","Quels moyens de preuves pourriez-vous donner ?"]
[null,null,null,null,null,null,{"$f":"_xlfn.XLOOKUP(Tableau_prestations_atkm[[#This Row],[Type d''appareil]]&Tableau_prestations_atkm[[#This Row],[Type de carburant]], $V$29:$V$70&$W$29:$W$70, $AE$29:$AE$70, 0,  0, )","v":0},null,null,null,{"$f":"IF(ISBLANK(J19),G19*H19*I19,G19*H19*I19*J19)","v":0}]
[null,null,null,null,null,null,{"$f":"_xlfn.XLOOKUP(Tableau_prestations_atkm[[#This Row],[Type d''appareil]]&Tableau_prestations_atkm[[#This Row],[Type de carburant]], $V$29:$V$70&$W$29:$W$70, $AE$29:$AE$70, 0,  0, )","v":0},null,null,null,0]
[null,null,null,null,null,null,{"$f":"_xlfn.XLOOKUP(Tableau_prestations_atkm[[#This Row],[Type d''appareil]]&Tableau_prestations_atkm[[#This Row],[Type de carburant]], $V$29:$V$70&$W$29:$W$70, $AE$29:$AE$70, 0,  0, )","v":0},null,null,null,0]
[null,null,null,null,null,null,{"$f":"_xlfn.XLOOKUP(Tableau_prestations_atkm[[#This Row],[Type d''appareil]]&Tableau_prestations_atkm[[#This Row],[Type de carburant]], $V$29:$V$70&$W$29:$W$70, $AE$29:$AE$70, 0,  0, )","v":0},null,null,null,0]
[null,null,null,null,null,null,{"$f":"_xlfn.XLOOKUP(Tableau_prestations_atkm[[#This Row],[Type d''appareil]]&Tableau_prestations_atkm[[#This Row],[Type de carburant]], $V$29:$V$70&$W$29:$W$70, $AE$29:$AE$70, 0,  0, )","v":0},null,null,null,0]
[null,null,null,null,null,null,{"$f":"_xlfn.XLOOKUP(Tableau_prestations_atkm[[#This Row],[Type d''appareil]]&Tableau_prestations_atkm[[#This Row],[Type de carburant]], $V$29:$V$70&$W$29:$W$70, $AE$29:$AE$70, 0,  0, )","v":0},null,null,null,0]
[null,null,null,null,null,null,{"$f":"_xlfn.XLOOKUP(Tableau_prestations_atkm[[#This Row],[Type d''appareil]]&Tableau_prestations_atkm[[#This Row],[Type de carburant]], $V$29:$V$70&$W$29:$W$70, $AE$29:$AE$70, 0,  0, )","v":0},null,null,null,0]
[null,null,null,null,null,null,{"$f":"_xlfn.XLOOKUP(Tableau_prestations_atkm[[#This Row],[Type d''appareil]]&Tableau_prestations_atkm[[#This Row],[Type de carburant]], $V$29:$V$70&$W$29:$W$70, $AE$29:$AE$70, 0,  0, )","v":0},null,null,null,{"$f":"IF(ISBLANK(J26),G26*H26*I26,G26*H26*I26*J26)","v":0}]
[null,null,null,null,null,null,{"$f":"_xlfn.XLOOKUP(Tableau_prestations_atkm[[#This Row],[Type d''appareil]]&Tableau_prestations_atkm[[#This Row],[Type de carburant]], $V$29:$V$70&$W$29:$W$70, $AE$29:$AE$70, 0,  0, )","v":0},null,null,null,{"$f":"IF(ISBLANK(J27),G27*H27*I27,G27*H27*I27*J27)","v":0}]
[null,null,null,null,null,null,null,null,null,null,null,null,null,null,null,null,null,null,null,null,null,"Type d'appareil","Type de carburant","Unité","Facteur d'émission (WTT)\n(kgCO2e/unité)","Facteur d'émission (TTW)\n(kgCO2e/unité)","Facteur d'émission (WTW)\n(kgCO2e/unité)","Intensité des émissions issues de la fabrication\n(kgCO2e/tkm)","Intensité des émissions WTT de GES\n(kgCO2e/tkm)","Intensité des émissions TTW de GES\n(kgCO2e/tkm)","Intensité des émissions de GES (WTW + fabrication)\n(kgCO2e/tkm)",null,null,"Passagers≤50p_D≤1000km","Passagers≤50p_D≤3500km","Passagers≤100p_D≤1000km","Passagers≤100p_D≤3500km","Passagers≤220p_D≤1000km","Passagers≤220p_D≤3500km","Passagers≤220p_Dmin_3501km","Passagers_min_221p_D≤3500km","Passagers_min_221p_Dmin_3501km","Cargo_capacité≤25t","Cargo_capacité≤100t","Cargo_capacité_sup_100t_D≤1000km","Cargo_capacité_sup_100t_D≤3500km","Cargo_capacité_sup_100t_Dmin_3501km"]
[null,null,null,null,null,null,null,null,null,null,null,null,null,null,null,null,null,null,null,null,null,"Passagers≤50p_D≤1000km","Kérosène_Jet_A1_A","l",0.53200000000000003,2.5299999999999998,{"$f":"Y29+Z29","v":3.0619999999999998},4.7499999999999999E-3,0.38400000000000001,1.85,{"$f":"AB29+AC29+AD29","v":2.23875},null,"Passagers≤50p_D≤1000km","Kérosène_Jet_A1_A","Kérosène_Jet_A1_A","Kérosène_Jet_A1_A","Kérosène_Jet_A1_A","Kérosène_Jet_A1_A","Kérosène_Jet_A1_A","Kérosène_Jet_A1_A","Kérosène_Jet_A1_A","Kérosène_Jet_A1_A","Kérosène_Jet_A1_A","Kérosène_Jet_A1_A","Kérosène_Jet_A1_A","Kérosène_Jet_A1_A","Kérosène_Jet_A1_A"]
[null,null,null,null,null,null,null,null,null,null,null,null,null,null,null,null,null,null,null,null,null,"Passagers≤50p_D≤1000km","Carburéacteur_Jet_B","l",0.53500000000000003,2.48,{"$f":"Y30+Z30","v":3.0150000000000001},4.7499999999999999E-3,0.38400000000000001,1.85,{"$f":"AB30+AC30+AD30","v":2.23875},null,"Passagers≤50p_D≤3500km","Carburéacteur_Jet_B","Carburéacteur_Jet_B","Carburéacteur_Jet_B","Carburéacteur_Jet_B","Carburéacteur_Jet_B","Carburéacteur_Jet_B","Carburéacteur_Jet_B","Carburéacteur_Jet_B","Carburéacteur_Jet_B","Carburéacteur_Jet_B","Carburéacteur_Jet_B","Carburéacteur_Jet_B","Carburéacteur_Jet_B","Carburéacteur_Jet_B"]
[null,null,null,null,null,null,null,null,null,null,null,null,null,null,null,null,null,null,null,null,null,"Passagers≤50p_D≤1000km","Essence_AvGas","l",0.53500000000000003,2.48,3.0150000000000001,4.7499999999999999E-3,0.38400000000000001,1.85,2.23875,null,"Passagers≤100p_D≤1000km","Essence_AvGas","Essence_AvGas","Essence_AvGas","Essence_AvGas","Essence_AvGas","Essence_AvGas","Essence_AvGas","Essence_AvGas","Essence_AvGas","Essence_AvGas","Essence_AvGas","Essence_AvGas","Essence_AvGas","Essence_AvGas"]
[null,null,null,null,null,null,null,null,null,null,null,null,null,null,null,null,null,null,null,null,null,"Passagers≤50p_D≤3500km","Kérosène_Jet_A1_A","l",0.53200000000000003,2.5299999999999998,{"$f":"Y32+Z32","v":3.0619999999999998},4.9300000000000004E-3,0.48699999999999999,2.35,2.8419300000000001,null,"Passagers≤100p_D≤3500km"]
[null,null,null,null,null,null,null,null,null,null,null,null,null,null,null,null,null,null,null,null,null,"Passagers≤50p_D≤3500km","Carburéacteur_Jet_B","l",0.53500000000000003,2.48,{"$f":"Y33+Z33","v":3.0150000000000001},4.9300000000000004E-3,0.48699999999999999,2.35,2.8419300000000001,null,"Passagers≤220p_D≤1000km"]
[null,null,null,null,null,null,null,null,null,null,null,null,null,null,null,null,null,null,null,null,null,"Passagers≤50p_D≤3500km","Essence_AvGas","l",0.53500000000000003,2.48,3.0150000000000001,4.9300000000000004E-3,0.48699999999999999,2.35,2.8419300000000001,null,"Passagers≤220p_D≤3500km"]
[null,null,null,null,null,null,null,null,null,null,null,null,null,null,null,null,null,null,null,null,null,"Passagers≤100p_D≤1000km","Kérosène_Jet_A1_A","l",0.53200000000000003,2.5299999999999998,{"$f":"Y35+Z35","v":3.0619999999999998},4.2900000000000004E-3,0.315,1.52,1.8392900000000001,null,"Passagers≤220p_Dmin_3501km"]
[null,null,null,null,null,null,null,null,null,null,null,null,null,null,null,null,null,null,null,null,null,"Passagers≤100p_D≤1000km","Carburéacteur_Jet_B","l",0.53500000000000003,2.48,{"$f":"Y36+Z36","v":3.0150000000000001},4.2900000000000004E-3,0.315,1.52,1.8392900000000001,null,"Passagers_min_221p_D≤3500km"]
[null,null,null,null,null,null,null,null,null,null,null,null,null,null,null,null,null,null,null,null,null,"Passagers≤100p_D≤1000km","Essence_AvGas","l",0.53500000000000003,2.48,3.0150000000000001,4.2900000000000004E-3,0.315,1.52,1.8392900000000001,null,"Passagers_min_221p_Dmin_3501km"]
[null,null,null,null,null,null,null,null,null,null,null,null,null,null,null,null,null,null,null,null,null,"Passagers≤100p_D≤3500km","Kérosène_Jet_A1_A","l",0.53200000000000003,2.5299999999999998,{"$f":"Y38+Z38","v":3.0619999999999998},3.3400000000000001E-3,0.25,1.2,1.4533399999999999,null,"Cargo_capacité≤25t"]
[null,null,null,null,null,null,null,null,null,null,null,null,null,null,null,null,null,null,null,null,null,"Passagers≤100p_D≤3500km","Carburéacteur_Jet_B","l",0.53500000000000003,2.48,{"$f":"Y39+Z39","v":3.0150000000000001},3.3400000000000001E-3,0.25,1.2,1.4533399999999999,null,"Cargo_capacité≤100t"]
[null,null,null,null,null,null,null,null,null,null,null,null,null,null,null,null,null,null,null,null,null,"Passagers≤100p_D≤3500km","Essence_AvGas","l",0.53500000000000003,2.48,3.0150000000000001,3.3400000000000001E-3,0.25,1.2,1.4533399999999999,null,"Cargo_capacité_sup_100t_D≤1000km"]
[null,null,null,null,null,null,null,null,null,null,null,null,null,null,null,null,null,null,null,null,null,"Passagers≤220p_D≤1000km","Kérosène_Jet_A1_A","l",0.53200000000000003,2.5299999999999998,{"$f":"Y41+Z41","v":3.0619999999999998},3.5300000000000002E-3,0.216,1.04,1.25953,null,"Cargo_capacité_sup_100t_D≤3500km"]
[null,null,null,null,null,null,null,null,null,null,null,null,null,null,null,null,null,null,null,null,null,"Passagers≤220p_D≤1000km","Carburéacteur_Jet_B","l",0.53500000000000003,2.48,{"$f":"Y42+Z42","v":3.0150000000000001},3.5300000000000002E-3,0.216,1.04,1.25953,null,"Cargo_capacité_sup_100t_Dmin_3501km"]
[null,null,null,null,null,null,null,null,null,null,null,null,null,null,null,null,null,null,null,null,null,"Passagers≤220p_D≤1000km","Essence_AvGas","l",0.53500000000000003,2.48,3.0150000000000001,3.5300000000000002E-3,0.216,1.04,1.25953]
[null,null,null,null,null,null,null,null,null,null,null,null,null,null,null,null,null,null,null,null,null,"Passagers≤220p_D≤3500km","Kérosène_Jet_A1_A","l",0.53200000000000003,2.5299999999999998,{"$f":"Y44+Z44","v":3.0619999999999998},3.6600000000000001E-3,0.17499999999999999,0.84099999999999997,1.01966]
[null,null,null,null,null,null,null,null,null,null,null,null,null,null,null,null,null,null,null,null,null,"Passagers≤220p_D≤3500km","Carburéacteur_Jet_B","l",0.53500000000000003,2.48,{"$f":"Y45+Z45","v":3.0150000000000001},3.6600000000000001E-3,0.17499999999999999,0.84099999999999997,1.01966,null,"Non"]
[null,null,null,null,null,null,null,null,null,null,null,null,null,null,null,null,null,null,null,null,null,"Passagers≤220p_D≤3500km","Essence_AvGas","l",0.53500000000000003,2.48,3.0150000000000001,3.6600000000000001E-3,0.17499999999999999,0.84099999999999997,1.01966]
[null,null,null,null,null,null,null,null,null,null,null,null,null,null,null,null,null,null,null,null,null,"Passagers≤220p_Dmin_3501km","Kérosène_Jet_A1_A","l",0.53200000000000003,2.5299999999999998,{"$f":"Y47+Z47","v":3.0619999999999998},2.6099999999999999E-3,0.19700000000000001,0.94899999999999995,1.1486099999999999]
[null,null,null,null,null,null,null,null,null,null,null,null,null,null,null,null,null,null,null,null,null,"Passagers≤220p_Dmin_3501km","Carburéacteur_Jet_B","l",0.53500000000000003,2.48,{"$f":"Y48+Z48","v":3.0150000000000001},2.6099999999999999E-3,0.19700000000000001,0.94899999999999995,1.1486099999999999]
[null,null,null,null,null,null,null,null,null,null,null,null,null,null,null,null,null,null,null,null,null,"Passagers≤220p_Dmin_3501km","Essence_AvGas","l",0.53500000000000003,2.48,3.0150000000000001,2.6099999999999999E-3,0.19700000000000001,0.94899999999999995,1.1486099999999999,null,null,"Passagers≤50p_D≤1000km","Passagers≤50p_D≤3500km","Passagers≤100p_D≤1000km","Passagers≤100p_D≤3500km","Passagers≤220p_D≤1000km","Passagers≤220p_D≤3500km","Passagers≤220p_Dmin_3501km","Passagers_min_221p_D≤3500km","Passagers_min_221p_Dmin_3501km","Cargo_capacité≤25t","Cargo_capacité≤100t","Cargo_capacité_sup_100t_D≤1000km","Cargo_capacité_sup_100t_D≤3500km","Cargo_capacité_sup_100t_Dmin_3501km"]
[null,null,null,null,null,null,null,null,null,null,null,null,null,null,null,null,null,null,null,null,null,"Passagers_min_221p_D≤3500km","Kérosène_Jet_A1_A","l",0.53200000000000003,2.5299999999999998,{"$f":"Y50+Z50","v":3.0619999999999998},3.2299999999999998E-3,0.16700000000000001,0.80700000000000005,0.97723000000000004,null,"Passagers≤50p_D≤1000km","Kérosène_Jet_A1_A","Kérosène_Jet_A1_A","Kérosène_Jet_A1_A","Kérosène_Jet_A1_A","Kérosène_Jet_A1_A","Kérosène_Jet_A1_A","Kérosène_Jet_A1_A","Kérosène_Jet_A1_A","Kérosène_Jet_A1_A","Kérosène_Jet_A1_A","Kérosène_Jet_A1_A","Kérosène_Jet_A1_A","Kérosène_Jet_A1_A","Kérosène_Jet_A1_A"]
[null,null,null,null,null,null,null,null,null,null,null,null,null,null,null,null,null,null,null,null,null,"Passagers_min_221p_D≤3500km","Carburéacteur_Jet_B","l",0.53500000000000003,2.48,{"$f":"Y51+Z51","v":3.0150000000000001},3.2299999999999998E-3,0.16700000000000001,0.80700000000000005,0.97723000000000004,null,"Passagers≤50p_D≤3500km","Carburéacteur_Jet_B","Carburéacteur_Jet_B","Carburéacteur_Jet_B","Carburéacteur_Jet_B","Carburéacteur_Jet_B","Carburéacteur_Jet_B","Carburéacteur_Jet_B","Carburéacteur_Jet_B","Carburéacteur_Jet_B","Carburéacteur_Jet_B","Carburéacteur_Jet_B","Carburéacteur_Jet_B","Carburéacteur_Jet_B","Carburéacteur_Jet_B"]
[null,null,null,null,null,null,null,null,null,null,null,null,null,null,null,null,null,null,null,null,null,"Passagers_min_221p_D≤3500km","Essence_AvGas","l",0.53500000000000003,2.48,3.0150000000000001,3.2299999999999998E-3,0.16700000000000001,0.80700000000000005,0.97723000000000004,null,"Passagers≤100p_D≤1000km","Essence_AvGas","Essence_AvGas","Essence_AvGas","Essence_AvGas","Essence_AvGas","Essence_AvGas","Essence_AvGas","Essence_AvGas","Essence_AvGas","Essence_AvGas","Essence_AvGas","Essence_AvGas","Essence_AvGas","Essence_AvGas"]
[null,null,null,null,null,null,null,null,null,null,null,null,null,null,null,null,null,null,null,null,null,"Passagers_min_221p_Dmin_3501km","Kérosène_Jet_A1_A","l",0.53200000000000003,2.5299999999999998,{"$f":"Y53+Z53","v":3.0619999999999998},2.3900000000000002E-3,0.14199999999999999,0.68600000000000005,0.83039000000000007,null,"Passagers≤100p_D≤3500km"]
[null,null,null,null,null,null,null,null,null,null,null,null,null,null,null,null,null,null,null,null,null,"Passagers_min_221p_Dmin_3501km","Carburéacteur_Jet_B","l",0.53500000000000003,2.48,{"$f":"Y54+Z54","v":3.0150000000000001},2.3900000000000002E-3,0.14199999999999999,0.68600000000000005,0.83039000000000007,null,"Passagers≤220p_D≤1000km"]
[null,null,null,null,null,null,null,null,null,null,null,null,null,null,null,null,null,null,null,null,null,"Passagers_min_221p_Dmin_3501km","Essence_AvGas","l",0.53500000000000003,2.48,3.0150000000000001,2.3900000000000002E-3,0.14199999999999999,0.68600000000000005,0.83039000000000007,null,"Passagers≤220p_D≤3500km"]
[null,null,null,null,null,null,null,null,null,null,null,null,null,null,null,null,null,null,null,null,null,"Cargo_capacité≤25t","Kérosène_Jet_A1_A","l",0.53200000000000003,2.5299999999999998,{"$f":"Y56+Z56","v":3.0619999999999998},2.2899999999999999E-3,0.31,1.59,1.90229,null,"Passagers≤220p_Dmin_3501km"]
[null,null,null,null,null,null,null,null,null,null,null,null,null,null,null,null,null,null,null,null,null,"Cargo_capacité≤25t","Carburéacteur_Jet_B","l",0.53500000000000003,2.48,{"$f":"Y57+Z57","v":3.0150000000000001},2.2899999999999999E-3,0.31,1.59,1.90229,null,"Passagers_min_221p_D≤3500km"]
[null,null,null,null,null,null,null,null,null,null,null,null,null,null,null,null,null,null,null,null,null,"Cargo_capacité≤25t","Essence_AvGas","l",0.53500000000000003,2.48,3.0150000000000001,2.2899999999999999E-3,0.31,1.59,1.90229,null,"Passagers_min_221p_Dmin_3501km"]
[null,null,null,null,null,null,null,null,null,null,null,null,null,null,null,null,null,null,null,null,null,"Cargo_capacité≤100t","Kérosène_Jet_A1_A","l",0.53200000000000003,2.5299999999999998,{"$f":"Y59+Z59","v":3.0619999999999998},1.4499999999999999E-3,0.30599999999999999,1.58,1.8874500000000001,null,"Cargo_capacité≤25t"]
[null,null,null,null,null,null,null,null,null,null,null,null,null,null,null,null,null,null,null,null,null,"Cargo_capacité≤100t","Carburéacteur_Jet_B","l",0.53500000000000003,2.48,{"$f":"Y60+Z60","v":3.0150000000000001},1.4499999999999999E-3,0.30599999999999999,1.58,1.8874500000000001,null,"Cargo_capacité≤100t"]
[null,null,null,null,null,null,null,null,null,null,null,null,null,null,null,null,null,null,null,null,null,"Cargo_capacité≤100t","Essence_AvGas","l",0.53500000000000003,2.48,3.0150000000000001,1.4499999999999999E-3,0.30599999999999999,1.58,1.8874500000000001,null,"Cargo_capacité_sup_100t_D≤1000km"]
[null,null,null,null,null,null,null,null,null,null,null,null,null,null,null,null,null,null,null,null,null,"Cargo_capacité_sup_100t_D≤1000km","Kérosène_Jet_A1_A","l",0.53200000000000003,2.5299999999999998,{"$f":"Y62+Z62","v":3.0619999999999998},1.15E-3,0.22800000000000001,1.17,1.3991499999999999,null,"Cargo_capacité_sup_100t_D≤3500km"]
[null,null,null,null,null,null,null,null,null,null,null,null,null,null,null,null,null,null,null,null,null,"Cargo_capacité_sup_100t_D≤1000km","Carburéacteur_Jet_B","l",0.53500000000000003,2.48,{"$f":"Y63+Z63","v":3.0150000000000001},1.15E-3,0.22800000000000001,1.17,1.3991499999999999,null,"Cargo_capacité_sup_100t_Dmin_3501km"]
[null,null,null,null,null,null,null,null,null,null,null,null,null,null,null,null,null,null,null,null,null,"Cargo_capacité_sup_100t_D≤1000km","Essence_AvGas","l",0.53500000000000003,2.48,3.0150000000000001,1.15E-3,0.22800000000000001,1.17,1.3991499999999999]
[null,null,null,null,null,null,null,null,null,null,null,null,null,null,null,null,null,null,null,null,null,"Cargo_capacité_sup_100t_D≤3500km","Kérosène_Jet_A1_A","l",0.53200000000000003,2.5299999999999998,{"$f":"Y65+Z65","v":3.0619999999999998},1.15E-3,0.154,0.79600000000000004,0.95115000000000005]
[null,null,null,null,null,null,null,null,null,null,null,null,null,null,null,null,null,null,null,null,null,"Cargo_capacité_sup_100t_D≤3500km","Carburéacteur_Jet_B","l",0.53500000000000003,2.48,{"$f":"Y66+Z66","v":3.0150000000000001},1.15E-3,0.154,0.79600000000000004,0.95115000000000005]
[null,null,null,null,null,null,null,null,null,null,null,null,null,null,null,null,null,null,null,null,null,"Cargo_capacité_sup_100t_D≤3500km","Essence_AvGas","l",0.53500000000000003,2.48,3.0150000000000001,1.15E-3,0.154,0.79600000000000004,0.95115000000000005]
[null,null,null,null,null,null,null,null,null,null,null,null,null,null,null,null,null,null,null,null,null,"Cargo_capacité_sup_100t_Dmin_3501km","Kérosène_Jet_A1_A","l",0.53200000000000003,2.5299999999999998,{"$f":"Y68+Z68","v":3.0619999999999998},1.15E-3,9.5799999999999996E-2,0.49399999999999999,0.59094999999999998]
[null,null,null,null,null,null,null,null,null,null,null,null,null,null,null,null,null,null,null,null,null,"Cargo_capacité_sup_100t_Dmin_3501km","Carburéacteur_Jet_B","l",0.53500000000000003,2.48,{"$f":"Y69+Z69","v":3.0150000000000001},1.15E-3,9.5799999999999996E-2,0.49399999999999999,0.59094999999999998]
[null,null,null,null,null,null,null,null,null,null,null,null,null,null,null,null,null,null,null,null,null,"Cargo_capacité_sup_100t_Dmin_3501km","Essence_AvGas","l",0.53500000000000003,2.48,3.0150000000000001,1.15E-3,9.5799999999999996E-2,0.49399999999999999,0.59094999999999998]

{"sheet":"6_Aérien carburant","index":24,"n_rows":72,"n_cols":46,"rows_kept":72,"cut":false,"hidden":false,"merged":[[0,3,0,10],[10,6,10,10]]}
[null,null,null,"DÉTERMINATION DES ÉMISSIONS DE GAZ À EFFET DE SERRE GÉNÉRÉES PAR LES PRESTATIONS DE TRANSPORT AERIEN MOBILISÉES DANS LE MARCHÉ"]
[]
[]
[]
[null,"Raison sociale du titulaire",{"$f":"'1_Infos générales'!$C$9:$J$9","v":0}]
[]
[null,"Période de référence",{"$f":"'1_Infos générales'!$C$15","v":"Année"}]
[]
[]
[]
[null,"DONNÉES A REMPLIR"]
[]
[]
[]
[null,null,null,null,null,null,null,null,null,"TOTAL (kgCO2e)"]
[null,null,null,null,null,null,null,null,null,{"$f":" SUM(J19:J25)","v":0}]
[]
[null,null,"Ville et Pays de départ\n[optionnel]","Ville et Pays d'arrivée\n[optionnel]","Type d'appareil","Type de carburant","Facteur d'émission de GES * (kgCO2e/tkm)","Quantité de carburant consommé lors de ce trajet (en L)","Nombre de répétitions de ce trajet (avec la même consommation de carburant)\n[optionnel]","Calcul ** des émissions de GES pour ce transport (en kgCO2e)","Quels moyens de preuves pourriez-vous donner ?"]
[null,null,null,null,null,null,{"$f":"_xlfn.XLOOKUP(Tableau_prestations_ac[[#This Row],[Type d''appareil]]&Tableau_prestations_ac[[#This Row],[Type de carburant]], $U$31:$U$72&$V$31:$V$72, $Z$31:$Z$72, 0,  0, )","v":0},null,null,{"$f":"IF(ISBLANK(I19),G19*H19,G19*H19*I19)","v":0}]
[null,null,null,null,null,null,{"$f":"_xlfn.XLOOKUP(Tableau_prestations_ac[[#This Row],[Type d''appareil]]&Tableau_prestations_ac[[#This Row],[Type de carburant]], $U$31:$U$72&$V$31:$V$72, $Z$31:$Z$72, 0,  0, )","v":0},null,null,0]
[null,null,null,null,null,null,{"$f":"_xlfn.XLOOKUP(Tableau_prestations_ac[[#This Row],[Type d''appareil]]&Tableau_prestations_ac[[#This Row],[Type de carburant]], $U$31:$U$72&$V$31:$V$72, $Z$31:$Z$72, 0,  0, )","v":0},null,null,0]
[null,null,null,null,null,null,{"$f":"_xlfn.XLOOKUP(Tableau_prestations_ac[[#This Row],[Type d''appareil]]&Tableau_prestations_ac[[#This Row],[Type de carburant]], $U$31:$U$72&$V$31:$V$72, $Z$31:$Z$72, 0,  0, )","v":0},null,null,0]
[null,null,null,null,null,null,{"$f":"_xlfn.XLOOKUP(Tableau_prestations_ac[[#This Row],[Type d''appareil]]&Tableau_prestations_ac[[#This Row],[Type de carburant]], $U$31:$U$72&$V$31:$V$72, $Z$31:$Z$72, 0,  0, )","v":0},null,null,0]
[null,null,null,null,null,null,{"$f":"_xlfn.XLOOKUP(Tableau_prestations_ac[[#This Row],[Type d''appareil]]&Tableau_prestations_ac[[#This Row],[Type de carburant]], $U$31:$U$72&$V$31:$V$72, $Z$31:$Z$72, 0,  0, )","v":0},null,null,0]
[null,null,null,null,null,null,{"$f":"_xlfn.XLOOKUP(Tableau_prestations_ac[[#This Row],[Type d''appareil]]&Tableau_prestations_ac[[#This Row],[Type de carburant]], $U$31:$U$72&$V$31:$V$72, $Z$31:$Z$72, 0,  0, )","v":0},null,null,{"$f":"IF(ISBLANK(I25),G25*H25,G25*H25*I25)","v":0}]
[]
[]
[null,null,null,null,null,null,null,null,null,null,null,null," "]
[]
[null,null,null,null,null,null,null,null,null,null,null,null,null,null,null,null,null,null,null,null,"Type d'appareil","Type de carburant","Unité","Facteur d'émission (WTT)\n(kgCO2e/unité)","Facteur d'émission (TTW)\n(kgCO2e/unité)","Facteur d'émission (WTW)\n(kgCO2e/unité)","Intensité des émissions issues de la fabrication\n(kgCO2e/tkm)","Intensité des émissions WTT de GES\n(kgCO2e/tkm)","Intensité des émissions TTW de GES\n(kgCO2e/tkm)","Intensité des émissions de GES (WTW + fabrication)\n(kgCO2e/tkm)",null,null,"Passagers≤50p_D≤1000km","Passagers≤50p_D≤3500km","Passagers≤100p_D≤1000km","Passagers≤100p_D≤3500km","Passagers≤220p_D≤1000km","Passagers≤220p_D≤3500km","Passagers≤220p_Dmin_3501km","Passagers_min_221p_D≤3500km","Passagers_min_221p_Dmin_3501km","Cargo_capacité≤25t","Cargo_capacité≤100t","Cargo_capacité_sup_100t_D≤1000km","Cargo_capacité_sup_100t_D≤3500km","Cargo_capacité_sup_100t_Dmin_3501km"]
[null,null,null,null,null,null,null,null,null,null,null,null,null,null,null,null,null,null,null,null,"Passagers≤50p_D≤1000km","Kérosène_Jet_A1_A","l",0.53200000000000003,2.5299999999999998,{"$f":"X31+Y31","v":3.0619999999999998},4.7499999999999999E-3,0.38400000000000001,1.85,{"$f":"AA31+AB31+AC31","v":2.23875},null,"Passagers≤50p_D≤1000km","Kérosène_Jet_A1_A","Kérosène_Jet_A1_A","Kérosène_Jet_A1_A","Kérosène_Jet_A1_A","Kérosène_Jet_A1_A","Kérosène_Jet_A1_A","Kérosène_Jet_A1_A","Kérosène_Jet_A1_A","Kérosène_Jet_A1_A","Kérosène_Jet_A1_A","Kérosène_Jet_A1_A","Kérosène_Jet_A1_A","Kérosène_Jet_A1_A","Kérosène_Jet_A1_A"]
[null,null,null,null,null,null,null,null,null,null,null,null,null,null,null,null,null,null,null,null,"Passagers≤50p_D≤1000km","Carburéacteur_Jet_B","l",0.53100000000000003,2.48,{"$f":"X32+Y32","v":3.0110000000000001},4.7499999999999999E-3,0.38400000000000001,1.85,{"$f":"AA32+AB32+AC32","v":2.23875},null,"Passagers≤50p_D≤3500km","Carburéacteur_Jet_B","Carburéacteur_Jet_B","Carburéacteur_Jet_B","Carburéacteur_Jet_B","Carburéacteur_Jet_B","Carburéacteur_Jet_B","Carburéacteur_Jet_B","Carburéacteur_Jet_B","Carburéacteur_Jet_B","Carburéacteur_Jet_B","Carburéacteur_Jet_B","Carburéacteur_Jet_B","Carburéacteur_Jet_B","Carburéacteur_Jet_B"]
[null,null,null,null,null,null,null,null,null,null,null,null,null,null,null,null,null,null,null,null,"Passagers≤50p_D≤1000km","Essence_AvGas","l",0.53100000000000003,2.48,3.0110000000000001,4.7499999999999999E-3,0.38400000000000001,1.85,2.23875,null,"Passagers≤100p_D≤1000km","Essence_AvGas","Essence_AvGas","Essence_AvGas","Essence_AvGas","Essence_AvGas","Essence_AvGas","Essence_AvGas","Essence_AvGas","Essence_AvGas","Essence_AvGas","Essence_AvGas","Essence_AvGas","Essence_AvGas","Essence_AvGas"]
[null,null,null,null,null,null,null,null,null,null,null,null,null,null,null,null,null,null,null,null,"Passagers≤50p_D≤3500km","Kérosène_Jet_A1_A","l",0.53200000000000003,2.5299999999999998,{"$f":"X34+Y34","v":3.0619999999999998},4.9300000000000004E-3,0.48699999999999999,2.35,2.8419300000000001,null,"Passagers≤100p_D≤3500km"]
[null,null,null,null,null,null,null,null,null,null,null,null,null,null,null,null,null,null,null,null,"Passagers≤50p_D≤3500km","Carburéacteur_Jet_B","l",0.53100000000000003,2.48,{"$f":"X35+Y35","v":3.0110000000000001},4.9300000000000004E-3,0.48699999999999999,2.35,2.8419300000000001,null,"Passagers≤220p_D≤1000km"]
[null,null,null,null,null,null,null,null,null,null,null,null,null,null,null,null,null,null,null,null,"Passagers≤50p_D≤3500km","Essence_AvGas","l",0.53100000000000003,2.48,3.0110000000000001,4.9300000000000004E-3,0.48699999999999999,2.35,2.8419300000000001,null,"Passagers≤220p_D≤3500km"]
[null,null,null,null,null,null,null,null,null,null,null,null,null,null,null,null,null,null,null,null,"Passagers≤100p_D≤1000km","Kérosène_Jet_A1_A","l",0.53200000000000003,2.5299999999999998,{"$f":"X37+Y37","v":3.0619999999999998},4.2900000000000004E-3,0.315,1.52,1.8392900000000001,null,"Passagers≤220p_Dmin_3501km"]
[null,null,null,null,null,null,null,null,null,null,null,null,null,null,null,null,null,null,null,null,"Passagers≤100p_D≤1000km","Carburéacteur_Jet_B","l",0.53100000000000003,2.48,{"$f":"X38+Y38","v":3.0110000000000001},4.2900000000000004E-3,0.315,1.52,1.8392900000000001,null,"Passagers_min_221p_D≤3500km"]
[null,null,null,null,null,null,null,null,null,null,null,null,null,null,null,null,null,null,null,null,"Passagers≤100p_D≤1000km","Essence_AvGas","l",0.53100000000000003,2.48,3.0110000000000001,4.2900000000000004E-3,0.315,1.52,1.8392900000000001,null,"Passagers_min_221p_Dmin_3501km"]
[null,null,null,null,null,null,null,null,null,null,null,null,null,null,null,null,null,null,null,null,"Passagers≤100p_D≤3500km","Kérosène_Jet_A1_A","l",0.53200000000000003,2.5299999999999998,{"$f":"X40+Y40","v":3.0619999999999998},3.3400000000000001E-3,0.25,1.2,1.4533399999999999,null,"Cargo_capacité≤25t"]
[null,null,null,null,null,null,null,null,null,null,null,null,null,null,null,null,null,null,null,null,"Passagers≤100p_D≤3500km","Carburéacteur_Jet_B","l",0.53100000000000003,2.48,{"$f":"X41+Y41","v":3.0110000000000001},3.3400000000000001E-3,0.25,1.2,1.4533399999999999,null,"Cargo_capacité≤100t"]
[null,null,null,null,null,null,null,null,null,null,null,null,null,null,null,null,null,null,null,null,"Passagers≤100p_D≤3500km","Essence_AvGas","l",0.53100000000000003,2.48,3.0110000000000001,3.3400000000000001E-3,0.25,1.2,1.4533399999999999,null,"Cargo_capacité_sup_100t_D≤1000km"]
[null,null,null,null,null,null,null,null,null,null,null,null,null,null,null,null,null,null,null,null,"Passagers≤220p_D≤1000km","Kérosène_Jet_A1_A","l",0.53200000000000003,2.5299999999999998,{"$f":"X43+Y43","v":3.0619999999999998},3.5300000000000002E-3,0.216,1.04,1.25953,null,"Cargo_capacité_sup_100t_D≤3500km"]
[null,null,null,null,null,null,null,null,null,null,null,null,null,null,null,null,null,null,null,null,"Passagers≤220p_D≤1000km","Carburéacteur_Jet_B","l",0.53100000000000003,2.48,{"$f":"X44+Y44","v":3.0110000000000001},3.5300000000000002E-3,0.216,1.04,1.25953,null,"Cargo_capacité_sup_100t_Dmin_3501km"]
[null,null,null,null,null,null,null,null,null,null,null,null,null,null,null,null,null,null,null,null,"Passagers≤220p_D≤1000km","Essence_AvGas","l",0.53100000000000003,2.48,3.0110000000000001,3.5300000000000002E-3,0.216,1.04,1.25953]
[null,null,null,null,null,null,null,null,null,null,null,null,null,null,null,null,null,null,null,null,"Passagers≤220p_D≤3500km","Kérosène_Jet_A1_A","l",0.53200000000000003,2.5299999999999998,{"$f":"X46+Y46","v":3.0619999999999998},3.6600000000000001E-3,0.17499999999999999,0.84099999999999997,1.01966]
[null,null,null,null,null,null,null,null,null,null,null,null,null,null,null,null,null,null,null,null,"Passagers≤220p_D≤3500km","Carburéacteur_Jet_B","l",0.53100000000000003,2.48,{"$f":"X47+Y47","v":3.0110000000000001},3.6600000000000001E-3,0.17499999999999999,0.84099999999999997,1.01966,null,"Non"]
[null,null,null,null,null,null,null,null,null,null,null,null,null,null,null,null,null,null,null,null,"Passagers≤220p_D≤3500km","Essence_AvGas","l",0.53100000000000003,2.48,3.0110000000000001,3.6600000000000001E-3,0.17499999999999999,0.84099999999999997,1.01966]
[null,null,null,null,null,null,null,null,null,null,null,null,null,null,null,null,null,null,null,null,"Passagers≤220p_Dmin_3501km","Kérosène_Jet_A1_A","l",0.53200000000000003,2.5299999999999998,{"$f":"X49+Y49","v":3.0619999999999998},2.6099999999999999E-3,0.19700000000000001,0.94899999999999995,1.1486099999999999]
[null,null,null,null,null,null,null,null,null,null,null,null,null,null,null,null,null,null,null,null,"Passagers≤220p_Dmin_3501km","Carburéacteur_Jet_B","l",0.53100000000000003,2.48,{"$f":"X50+Y50","v":3.0110000000000001},2.6099999999999999E-3,0.19700000000000001,0.94899999999999995,1.1486099999999999]
[null,null,null,null,null,null,null,null,null,null,null,null,null,null,null,null,null,null,null,null,"Passagers≤220p_Dmin_3501km","Essence_AvGas","l",0.53100000000000003,2.48,3.0110000000000001,2.6099999999999999E-3,0.19700000000000001,0.94899999999999995,1.1486099999999999,null,null,"Passagers≤50p_D≤1000km","Passagers≤50p_D≤3500km","Passagers≤100p_D≤1000km","Passagers≤100p_D≤3500km","Passagers≤220p_D≤1000km","Passagers≤220p_D≤3500km","Passagers≤220p_Dmin_3501km","Passagers_min_221p_D≤3500km","Passagers_min_221p_Dmin_3501km","Cargo_capacité≤25t","Cargo_capacité≤100t","Cargo_capacité_sup_100t_D≤1000km","Cargo_capacité_sup_100t_D≤3500km","Cargo_capacité_sup_100t_Dmin_3501km"]
[null,null,null,null,null,null,null,null,null,null,null,null,null,null,null,null,null,null,null,null,"Passagers_min_221p_D≤3500km","Kérosène_Jet_A1_A","l",0.53200000000000003,2.5299999999999998,{"$f":"X52+Y52","v":3.0619999999999998},3.2299999999999998E-3,0.16700000000000001,0.80700000000000005,0.97723000000000004,null,"Passagers≤50p_D≤1000km","Kérosène_Jet_A1_A","Kérosène_Jet_A1_A","Kérosène_Jet_A1_A","Kérosène_Jet_A1_A","Kérosène_Jet_A1_A","Kérosène_Jet_A1_A","Kérosène_Jet_A1_A","Kérosène_Jet_A1_A","Kérosène_Jet_A1_A","Kérosène_Jet_A1_A","Kérosène_Jet_A1_A","Kérosène_Jet_A1_A","Kérosène_Jet_A1_A","Kérosène_Jet_A1_A"]
[null,null,null,null,null,null,null,null,null,null,null,null,null,null,null,null,null,null,null,null,"Passagers_min_221p_D≤3500km","Carburéacteur_Jet_B","l",0.53100000000000003,2.48,{"$f":"X53+Y53","v":3.0110000000000001},3.2299999999999998E-3,0.16700000000000001,0.80700000000000005,0.97723000000000004,null,"Passagers≤50p_D≤3500km","Carburéacteur_Jet_B","Carburéacteur_Jet_B","Carburéacteur_Jet_B","Carburéacteur_Jet_B","Carburéacteur_Jet_B","Carburéacteur_Jet_B","Carburéacteur_Jet_B","Carburéacteur_Jet_B","Carburéacteur_Jet_B","Carburéacteur_Jet_B","Carburéacteur_Jet_B","Carburéacteur_Jet_B","Carburéacteur_Jet_B","Carburéacteur_Jet_B"]
[null,null,null,null,null,null,null,null,null,null,null,null,null,null,null,null,null,null,null,null,"Passagers_min_221p_D≤3500km","Essence_AvGas","l",0.53100000000000003,2.48,3.0110000000000001,3.2299999999999998E-3,0.16700000000000001,0.80700000000000005,0.97723000000000004,null,"Passagers≤100p_D≤1000km","Essence_AvGas","Essence_AvGas","Essence_AvGas","Essence_AvGas","Essence_AvGas","Essence_AvGas","Essence_AvGas","Essence_AvGas","Essence_AvGas","Essence_AvGas","Essence_AvGas","Essence_AvGas","Essence_AvGas","Essence_AvGas"]
[null,null,null,null,null,null,null,null,null,null,null,null,null,null,null,null,null,null,null,null,"Passagers_min_221p_Dmin_3501km","Kérosène_Jet_A1_A","l",0.53200000000000003,2.5299999999999998,{"$f":"X55+Y55","v":3.0619999999999998},2.3900000000000002E-3,0.14199999999999999,0.68600000000000005,0.83039000000000007,null,"Passagers≤100p_D≤3500km"]
[null,null,null,null,null,null,null,null,null,null,null,null,null,null,null,null,null,null,null,null,"Passagers_min_221p_Dmin_3501km","Carburéacteur_Jet_B","l",0.53100000000000003,2.48,{"$f":"X56+Y56","v":3.0110000000000001},2.3900000000000002E-3,0.14199999999999999,0.68600000000000005,0.83039000000000007,null,"Passagers≤220p_D≤1000km"]
[null,null,null,null,null,null,null,null,null,null,null,null,null,null,null,null,null,null,null,null,"Passagers_min_221p_Dmin_3501km","Essence_AvGas","l",0.53100000000000003,2.48,3.0110000000000001,2.3900000000000002E-3,0.14199999999999999,0.68600000000000005,0.83039000000000007,null,"Passagers≤220p_D≤3500km"]
[null,null,null,null,null,null,null,null,null,null,null,null,null,null,null,null,null,null,null,null,"Cargo_capacité≤25t","Kérosène_Jet_A1_A","l",0.53200000000000003,2.5299999999999998,{"$f":"X58+Y58","v":3.0619999999999998},2.2899999999999999E-3,0.31,1.59,1.90229,null,"Passagers≤220p_Dmin_3501km"]
[null,null,null,null,null,null,null,null,null,null,null,null,null,null,null,null,null,null,null,null,"Cargo_capacité≤25t","Carburéacteur_Jet_B","l",0.53100000000000003,2.48,{"$f":"X59+Y59","v":3.0110000000000001},2.2899999999999999E-3,0.31,1.59,1.90229,null,"Passagers_min_221p_D≤3500km"]
[null,null,null,null,null,null,null,null,null,null,null,null,null,null,null,null,null,null,null,null,"Cargo_capacité≤25t","Essence_AvGas","l",0.53100000000000003,2.48,3.0110000000000001,2.2899999999999999E-3,0.31,1.59,1.90229,null,"Passagers_min_221p_Dmin_3501km"]
[null,null,null,null,null,null,null,null,null,null,null,null,null,null,null,null,null,null,null,null,"Cargo_capacité≤100t","Kérosène_Jet_A1_A","l",0.53200000000000003,2.5299999999999998,{"$f":"X61+Y61","v":3.0619999999999998},1.4499999999999999E-3,0.30599999999999999,1.58,1.8874500000000001,null,"Cargo_capacité≤25t"]
[null,null,null,null,null,null,null,null,null,null,null,null,null,null,null,null,null,null,null,null,"Cargo_capacité≤100t","Carburéacteur_Jet_B","l",0.53100000000000003,2.48,{"$f":"X62+Y62","v":3.0110000000000001},1.4499999999999999E-3,0.30599999999999999,1.58,1.8874500000000001,null,"Cargo_capacité≤100t"]
[null,null,null,null,null,null,null,null,null,null,null,null,null,null,null,null,null,null,null,null,"Cargo_capacité≤100t","Essence_AvGas","l",0.53100000000000003,2.48,3.0110000000000001,1.4499999999999999E-3,0.30599999999999999,1.58,1.8874500000000001,null,"Cargo_capacité_sup_100t_D≤1000km"]
[null,null,null,null,null,null,null,null,null,null,null,null,null,null,null,null,null,null,null,null,"Cargo_capacité_sup_100t_D≤1000km","Kérosène_Jet_A1_A","l",0.53200000000000003,2.5299999999999998,{"$f":"X64+Y64","v":3.0619999999999998},1.15E-3,0.22800000000000001,1.17,1.3991499999999999,null,"Cargo_capacité_sup_100t_D≤3500km"]
[null,null,null,null,null,null,null,null,null,null,null,null,null,null,null,null,null,null,null,null,"Cargo_capacité_sup_100t_D≤1000km","Carburéacteur_Jet_B","l",0.53100000000000003,2.48,{"$f":"X65+Y65","v":3.0110000000000001},1.15E-3,0.22800000000000001,1.17,1.3991499999999999,null,"Cargo_capacité_sup_100t_Dmin_3501km"]
[null,null,null,null,null,null,null,null,null,null,null,null,null,null,null,null,null,null,null,null,"Cargo_capacité_sup_100t_D≤1000km","Essence_AvGas","l",0.53100000000000003,2.48,3.0110000000000001,1.15E-3,0.22800000000000001,1.17,1.3991499999999999]
[null,null,null,null,null,null,null,null,null,null,null,null,null,null,null,null,null,null,null,null,"Cargo_capacité_sup_100t_D≤3500km","Kérosène_Jet_A1_A","l",0.53200000000000003,2.5299999999999998,{"$f":"X67+Y67","v":3.0619999999999998},1.15E-3,0.154,0.79600000000000004,0.95115000000000005]
[null,null,null,null,null,null,null,null,null,null,null,null,null,null,null,null,null,null,null,null,"Cargo_capacité_sup_100t_D≤3500km","Carburéacteur_Jet_B","l",0.53100000000000003,2.48,{"$f":"X68+Y68","v":3.0110000000000001},1.15E-3,0.154,0.79600000000000004,0.95115000000000005]
[null,null,null,null,null,null,null,null,null,null,null,null,null,null,null,null,null,null,null,null,"Cargo_capacité_sup_100t_D≤3500km","Essence_AvGas","l",0.53100000000000003,2.48,3.0110000000000001,1.15E-3,0.154,0.79600000000000004,0.95115000000000005]
[null,null,null,null,null,null,null,null,null,null,null,null,null,null,null,null,null,null,null,null,"Cargo_capacité_sup_100t_Dmin_3501km","Kérosène_Jet_A1_A","l",0.53200000000000003,2.5299999999999998,{"$f":"X70+Y70","v":3.0619999999999998},1.15E-3,9.5799999999999996E-2,0.49399999999999999,0.59094999999999998]
[null,null,null,null,null,null,null,null,null,null,null,null,null,null,null,null,null,null,null,null,"Cargo_capacité_sup_100t_Dmin_3501km","Carburéacteur_Jet_B","l",0.53100000000000003,2.48,{"$f":"X71+Y71","v":3.0110000000000001},1.15E-3,9.5799999999999996E-2,0.49399999999999999,0.59094999999999998]
[null,null,null,null,null,null,null,null,null,null,null,null,null,null,null,null,null,null,null,null,"Cargo_capacité_sup_100t_Dmin_3501km","Essence_AvGas","l",0.53100000000000003,2.48,3.0110000000000001,1.15E-3,9.5799999999999996E-2,0.49399999999999999,0.59094999999999998]

{"sheet":"6_Aerien","index":25,"n_rows":84,"n_cols":47,"rows_kept":84,"cut":false,"hidden":true,"merged":[[83,1,83,4],[1,1,1,15],[15,5,15,9],[15,10,15,13],[16,5,16,7],[16,10,16,11],[53,5,53,10],[53,11,53,12],[53,13,54,15],[54,5,54,6],[54,8,54,12]]}
[]
[null,"DÉTERMINATION DES ÉMISSIONS DE GAZ À EFFET DE SERRE GÉNÉRÉES PAR LES PRESTATIONS DE TRANSPORT AÉRIEN MOBILISÉES DANS LE MARCHÉ"]
[]
[null,"Raison sociale du titulaire",{"$f":"'1_Infos générales'!$C$9:$J$9","v":0}]
[]
[null,"Période de référence",{"$f":"'1_Infos générales'!$C$15","v":"Année"}]
[]
[null,"DONNÉES D'ENTRÉE"]
[]
[null,"Le titulaire est invité à renseigner les cellules jaunes ci-dessous",null,null,null,null,null,null,"Les données primaires sont les données mesurées ou obtenues par calcul à la suite de mesure"]
[null,"Les cellules bleues sont automatiquement complétées et ne peuvent être manuellement modifiées",null,null,null,null,null,null,"En cellule J17, le titulaire indique s'il dispose de données primaires de suivi des consommations de la flotte détenue pour les prestations de transport internalisées"]
[null,null,null,null,null,null,null,null,"→ Si oui, le titulaire renseigne les consommations en colonne I ; si non, il laisse la colonne I vide et les calculs seront réalisés selon des modélisations par défaut"]
[null,"Le titulaire peut regrouper à sa convenance les prestations de transport répondant à des caractéristiques communes (ex. externalisé, par type d'appareil et carburant commun)",null,null,null,null,null,null,"En cellule N17, le titulaire indique s'il dispose de données primaires de suivi des consommations des flottes mobilisées pour les prestations externalisées"]
[null,"Le nombre de lignes disponibles dans le tableau ci-dessous est limité sans possibilité d'ajouter de ligne supplémentaire ;",null,null,null,null,null,null,"→ Si oui, le titulaire renseigne les consommations en colonne M ; si non, il laisse la colonne M vide et les calculs seront réalisés selon des modélisations par défaut"]
[null,"le titulaire est donc invité à réduire aux maximum le nombre de lignes utilisées"]
[null,null,null,null,null,"Prestations de transport internalisées (réalisées avec des véhicules appartenant au titulaire)",null,null,null,null,"Prestations de transport externalisées"]
[null,"La colonne B sert à donner un intitulé (nom, numéro, etc. au choix du titulaire) à la ligne de données renseignée",null,null,null,"Informations sur l'activité de la flotte interne pour les prestations de transport visées",null,null,"Données primaires?","Oui","Informations sur l'activité externalisée pour les prestations de transport visées",null,"Données primaires?","Oui"]
[null,"Prestation de transport (agrégation possible à la convenance du titulaire - ex. une ligne regroupant tous les vols par avion cargo de moins de 25 t sur l'année)","Type d'appareil","Type de carburant","(Réservé)","(Réservé)","Distance totale cumulée\n(km)","Masse totale de marchandises transportées\n(t)","Quantité totale d'énergie consommée","Unité","Distance totale cumulée\n(km)","Masse totale de marchandises transportées\n(t)","Quantité totale d'énergie consommée","Unité",null,null,null,null,null,null,null,"Type d'appareil","Type de carburant","Unité","Facteur d'émission (WTT)\n(kgCO2e/unité)","Facteur d'émission (TTW)\n(kgCO2e/unité)","Facteur d'émission (WTW)\n(kgCO2e/unité)","Intensité des émissions issues de la fabrication\n(kgCO2e/tkm)","Intensité des émissions WTT de GES\n(kgCO2e/tkm)","Intensité des émissions TTW de GES\n(kgCO2e/tkm)","Intensité des émissions de GES (WTW + fabrication)\n(kgCO2e/tkm)",null,null,"Passagers≤50p_D≤1000km","Passagers≤50p_D≤3500km","Passagers≤100p_D≤1000km","Passagers≤100p_D≤3500km","Passagers≤220p_D≤1000km","Passagers≤220p_D≤3500km","Passagers≤220p_Dmin_3501km","Passagers_min_221p_D≤3500km","Passagers_min_221p_Dmin_3501km","Cargo_capacité≤25t","Cargo_capacité≤100t","Cargo_capacité_sup_100t_D≤1000km","Cargo_capacité_sup_100t_D≤3500km","Cargo_capacité_sup_100t_Dmin_3501km"]
[null,null,null,null,null,null,null,null,null,{"$f":"IF(ISBLANK(D19),\"\",VLOOKUP($D19,$AG$49:$AH$51,2,FALSE))","v":""},null,null,null,{"$f":"J19","v":""},null,null,null,null,null,null,{"$f":"V19&W19","v":"Passagers≤50p_D≤1000kmKérosène_Jet_A1_A"},"Passagers≤50p_D≤1000km","Kérosène_Jet_A1_A","l",0.53200000000000003,2.5299999999999998,{"$f":"Y19+Z19","v":3.0619999999999998},4.7499999999999999E-3,0.38400000000000001,1.85,{"$f":"AB19+AC19+AD19","v":2.23875},null,"Passagers≤50p_D≤1000km","Kérosène_Jet_A1_A","Kérosène_Jet_A1_A","Kérosène_Jet_A1_A","Kérosène_Jet_A1_A","Kérosène_Jet_A1_A","Kérosène_Jet_A1_A","Kérosène_Jet_A1_A","Kérosène_Jet_A1_A","Kérosène_Jet_A1_A","Kérosène_Jet_A1_A","Kérosène_Jet_A1_A","Kérosène_Jet_A1_A","Kérosène_Jet_A1_A","Kérosène_Jet_A1_A"]
[null,null,null,null,null,null,null,null,null,{"$f":"IF(ISBLANK(D20),\"\",VLOOKUP($D20,$AG$49:$AH$51,2,FALSE))","v":""},null,null,null,{"$f":"J20","v":""},null,null,null,null,null,null,{"$f":"V20&W20","v":"Passagers≤50p_D≤1000kmCarburéacteur_Jet_B"},"Passagers≤50p_D≤1000km","Carburéacteur_Jet_B","l",0.53500000000000003,2.48,{"$f":"Y20+Z20","v":3.0150000000000001},4.7499999999999999E-3,0.38400000000000001,1.85,{"$f":"AB20+AC20+AD20","v":2.23875},null,"Passagers≤50p_D≤3500km","Carburéacteur_Jet_B","Carburéacteur_Jet_B","Carburéacteur_Jet_B","Carburéacteur_Jet_B","Carburéacteur_Jet_B","Carburéacteur_Jet_B","Carburéacteur_Jet_B","Carburéacteur_Jet_B","Carburéacteur_Jet_B","Carburéacteur_Jet_B","Carburéacteur_Jet_B","Carburéacteur_Jet_B","Carburéacteur_Jet_B","Carburéacteur_Jet_B"]
[null,null,null,null,null,null,null,null,null,"",null,null,null,"",null,null,null,null,null,null,"Passagers≤50p_D≤1000kmEssence_AvGas","Passagers≤50p_D≤1000km","Essence_AvGas","l",0.53500000000000003,2.48,3.0150000000000001,4.7499999999999999E-3,0.38400000000000001,1.85,2.23875,null,"Passagers≤100p_D≤1000km","Essence_AvGas","Essence_AvGas","Essence_AvGas","Essence_AvGas","Essence_AvGas","Essence_AvGas","Essence_AvGas","Essence_AvGas","Essence_AvGas","Essence_AvGas","Essence_AvGas","Essence_AvGas","Essence_AvGas","Essence_AvGas"]
[null,null,null,null,null,null,null,null,null,"",null,null,null,"",null,null,null,null,null,null,"Passagers≤50p_D≤3500kmKérosène_Jet_A1_A","Passagers≤50p_D≤3500km","Kérosène_Jet_A1_A","l",0.53200000000000003,2.5299999999999998,{"$f":"Y22+Z22","v":3.0619999999999998},4.9300000000000004E-3,0.48699999999999999,2.35,{"$f":"AB22+AC22+AD22","v":2.8419300000000001},null,"Passagers≤100p_D≤3500km"]
[null,null,null,null,null,null,null,null,null,"",null,null,null,"",null,null,null,null,null,null,"Passagers≤50p_D≤3500kmCarburéacteur_Jet_B","Passagers≤50p_D≤3500km","Carburéacteur_Jet_B","l",0.53500000000000003,2.48,{"$f":"Y23+Z23","v":3.0150000000000001},4.9300000000000004E-3,0.48699999999999999,2.35,{"$f":"AB23+AC23+AD23","v":2.8419300000000001},null,"Passagers≤220p_D≤1000km"]
[null,null,null,null,null,null,null,null,null,"",null,null,null,"",null,null,null,null,null,null,"Passagers≤50p_D≤3500kmEssence_AvGas","Passagers≤50p_D≤3500km","Essence_AvGas","l",0.53500000000000003,2.48,3.0150000000000001,4.9300000000000004E-3,0.48699999999999999,2.35,2.8419300000000001,null,"Passagers≤220p_D≤3500km"]
[null,null,null,null,null,null,null,null,null,"",null,null,null,"",null,null,null,null,null,null,"Passagers≤100p_D≤1000kmKérosène_Jet_A1_A","Passagers≤100p_D≤1000km","Kérosène_Jet_A1_A","l",0.53200000000000003,2.5299999999999998,{"$f":"Y25+Z25","v":3.0619999999999998},4.2900000000000004E-3,0.315,1.52,1.8392900000000001,null,"Passagers≤220p_Dmin_3501km"]
[null,null,null,null,null,null,null,null,null,"",null,null,null,"",null,null,null,null,null,null,"Passagers≤100p_D≤1000kmCarburéacteur_Jet_B","Passagers≤100p_D≤1000km","Carburéacteur_Jet_B","l",0.53500000000000003,2.48,{"$f":"Y26+Z26","v":3.0150000000000001},4.2900000000000004E-3,0.315,1.52,{"$f":"AB26+AC26+AD26","v":1.8392900000000001},null,"Passagers_min_221p_D≤3500km"]
[null,null,null,null,null,null,null,null,null,"",null,null,null,"",null,null,null,null,null,null,"Passagers≤100p_D≤1000kmEssence_AvGas","Passagers≤100p_D≤1000km","Essence_AvGas","l",0.53500000000000003,2.48,3.0150000000000001,4.2900000000000004E-3,0.315,1.52,1.8392900000000001,null,"Passagers_min_221p_Dmin_3501km"]
[null,null,null,null,null,null,null,null,null,"",null,null,null,"",null,null,null,null,null,null,"Passagers≤100p_D≤3500kmKérosène_Jet_A1_A","Passagers≤100p_D≤3500km","Kérosène_Jet_A1_A","l",0.53200000000000003,2.5299999999999998,{"$f":"Y28+Z28","v":3.0619999999999998},3.3400000000000001E-3,0.25,1.2,1.4533399999999999,null,"Cargo_capacité≤25t"]
[null,null,null,null,null,null,null,null,null,"",null,null,null,"",null,null,null,null,null,null,"Passagers≤100p_D≤3500kmCarburéacteur_Jet_B","Passagers≤100p_D≤3500km","Carburéacteur_Jet_B","l",0.53500000000000003,2.48,{"$f":"Y29+Z29","v":3.0150000000000001},3.3400000000000001E-3,0.25,1.2,{"$f":"AB29+AC29+AD29","v":1.4533399999999999},null,"Cargo_capacité≤100t"]
[null,null,null,null,null,null,null,null,null,"",null,null,null,"",null,null,null,null,null,null,"Passagers≤100p_D≤3500kmEssence_AvGas","Passagers≤100p_D≤3500km","Essence_AvGas","l",0.53500000000000003,2.48,3.0150000000000001,3.3400000000000001E-3,0.25,1.2,1.4533399999999999,null,"Cargo_capacité_sup_100t_D≤1000km"]
[null,null,null,null,null,null,null,null,null,"",null,null,null,"",null,null,null,null,null,null,"Passagers≤220p_D≤1000kmKérosène_Jet_A1_A","Passagers≤220p_D≤1000km","Kérosène_Jet_A1_A","l",0.53200000000000003,2.5299999999999998,{"$f":"Y31+Z31","v":3.0619999999999998},3.5300000000000002E-3,0.216,1.04,1.25953,null,"Cargo_capacité_sup_100t_D≤3500km"]
[null,null,null,null,null,null,null,null,null,"",null,null,null,"",null,null,null,null,null,null,"Passagers≤220p_D≤1000kmCarburéacteur_Jet_B","Passagers≤220p_D≤1000km","Carburéacteur_Jet_B","l",0.53500000000000003,2.48,{"$f":"Y32+Z32","v":3.0150000000000001},3.5300000000000002E-3,0.216,1.04,1.25953,null,"Cargo_capacité_sup_100t_Dmin_3501km"]
[null,null,null,null,null,null,null,null,null,"",null,null,null,"",null,null,null,null,null,null,"Passagers≤220p_D≤1000kmEssence_AvGas","Passagers≤220p_D≤1000km","Essence_AvGas","l",0.53500000000000003,2.48,3.0150000000000001,3.5300000000000002E-3,0.216,1.04,1.25953]
[null,null,null,null,null,null,null,null,null,"",null,null,null,"",null,null,null,null,null,null,"Passagers≤220p_D≤3500kmKérosène_Jet_A1_A","Passagers≤220p_D≤3500km","Kérosène_Jet_A1_A","l",0.53200000000000003,2.5299999999999998,{"$f":"Y34+Z34","v":3.0619999999999998},3.6600000000000001E-3,0.17499999999999999,0.84099999999999997,1.01966]
[null,null,null,null,null,null,null,null,null,"",null,null,null,"",null,null,null,null,null,null,"Passagers≤220p_D≤3500kmCarburéacteur_Jet_B","Passagers≤220p_D≤3500km","Carburéacteur_Jet_B","l",0.53500000000000003,2.48,{"$f":"Y35+Z35","v":3.0150000000000001},3.6600000000000001E-3,0.17499999999999999,0.84099999999999997,1.01966]
[null,null,null,null,null,null,null,null,null,"",null,null,null,"",null,null,null,null,null,null,"Passagers≤220p_D≤3500kmEssence_AvGas","Passagers≤220p_D≤3500km","Essence_AvGas","l",0.53500000000000003,2.48,3.0150000000000001,3.6600000000000001E-3,0.17499999999999999,0.84099999999999997,1.01966]
[null,null,null,null,null,null,null,null,null,"",null,null,null,"",null,null,null,null,null,null,"Passagers≤220p_Dmin_3501kmKérosène_Jet_A1_A","Passagers≤220p_Dmin_3501km","Kérosène_Jet_A1_A","l",0.53200000000000003,2.5299999999999998,{"$f":"Y37+Z37","v":3.0619999999999998},2.6099999999999999E-3,0.19700000000000001,0.94899999999999995,1.1486099999999999]
[null,null,null,null,null,null,null,null,null,"",null,null,null,"",null,null,null,null,null,null,"Passagers≤220p_Dmin_3501kmCarburéacteur_Jet_B","Passagers≤220p_Dmin_3501km","Carburéacteur_Jet_B","l",0.53500000000000003,2.48,{"$f":"Y38+Z38","v":3.0150000000000001},2.6099999999999999E-3,0.19700000000000001,0.94899999999999995,1.1486099999999999]
[null,null,null,null,null,null,null,null,null,"",null,null,null,"",null,null,null,null,null,null,"Passagers≤220p_Dmin_3501kmEssence_AvGas","Passagers≤220p_Dmin_3501km","Essence_AvGas","l",0.53500000000000003,2.48,3.0150000000000001,2.6099999999999999E-3,0.19700000000000001,0.94899999999999995,1.1486099999999999]
[null,null,null,null,null,null,null,null,null,"",null,null,null,"",null,null,null,null,null,null,"Passagers_min_221p_D≤3500kmKérosène_Jet_A1_A","Passagers_min_221p_D≤3500km","Kérosène_Jet_A1_A","l",0.53200000000000003,2.5299999999999998,{"$f":"Y40+Z40","v":3.0619999999999998},3.2299999999999998E-3,0.16700000000000001,0.80700000000000005,0.97723000000000004]
[null,null,null,null,null,null,null,null,null,"",null,null,null,"",null,null,null,null,null,null,"Passagers_min_221p_D≤3500kmCarburéacteur_Jet_B","Passagers_min_221p_D≤3500km","Carburéacteur_Jet_B","l",0.53500000000000003,2.48,{"$f":"Y41+Z41","v":3.0150000000000001},3.2299999999999998E-3,0.16700000000000001,0.80700000000000005,{"$f":"AB41+AC41+AD41","v":0.97723000000000004}]
[null,null,null,null,null,null,null,null,null,"",null,null,null,"",null,null,null,null,null,null,"Passagers_min_221p_D≤3500kmEssence_AvGas","Passagers_min_221p_D≤3500km","Essence_AvGas","l",0.53500000000000003,2.48,3.0150000000000001,3.2299999999999998E-3,0.16700000000000001,0.80700000000000005,0.97723000000000004]
[null,null,null,null,null,null,null,null,null,"",null,null,null,"",null,null,null,null,null,null,"Passagers_min_221p_Dmin_3501kmKérosène_Jet_A1_A","Passagers_min_221p_Dmin_3501km","Kérosène_Jet_A1_A","l",0.53200000000000003,2.5299999999999998,{"$f":"Y43+Z43","v":3.0619999999999998},2.3900000000000002E-3,0.14199999999999999,0.68600000000000005,0.83039000000000007]
[null,null,null,null,null,null,null,null,null,"",null,null,null,"",null,null,null,null,null,null,"Passagers_min_221p_Dmin_3501kmCarburéacteur_Jet_B","Passagers_min_221p_Dmin_3501km","Carburéacteur_Jet_B","l",0.53500000000000003,2.48,{"$f":"Y44+Z44","v":3.0150000000000001},2.3900000000000002E-3,0.14199999999999999,0.68600000000000005,{"$f":"AB44+AC44+AD44","v":0.83039000000000007}]
[null,null,null,null,null,null,null,null,null,null,null,null,null,null,null,null,null,null,null,null,"Passagers_min_221p_Dmin_3501kmEssence_AvGas","Passagers_min_221p_Dmin_3501km","Essence_AvGas","l",0.53500000000000003,2.48,3.0150000000000001,2.3900000000000002E-3,0.14199999999999999,0.68600000000000005,0.83039000000000007]
[null,"RÉSULTATS",null,null,null,null,null,null,null,null,null,null,null,null,null,null,null,null,null,null,"Cargo_capacité≤25tKérosène_Jet_A1_A","Cargo_capacité≤25t","Kérosène_Jet_A1_A","l",0.53200000000000003,2.5299999999999998,{"$f":"Y46+Z46","v":3.0619999999999998},2.2899999999999999E-3,0.31,1.59,1.90229]
[null,null,null,null,null,null,null,null,null,null,null,null,null,null,null,null,null,null,null,null,"Cargo_capacité≤25tCarburéacteur_Jet_B","Cargo_capacité≤25t","Carburéacteur_Jet_B","l",0.53500000000000003,2.48,{"$f":"Y47+Z47","v":3.0150000000000001},2.2899999999999999E-3,0.31,1.59,1.90229]
[null,"Scope 1 : émissions directes de GES",null,null,null,null,null,null,null,"TTW (tank-to-wheel) = émissions \"du réservoir à la roue\" (combustion)",null,null,null,null,null,null,null,null,null,null,"Cargo_capacité≤25tEssence_AvGas","Cargo_capacité≤25t","Essence_AvGas","l",0.53500000000000003,2.48,3.0150000000000001,2.2899999999999999E-3,0.31,1.59,1.90229]
[null,"Scope 2 : émissions indirectes de GES issues de l'électricité consommée",null,null,null,null,null,null,null,"WTT (well-to-tank) = émissions \"du puits au réservoir\" (production de l'énergie en amont)",null,null,null,null,null,null,null,null,null,null,"Cargo_capacité≤100tKérosène_Jet_A1_A","Cargo_capacité≤100t","Kérosène_Jet_A1_A","l",0.53200000000000003,2.5299999999999998,{"$f":"Y49+Z49","v":3.0619999999999998},1.4499999999999999E-3,0.30599999999999999,1.58,1.8874500000000001,null,"Kérosène_Jet_A1_A","l"]
[null,"Scope 3 : autres émissions indirectes de GES - incluent les émissions amont de production des carburants et des véhicules ainsi que toutes les émissions du transport externalisé",null,null,null,null,null,null,null,"WTW (well-to-wheel) = émissions \"du puits à la roue\" (cycle de vie complet de l'énergie)",null,null,null,null,null,null,null,null,null,null,"Cargo_capacité≤100tCarburéacteur_Jet_B","Cargo_capacité≤100t","Carburéacteur_Jet_B","l",0.53500000000000003,2.48,{"$f":"Y50+Z50","v":3.0150000000000001},1.4499999999999999E-3,0.30599999999999999,1.58,1.8874500000000001,null,"Carburéacteur_Jet_B","l"]
[null,null,null,null,null,null,null,null,null,null,null,null,null,null,null,null,null,null,null,null,"Cargo_capacité≤100tEssence_AvGas","Cargo_capacité≤100t","Essence_AvGas","l",0.53500000000000003,2.48,3.0150000000000001,1.4499999999999999E-3,0.30599999999999999,1.58,1.8874500000000001,null,"Essence_AvGas","l"]
[null,null,null,null,null,null,null,null,null,null,null,null,null,null,null,null,null,null,null,null,"Cargo_capacité_sup_100t_D≤1000kmKérosène_Jet_A1_A","Cargo_capacité_sup_100t_D≤1000km","Kérosène_Jet_A1_A","l",0.53200000000000003,2.5299999999999998,{"$f":"Y52+Z52","v":3.0619999999999998},1.15E-3,0.22800000000000001,1.17,1.3991499999999999]
[null,null,null,null,null,null,null,null,null,null,null,null,null,null,null,null,null,null,null,null,"Cargo_capacité_sup_100t_D≤1000kmCarburéacteur_Jet_B","Cargo_capacité_sup_100t_D≤1000km","Carburéacteur_Jet_B","l",0.53500000000000003,2.48,{"$f":"Y53+Z53","v":3.0150000000000001},1.15E-3,0.22800000000000001,1.17,1.3991499999999999]
[null,null,null,null,null,"Prestations de transport internalisées",null,null,null,null,null,"Prestations de transport externalisées",null,"BILAN GLOBAL",null,null,null,null,null,null,"Cargo_capacité_sup_100t_D≤1000kmEssence_AvGas","Cargo_capacité_sup_100t_D≤1000km","Essence_AvGas","l",0.53500000000000003,2.48,3.0150000000000001,1.15E-3,0.22800000000000001,1.17,1.3991499999999999]
[null,null,null,null,null,"Scope 1",null,"Scope 2","Scope 3",null,null,null,null,null,null,null,null,null,null,null,"Cargo_capacité_sup_100t_D≤3500kmKérosène_Jet_A1_A","Cargo_capacité_sup_100t_D≤3500km","Kérosène_Jet_A1_A","l",0.53200000000000003,2.5299999999999998,{"$f":"Y55+Z55","v":3.0619999999999998},1.15E-3,0.154,0.79600000000000004,0.95115000000000005]
[null,"Prestation de transport","Type d'appareil","Type de carburant","(Réservé)","Activité totale de transport internalisée\n(tkm)","Émissions directes (TTW) de GES\n(kgCO2e)","Émissions indirectes (WTT) de GES issues de l'électricité consommée\n(kgCO2e)","Rappel activité totale de transport internalisée\n(tkm)","Émissions indirectes de GES issues de la fabrication des véhicules\n(kgCO2e)","Émissions indirectes (WTT) de GES issues du carburant consommé\n(kgCO2e)","Activité totale de transport externalisée\n(tkm)","Émissions de GES (WTW + fabrication) \n(kgCO2e)","Activité totale de transport \n(tkm)","Émissions de GES\n(kgCO2e)","Intensité des émissions de GES\n(kgCO2e/tkm)",null,null,null,null,"Cargo_capacité_sup_100t_D≤3500kmCarburéacteur_Jet_B","Cargo_capacité_sup_100t_D≤3500km","Carburéacteur_Jet_B","l",0.53500000000000003,2.48,{"$f":"Y56+Z56","v":3.0150000000000001},1.15E-3,0.154,0.79600000000000004,{"$f":"AB56+AC56+AD56","v":0.95115000000000005}]
[null,{"$f":"B19","v":0},0,0,0,{"$f":"G19*H19","v":0},{"$f":"IF(OR($C57=0,$D57=0),0,IF($J$17=\"Oui\",$I19*VLOOKUP($C57&$D57,$U$19:$AE$61,6,FALSE),$F57*VLOOKUP($C57&$D57,$U$19:$AE$61,10,FALSE)))","v":0},{"$f":"IF($D57<>\"Électricité\",0,IF($J$17=\"Oui\",$I19*VLOOKUP($C57&$D57,$U$19:$AE$61,5,FALSE),$F57*VLOOKUP($C57&$D57,$U$19:$AE$61,9,FALSE)))","v":0},{"$f":"F57","v":0},{"$f":"IF(OR($C57=0,$D57=0),0,$F57*VLOOKUP($C57&$D57,$U$19:$AE$61,8,FALSE))","v":0},{"$f":"IF(OR($C57=0,$D57=0),0,IF($D57=\"Électricité\",0,IF($J$17=\"Oui\",$I19*VLOOKUP($C57&$D57,$U$19:$AE$61,5,FALSE),$F57*VLOOKUP($C57&$D57,$U$19:$AE$61,9,FALSE))))","v":0},{"$f":"K19*L19","v":0},{"$f":"IF(OR($C57=0,$D57=0),0,IF($N$17=\"Oui\",$M19*VLOOKUP($C57&$D57,$U$19:$AE$61,7,FALSE)+$L57*VLOOKUP(C57&D57,$U$19:$AE$61,8,FALSE),$L57*VLOOKUP($C57&$D57,$U$19:$AE$61,11,FALSE)))","v":0},{"$f":"I57+L57","v":0},{"$f":"G57+H57+J57+K57+M57","v":0},{"$f":"O57/N57","v":{"$error":"#DIV/0!"}},null,null,null,null,"Cargo_capacité_sup_100t_D≤3500kmEssence_AvGas","Cargo_capacité_sup_100t_D≤3500km","Essence_AvGas","l",0.53500000000000003,2.48,3.0150000000000001,1.15E-3,0.154,0.79600000000000004,0.95115000000000005]
[null,0,0,0,0,0,{"$f":"IF(OR($C58=0,$D58=0),0,IF($J$17=\"Oui\",$I20*VLOOKUP($C58&$D58,$U$19:$AE$61,6,FALSE),$F58*VLOOKUP($C58&$D58,$U$19:$AE$61,10,FALSE)))","v":0},0,{"$f":"F58","v":0},{"$f":"IF(OR($C58=0,$D58=0),0,$F58*VLOOKUP($C58&$D58,$U$19:$AE$61,8,FALSE))","v":0},{"$f":"IF(OR($C58=0,$D58=0),0,IF($D58=\"Électricité\",0,IF($J$17=\"Oui\",$I20*VLOOKUP($C58&$D58,$U$19:$AE$61,5,FALSE),$F58*VLOOKUP($C58&$D58,$U$19:$AE$61,9,FALSE))))","v":0},0,{"$f":"IF(OR($C58=0,$D58=0),0,IF($N$17=\"Oui\",$M20*VLOOKUP($C58&$D58,$U$19:$AE$61,7,FALSE)+$L58*VLOOKUP(C58&D58,$U$19:$AE$61,8,FALSE),$L58*VLOOKUP($C58&$D58,$U$19:$AE$61,11,FALSE)))","v":0},{"$f":"I58+L58","v":0},{"$f":"G58+H58+J58+K58+M58","v":0},{"$f":"O58/N58","v":{"$error":"#DIV/0!"}},null,null,null,null,"Cargo_capacité_sup_100t_Dmin_3501kmKérosène_Jet_A1_A","Cargo_capacité_sup_100t_Dmin_3501km","Kérosène_Jet_A1_A","l",0.53200000000000003,2.5299999999999998,{"$f":"Y58+Z58","v":3.0619999999999998},1.15E-3,9.5799999999999996E-2,0.49399999999999999,0.59094999999999998]
[null,0,0,0,0,0,0,0,0,0,0,0,0,0,0,{"$error":"#DIV/0!"},null,null,null,null,"Cargo_capacité_sup_100t_Dmin_3501kmCarburéacteur_Jet_B","Cargo_capacité_sup_100t_Dmin_3501km","Carburéacteur_Jet_B","l",0.53500000000000003,2.48,{"$f":"Y59+Z59","v":3.0150000000000001},1.15E-3,9.5799999999999996E-2,0.49399999999999999,{"$f":"AB59+AC59+AD59","v":0.59094999999999998}]
[null,0,0,0,0,0,0,0,0,0,0,0,0,0,0,{"$error":"#DIV/0!"},null,null,null,null,"Cargo_capacité_sup_100t_Dmin_3501kmEssence_AvGas","Cargo_capacité_sup_100t_Dmin_3501km","Essence_AvGas","l",0.53500000000000003,2.48,3.0150000000000001,1.15E-3,9.5799999999999996E-2,0.49399999999999999,0.59094999999999998,null,"Oui"]
[null,0,0,0,0,0,0,0,0,0,0,0,0,0,0,{"$error":"#DIV/0!"},null,null,null,null,"",null,null,null,null,null,null,null,null,null,null,null,"Non"]
[null,0,0,0,0,0,0,0,0,0,0,0,0,0,0,{"$error":"#DIV/0!"}]
[null,0,0,0,0,0,0,0,0,0,0,0,0,0,0,{"$error":"#DIV/0!"}]
[null,0,0,0,0,0,0,0,0,0,0,0,0,0,0,{"$error":"#DIV/0!"}]
[null,0,0,0,0,0,0,0,0,0,0,0,0,0,0,{"$error":"#DIV/0!"}]
[null,0,0,0,0,0,0,0,0,0,0,0,0,0,0,{"$error":"#DIV/0!"}]
[null,0,0,0,0,0,0,0,0,0,0,0,0,0,0,{"$error":"#DIV/0!"}]
[null,0,0,0,0,0,0,0,0,0,0,0,0,0,0,{"$error":"#DIV/0!"}]
[null,0,0,0,0,0,0,0,0,0,0,0,0,0,0,{"$error":"#DIV/0!"}]
[null,0,0,0,0,0,0,0,0,0,0,0,0,0,0,{"$error":"#DIV/0!"}]
[null,0,0,0,0,0,0,0,0,0,0,0,0,0,0,{"$error":"#DIV/0!"}]
[null,0,0,0,0,0,0,0,0,0,0,0,0,0,0,{"$error":"#DIV/0!"}]
[null,0,0,0,0,0,0,0,0,0,0,0,0,0,0,{"$error":"#DIV/0!"}]
[null,0,0,0,0,0,0,0,0,0,0,0,0,0,0,{"$error":"#DIV/0!"}]
[null,0,0,0,0,0,0,0,0,0,0,0,0,0,0,{"$error":"#DIV/0!"}]
[null,0,0,0,0,0,0,0,0,0,0,0,0,0,0,{"$error":"#DIV/0!"}]
[null,0,0,0,0,0,0,0,0,0,0,0,0,0,0,{"$error":"#DIV/0!"}]
[null,0,0,0,0,0,0,0,0,0,0,0,0,0,0,{"$error":"#DIV/0!"}]
[null,0,0,0,0,0,0,0,0,0,0,0,0,0,0,{"$error":"#DIV/0!"}]
[null,0,0,0,0,0,0,0,0,0,0,0,0,0,0,{"$error":"#DIV/0!"}]
[null,0,0,0,0,0,0,0,0,0,0,0,0,0,0,{"$error":"#DIV/0!"}]
[null,{"$f":"B44","v":0},0,0,0,0,0,0,0,0,0,0,0,0,0,{"$error":"#DIV/0!"}]
[]
[null,"TOTAL",null,null,null,{"$f":"SUM(F57:F82)","v":0},0,0,0,0,0,0,0,0,0,{"$f":"O84/N84","v":{"$error":"#DIV/0!"}}]

{"sheet":"0_SYNTHESE","index":26,"n_rows":49,"n_cols":15,"rows_kept":49,"cut":false,"hidden":false,"merged":[[11,2,11,9],[13,2,13,9],[14,2,14,9],[41,1,41,3],[1,3,1,9],[17,2,17,9],[48,2,48,9],[15,2,15,9],[36,1,36,3],[37,1,37,3],[38,1,38,3],[39,1,39,3],[40,1,40,3]]}
[]
[null,null,null,"SYNTHESE"]
[]
[]
[]
[]
[]
[null,"SYNTHÈSE"]
[]
[null,"Les cellules sont automatiquement complétées et ne sont pas modifiables manuellement. Pour apporter des modifications, se reporter aux onglets concernés."]
[]
[null,"Raison sociale du titulaire : ",{"$f":"IF(NOT(ISBLANK('1_Infos générales'!C9)), '1_Infos générales'!$C$9, \"A renseigner\")","v":"A renseigner"}]
[]
[null,"Adresse du titulaire : ",{"$f":"'1_Infos générales'!$C$11:$J$11","v":"(Adresse)"}]
[null,null,{"$f":"'1_Infos générales'!$C$12:$J$12","v":"(complément d'adresse) "}]
[null,null,{"$f":"'1_Infos générales'!$C$13:$J$13","v":"(code postal, ville et pays)"},null,null,null,null,null,null,null,null,null,null,null," "]
[]
[null,"Période de référence : ",{"$f":"'1_Infos générales'!C15","v":"Année"}]
[]
[null,"Couverture de la déclaration :",{"$f":"IF('1_Infos générales'!J18>0, '1_Infos générales'!J18, \"A renseigner\")","v":"A renseigner"},"Chaîne d'approvisionnement (Logistique amont) "]
[null,null,{"$f":"IF('1_Infos générales'!J19>0, '1_Infos générales'!J19>0, \"A renseigner\")","v":"A renseigner"},"Activités de transport intégrées dans les prestations de services logistiques mobilisées par le marché (Logistique intermédiaire)"]
[null,null,{"$f":"IF('1_Infos générales'!J20>0, '1_Infos générales'!J20>0, \"A renseigner\")","v":"A renseigner"},"Activités de livraison par les transporteurs finaux (Logistique aval)"]
[]
[null,"TOTAL DES ÉMISSIONS DE GAZ À EFFET DE SERRE : ",null,null,null,{"$f":"'2_Routier carburant'!$J$16+'2_Routier tkm'!$K$16+'3_Ferroviaire tkm'!$K$16+'3_Ferroviaire carburant'!$J$16+'4_Fluvial tkm'!$K$16+'4_Fluvial carburant'!$J$16+'5_Maritime tkm'!$K$16+'5_Maritime carburant'!$J$16+'6_Aérien tkm'!$K$16+'6_Aérien carburant'!$J$16","v":0},"kgCO2e"]
[]
[null,"Scope 1 : émissions directes de GES",null,null,null,{"$f":"'2_Routier'!G84+'3_Ferroviaire'!G84+'4_Fluvial'!G84+'5_Maritime'!G84+'6_Aerien'!G84+#REF!","v":{"$error":"#REF!"}},"kgCO2e"]
[null,"Scope 2 : émissions indirectes de GES issues de l'électricité consommée",null,null,null,{"$f":"'2_Routier'!H84+'3_Ferroviaire'!H84+'4_Fluvial'!H84+'5_Maritime'!H84+'6_Aerien'!H84+#REF!","v":{"$error":"#REF!"}},"kgCO2e"]
[null,"Scope 3 : autres émissions indirectes de GES, dont"]
[null," - les émissions amont de production des carburants"]
[null," - les émissions amont de production des véhicules"]
[null,"Scope 2 : émissions indirectes de GES issues de l'électricité consommée",null,null,null,{"$f":"'2_Routier'!H88+'3_Ferroviaire'!H88+'4_Fluvial'!H88+'5_Maritime'!H88+'6_Aerien'!H88+#REF!","v":{"$error":"#REF!"}},"kgCO2e"]
[]
[null,"INTENSITÉ TOTALE DES ÉMISSIONS DE GAZ À EFFET DE SERRE",null,null,null,{"$f":"F24/('2_Routier'!N84+'3_Ferroviaire'!N84+'4_Fluvial'!N84+'5_Maritime'!N84+'6_Aerien'!N84)","v":0},"kgCO2e/tkm","(hors sites logistiques)"]
[]
[null,"Répartition des émissions de GES"]
[]
[null,"Élément de la chaîne de transport / mode de transport",null,null,"Émissions de GES\n(kgCO2e)","% du total d'émissions de GES","Type de données "]
[null,"Routier",null,null,{"$f":"'2_Routier tkm'!$K$16+'2_Routier carburant'!$J$16","v":0},{"$f":"IF(F24=0,0,$E38/$F$24)","v":0},{"$f":"IF('2_Routier tkm'!K16 > 0, \"Tonnes kilométriques\", IF('2_Routier carburant'!J16 > 0, \"Carburant consommé\", \"Aucune\"))","v":"Aucune"}]
[null,"Ferroviaire",null,null,{"$f":"'3_Ferroviaire tkm'!$K$16+'3_Ferroviaire carburant'!$J$16","v":0},{"$f":"IF(F24=0,0,$E39/$F$24)","v":0},{"$f":"IF('3_Ferroviaire tkm'!K16 > 0, \"Tonnes kilométriques\", IF('3_Ferroviaire carburant'!J16 > 0, \"Carburant consommé\", \"Aucune\"))","v":"Aucune"}]
[null,"Fluvial",null,null,{"$f":"'4_Fluvial tkm'!$K$16+'4_Fluvial carburant'!$J$16","v":0},{"$f":"IF(F24=0,0,$E40/$F$24)","v":0},{"$f":"IF('4_Fluvial tkm'!K16 > 0, \"Tonnes kilométriques\", IF('4_Fluvial carburant'!J16 > 0, \"Carburant consommé\", \"Aucune\"))","v":"Aucune"}]
[null,"Maritime",null,null,{"$f":"'5_Maritime tkm'!$K$16+'5_Maritime carburant'!$J$16","v":0},{"$f":"IF(F24=0,0,$E41/$F$24)","v":0},{"$f":"IF('5_Maritime tkm'!K16 > 0, \"Tonnes kilométriques\", IF('5_Maritime carburant'!J16 > 0, \"Carburant consommé\", \"Aucune\"))","v":"Aucune"}]
[null,"Aérien",null,null,{"$f":"'6_Aérien tkm'!$K$16+'6_Aérien carburant'!$J$16","v":0},{"$f":"IF(F24=0,0,$E42/$F$24)","v":0},{"$f":"IF('6_Aérien tkm'!K16 > 0, \"Tonnes kilométriques\", IF('6_Aérien carburant'!J16 > 0, \"Carburant consommé\", \"Aucune\"))","v":"Aucune"}]
[]
[null,"Vérification des données par un tiers indépendant ?"]
[]
[null,null,{"$f":"IF('1_Infos générales'!$C$25>0, '1_Infos générales'!$C$25, \"A renseigner\")","v":"A renseigner"}]
[]
[null,null,"Raison sociale du tiers indépendant et référentiel méthodologique appliqué pour la vérification : "]
[null,null,{"$f":"IF(ISBLANK('1_Infos générales'!$C$28:$J$28),\"\",'1_Infos générales'!$C$28:$J$28)","v":""}]

{"sheet":"Lexique","index":27,"n_rows":91,"n_cols":2,"rows_kept":91,"cut":false,"hidden":false,"merged":[[0,1,4,1]]}
[null,"LEXIQUE "]
[]
[]
[]
[]
[]
[]
[]
[]
[]
[]
["Références listes","Signification"]
[]
["Routier"]
["Véhicule_utilitaire_léger_VUL_PTAC≤3,5t","Véhicule utilitaire léger de poids total autorisé en charge (PTAC) maximal de 3,5 tonnes"]
["Camion_rigide_PL_PTAC≤7,5t","Camion porteur rigide de PTAC compris entre 3,6 et 7,5 tonnes"]
["Camion_rigide_PL_PTAC≤12t","Camion porteur rigide de PTAC compris entre 7,6 et 12 tonnes"]
["Camion_rigide_PL_PTAC≤20t","Camion porteur rigide de PTAC compris entre 13 et 20 tonnes"]
["Camion_rigide_PL_PTAC≤26t","Camion porteur rigide de PTAC compris entre 21 et 26 tonnes"]
["Camion_rigide_PL_PTAC≤32t","Camion porteur rigide de PTAC compris entre 27 et 32 tonnes"]
["Ensemble_articulé_PL_PTRA≤34t","Ensemble routier de poids total roulant autorisé (PTRA) maximal de 34 tonnes"]
["Ensemble_articulé_PL_PTRA≤40t","Ensemble routier de PTRA compris entre 35 et 40 tonnes"]
["Ensemble_articulé_PL_PTRA≤44t","Ensemble routier de PTRA compris entre 41 et 44 tonnes"]
["Ensemble_articulé_PL_PTRA≤60t","Ensemble routier de PTRA compris entre 45 et 60 tonnes"]
["Ensemble_articulé_PL_PTRA≤72t","Ensemble routier de PTRA compris entre 61 et 72 tonnes"]
["Vélo","Vélo sans assistance électrique, y compris à remorque ou vélo-cargo"]
["Vélo_électrique","Vélo avec assistance électrique, y compris à remorque ou vélo-cargo"]
[]
["Ferroviaire"]
["Mixte_Basse_densité","Chargement mixte de densité inférieure ou égale à 249 kg/m3"]
["Mixte_Moyenne_densité","Chargement mixte de densité comprise entre 250 et 399 kg/m3"]
["Mixte_Densité_élevée","Chargement mixte de densité supérieure ou égale à 400 kg/m3"]
["Conteneur","Chargement spécifique conteneur"]
["Automobiles","Chargement spécifique automobiles"]
["Produits_chimiques","Chargement spécifique produits chimiques"]
["Charbon_Acier","Chargement spécifique charbon et acier"]
["Matériels_Matériaux_Construction","Chargement spécifique matériels et matériaux de construction"]
["Produits_manufacturés","Chargement divers produits manufacturés"]
["Céréales","Chargement spécifique céréales"]
["Ensemble_articulé_camion_remorque","Chargement spécifique camion + remorque à bord"]
["Remorque_seule","Chargement spécifique remorque seule à bord"]
[]
["Fluvial"]
["Bateau_motorisé_capacité≤399tpl","Bateau automoteur de capacité inférieure ou égale à 399 tonnes de port en lourd"]
["Bateau_motorisé_capacité≤649tpl","Bateau automoteur de capacité comprise entre 400 et 649 tonnes de port en lourd"]
["Bateau_motorisé_capacité≤999tpl","Bateau automoteur de capacité comprise entre 650 et 999 tonnes de port en lourd"]
["Bateau_motorisé_capacité≤1499tpl","Bateau automoteur de capacité comprise entre 1000 et 1499 tonnes de port en lourd"]
["Bateau_motorisé_capacité≤2999tpl","Bateau automoteur de capacité comprise entre 1500 et 2999 tonnes de port en lourd"]
["Bateau_motorisé_capacité_sup_3000tpl","Bateau automoteur de capacité supérieure ou égale à 3000 tonnes de port en lourd"]
["Pousseur_avec_barge_P≤879kW","Bateau pousseur avec barge de puissance inférieure ou égale à 879 kilowatts"]
["Pousseur_avec_barge_Pmin_880kW","Bateau pousseur avec barge de puissance supérieure ou égale à 880 kilowatts"]
[]
["Maritime"]
["Pétrolier_capacité≤5000tpl","Pétrolier de capacité inférieure ou égale à 5000 tonnes de port en lourd"]
["Pétrolier_capacité≤60000tpl","Pétrolier de capacité comprise entre 5001 et 60000 tonnes de port en lourd"]
["Pétrolier_capacité≤200000tpl","Pétrolier de capacité comprise entre 60001 et 200000 tonnes de port en lourd"]
["Pétrolier_capacité_sup_200000tpl","Pétrolier de capacité strictement supérieure à 200000 tonnes de port en lourd"]
["Cargo_divers_capacité≤10000tpl","Cargo de marchandises diverses de capacité inférieure ou égale à 10000 tonnes de port en lourd"]
["Cargo_divers_capacité≤20000tpl","Cargo de marchandises diverses de capacité comprise entre 10001 et 20000 tonnes de port en lourd"]
["Vraquier_capacité≤10000tpl","Vraquier de capacité inférieure ou égale à 10000 tonnes de port en lourd"]
["Vraquier_capacité≤100000tpl","Vraquier de capacité comprise entre 10001 et 100000 tonnes de port en lourd"]
["Vraquier_capacité_sup_100000tpl","Vraquier de capacité strictement supérieure à 100000 tonnes de port en lourd"]
["Roulier_mixte_RoPax","Roulier mixte \"Ro-Pax\""]
["Roulier_RoRo_Moyen","Roulier \"Ro-Ro\" moyenne, marchandises uniquement"]
["Roulier_RoRo_Camions_Remorques","Roulier \"Ro-Ro\" camion + remorque à bord"]
["Roulier_RoRo_Remorques_seules","Roulier \"Ro-Ro\" remorque seule à bord"]
["Porte_conteneur_Panama_commercial","Porte-conteneur - Ligne commerciale Panama"]
["Porte_conteneur_Transatlantique","Porte-conteneur - Ligne commerciale transatlantique"]
["Porte_conteneur_Trans-Suez","Porte-conteneur - Ligne commerciale trans-Suez"]
["Porte_conteneur_Transpacifique","Porte-conteneur - Ligne commerciale transpacifique"]
["Porte_conteneur_autres_liaisons","Porte-conteneur - Autres lignes commerciales majeures"]
[]
["Aérien"]
["Passagers≤50p_D≤1000km","Avion mixte passagers-fret de 50 sièges max pour une distance inférieure ou égale à 1000 km"]
["Passagers≤50p_D≤3500km","Avion mixte passagers-fret de 50 sièges max pour une distance comprise entre 1001 et 3500 km"]
["Passagers≤100p_D≤1000km","Avion mixte passagers-fret de 51 à 100 sièges pour une distance inférieure ou égale à 1000 km"]
["Passagers≤100p_D≤3500km","Avion mixte passagers-fret de 51 à 100 sièges max pour une distance comprise entre 1001 et 3500 km"]
["Passagers≤220p_D≤1000km","Avion mixte passagers-fret de 101 à 220 sièges pour une distance inférieure ou égale à 1000 km"]
["Passagers≤220p_D≤3500km","Avion mixte passagers-fret de 101 à 220 sièges pour une distance comprise entre 1001 et 3500 km"]
["Passagers≤220p_Dmin_3501km","Avion mixte passagers-fret de 101 à 220 sièges pour une distance strictement supérieure à 3500 km"]
["Passagers_min_221p_D≤3500km","Avion mixte passagers-fret de plus de 220 sièges pour une distance inférieure ou égale à 3500 km"]
["Passagers_min_221p_Dmin_3501km","Avion mixte passagers-fret de plus de 220 sièges pour une distance strictement supérieure à 3500 km"]
["Cargo_capacité≤25t","Avion cargo uniquement de capacité inférieure ou égale à 25 tonnes"]
["Cargo_capacité≤100t","Avion cargo uniquement de capacité comprise entre 26 et 100 tonnes"]
["Cargo_capacité_sup_100t_D≤1000km","Avion cargo uniquement de capacité strictement supérieure à 100 tonnes pour une distance inférieure ou égale à 1000 km"]
["Cargo_capacité_sup_100t_D≤3500km","Avion cargo uniquement de capacité strictement supérieure à 100 tonnes pour une distance comprise entre 1001 et 3500 km"]
["Cargo_capacité_sup_100t_Dmin_3501km","Avion cargo uniquement de capacité strictement supérieure à 100 tonnes pour une distance strictement supérieure à 3500 km"]
[]
["Sites logistiques"]
["Transbordement","Site uniquement de transbordement (manipulation d'une marchandise pour passer d'un mode/moyen de transport à un autre)"]
["Stockage_transbordement","Site proposant des installations de stockage et de transbordement"]

{"sheet":"1_Infos_generales_OLD","index":28,"n_rows":27,"n_cols":8,"rows_kept":27,"cut":false,"hidden":true,"merged":[[27,2,27,3],[1,1,1,3],[7,2,7,3],[9,2,9,3],[10,2,10,3],[11,2,11,3]]}
[]
[null,"DÉCLARATION DES ÉMISSIONS DE GAZ À EFFET DE SERRE GÉNÉRÉES PAR LES PRESTATIONS DE TRANSPORT MOBILISÉES DANS LE MARCHÉ"]
[]
[null,"INFORMATIONS GÉNÉRALES"]
[]
[null,"Le titulaire est invité à renseigner les cellules jaunes"]
[]
[null,"Raison sociale du titulaire"]
[]
[null,"Adresse du titulaire","(numéro et rue)"]
[null,null,"(complément d'adresse)"]
[null,null,"(code postal et ville)"]
[]
[null,"Période de référence","Année 2023"]
[]
[null,"Couverture de la déclaration","Sélectionner"]
[null,null,null,"Services de transport payés (amont du fournisseur)",null,null,null,"Oui"]
[null,null,null,"Toutes les activités de transport intégrées dans les prestations de services logistiques mobilisées par le marché (aval du fournisseur)",null,null,null,"Non"]
[null,null,null,"Uniquement l'activité de transport fournie par les transporteurs finaux (aval du fournisseur)"]
[null,null,null,"Émissions provenant des sites logistiques"]
[]
[null,"Vérification des données par un tiers indépendant ?"]
[]
[null,null,"Sélectionner"]
[]
[]
[null,null,"Si oui, préciser la raison sociale du tiers indépendant et le référentiel méthodologique appliqué pour la vérification"]

{"sheet":"Routier_v1","index":29,"n_rows":70,"n_cols":30,"rows_kept":70,"cut":false,"hidden":true,"merged":[[7,4,7,8],[7,9,7,12],[8,9,8,10],[39,4,39,9],[39,10,39,11],[40,4,40,5],[40,7,40,11],[39,12,40,14],[69,1,69,2],[8,4,8,6]]}
[]
[]
[]
[]
[]
[]
[]
[null,null,null,null,"Prestations de transport internalisées",null,null,null,null,"Prestations de transport externalisées"]
[null,null,null,null,"Informations sur le parc de véhicules routiers détenus en flotte propre",null,null,"Données primaires?","Oui","Informations sur l'activité externalisée",null,"Données primaires?","Oui"]
[null,"Type de véhicule","Type de carburant","Transport sous température dirigée?","Nombre de véhicules","Distance totale cumulée\n(km)","Masse totale de marchandises transportées\n(t)","Quantité totale d'énergie consommée","Unité","Distance totale cumulée\n(km)","Masse totale de marchandises transportées\n(t)","Quantité totale d'énergie consommée","Unité",null,null,null,null,null,null,null,"Type de véhicule","Type de carburant","Unité","Facteur d'émission (WTT)\n(kgCO2e/unité)","Facteur d'émission (TTW)\n(kgCO2e/unité)","Facteur d'émission (WTW)\n(kgCO2e/unité)","Intensité des émissions issues de la fabrication\n(kgCO2e/tkm)","Intensité des émissions WTT de GES\n(kgCO2e/tkm)","Intensité des émissions TTW de GES\n(kgCO2e/tkm)","Intensité des émissions de GES (WTW + fabrication)\n(kgCO2e/tkm)"]
[null,"Véhicule utilitaire léger (VUL) - PTAC ≤ 3,5 t","Gazole","Non",null,2800,26,1420,"l",3200,50,1500,"l",null,null,null,null,null,null,{"$f":"U11&V11","v":"Véhicule utilitaire léger (VUL) - PTAC ≤ 3,5 tGazole"},"Véhicule utilitaire léger (VUL) - PTAC ≤ 3,5 t","Gazole","l",0.60899999999999999,2.4900000000000002,{"$f":"X11+Y11","v":3.0990000000000002},0.153,0.13200000000000001,0.54100000000000004,{"$f":"AA11+AB11+AC11","v":0.82600000000000007}]
[null,"Véhicule utilitaire léger (VUL) - PTAC ≤ 3,5 t","Essence","Oui",null,2800,26,1420,"l",3200,50,1500,"l",null,null,null,null,null,null,{"$f":"U12&V12","v":"Véhicule utilitaire léger (VUL) - PTAC ≤ 3,5 tEssence"},"Véhicule utilitaire léger (VUL) - PTAC ≤ 3,5 t","Essence","l",0.49399999999999999,2.2000000000000002,{"$f":"X12+Y12","v":2.694},0.153,0.16,0.85,{"$f":"AA12+AB12+AC12","v":1.163}]
[null,"Véhicule utilitaire léger (VUL) - PTAC ≤ 3,5 t","Gaz naturel comprimé (GNC)",null,null,null,null,null,"kg",null,null,null,"kg",null,null,null,null,null,null,"Véhicule utilitaire léger (VUL) - PTAC ≤ 3,5 tGaz naturel comprimé (GNC)","Véhicule utilitaire léger (VUL) - PTAC ≤ 3,5 t","Gaz naturel comprimé (GNC)","kg",0.55000000000000004,2.41,2.96,0.153,0.08,0.54,0.77300000000000002]
[null,"Véhicule utilitaire léger (VUL) - PTAC ≤ 3,5 t","Gaz de pétrole liquéfié (GPL)",null,null,null,null,null,"l",null,null,null,"l",null,null,null,null,null,null,"Véhicule utilitaire léger (VUL) - PTAC ≤ 3,5 tGaz de pétrole liquéfié (GPL)","Véhicule utilitaire léger (VUL) - PTAC ≤ 3,5 t","Gaz de pétrole liquéfié (GPL)","l",0.26200000000000001,1.6,1.8620000000000001,0.153,7.0000000000000007E-2,0.59,0.81299999999999994]
[null,"Véhicule utilitaire léger (VUL) - PTAC ≤ 3,5 t","Électricité","Non",null,2800,26,153,"kWh",3200,50,294,"kWh",null,null,null,null,null,null,"Véhicule utilitaire léger (VUL) - PTAC ≤ 3,5 tÉlectricité","Véhicule utilitaire léger (VUL) - PTAC ≤ 3,5 t","Électricité","kWh",5.67E-2,0,5.67E-2,0.153,{"$f":"1.1*X15","v":6.2370000000000009E-2},0,0.21537000000000001]
[null,"Véhicule utilitaire léger (VUL) - PTAC ≤ 3,5 t","Hydrogène",null,null,null,null,null,"kg",null,null,null,"kg",null,null,null,null,null,null,"Véhicule utilitaire léger (VUL) - PTAC ≤ 3,5 tHydrogène","Véhicule utilitaire léger (VUL) - PTAC ≤ 3,5 t","Hydrogène","kg",13.7,0,13.7,8.8300000000000003E-2,0.30299999999999999,0,0.39129999999999998]
[null,"Camion rigide (PL) - 3,5 t < PTAC ≤ 7,5 t","Gazole",null,null,null,null,null,"l",null,null,null,"l",null,null,null,null,null,null,"Camion rigide (PL) - 3,5 t < PTAC ≤ 7,5 tGazole","Camion rigide (PL) - 3,5 t < PTAC ≤ 7,5 t","Gazole","l",0.60899999999999999,2.4900000000000002,3.0990000000000002,1.1299999999999999E-2,7.1900000000000006E-2,0.29399999999999998,0.37719999999999998]
[null,"Camion rigide (PL) - 3,5 t < PTAC ≤ 7,5 t","Gaz naturel comprimé (GNC)",null,null,null,null,null,"kg",null,null,null,"kg",null,null,null,null,null,null,"Camion rigide (PL) - 3,5 t < PTAC ≤ 7,5 tGaz naturel comprimé (GNC)","Camion rigide (PL) - 3,5 t < PTAC ≤ 7,5 t","Gaz naturel comprimé (GNC)","kg",0.55000000000000004,2.41,2.96,1.1299999999999999E-2,4.4999999999999998E-2,0.31,0.36630000000000001]
[null,"Camion rigide (PL) - 3,5 t < PTAC ≤ 7,5 t","Hybride électricité-gazole",null,null,null,null,null,"l",null,null,null,"l",null,null,null,null,null,null,"Camion rigide (PL) - 3,5 t < PTAC ≤ 7,5 tHybride électricité-gazole","Camion rigide (PL) - 3,5 t < PTAC ≤ 7,5 t","Hybride électricité-gazole","l",0.54800000000000004,2.2400000000000002,2.7880000000000003,1.1299999999999999E-2,4.7500000000000001E-2,0.24,0.29880000000000001]
[null,"Camion rigide (PL) - 3,5 t < PTAC ≤ 7,5 t","Électricité",null,null,null,null,null,"kWh",null,null,null,"kWh",null,null,null,null,null,null,"Camion rigide (PL) - 3,5 t < PTAC ≤ 7,5 tÉlectricité","Camion rigide (PL) - 3,5 t < PTAC ≤ 7,5 t","Électricité","kWh",5.67E-2,0,5.67E-2,1.1299999999999999E-2,4.6699999999999998E-2,0,5.7999999999999996E-2]
[null,"Camion rigide (PL) - 7,5 t < PTAC ≤ 12 t","Gazole",null,null,null,null,null,"l",null,null,null,"l",null,null,null,null,null,null,"Camion rigide (PL) - 7,5 t < PTAC ≤ 12 tGazole","Camion rigide (PL) - 7,5 t < PTAC ≤ 12 t","Gazole","l",0.60899999999999999,2.4900000000000002,3.0990000000000002,9.7000000000000003E-3,4.5499999999999999E-2,0.186,0.2412]
[null,"Camion rigide (PL) - 7,5 t < PTAC ≤ 12 t","Gaz naturel comprimé (GNC)",null,null,null,null,null,"kg",null,null,null,"kg",null,null,null,null,null,null,"Camion rigide (PL) - 7,5 t < PTAC ≤ 12 tGaz naturel comprimé (GNC)","Camion rigide (PL) - 7,5 t < PTAC ≤ 12 t","Gaz naturel comprimé (GNC)","kg",0.55000000000000004,2.41,2.96,9.7000000000000003E-3,2.8000000000000001E-2,0.19,0.22770000000000001]
[null,"Camion rigide (PL) - 12 t < PTAC ≤ 20 t","Gazole",null,null,null,null,null,"l",null,null,null,"l",null,null,null,null,null,null,"Camion rigide (PL) - 12 t < PTAC ≤ 20 tGazole","Camion rigide (PL) - 12 t < PTAC ≤ 20 t","Gazole","l",0.60899999999999999,2.4900000000000002,3.0990000000000002,1.0500000000000001E-2,2.93E-2,0.12,0.1598]
[null,"Camion rigide (PL) - 12 t < PTAC ≤ 20 t","Gaz naturel comprimé (GNC)",null,null,null,null,null,"kg",null,null,null,"kg",null,null,null,null,null,null,"Camion rigide (PL) - 12 t < PTAC ≤ 20 tGaz naturel comprimé (GNC)","Camion rigide (PL) - 12 t < PTAC ≤ 20 t","Gaz naturel comprimé (GNC)","kg",0.55000000000000004,2.41,2.96,1.0500000000000001E-2,1.4999999999999999E-2,0.13,0.1555]
[null,"Camion rigide (PL) - 12 t < PTAC ≤ 20 t","Gaz naturel liquéfié (GNL)",null,null,null,null,null,"kg",null,null,null,"kg",null,null,null,null,null,null,"Camion rigide (PL) - 12 t < PTAC ≤ 20 tGaz naturel liquéfié (GNL)","Camion rigide (PL) - 12 t < PTAC ≤ 20 t","Gaz naturel liquéfié (GNL)","kg",0.69699999999999995,2.58,3.2770000000000001,1.0500000000000001E-2,4.5999999999999999E-2,0.13,0.1865]
[null,"Camion rigide (PL) - 20 t < PTAC ≤ 26 t","Gazole",null,null,null,null,null,"l",null,null,null,"l",null,null,null,null,null,null,"Camion rigide (PL) - 20 t < PTAC ≤ 26 tGazole","Camion rigide (PL) - 20 t < PTAC ≤ 26 t","Gazole","l",0.60899999999999999,2.4900000000000002,3.0990000000000002,1.1299999999999999E-2,2.4199999999999999E-2,9.9099999999999994E-2,0.1346]
[null,"Camion rigide (PL) - 20 t < PTAC ≤ 26 t","Gaz naturel comprimé (GNC)",null,null,null,null,null,"kg",null,null,null,"kg",null,null,null,null,null,null,"Camion rigide (PL) - 20 t < PTAC ≤ 26 tGaz naturel comprimé (GNC)","Camion rigide (PL) - 20 t < PTAC ≤ 26 t","Gaz naturel comprimé (GNC)","kg",0.55000000000000004,2.41,2.96,1.1299999999999999E-2,1.4999999999999999E-2,0.12,0.14629999999999999]
[null,"Camion rigide (PL) - 20 t < PTAC ≤ 26 t","Gaz naturel liquéfié (GNL)",null,null,null,null,null,"kg",null,null,null,"kg",null,null,null,null,null,null,"Camion rigide (PL) - 20 t < PTAC ≤ 26 tGaz naturel liquéfié (GNL)","Camion rigide (PL) - 20 t < PTAC ≤ 26 t","Gaz naturel liquéfié (GNL)","kg",0.69699999999999995,2.58,3.2770000000000001,1.1299999999999999E-2,3.5999999999999997E-2,0.14000000000000001,0.18730000000000002]
[null,"Camion rigide (PL) - 26 t < PTAC ≤ 32 t","Gazole",null,null,null,null,null,"l",null,null,null,"l",null,null,null,null,null,null,"Camion rigide (PL) - 26 t < PTAC ≤ 32 tGazole","Camion rigide (PL) - 26 t < PTAC ≤ 32 t","Gazole","l",0.60899999999999999,2.4900000000000002,3.0990000000000002,8.0000000000000002E-3,1.9099999999999999E-2,7.8100000000000003E-2,0.1052]
[null,"Ensemble articulé (PL) - PTRA ≤ 34 t","Gazole",null,null,null,null,null,"l",null,null,null,"l",null,null,null,null,null,null,"Ensemble articulé (PL) - PTRA ≤ 34 tGazole","Ensemble articulé (PL) - PTRA ≤ 34 t","Gazole","l",0.60899999999999999,2.4900000000000002,3.0990000000000002,3.7000000000000002E-3,1.7600000000000001E-2,6.4000000000000001E-2,8.5300000000000001E-2]
[null,"Ensemble articulé (PL) - 34 t < PTRA ≤ 40 t","Gazole",null,null,null,null,null,"l",null,null,null,"l",null,null,null,null,null,null,"Ensemble articulé (PL) - 34 t < PTRA ≤ 40 tGazole","Ensemble articulé (PL) - 34 t < PTRA ≤ 40 t","Gazole","l",0.60899999999999999,2.4900000000000002,3.0990000000000002,3.8E-3,1.54E-2,6.3100000000000003E-2,8.2300000000000012E-2]
[null,"Ensemble articulé (PL) - 34 t < PTRA ≤ 40 t","Gaz naturel comprimé (GNC)",null,null,null,null,null,"kg",null,null,null,"kg",null,null,null,null,null,null,"Ensemble articulé (PL) - 34 t < PTRA ≤ 40 tGaz naturel comprimé (GNC)","Ensemble articulé (PL) - 34 t < PTRA ≤ 40 t","Gaz naturel comprimé (GNC)","kg",0.55000000000000004,2.41,2.96,3.8E-3,0.01,6.6000000000000003E-2,7.980000000000001E-2]
[null,"Ensemble articulé (PL) - 34 t < PTRA ≤ 40 t","Gaz naturel liquéfié (GNL)",null,null,null,null,null,"kg",null,null,null,"kg",null,null,null,null,null,null,"Ensemble articulé (PL) - 34 t < PTRA ≤ 40 tGaz naturel liquéfié (GNL)","Ensemble articulé (PL) - 34 t < PTRA ≤ 40 t","Gaz naturel liquéfié (GNL)","kg",0.69699999999999995,2.58,3.2770000000000001,3.8E-3,2.3E-2,6.5000000000000002E-2,9.1800000000000007E-2]
[null,"Ensemble articulé (PL) - 40 t < PTRA ≤ 44 t","Gazole",null,null,null,null,null,"l",null,null,null,"l",null,null,null,null,null,null,"Ensemble articulé (PL) - 40 t < PTRA ≤ 44 tGazole","Ensemble articulé (PL) - 40 t < PTRA ≤ 44 t","Gazole","l",0.60899999999999999,2.4900000000000002,3.0990000000000002,3.8E-3,1.32E-2,5.4100000000000002E-2,7.1099999999999997E-2]
[null,"Ensemble articulé (PL) - 44 t < PTRA ≤ 60 t","Gazole",null,null,null,null,null,"l",null,null,null,"l",null,null,null,null,null,null,"Ensemble articulé (PL) - 44 t < PTRA ≤ 60 tGazole","Ensemble articulé (PL) - 44 t < PTRA ≤ 60 t","Gazole","l",0.60899999999999999,2.4900000000000002,3.0990000000000002,3.8999999999999998E-3,1.2500000000000001E-2,5.11E-2,6.7500000000000004E-2]
[null,"Ensemble articulé (PL) - 60 t < PTRA ≤ 72 t","Gazole",null,null,null,null,null,"l",null,null,null,"l",null,null,null,null,null,null,"Ensemble articulé (PL) - 60 t < PTRA ≤ 72 tGazole","Ensemble articulé (PL) - 60 t < PTRA ≤ 72 t","Gazole","l",0.60899999999999999,2.4900000000000002,3.0990000000000002,4.0000000000000001E-3,1.2500000000000001E-2,5.11E-2,6.7599999999999993E-2]
[]
[]
[]
[null,null,null,null,"Prestations de transport internalisées",null,null,null,null,null,"Prestations de transport externalisées",null,"BILAN GLOBAL"]
[null,null,null,null,"Scope 1",null,"Scope 2","Scope 3"]
[null,"Type de véhicule","Type de carburant","Transport sous température dirigée?","Activité totale de transport internalisée\n(tkm)","Émissions directes (TTW) de GES\n(kgCO2e)","Émissions indirectes (WTT) de GES issues de l'électricité consommée\n(kgCO2e)","Rappel activité totale de transport internalisée\n(tkm)","Émissions indirectes de GES issues de la fabrication des véhicules\n(kgCO2e)","Émissions indirectes (WTT) de GES issues du carburant consommé\n(kgCO2e)","Activité totale de transport externalisée\n(tkm)","Émissions de GES (WTW + fabrication) \n(kgCO2e)","Activité totale de transport \n(tkm)","Émissions de GES\n(kgCO2e)","Intensité des émissions de GES\n(kgCO2e/tkm)"]
[null,{"$f":"B11","v":"Véhicule utilitaire léger (VUL) - PTAC ≤ 3,5 t"},{"$f":"C11","v":"Gazole"},{"$f":"D11","v":"Non"},{"$f":"F11*G11","v":72800},{"$f":"IF($I$9=\"Oui\",$H11*VLOOKUP($B43&$C43,$T$11:$AD$36,6,FALSE),$E43*VLOOKUP($B43&$C43,$T$11:$AD$36,10,FALSE))","v":3535.8},{"$f":"IF($C43<>\"Électricité\",0,IF($I$9=\"Oui\",$H11*VLOOKUP($B43&$C43,$T$11:$AD$36,5,FALSE),$E43*VLOOKUP($B43&$C43,$T$11:$AD$36,9,FALSE)))","v":0},{"$f":"E43","v":72800},{"$f":"$E43*VLOOKUP($B43&$C43,$T$11:$AD$36,8,FALSE)","v":11138.4},{"$f":"IF($C43=\"Électricité\",0,IF($I$9=\"Oui\",$H11*VLOOKUP($B43&$C43,$T$11:$AD$36,5,FALSE),$E43*VLOOKUP($B43&$C43,$T$11:$AD$36,9,FALSE)))","v":864.78},{"$f":"J11*K11","v":160000},{"$f":"IF($M$9=\"Oui\",$L11*VLOOKUP($B43&$C43,$T$11:$AD$36,7,FALSE)+$K43*VLOOKUP(B43&C43,$T$11:$AD$36,8,FALSE),$K43*VLOOKUP($B43&$C43,$T$11:$AD$36,11,FALSE))","v":29128.5},{"$f":"H43+K43","v":232800},{"$f":"IF(D43=\"Non\",F43+G43+I43+J43+L43,1.15*(F43+G43+I43+J43+L43))","v":44667.48},{"$f":"N43/M43","v":0.19187061855670104}]
[null,{"$f":"B12","v":"Véhicule utilitaire léger (VUL) - PTAC ≤ 3,5 t"},"Essence","Oui",{"$f":"F12*G12","v":72800},{"$f":"IF($I$9=\"Oui\",H12*VLOOKUP(B44&C44,$T$11:$AD$36,6,FALSE),E44*VLOOKUP(B44&C44,$T$11:$AD$36,10,FALSE))","v":3124.0000000000005},{"$f":"IF($C44<>\"Électricité\",0,IF($I$9=\"Oui\",$H12*VLOOKUP($B44&$C44,$T$11:$AD$36,5,FALSE),$E44*VLOOKUP($B44&$C44,$T$11:$AD$36,9,FALSE)))","v":0},{"$f":"E44","v":72800},{"$f":"$E44*VLOOKUP($B44&$C44,$T$11:$AD$36,8,FALSE)","v":11138.4},{"$f":"IF($C44=\"Électricité\",0,IF($I$9=\"Oui\",$H12*VLOOKUP($B44&$C44,$T$11:$AD$36,5,FALSE),$E44*VLOOKUP($B44&$C44,$T$11:$AD$36,9,FALSE)))","v":701.48},{"$f":"J12*K12","v":160000},{"$f":"IF($M$9=\"Oui\",$L12*VLOOKUP($B44&$C44,$T$11:$AD$36,7,FALSE)+$K44*VLOOKUP(B44&C44,$T$11:$AD$36,8,FALSE),$K44*VLOOKUP($B44&$C44,$T$11:$AD$36,11,FALSE))","v":28521},{"$f":"H44+K44","v":232800},{"$f":"IF(D44=\"Non\",F44+G44+I44+J44+L44,1.15*(F44+G44+I44+J44+L44))","v":50007.611999999994},{"$f":"N44/M44","v":0.21480932989690718}]
[null,"Véhicule utilitaire léger (VUL) - PTAC ≤ 3,5 t","Gaz naturel comprimé (GNC)",0,0,0,0,0,0,0,0,0,0,0,{"$error":"#DIV/0!"}]
[null,"Véhicule utilitaire léger (VUL) - PTAC ≤ 3,5 t","Gaz de pétrole liquéfié (GPL)",0,0,0,0,0,0,0,0,0,0,0,{"$error":"#DIV/0!"}]
[null,"Véhicule utilitaire léger (VUL) - PTAC ≤ 3,5 t","Électricité","Non",72800,0,8.6751000000000005,72800,11138.4,0,160000,24496.6698,232800,35643.744899999998,0.15310886984536082]
[null,"Véhicule utilitaire léger (VUL) - PTAC ≤ 3,5 t","Hydrogène",0,0,0,0,0,0,0,0,0,0,0,{"$error":"#DIV/0!"}]
[null,"Camion rigide (PL) - 3,5 t < PTAC ≤ 7,5 t","Gazole",0,0,0,0,0,0,0,0,0,0,0,{"$error":"#DIV/0!"}]
[null,"Camion rigide (PL) - 3,5 t < PTAC ≤ 7,5 t","Gaz naturel comprimé (GNC)",0,0,0,0,0,0,0,0,0,0,0,{"$error":"#DIV/0!"}]
[null,"Camion rigide (PL) - 3,5 t < PTAC ≤ 7,5 t","Hybride électricité-gazole",0,0,0,0,0,0,0,0,0,0,0,{"$error":"#DIV/0!"}]
[null,"Camion rigide (PL) - 3,5 t < PTAC ≤ 7,5 t","Électricité",0,0,0,0,0,0,0,0,0,0,0,{"$error":"#DIV/0!"}]
[null,"Camion rigide (PL) - 7,5 t < PTAC ≤ 12 t","Gazole",0,0,0,0,0,0,0,0,0,0,0,{"$error":"#DIV/0!"}]
[null,"Camion rigide (PL) - 7,5 t < PTAC ≤ 12 t","Gaz naturel comprimé (GNC)",0,0,0,0,0,0,0,0,0,0,0,{"$error":"#DIV/0!"}]
[null,"Camion rigide (PL) - 12 t < PTAC ≤ 20 t","Gazole",0,0,0,0,0,0,0,0,0,0,0,{"$error":"#DIV/0!"}]
[null,"Camion rigide (PL) - 12 t < PTAC ≤ 20 t","Gaz naturel comprimé (GNC)",0,0,0,0,0,0,0,0,0,0,0,{"$error":"#DIV/0!"}]
[null,"Camion rigide (PL) - 12 t < PTAC ≤ 20 t","Gaz naturel liquéfié (GNL)",0,0,0,0,0,0,0,0,0,0,0,{"$error":"#DIV/0!"}]
[null,"Camion rigide (PL) - 20 t < PTAC ≤ 26 t","Gazole",0,0,0,0,0,0,0,0,0,0,0,{"$error":"#DIV/0!"}]
[null,"Camion rigide (PL) - 20 t < PTAC ≤ 26 t","Gaz naturel comprimé (GNC)",0,0,0,0,0,0,0,0,0,0,0,{"$error":"#DIV/0!"}]
[null,"Camion rigide (PL) - 20 t < PTAC ≤ 26 t","Gaz naturel liquéfié (GNL)",0,0,0,0,0,0,0,0,0,0,0,{"$error":"#DIV/0!"}]
[null,"Camion rigide (PL) - 26 t < PTAC ≤ 32 t","Gazole",0,0,0,0,0,0,0,0,0,0,0,{"$error":"#DIV/0!"}]
[null,"Ensemble articulé (PL) - PTRA ≤ 34 t","Gazole",0,0,0,0,0,0,0,0,0,0,0,{"$error":"#DIV/0!"}]
[null,"Ensemble articulé (PL) - 34 t < PTRA ≤ 40 t","Gazole",0,0,0,0,0,0,0,0,0,0,0,{"$error":"#DIV/0!"}]
[null,"Ensemble articulé (PL) - 34 t < PTRA ≤ 40 t","Gaz naturel comprimé (GNC)",0,0,0,0,0,0,0,0,0,0,0,{"$error":"#DIV/0!"}]
[null,"Ensemble articulé (PL) - 34 t < PTRA ≤ 40 t","Gaz naturel liquéfié (GNL)",0,0,0,0,0,0,0,0,0,0,0,{"$error":"#DIV/0!"}]
[null,"Ensemble articulé (PL) - 40 t < PTRA ≤ 44 t","Gazole",0,0,0,0,0,0,0,0,0,0,0,{"$error":"#DIV/0!"}]
[null,"Ensemble articulé (PL) - 44 t < PTRA ≤ 60 t","Gazole",0,0,0,0,0,0,0,0,0,0,0,{"$error":"#DIV/0!"}]
[null,"Ensemble articulé (PL) - 60 t < PTRA ≤ 72 t","Gazole",0,0,0,0,0,0,0,0,0,0,0,{"$error":"#DIV/0!"}]
[]
[null,"TOTAL",null,null,{"$f":"SUM(E43:E68)","v":218400},6659.8000000000011,8.6751000000000005,218400,33415.199999999997,1566.26,480000,82146.169800000003,698400,130318.83689999999,{"$f":"N70/M70","v":0.18659627276632301}]